Workbook

Sheet Data Source Acknowlegement
A1: Data source acknowledgement
A2: Contains public sector information licensed under the Open Government Licence v3.0.
A3: Uses data supplied by the Environment Agency under the Freedom of Information Act 2000 and Environmental Information Regulations 2004. See licence information in link below.
A4: http://www.nationalarchives.gov.uk/doc/open-government-licence/version/3/
A5: Uses Environment Agency flood and river level data from the real-time data API (Beta)

Sheet Jan
A1: date time | B1: SJB rain | C1: DH rain | D1: Portinscale rain | E1: Honister rain | F1: Matterdale End rain | G1: Mungrisdale rain | H1: Thirlmere | I1: SJB | J1: Threlkeld | K1: Greta Bridge | L1: Derwent at Portinscale | M1: Greta Keswick Campsite | N1: Derwentwater at Lodore | Q1: DAILY | R1: SJB | S1: Dale Head | T1: Portinscale | U1: Honister | V1: Matterdale | W1: Mungrisdale | Y1: Check on rainfall calcs | AB1: SJB | AC1: Threlkeld | AD1: Low Briery | AE1: Portinscale | AF1: Ouse Bridge | AG1: Scalehill | AH1: Southwaite Bridge | AI1: Seaton Mill | AJ1: Scalehill | AK1: Southwaite Bridge | AL1: South St Footbridge | AM1: Ouse Bridge | AN1: Kingfisher | AO1: Seaton Mill
A2: TOTALS | B2: =SUM(B3:B2978) -> 110 | C2: =SUM(C3:C2978) -> 218.2 | D2: 156.1 | E2: 363 | F2: 127.4 | G2: 189.4 | R2: =SUM(R3:R33) -> 110 | S2: =SUM(S3:S33) -> 218.2 | T2: 156.1 | U2: 363 | V2: 127.4 | W2: 189.4 | Y2: =SUM(R2:W2)-SUM(B2:G2) -> 2.273736754e-12 | AB2: Flows in m3/s | AJ2: Levels =m
A3: 2021-01-01 | B3: 0 | C3: 0 | D3: 0 | E3: 0 | F3: 0 | G3: 0 | H3: 16.466 | I3: 0.386 | J3: 0.596 | K3: 1.265 | L3: 0.752 | M3: 0.879 | N3: 1.216 | P3: =2+96 -> 98 | Q3: 2021-01-01 | R3: =SUM(B3:B98) -> 0.4 | S3: =SUM(C3:C98) -> 0.8 | T3: 0.3 | U3: 6.4 | V3: 1.6 | W3: 0 | AB3: 1.57 | AC3: 1.6 | AD3: --- | AE3: --- | AF3: 26.5 | AG3: 3.48 | AH3: 4.9 | AI3: 39.2 | AJ3: 0.633 | AK3: 0.559 | AL3: 1.134 | AM3: 1.271 | AN3: 1.006 | AO3: 0.737
A4: 2021-01-01T00:15:00 | B4: 0 | C4: 0 | D4: 0 | E4: 0 | F4: 0.2 | G4: 0 | H4: 16.467 | I4: 0.387 | J4: 0.596 | K4: 1.269 | L4: 0.751 | M4: 0.876 | N4: 1.216 | P4: =P3+96 -> 194 | Q4: 2021-01-02 | R4: =SUM(B99:B194) -> 0 | S4: =SUM(C99:C194) -> 0 | T4: 0 | U4: 0 | V4: 0 | W4: 0 | AB4: 1.58 | AC4: 1.6 | AD4: --- | AE4: --- | AF4: 26.6 | AG4: 3.47 | AH4: 4.9 | AI4: 38.3 | AJ4: 0.632 | AK4: 0.559 | AL4: 1.132 | AM4: 1.272 | AN4: 1.006 | AO4: 0.732
A5: 2021-01-01T00:30:00 | B5: 0 | C5: 0 | D5: 0 | E5: 0 | F5: 0 | G5: 0 | H5: 16.469 | I5: 0.386 | J5: 0.596 | K5: 1.264 | L5: 0.749 | M5: 0.875 | N5: 1.216 | P5: =P4+96 -> 290 | Q5: 2021-01-03 | R5: =SUM(B195:B290) -> 0.4 | S5: =SUM(C195:C290) -> 0 | T5: 0 | U5: 0 | V5: 0 | W5: 0.4 | AB5: 1.57 | AC5: 1.6 | AD5: --- | AE5: --- | AF5: 26.5 | AG5: 3.47 | AH5: 4.9 | AI5: 38.8 | AJ5: 0.632 | AK5: 0.559 | AL5: 1.134 | AM5: 1.271 | AN5: 1.003 | AO5: 0.735
A6: 2021-01-01T00:45:00 | B6: 0 | C6: 0.2 | D6: 0 | E6: 0 | F6: 0.2 | G6: 0 | H6: 16.466 | I6: 0.386 | J6: 0.596 | K6: 1.266 | L6: 0.751 | M6: 0.876 | N6: 1.215 | P6: 386 | Q6: 2021-01-04 | R6: =SUM(B291:B386) -> 0.4 | S6: =SUM(C291:C386) -> 1 | T6: 0 | U6: 0.6 | V6: 0.4 | W6: 0.4 | AB6: 1.57 | AC6: 1.6 | AD6: --- | AE6: --- | AF6: 26.4 | AG6: 3.45 | AH6: 4.9 | AI6: 38.5 | AJ6: 0.631 | AK6: 0.559 | AL6: 1.13 | AM6: 1.269 | AN6: 1.007 | AO6: 0.733
A7: 2021-01-01T01:00:00 | B7: 0.2 | C7: 0.2 | D7: 0.1 | E7: 0 | F7: 0 | G7: 0 | H7: 16.464 | I7: 0.387 | J7: 0.596 | K7: 1.266 | L7: 0.75 | M7: 0.875 | N7: 1.214 | P7: 482 | Q7: 2021-01-05 | R7: =SUM(B387:B482) -> 0 | S7: =SUM(C387:C482) -> 0 | T7: 0.4 | U7: 0 | V7: 0 | W7: 0 | AB7: 1.58 | AC7: 1.6 | AD7: --- | AE7: --- | AF7: 26.3 | AG7: 3.43 | AH7: 4.9 | AI7: 38.5 | AJ7: 0.63 | AK7: 0.559 | AL7: 1.133 | AM7: 1.266 | AN7: 1.004 | AO7: 0.733
A8: 2021-01-01T01:15:00 | B8: 0 | C8: 0 | D8: 0 | E8: 0 | F8: 0 | G8: 0 | H8: 16.463 | I8: 0.387 | J8: 0.597 | K8: 1.266 | L8: 0.751 | M8: 0.872 | N8: 1.212 | P8: 578 | Q8: 2021-01-06 | R8: =SUM(B483:B578) -> 0 | S8: =SUM(C483:C578) -> 0 | T8: 0 | U8: 0 | V8: 0.4 | W8: 0.2 | AB8: 1.58 | AC8: 1.61 | AD8: --- | AE8: --- | AF8: 26.2 | AG8: 3.43 | AH8: 4.9 | AI8: 38.5 | AJ8: 0.63 | AK8: 0.559 | AL8: 1.133 | AM8: 1.264 | AN8: 1.01 | AO8: 0.733
A9: 2021-01-01T01:30:00 | B9: 0.2 | C9: 0.4 | D9: 0.1 | E9: 0 | F9: 0.2 | G9: 0 | H9: 16.464 | I9: 0.389 | J9: 0.597 | K9: 1.265 | L9: 0.748 | M9: 0.874 | N9: 1.211 | P9: 674 | Q9: 2021-01-07 | R9: =SUM(B579:B674) -> 0.4 | S9: =SUM(C579:C674) -> 0.8 | T9: 0.6 | U9: 0.2 | V9: 0.4 | W9: 0.2 | AB9: 1.61 | AC9: 1.61 | AD9: --- | AE9: --- | AF9: 26.2 | AG9: 3.45 | AH9: 4.9 | AI9: 38.8 | AJ9: 0.631 | AK9: 0.559 | AL9: 1.132 | AM9: 1.263 | AN9: 0.994 | AO9: 0.735
A10: 2021-01-01T01:45:00 | B10: 0 | C10: 0 | D10: 0 | E10: 0 | F10: 0 | G10: 0 | H10: 16.467 | I10: 0.386 | J10: 0.597 | K10: 1.268 | L10: 0.746 | M10: 0.873 | N10: 1.21 | P10: 770 | Q10: 2021-01-08 | R10: =SUM(B675:B770) -> 1.8 | S10: =SUM(C675:C770) -> 2.4 | T10: 1.6 | U10: 0.2 | V10: 0 | W10: 0 | AB10: 1.57 | AC10: 1.61 | AD10: --- | AE10: --- | AF10: 26.1 | AG10: 3.4 | AH10: 4.88 | AI10: 38.3 | AJ10: 0.628 | AK10: 0.558 | AL10: 1.131 | AM10: 1.261 | AN10: 1 | AO10: 0.732
A11: 2021-01-01T02:00:00 | B11: 0 | C11: 0 | D11: 0.1 | E11: 0 | F11: 0.2 | G11: 0 | H11: 16.463 | I11: 0.388 | J11: 0.597 | K11: 1.266 | L11: 0.743 | M11: 0.871 | N11: 1.209 | P11: 866 | Q11: 2021-01-09 | R11: =SUM(B771:B866) -> 1.4 | S11: =SUM(C771:C866) -> 0 | T11: 0 | U11: 0 | V11: 1 | W11: 2.6 | AB11: 1.59 | AC11: 1.61 | AD11: --- | AE11: --- | AF11: 26.1 | AG11: 3.4 | AH11: 4.88 | AI11: 38.1 | AJ11: 0.628 | AK11: 0.558 | AL11: 1.131 | AM11: 1.261 | AN11: 0.999 | AO11: 0.731
A12: 2021-01-01T02:15:00 | B12: 0 | C12: 0 | D12: 0 | E12: 0 | F12: 0 | G12: 0 | H12: 16.46 | I12: 0.386 | J12: 0.597 | K12: 1.266 | L12: 0.744 | M12: 0.871 | N12: 1.209 | P12: 962 | Q12: 2021-01-10 | R12: =SUM(B867:B962) -> 2.4 | S12: =SUM(C867:C962) -> 4.8 | T12: 2.4 | U12: 29.4 | V12: 0.8 | W12: 5.8 | AB12: 1.57 | AC12: 1.61 | AD12: --- | AE12: --- | AF12: 26.2 | AG12: 3.38 | AH12: 4.85 | AI12: 37.8 | AJ12: 0.627 | AK12: 0.557 | AL12: 1.131 | AM12: 1.263 | AN12: 0.998 | AO12: 0.729
A13: 2021-01-01T02:30:00 | B13: 0 | C13: 0 | D13: 0 | E13: 0 | F13: 0 | G13: 0 | H13: 16.463 | I13: 0.387 | J13: 0.597 | K13: 1.266 | L13: 0.745 | M13: 0.869 | N13: 1.208 | P13: 1058 | Q13: 2021-01-11 | R13: =SUM(B963:B1058) -> 15.2 | S13: =SUM(C963:C1058) -> 15.2 | T13: 12 | U13: 31.2 | V13: 8 | W13: 16 | AB13: 1.58 | AC13: 1.61 | AD13: --- | AE13: --- | AF13: 26.1 | AG13: 3.38 | AH13: 4.83 | AI13: 38.1 | AJ13: 0.627 | AK13: 0.556 | AL13: 1.131 | AM13: 1.261 | AN13: 0.998 | AO13: 0.731
A14: 2021-01-01T02:45:00 | B14: 0 | C14: 0 | D14: 0 | E14: 0 | F14: 0.2 | G14: 0 | H14: 16.463 | I14: 0.387 | J14: 0.597 | K14: 1.265 | L14: 0.743 | M14: 0.872 | N14: 1.207 | P14: 1154 | Q14: 2021-01-12 | R14: =SUM(B1059:B1154) -> 2.8 | S14: 4.4 | T14: 2.1 | U14: 3.8 | V14: 1.4 | W14: 2.2 | AB14: 1.58 | AC14: 1.61 | AD14: --- | AE14: --- | AF14: 26 | AG14: 3.4 | AH14: 4.83 | AI14: 37.4 | AJ14: 0.628 | AK14: 0.556 | AL14: 1.13 | AM14: 1.26 | AN14: 0.998 | AO14: 0.727
A15: 2021-01-01T03:00:00 | B15: 0 | C15: 0 | D15: 0 | E15: 0 | F15: 0 | G15: 0 | H15: 16.456 | I15: 0.387 | J15: 0.598 | K15: 1.265 | L15: 0.743 | M15: 0.87 | N15: 1.207 | P15: 1250 | Q15: 2021-01-13 | R15: =SUM(B1155:B1250) -> 18.4 | S15: =SUM(C1155:C1250) -> 18.2 | T15: 21 | U15: 19.2 | V15: 15.4 | W15: 16.2 | AB15: 1.58 | AC15: 1.62 | AD15: --- | AE15: --- | AF15: 25.9 | AG15: 3.4 | AH15: 4.83 | AI15: 38 | AJ15: 0.628 | AK15: 0.556 | AL15: 1.128 | AM15: 1.258 | AN15: 1.001 | AO15: 0.73
A16: 2021-01-01T03:15:00 | B16: 0 | C16: 0 | D16: 0 | E16: 0 | F16: 0 | G16: 0 | H16: 16.459 | I16: 0.386 | J16: 0.598 | K16: 1.267 | L16: 0.742 | M16: 0.869 | N16: 1.206 | P16: 1346 | Q16: 2021-01-14 | R16: =SUM(B1251:B1346) -> 19.4 | S16: =SUM(C1251:C1346) -> 22 | T16: 23.1 | U16: 22.2 | V16: 11.2 | W16: 16 | AB16: 1.57 | AC16: 1.62 | AD16: --- | AE16: --- | AF16: 25.8 | AG16: 3.4 | AH16: 4.8 | AI16: 37.8 | AJ16: 0.628 | AK16: 0.555 | AL16: 1.129 | AM16: 1.254 | AN16: 1.001 | AO16: 0.729
A17: 2021-01-01T03:30:00 | B17: 0 | C17: 0 | D17: 0 | E17: 0 | F17: 0 | G17: 0 | H17: 16.46 | I17: 0.387 | J17: 0.597 | K17: 1.264 | L17: 0.744 | M17: 0.869 | N17: 1.205 | P17: 1442 | Q17: 2021-01-15 | R17: =SUM(B1347:B1442) -> 0.2 | S17: =SUM(C1347:C1442) -> 0.2 | T17: 0 | U17: 0 | V17: 0.8 | W17: 0.8 | AB17: 1.58 | AC17: 1.61 | AD17: --- | AE17: --- | AF17: 25.9 | AG17: 3.4 | AH17: 4.8 | AI17: 37.6 | AJ17: 0.628 | AK17: 0.555 | AL17: 1.129 | AM17: 1.257 | AN17: 1 | AO17: 0.728
A18: 2021-01-01T03:45:00 | B18: 0 | C18: 0 | D18: 0 | E18: 0 | F18: 0.2 | G18: 0 | H18: 16.462 | I18: 0.388 | J18: 0.597 | K18: 1.265 | L18: 0.742 | M18: 0.87 | N18: 1.205 | P18: 1538 | Q18: 2021-01-16 | R18: =SUM(B1443:B1538) -> 0.4 | S18: =SUM(C1443:C1538) -> 15.2 | T18: 4.9 | U18: 12.8 | V18: 11.4 | W18: 7.2 | AB18: 1.59 | AC18: 1.61 | AD18: --- | AE18: --- | AF18: 25.7 | AG18: 3.4 | AH18: 4.78 | AI18: 37.4 | AJ18: 0.628 | AK18: 0.554 | AL18: 1.129 | AM18: 1.253 | AN18: 0.986 | AO18: 0.727
A19: 2021-01-01T04:00:00 | B19: 0 | C19: 0 | D19: 0 | E19: 0 | F19: 0 | G19: 0 | H19: 16.456 | I19: 0.386 | J19: 0.597 | K19: 1.267 | L19: 0.74 | M19: 0.868 | N19: 1.203 | P19: 1634 | Q19: 2021-01-17 | R19: =SUM(B1539:B1634) -> 0 | S19: =SUM(C1539:C1634) -> 5.8 | T19: 1.4 | U19: 18 | V19: 4.6 | W19: 6 | AB19: 1.57 | AC19: 1.61 | AD19: --- | AE19: --- | AF19: 25.8 | AG19: 3.38 | AH19: 4.8 | AI19: 37.6 | AJ19: 0.627 | AK19: 0.555 | AL19: 1.128 | AM19: 1.254 | AN19: 0.995 | AO19: 0.728
A20: 2021-01-01T04:15:00 | B20: 0 | C20: 0 | D20: 0 | E20: 0 | F20: 0 | G20: 0 | H20: 16.457 | I20: 0.386 | J20: 0.598 | K20: 1.264 | L20: 0.742 | M20: 0.868 | N20: 1.201 | P20: 1730 | Q20: 2021-01-18 | R20: =SUM(B1635:B1730) -> 0 | S20: =SUM(C1635:C1730) -> 5.2 | T20: 1.9 | U20: 15.4 | V20: 2.2 | W20: 4 | AB20: 1.57 | AC20: 1.62 | AD20: --- | AE20: --- | AF20: 25.6 | AG20: 3.38 | AH20: 4.8 | AI20: 37.8 | AJ20: 0.627 | AK20: 0.555 | AL20: 1.129 | AM20: 1.25 | AN20: 0.992 | AO20: 0.729
A21: 2021-01-01T04:30:00 | B21: 0 | C21: 0 | D21: 0 | E21: 0 | F21: 0 | G21: 0 | H21: 16.454 | I21: 0.386 | J21: 0.598 | K21: 1.266 | L21: 0.742 | M21: 0.869 | N21: 1.2 | P21: 1826 | Q21: 2021-01-19 | R21: =SUM(B1731:B1826) -> 0 | S21: =SUM(C1731:C1826) -> 54.4 | T21: 42.4 | U21: 121.4 | V21: 30.4 | W21: 56.8 | AB21: 1.57 | AC21: 1.62 | AD21: --- | AE21: --- | AF21: 25.5 | AG21: 3.36 | AH21: 4.78 | AI21: 37.1 | AJ21: 0.626 | AK21: 0.554 | AL21: 1.128 | AM21: 1.249 | AN21: 0.998 | AO21: 0.725
A22: 2021-01-01T04:45:00 | B22: 0 | C22: 0 | D22: 0 | E22: 0 | F22: 0 | G22: 0 | H22: 16.453 | I22: 0.386 | J22: 0.598 | K22: 1.265 | L22: 0.738 | M22: 0.869 | N22: 1.2 | P22: 1922 | Q22: 2021-01-20 | R22: =SUM(B1827:B1922) -> 8.6 | S22: =SUM(C1827:C1922) -> 20.8 | T22: 10.6 | U22: 26.2 | V22: 9.2 | W22: 14.4 | AB22: 1.57 | AC22: 1.62 | AD22: --- | AE22: --- | AF22: 25.5 | AG22: 3.38 | AH22: 4.75 | AI22: 37.8 | AJ22: 0.627 | AK22: 0.553 | AL22: 1.129 | AM22: 1.248 | AN22: 0.998 | AO22: 0.729
A23: 2021-01-01T05:00:00 | B23: 0 | C23: 0 | D23: 0 | E23: 0 | F23: 0 | G23: 0 | H23: 16.453 | I23: 0.387 | J23: 0.598 | K23: 1.265 | L23: 0.738 | M23: 0.865 | N23: 1.195 | P23: 2018 | Q23: 2021-01-21 | R23: =SUM(B1923:B2018) -> 7.8 | S23: =SUM(C1923:C2018) -> 9.6 | T23: 3.6 | U23: 5.2 | V23: 1.8 | W23: 7.6 | AB23: 1.58 | AC23: 1.62 | AD23: --- | AE23: --- | AF23: 25.5 | AG23: 3.35 | AH23: 4.75 | AI23: 37.4 | AJ23: 0.625 | AK23: 0.553 | AL23: 1.128 | AM23: 1.248 | AN23: 0.992 | AO23: 0.727
A24: 2021-01-01T05:15:00 | B24: 0 | C24: 0 | D24: 0 | E24: 0 | F24: 0 | G24: 0 | H24: 16.453 | I24: 0.388 | J24: 0.598 | K24: 1.265 | L24: 0.74 | M24: 0.866 | N24: 1.196 | P24: 2114 | Q24: 2021-01-22 | R24: =SUM(B2019:B2114) -> 1.2 | S24: =SUM(C2019:C2114) -> 1.6 | T24: 1.9 | U24: 1.8 | V24: 0.8 | W24: 1.6 | AB24: 1.59 | AC24: 1.62 | AD24: --- | AE24: --- | AF24: 25.5 | AG24: 3.35 | AH24: 4.78 | AI24: 37.3 | AJ24: 0.625 | AK24: 0.554 | AL24: 1.127 | AM24: 1.247 | AN24: 0.996 | AO24: 0.726
A25: 2021-01-01T05:30:00 | B25: 0 | C25: 0 | D25: 0 | E25: 0 | F25: 0 | G25: 0 | H25: 16.449 | I25: 0.387 | J25: 0.598 | K25: 1.265 | L25: 0.738 | M25: 0.866 | N25: 1.196 | P25: 2210 | Q25: 2021-01-23 | R25: =SUM(B2115:B2210) -> 0.2 | S25: =SUM(C2115:C2210) -> 0.8 | T25: 0 | U25: 0 | V25: 0.2 | W25: 0.6 | AB25: 1.58 | AC25: 1.62 | AD25: --- | AE25: --- | AF25: 25.3 | AG25: 3.36 | AH25: 4.75 | AI25: 37.3 | AJ25: 0.626 | AK25: 0.553 | AL25: 1.126 | AM25: 1.243 | AN25: 0.994 | AO25: 0.726
A26: 2021-01-01T05:45:00 | B26: 0 | C26: 0 | D26: 0 | E26: 0 | F26: 0 | G26: 0 | H26: 16.449 | I26: 0.387 | J26: 0.598 | K26: 1.264 | L26: 0.739 | M26: 0.866 | N26: 1.19 | P26: 2306 | Q26: 2021-01-24 | R26: =SUM(B2211:B2306) -> 0.2 | S26: =SUM(C2211:C2306) -> 0 | T26: 0 | U26: 0 | V26: 0 | W26: 0.2 | AB26: 1.58 | AC26: 1.62 | AD26: --- | AE26: --- | AF26: 25.3 | AG26: 3.35 | AH26: 4.75 | AI26: 37.6 | AJ26: 0.625 | AK26: 0.553 | AL26: 1.127 | AM26: 1.244 | AN26: 0.992 | AO26: 0.728
A27: 2021-01-01T06:00:00 | B27: 0 | C27: 0 | D27: 0 | E27: 0 | F27: 0 | G27: 0 | H27: 16.45 | I27: 0.387 | J27: 0.6 | K27: 1.266 | L27: 0.735 | M27: 0.864 | N27: 1.189 | P27: 2402 | Q27: 2021-01-25 | R27: =SUM(B2307:B2402) -> 0 | S27: =SUM(C2307:C2402) -> 0.4 | T27: 0.1 | U27: 1.8 | V27: 0.2 | W27: 0.4 | AB27: 1.58 | AC27: 1.65 | AD27: --- | AE27: --- | AF27: 25.1 | AG27: 3.33 | AH27: 4.75 | AI27: 37.1 | AJ27: 0.624 | AK27: 0.553 | AL27: 1.127 | AM27: 1.24 | AN27: 0.991 | AO27: 0.725
A28: 2021-01-01T06:15:00 | B28: 0 | C28: 0 | D28: 0 | E28: 0 | F28: 0 | G28: 0 | H28: 16.45 | I28: 0.387 | J28: 0.6 | K28: 1.264 | L28: 0.738 | M28: 0.864 | N28: 1.19 | P28: 2498 | Q28: 2021-01-26 | R28: =SUM(B2403:B2498) -> 6 | S28: =SUM(C2403:C2498) -> 7.4 | T28: 3.4 | U28: 10.4 | V28: 3.8 | W28: 3 | AB28: 1.58 | AC28: 1.65 | AD28: --- | AE28: --- | AF28: 25.3 | AG28: 3.35 | AH28: 4.72 | AI28: 36.9 | AJ28: 0.625 | AK28: 0.552 | AL28: 1.127 | AM28: 1.243 | AN28: 0.991 | AO28: 0.724
A29: 2021-01-01T06:30:00 | B29: 0 | C29: 0 | D29: 0 | E29: 0 | F29: 0 | G29: 0 | H29: 16.444 | I29: 0.387 | J29: 0.6 | K29: 1.265 | L29: 0.736 | M29: 0.862 | N29: 1.188 | P29: 2594 | Q29: 2021-01-27 | R29: =SUM(B2499:B2594) -> 0 | S29: =SUM(C2499:C2594) -> 0 | T29: 0 | U29: 0 | V29: 0 | W29: 0.2 | AB29: 1.58 | AC29: 1.65 | AD29: --- | AE29: --- | AF29: 25.2 | AG29: 3.35 | AH29: 4.72 | AI29: 36.9 | AJ29: 0.625 | AK29: 0.552 | AL29: 1.126 | AM29: 1.242 | AN29: 0.99 | AO29: 0.724
A30: 2021-01-01T06:45:00 | B30: 0 | C30: 0 | D30: 0 | E30: 0 | F30: 0 | G30: 0 | H30: 16.446 | I30: 0.387 | J30: 0.6 | K30: 1.264 | L30: 0.737 | M30: 0.864 | N30: 1.189 | P30: 2690 | Q30: 2021-01-28 | R30: =SUM(B2595:B2690) -> 17.8 | S30: =SUM(C2595:C2690) -> 23.2 | T30: 18 | U30: 25.4 | V30: 16.8 | W30: 21 | AB30: 1.58 | AC30: 1.65 | AD30: --- | AE30: --- | AF30: 25.1 | AG30: 3.31 | AH30: 4.7 | AI30: 37.3 | AJ30: 0.623 | AK30: 0.551 | AL30: 1.125 | AM30: 1.239 | AN30: 0.994 | AO30: 0.726
A31: 2021-01-01T07:00:00 | B31: 0 | C31: 0 | D31: 0 | E31: 0 | F31: 0 | G31: 0 | H31: 16.448 | I31: 0.386 | J31: 0.6 | K31: 1.264 | L31: 0.735 | M31: 0.86 | N31: 1.187 | P31: 2786 | Q31: 2021-01-29 | R31: =SUM(B2691:B2786) -> 4.6 | S31: =SUM(C2691:C2786) -> 4 | T31: 3 | U31: 11.4 | V31: 4.6 | W31: 5.6 | AB31: 1.57 | AC31: 1.65 | AD31: --- | AE31: --- | AF31: 25.1 | AG31: 3.31 | AH31: 4.7 | AI31: 36.6 | AJ31: 0.623 | AK31: 0.551 | AL31: 1.126 | AM31: 1.239 | AN31: 0.992 | AO31: 0.722
A32: 2021-01-01T07:15:00 | B32: 0 | C32: 0 | D32: 0 | E32: 0 | F32: 0 | G32: 0 | H32: 16.447 | I32: 0.386 | J32: 0.6 | K32: 1.265 | L32: 0.736 | M32: 0.861 | N32: 1.187 | P32: 2882 | Q32: 2021-01-30 | R32: =SUM(B2787:B2882) -> 0 | S32: =SUM(C2787:C2882) -> 0 | T32: 1.4 | U32: 0 | V32: 0 | W32: 0 | AB32: 1.57 | AC32: 1.65 | AD32: --- | AE32: --- | AF32: 25.1 | AG32: 3.28 | AH32: 4.7 | AI32: 36.7 | AJ32: 0.621 | AK32: 0.551 | AL32: 1.126 | AM32: 1.24 | AN32: 0.988 | AO32: 0.723
A33: 2021-01-01T07:30:00 | B33: 0 | C33: 0 | D33: 0 | E33: 0 | F33: 0 | G33: 0 | H33: 16.446 | I33: 0.386 | J33: 0.6 | K33: 1.265 | L33: 0.732 | M33: 0.861 | N33: 1.185 | P33: 2978 | Q33: 2021-01-31 | R33: =SUM(B2883:B2978) -> 0 | S33: =SUM(C2883:C2978) -> 0 | T33: 0 | U33: 0 | V33: 0 | W33: 0 | AB33: 1.57 | AC33: 1.65 | AD33: --- | AE33: --- | AF33: 25 | AG33: 3.29 | AH33: 4.65 | AI33: 36.9 | AJ33: 0.622 | AK33: 0.549 | AL33: 1.124 | AM33: 1.236 | AN33: 0.98 | AO33: 0.724
A34: 2021-01-01T07:45:00 | B34: 0 | C34: 0 | D34: 0 | E34: 0 | F34: 0 | G34: 0 | H34: 16.445 | I34: 0.387 | J34: 0.6 | K34: 1.264 | L34: 0.733 | M34: 0.862 | N34: 1.184 | AB34: 1.58 | AC34: 1.65 | AD34: --- | AE34: --- | AF34: 24.9 | AG34: 3.28 | AH34: 4.7 | AI34: 36.6 | AJ34: 0.621 | AK34: 0.551 | AL34: 1.126 | AM34: 1.235 | AN34: 0.984 | AO34: 0.722
A35: 2021-01-01T08:00:00 | B35: 0 | C35: 0 | D35: 0 | E35: 0 | F35: 0 | G35: 0 | H35: 16.444 | I35: 0.387 | J35: 0.6 | K35: 1.265 | L35: 0.732 | M35: 0.86 | N35: 1.183 | AB35: 1.58 | AC35: 1.65 | AD35: --- | AE35: --- | AF35: 25 | AG35: 3.24 | AH35: 4.65 | AI35: 36.6 | AJ35: 0.619 | AK35: 0.549 | AL35: 1.122 | AM35: 1.237 | AN35: 0.985 | AO35: 0.722
A36: 2021-01-01T08:15:00 | B36: 0 | C36: 0 | D36: 0 | E36: 0 | F36: 0 | G36: 0 | H36: 16.445 | I36: 0.388 | J36: 0.6 | K36: 1.265 | L36: 0.731 | M36: 0.857 | N36: 1.183 | AB36: 1.59 | AC36: 1.65 | AD36: --- | AE36: --- | AF36: 24.8 | AG36: 3.23 | AH36: 4.65 | AI36: 36.2 | AJ36: 0.618 | AK36: 0.549 | AL36: 1.125 | AM36: 1.233 | AN36: 0.983 | AO36: 0.72
A37: 2021-01-01T08:30:00 | B37: 0 | C37: 0 | D37: 0 | E37: 0 | F37: 0 | G37: 0 | H37: 16.436 | I37: 0.387 | J37: 0.599 | K37: 1.264 | L37: 0.73 | M37: 0.859 | N37: 1.183 | AB37: 1.58 | AC37: 1.63 | AD37: --- | AE37: --- | AF37: 24.8 | AG37: 3.23 | AH37: 4.62 | AI37: 36.4 | AJ37: 0.618 | AK37: 0.548 | AL37: 1.121 | AM37: 1.233 | AN37: 0.989 | AO37: 0.721
A38: 2021-01-01T08:45:00 | B38: 0 | C38: 0 | D38: 0 | E38: 0 | F38: 0 | G38: 0 | H38: 16.441 | I38: 0.386 | J38: 0.598 | K38: 1.261 | L38: 0.73 | M38: 0.855 | N38: 1.181 | AB38: 1.57 | AC38: 1.62 | AD38: --- | AE38: --- | AF38: 24.7 | AG38: 3.24 | AH38: 4.62 | AI38: 36.7 | AJ38: 0.619 | AK38: 0.548 | AL38: 1.123 | AM38: 1.229 | AN38: 0.983 | AO38: 0.723
A39: 2021-01-01T09:00:00 | B39: 0 | C39: 0 | D39: 0 | E39: 0 | F39: 0 | G39: 0 | H39: 16.442 | I39: 0.386 | J39: 0.598 | K39: 1.266 | L39: 0.729 | M39: 0.856 | N39: 1.18 | AB39: 1.57 | AC39: 1.62 | AD39: --- | AE39: --- | AF39: 24.7 | AG39: 3.23 | AH39: 4.62 | AI39: 35.9 | AJ39: 0.618 | AK39: 0.548 | AL39: 1.122 | AM39: 1.23 | AN39: 0.987 | AO39: 0.718
A40: 2021-01-01T09:15:00 | B40: 0 | C40: 0 | D40: 0 | E40: 0 | F40: 0 | G40: 0 | H40: 16.44 | I40: 0.386 | J40: 0.598 | K40: 1.263 | L40: 0.729 | M40: 0.853 | N40: 1.177 | AB40: 1.57 | AC40: 1.62 | AD40: --- | AE40: --- | AF40: 24.5 | AG40: 3.21 | AH40: 4.6 | AI40: 36.2 | AJ40: 0.617 | AK40: 0.547 | AL40: 1.12 | AM40: 1.226 | AN40: 0.988 | AO40: 0.72
A41: 2021-01-01T09:30:00 | B41: 0 | C41: 0 | D41: 0 | E41: 0 | F41: 0 | G41: 0 | H41: 16.444 | I41: 0.387 | J41: 0.598 | K41: 1.264 | L41: 0.729 | M41: 0.856 | N41: 1.177 | AB41: 1.58 | AC41: 1.62 | AD41: --- | AE41: --- | AF41: 24.6 | AG41: 3.23 | AH41: 4.57 | AI41: 36.6 | AJ41: 0.618 | AK41: 0.546 | AL41: 1.119 | AM41: 1.228 | AN41: 0.984 | AO41: 0.722
A42: 2021-01-01T09:45:00 | B42: 0 | C42: 0 | D42: 0 | E42: 0 | F42: 0 | G42: 0 | H42: 16.44 | I42: 0.387 | J42: 0.597 | K42: 1.265 | L42: 0.73 | M42: 0.854 | N42: 1.176 | AB42: 1.58 | AC42: 1.61 | AD42: --- | AE42: --- | AF42: 24.3 | AG42: 3.23 | AH42: 4.55 | AI42: 36 | AJ42: 0.618 | AK42: 0.545 | AL42: 1.12 | AM42: 1.222 | AN42: 0.983 | AO42: 0.719
A43: 2021-01-01T10:00:00 | B43: 0 | C43: 0 | D43: 0 | E43: 0 | F43: 0 | G43: 0 | H43: 16.44 | I43: 0.387 | J43: 0.597 | K43: 1.263 | L43: 0.729 | M43: 0.856 | N43: 1.174 | AB43: 1.58 | AC43: 1.61 | AD43: --- | AE43: --- | AF43: 24.5 | AG43: 3.23 | AH43: 4.55 | AI43: 36 | AJ43: 0.618 | AK43: 0.545 | AL43: 1.122 | AM43: 1.225 | AN43: 0.976 | AO43: 0.719
A44: 2021-01-01T10:15:00 | B44: 0 | C44: 0 | D44: 0 | E44: 0 | F44: 0 | G44: 0 | H44: 16.436 | I44: 0.387 | J44: 0.597 | K44: 1.263 | L44: 0.726 | M44: 0.854 | N44: 1.173 | AB44: 1.58 | AC44: 1.61 | AD44: --- | AE44: --- | AF44: 24.3 | AG44: 3.19 | AH44: 4.55 | AI44: 35.9 | AJ44: 0.616 | AK44: 0.545 | AL44: 1.121 | AM44: 1.221 | AN44: 0.983 | AO44: 0.718
A45: 2021-01-01T10:30:00 | B45: 0 | C45: 0 | D45: 0 | E45: 0 | F45: 0 | G45: 0 | H45: 16.436 | I45: 0.386 | J45: 0.597 | K45: 1.262 | L45: 0.728 | M45: 0.852 | N45: 1.173 | AB45: 1.57 | AC45: 1.61 | AD45: --- | AE45: --- | AF45: 24.3 | AG45: 3.21 | AH45: 4.55 | AI45: 35.9 | AJ45: 0.617 | AK45: 0.545 | AL45: 1.119 | AM45: 1.222 | AN45: 0.98 | AO45: 0.718
A46: 2021-01-01T10:45:00 | B46: 0 | C46: 0 | D46: 0 | E46: 0 | F46: 0 | G46: 0 | H46: 16.436 | I46: 0.388 | J46: 0.597 | K46: 1.262 | L46: 0.725 | M46: 0.85 | N46: 1.171 | AB46: 1.59 | AC46: 1.61 | AD46: --- | AE46: --- | AF46: 24.2 | AG46: 3.19 | AH46: 4.55 | AI46: 35.7 | AJ46: 0.616 | AK46: 0.545 | AL46: 1.119 | AM46: 1.219 | AN46: 0.985 | AO46: 0.717
A47: 2021-01-01T11:00:00 | B47: 0 | C47: 0 | D47: 0 | E47: 0 | F47: 0 | G47: 0 | H47: 16.437 | I47: 0.386 | J47: 0.597 | K47: 1.262 | L47: 0.725 | M47: 0.85 | N47: 1.171 | AB47: 1.57 | AC47: 1.61 | AD47: --- | AE47: --- | AF47: 24.2 | AG47: 3.19 | AH47: 4.52 | AI47: 35.3 | AJ47: 0.616 | AK47: 0.544 | AL47: 1.117 | AM47: 1.218 | AN47: 0.972 | AO47: 0.715
A48: 2021-01-01T11:15:00 | B48: 0 | C48: 0 | D48: 0 | E48: 0 | F48: 0 | G48: 0 | H48: 16.434 | I48: 0.386 | J48: 0.596 | K48: 1.262 | L48: 0.726 | M48: 0.852 | N48: 1.17 | AB48: 1.57 | AC48: 1.6 | AD48: --- | AE48: --- | AF48: 24.2 | AG48: 3.18 | AH48: 4.52 | AI48: 35.9 | AJ48: 0.615 | AK48: 0.544 | AL48: 1.119 | AM48: 1.218 | AN48: 0.983 | AO48: 0.718
A49: 2021-01-01T11:30:00 | B49: 0 | C49: 0 | D49: 0 | E49: 0 | F49: 0 | G49: 0 | H49: 16.432 | I49: 0.386 | J49: 0.596 | K49: 1.262 | L49: 0.725 | M49: 0.852 | N49: 1.169 | AB49: 1.57 | AC49: 1.6 | AD49: --- | AE49: --- | AF49: 24.2 | AG49: 3.18 | AH49: 4.52 | AI49: 35.3 | AJ49: 0.615 | AK49: 0.544 | AL49: 1.12 | AM49: 1.218 | AN49: 0.977 | AO49: 0.715
A50: 2021-01-01T11:45:00 | B50: 0 | C50: 0 | D50: 0 | E50: 0 | F50: 0 | G50: 0 | H50: 16.433 | I50: 0.387 | J50: 0.596 | K50: 1.261 | L50: 0.724 | M50: 0.851 | N50: 1.169 | AB50: 1.58 | AC50: 1.6 | AD50: --- | AE50: --- | AF50: 24.2 | AG50: 3.14 | AH50: 4.47 | AI50: 35.3 | AJ50: 0.613 | AK50: 0.542 | AL50: 1.118 | AM50: 1.218 | AN50: 0.973 | AO50: 0.715
A51: 2021-01-01T12:00:00 | B51: 0 | C51: 0 | D51: 0 | E51: 0 | F51: 0 | G51: 0 | H51: 16.43 | I51: 0.386 | J51: 0.596 | K51: 1.262 | L51: 0.724 | M51: 0.849 | N51: 1.169 | AB51: 1.57 | AC51: 1.6 | AD51: --- | AE51: --- | AF51: 24 | AG51: 3.14 | AH51: 4.47 | AI51: 35.3 | AJ51: 0.613 | AK51: 0.542 | AL51: 1.117 | AM51: 1.215 | AN51: 0.972 | AO51: 0.715
A52: 2021-01-01T12:15:00 | B52: 0 | C52: 0 | D52: 0 | E52: 0.2 | F52: 0 | G52: 0 | H52: 16.429 | I52: 0.386 | J52: 0.596 | K52: 1.26 | L52: 0.723 | M52: 0.847 | N52: 1.166 | AB52: 1.57 | AC52: 1.6 | AD52: --- | AE52: --- | AF52: 23.9 | AG52: 3.13 | AH52: 4.47 | AI52: 35.3 | AJ52: 0.612 | AK52: 0.542 | AL52: 1.117 | AM52: 1.212 | AN52: 0.974 | AO52: 0.715
A53: 2021-01-01T12:30:00 | B53: 0 | C53: 0 | D53: 0 | E53: 0 | F53: 0 | G53: 0 | H53: 16.428 | I53: 0.386 | J53: 0.596 | K53: 1.26 | L53: 0.721 | M53: 0.848 | N53: 1.166 | AB53: 1.57 | AC53: 1.6 | AD53: --- | AE53: --- | AF53: 23.9 | AG53: 3.14 | AH53: 4.47 | AI53: 35.3 | AJ53: 0.613 | AK53: 0.542 | AL53: 1.117 | AM53: 1.212 | AN53: 0.979 | AO53: 0.715
A54: 2021-01-01T12:45:00 | B54: 0 | C54: 0 | D54: 0 | E54: 0 | F54: 0 | G54: 0 | H54: 16.426 | I54: 0.387 | J54: 0.594 | K54: 1.261 | L54: 0.72 | M54: 0.846 | N54: 1.164 | AB54: 1.58 | AC54: 1.58 | AD54: --- | AE54: --- | AF54: 23.9 | AG54: 3.13 | AH54: 4.45 | AI54: 35.2 | AJ54: 0.612 | AK54: 0.541 | AL54: 1.115 | AM54: 1.212 | AN54: 0.983 | AO54: 0.714
A55: 2021-01-01T13:00:00 | B55: 0 | C55: 0 | D55: 0 | E55: 0 | F55: 0.2 | G55: 0 | H55: 16.428 | I55: 0.387 | J55: 0.594 | K55: 1.259 | L55: 0.721 | M55: 0.845 | N55: 1.162 | AB55: 1.58 | AC55: 1.58 | AD55: --- | AE55: --- | AF55: 24 | AG55: 3.11 | AH55: 4.45 | AI55: 35.3 | AJ55: 0.611 | AK55: 0.541 | AL55: 1.114 | AM55: 1.213 | AN55: 0.973 | AO55: 0.715
A56: 2021-01-01T13:15:00 | B56: 0 | C56: 0 | D56: 0 | E56: 0 | F56: 0 | G56: 0 | H56: 16.425 | I56: 0.387 | J56: 0.594 | K56: 1.26 | L56: 0.719 | M56: 0.845 | N56: 1.162 | AB56: 1.58 | AC56: 1.58 | AD56: --- | AE56: --- | AF56: 23.9 | AG56: 3.11 | AH56: 4.42 | AI56: 35 | AJ56: 0.611 | AK56: 0.54 | AL56: 1.115 | AM56: 1.211 | AN56: 0.972 | AO56: 0.713
A57: 2021-01-01T13:30:00 | B57: 0 | C57: 0 | D57: 0 | E57: 0 | F57: 0 | G57: 0 | H57: 16.425 | I57: 0.386 | J57: 0.594 | K57: 1.259 | L57: 0.718 | M57: 0.845 | N57: 1.161 | AB57: 1.57 | AC57: 1.58 | AD57: --- | AE57: --- | AF57: 23.8 | AG57: 3.11 | AH57: 4.4 | AI57: 35.2 | AJ57: 0.611 | AK57: 0.539 | AL57: 1.113 | AM57: 1.209 | AN57: 0.976 | AO57: 0.714
A58: 2021-01-01T13:45:00 | B58: 0 | C58: 0 | D58: 0 | E58: 0.2 | F58: 0 | G58: 0 | H58: 16.421 | I58: 0.387 | J58: 0.593 | K58: 1.259 | L58: 0.717 | M58: 0.843 | N58: 1.16 | AB58: 1.58 | AC58: 1.56 | AD58: --- | AE58: --- | AF58: 23.6 | AG58: 3.11 | AH58: 4.4 | AI58: 35.2 | AJ58: 0.611 | AK58: 0.539 | AL58: 1.114 | AM58: 1.205 | AN58: 0.965 | AO58: 0.714
A59: 2021-01-01T14:00:00 | B59: 0 | C59: 0 | D59: 0 | E59: 0.2 | F59: 0 | G59: 0 | H59: 16.421 | I59: 0.386 | J59: 0.593 | K59: 1.259 | L59: 0.718 | M59: 0.84 | N59: 1.159 | AB59: 1.57 | AC59: 1.56 | AD59: --- | AE59: --- | AF59: 23.7 | AG59: 3.11 | AH59: 4.4 | AI59: 35.2 | AJ59: 0.611 | AK59: 0.539 | AL59: 1.113 | AM59: 1.207 | AN59: 0.969 | AO59: 0.714
A60: 2021-01-01T14:15:00 | B60: 0 | C60: 0 | D60: 0 | E60: 0.6 | F60: 0 | G60: 0 | H60: 16.424 | I60: 0.386 | J60: 0.593 | K60: 1.259 | L60: 0.715 | M60: 0.841 | N60: 1.158 | AB60: 1.57 | AC60: 1.56 | AD60: --- | AE60: --- | AF60: 23.7 | AG60: 3.11 | AH60: 4.37 | AI60: 34.8 | AJ60: 0.611 | AK60: 0.538 | AL60: 1.114 | AM60: 1.207 | AN60: 0.973 | AO60: 0.712
A61: 2021-01-01T14:30:00 | B61: 0 | C61: 0 | D61: 0 | E61: 0.8 | F61: 0 | G61: 0 | H61: 16.423 | I61: 0.386 | J61: 0.593 | K61: 1.259 | L61: 0.717 | M61: 0.841 | N61: 1.156 | AB61: 1.57 | AC61: 1.56 | AD61: --- | AE61: --- | AF61: 23.6 | AG61: 3.06 | AH61: 4.37 | AI61: 34.3 | AJ61: 0.608 | AK61: 0.538 | AL61: 1.112 | AM61: 1.204 | AN61: 0.972 | AO61: 0.709
A62: 2021-01-01T14:45:00 | B62: 0 | C62: 0 | D62: 0 | E62: 0.8 | F62: 0 | G62: 0 | H62: 16.42 | I62: 0.386 | J62: 0.593 | K62: 1.259 | L62: 0.714 | M62: 0.843 | N62: 1.156 | AB62: 1.57 | AC62: 1.56 | AD62: --- | AE62: --- | AF62: 23.5 | AG62: 3.06 | AH62: 4.37 | AI62: 35 | AJ62: 0.608 | AK62: 0.538 | AL62: 1.113 | AM62: 1.202 | AN62: 0.966 | AO62: 0.713
A63: 2021-01-01T15:00:00 | B63: 0 | C63: 0 | D63: 0 | E63: 1 | F63: 0 | G63: 0 | H63: 16.418 | I63: 0.386 | J63: 0.593 | K63: 1.257 | L63: 0.715 | M63: 0.84 | N63: 1.155 | AB63: 1.57 | AC63: 1.56 | AD63: --- | AE63: --- | AF63: 23.4 | AG63: 3.05 | AH63: 4.37 | AI63: 34.3 | AJ63: 0.607 | AK63: 0.538 | AL63: 1.111 | AM63: 1.2 | AN63: 0.965 | AO63: 0.709
A64: 2021-01-01T15:15:00 | B64: 0 | C64: 0 | D64: 0 | E64: 1 | F64: 0 | G64: 0 | H64: 16.417 | I64: 0.387 | J64: 0.593 | K64: 1.257 | L64: 0.712 | M64: 0.841 | N64: 1.154 | AB64: 1.58 | AC64: 1.56 | AD64: --- | AE64: --- | AF64: 23.5 | AG64: 3.05 | AH64: 4.37 | AI64: 34.8 | AJ64: 0.607 | AK64: 0.538 | AL64: 1.11 | AM64: 1.202 | AN64: 0.963 | AO64: 0.712
A65: 2021-01-01T15:30:00 | B65: 0 | C65: 0 | D65: 0 | E65: 0.8 | F65: 0 | G65: 0 | H65: 16.416 | I65: 0.386 | J65: 0.592 | K65: 1.259 | L65: 0.713 | M65: 0.838 | N65: 1.153 | AB65: 1.57 | AC65: 1.55 | AD65: --- | AE65: --- | AF65: 23.3 | AG65: 3.06 | AH65: 4.35 | AI65: 34.3 | AJ65: 0.608 | AK65: 0.537 | AL65: 1.111 | AM65: 1.199 | AN65: 0.967 | AO65: 0.709
A66: 2021-01-01T15:45:00 | B66: 0 | C66: 0 | D66: 0 | E66: 0.4 | F66: 0 | G66: 0 | H66: 16.419 | I66: 0.386 | J66: 0.592 | K66: 1.257 | L66: 0.714 | M66: 0.839 | N66: 1.151 | AB66: 1.57 | AC66: 1.55 | AD66: --- | AE66: --- | AF66: 23.4 | AG66: 3.03 | AH66: 4.35 | AI66: 34.6 | AJ66: 0.606 | AK66: 0.537 | AL66: 1.111 | AM66: 1.2 | AN66: 0.967 | AO66: 0.711
A67: 2021-01-01T16:00:00 | B67: 0 | C67: 0 | D67: 0 | E67: 0 | F67: 0 | G67: 0 | H67: 16.414 | I67: 0.386 | J67: 0.592 | K67: 1.257 | L67: 0.71 | M67: 0.839 | N67: 1.151 | AB67: 1.57 | AC67: 1.55 | AD67: --- | AE67: --- | AF67: 23.2 | AG67: 3.03 | AH67: 4.35 | AI67: 34.6 | AJ67: 0.606 | AK67: 0.537 | AL67: 1.11 | AM67: 1.195 | AN67: 0.964 | AO67: 0.711
A68: 2021-01-01T16:15:00 | B68: 0 | C68: 0 | D68: 0 | E68: 0.2 | F68: 0 | G68: 0 | H68: 16.416 | I68: 0.386 | J68: 0.591 | K68: 1.255 | L68: 0.712 | M68: 0.838 | N68: 1.15 | AB68: 1.57 | AC68: 1.54 | AD68: --- | AE68: --- | AF68: 23.2 | AG68: 3.01 | AH68: 4.31 | AI68: 34.6 | AJ68: 0.605 | AK68: 0.535 | AL68: 1.11 | AM68: 1.196 | AN68: 0.963 | AO68: 0.711
A69: 2021-01-01T16:30:00 | B69: 0 | C69: 0 | D69: 0 | E69: 0 | F69: 0 | G69: 0 | H69: 16.413 | I69: 0.386 | J69: 0.591 | K69: 1.257 | L69: 0.713 | M69: 0.836 | N69: 1.15 | AB69: 1.57 | AC69: 1.54 | AD69: --- | AE69: --- | AF69: 23 | AG69: 3.01 | AH69: 4.31 | AI69: 34.8 | AJ69: 0.605 | AK69: 0.535 | AL69: 1.109 | AM69: 1.192 | AN69: 0.963 | AO69: 0.712
A70: 2021-01-01T16:45:00 | B70: 0 | C70: 0 | D70: 0 | E70: 0 | F70: 0 | G70: 0 | H70: 16.412 | I70: 0.386 | J70: 0.592 | K70: 1.257 | L70: 0.711 | M70: 0.834 | N70: 1.149 | AB70: 1.57 | AC70: 1.55 | AD70: --- | AE70: --- | AF70: 23.1 | AG70: 3 | AH70: 4.31 | AI70: 34.1 | AJ70: 0.604 | AK70: 0.535 | AL70: 1.11 | AM70: 1.194 | AN70: 0.963 | AO70: 0.708
A71: 2021-01-01T17:00:00 | B71: 0 | C71: 0 | D71: 0 | E71: 0 | F71: 0 | G71: 0 | H71: 16.413 | I71: 0.386 | J71: 0.592 | K71: 1.257 | L71: 0.711 | M71: 0.836 | N71: 1.149 | AB71: 1.57 | AC71: 1.55 | AD71: --- | AE71: --- | AF71: 23 | AG71: 3 | AH71: 4.29 | AI71: 34.3 | AJ71: 0.604 | AK71: 0.534 | AL71: 1.108 | AM71: 1.191 | AN71: 0.955 | AO71: 0.709
A72: 2021-01-01T17:15:00 | B72: 0 | C72: 0 | D72: 0 | E72: 0 | F72: 0 | G72: 0 | H72: 16.411 | I72: 0.386 | J72: 0.592 | K72: 1.256 | L72: 0.709 | M72: 0.834 | N72: 1.146 | AB72: 1.57 | AC72: 1.55 | AD72: --- | AE72: --- | AF72: 23.1 | AG72: 3.01 | AH72: 4.31 | AI72: 34.1 | AJ72: 0.605 | AK72: 0.535 | AL72: 1.108 | AM72: 1.193 | AN72: 0.964 | AO72: 0.708
A73: 2021-01-01T17:30:00 | B73: 0 | C73: 0 | D73: 0 | E73: 0 | F73: 0 | G73: 0 | H73: 16.412 | I73: 0.386 | J73: 0.591 | K73: 1.256 | L73: 0.709 | M73: 0.833 | N73: 1.146 | AB73: 1.57 | AC73: 1.54 | AD73: --- | AE73: --- | AF73: 23 | AG73: 3 | AH73: 4.29 | AI73: 33.6 | AJ73: 0.604 | AK73: 0.534 | AL73: 1.107 | AM73: 1.192 | AN73: 0.957 | AO73: 0.705
A74: 2021-01-01T17:45:00 | B74: 0 | C74: 0 | D74: 0 | E74: 0 | F74: 0 | G74: 0 | H74: 16.407 | I74: 0.386 | J74: 0.592 | K74: 1.256 | L74: 0.707 | M74: 0.831 | N74: 1.145 | AB74: 1.57 | AC74: 1.55 | AD74: --- | AE74: --- | AF74: 22.9 | AG74: 2.98 | AH74: 4.29 | AI74: 33.6 | AJ74: 0.603 | AK74: 0.534 | AL74: 1.106 | AM74: 1.188 | AN74: 0.954 | AO74: 0.705
A75: 2021-01-01T18:00:00 | B75: 0 | C75: 0 | D75: 0 | E75: 0 | F75: 0 | G75: 0 | H75: 16.407 | I75: 0.386 | J75: 0.592 | K75: 1.255 | L75: 0.706 | M75: 0.834 | N75: 1.143 | AB75: 1.57 | AC75: 1.55 | AD75: --- | AE75: --- | AF75: 22.9 | AG75: 2.98 | AH75: 4.26 | AI75: 33.8 | AJ75: 0.603 | AK75: 0.533 | AL75: 1.107 | AM75: 1.188 | AN75: 0.96 | AO75: 0.706
A76: 2021-01-01T18:15:00 | B76: 0 | C76: 0 | D76: 0 | E76: 0 | F76: 0 | G76: 0 | H76: 16.407 | I76: 0.386 | J76: 0.592 | K76: 1.256 | L76: 0.708 | M76: 0.832 | N76: 1.142 | AB76: 1.57 | AC76: 1.55 | AD76: --- | AE76: --- | AF76: 22.8 | AG76: 2.98 | AH76: 4.26 | AI76: 34.1 | AJ76: 0.603 | AK76: 0.533 | AL76: 1.107 | AM76: 1.186 | AN76: 0.954 | AO76: 0.708
A77: 2021-01-01T18:30:00 | B77: 0 | C77: 0 | D77: 0 | E77: 0.2 | F77: 0 | G77: 0 | H77: 16.408 | I77: 0.386 | J77: 0.591 | K77: 1.256 | L77: 0.709 | M77: 0.829 | N77: 1.142 | AB77: 1.57 | AC77: 1.54 | AD77: --- | AE77: --- | AF77: 22.7 | AG77: 2.98 | AH77: 4.24 | AI77: 33.9 | AJ77: 0.603 | AK77: 0.532 | AL77: 1.104 | AM77: 1.185 | AN77: 0.957 | AO77: 0.707
A78: 2021-01-01T18:45:00 | B78: 0 | C78: 0 | D78: 0 | E78: 0 | F78: 0 | G78: 0 | H78: 16.404 | I78: 0.387 | J78: 0.592 | K78: 1.254 | L78: 0.707 | M78: 0.83 | N78: 1.142 | AB78: 1.58 | AC78: 1.55 | AD78: --- | AE78: --- | AF78: 22.7 | AG78: 2.95 | AH78: 4.24 | AI78: 33.9 | AJ78: 0.601 | AK78: 0.532 | AL78: 1.104 | AM78: 1.184 | AN78: 0.961 | AO78: 0.707
A79: 2021-01-01T19:00:00 | B79: 0 | C79: 0 | D79: 0 | E79: 0 | F79: 0 | G79: 0 | H79: 16.402 | I79: 0.386 | J79: 0.591 | K79: 1.256 | L79: 0.706 | M79: 0.832 | N79: 1.141 | AB79: 1.57 | AC79: 1.54 | AD79: --- | AE79: --- | AF79: 22.7 | AG79: 2.95 | AH79: 4.22 | AI79: 33.8 | AJ79: 0.601 | AK79: 0.531 | AL79: 1.105 | AM79: 1.184 | AN79: 0.952 | AO79: 0.706
A80: 2021-01-01T19:15:00 | B80: 0 | C80: 0 | D80: 0 | E80: 0 | F80: 0 | G80: 0 | H80: 16.403 | I80: 0.386 | J80: 0.591 | K80: 1.255 | L80: 0.704 | M80: 0.829 | N80: 1.138 | AB80: 1.57 | AC80: 1.54 | AD80: --- | AE80: --- | AF80: 22.7 | AG80: 2.95 | AH80: 4.24 | AI80: 32.9 | AJ80: 0.601 | AK80: 0.532 | AL80: 1.106 | AM80: 1.184 | AN80: 0.965 | AO80: 0.701
A81: 2021-01-01T19:30:00 | B81: 0 | C81: 0 | D81: 0 | E81: 0 | F81: 0 | G81: 0 | H81: 16.404 | I81: 0.386 | J81: 0.591 | K81: 1.256 | L81: 0.706 | M81: 0.829 | N81: 1.138 | AB81: 1.57 | AC81: 1.54 | AD81: --- | AE81: --- | AF81: 22.4 | AG81: 2.93 | AH81: 4.22 | AI81: 32.9 | AJ81: 0.6 | AK81: 0.531 | AL81: 1.103 | AM81: 1.178 | AN81: 0.954 | AO81: 0.701
A82: 2021-01-01T19:45:00 | B82: 0 | C82: 0 | D82: 0 | E82: 0 | F82: 0 | G82: 0 | H82: 16.4 | I82: 0.386 | J82: 0.591 | K82: 1.255 | L82: 0.705 | M82: 0.83 | N82: 1.138 | AB82: 1.57 | AC82: 1.54 | AD82: --- | AE82: --- | AF82: 22.6 | AG82: 2.93 | AH82: 4.22 | AI82: 32.9 | AJ82: 0.6 | AK82: 0.531 | AL82: 1.104 | AM82: 1.181 | AN82: 0.956 | AO82: 0.701
A83: 2021-01-01T20:00:00 | B83: 0 | C83: 0 | D83: 0 | E83: 0 | F83: 0 | G83: 0 | H83: 16.397 | I83: 0.386 | J83: 0.591 | K83: 1.253 | L83: 0.704 | M83: 0.827 | N83: 1.136 | AB83: 1.57 | AC83: 1.54 | AD83: --- | AE83: --- | AF83: 22.4 | AG83: 2.93 | AH83: 4.2 | AI83: 33.1 | AJ83: 0.6 | AK83: 0.53 | AL83: 1.103 | AM83: 1.178 | AN83: 0.954 | AO83: 0.702
A84: 2021-01-01T20:15:00 | B84: 0 | C84: 0 | D84: 0 | E84: 0 | F84: 0 | G84: 0 | H84: 16.4 | I84: 0.386 | J84: 0.591 | K84: 1.255 | L84: 0.703 | M84: 0.827 | N84: 1.135 | AB84: 1.57 | AC84: 1.54 | AD84: --- | AE84: --- | AF84: 22.5 | AG84: 2.9 | AH84: 4.22 | AI84: 33.6 | AJ84: 0.598 | AK84: 0.531 | AL84: 1.104 | AM84: 1.179 | AN84: 0.948 | AO84: 0.705
A85: 2021-01-01T20:30:00 | B85: 0 | C85: 0 | D85: 0 | E85: 0 | F85: 0 | G85: 0 | H85: 16.397 | I85: 0.386 | J85: 0.591 | K85: 1.255 | L85: 0.702 | M85: 0.83 | N85: 1.135 | AB85: 1.57 | AC85: 1.54 | AD85: --- | AE85: --- | AF85: 22.5 | AG85: 2.9 | AH85: 4.2 | AI85: 32.7 | AJ85: 0.598 | AK85: 0.53 | AL85: 1.104 | AM85: 1.18 | AN85: 0.954 | AO85: 0.7
A86: 2021-01-01T20:45:00 | B86: 0 | C86: 0 | D86: 0 | E86: 0 | F86: 0 | G86: 0 | H86: 16.394 | I86: 0.386 | J86: 0.591 | K86: 1.255 | L86: 0.702 | M86: 0.824 | N86: 1.135 | AB86: 1.57 | AC86: 1.54 | AD86: --- | AE86: --- | AF86: 22.4 | AG86: 2.9 | AH86: 4.2 | AI86: 33.1 | AJ86: 0.598 | AK86: 0.53 | AL86: 1.103 | AM86: 1.177 | AN86: 0.947 | AO86: 0.702
A87: 2021-01-01T21:00:00 | B87: 0 | C87: 0 | D87: 0 | E87: 0 | F87: 0 | G87: 0 | H87: 16.394 | I87: 0.386 | J87: 0.591 | K87: 1.253 | L87: 0.701 | M87: 0.825 | N87: 1.134 | AB87: 1.57 | AC87: 1.54 | AD87: --- | AE87: --- | AF87: 22.4 | AG87: 2.89 | AH87: 4.16 | AI87: 32.9 | AJ87: 0.597 | AK87: 0.528 | AL87: 1.103 | AM87: 1.177 | AN87: 0.947 | AO87: 0.701
A88: 2021-01-01T21:15:00 | B88: 0 | C88: 0 | D88: 0 | E88: 0 | F88: 0 | G88: 0 | H88: 16.393 | I88: 0.386 | J88: 0.591 | K88: 1.255 | L88: 0.702 | M88: 0.825 | N88: 1.132 | AB88: 1.57 | AC88: 1.54 | AD88: --- | AE88: --- | AF88: 22.2 | AG88: 2.87 | AH88: 4.16 | AI88: 32.9 | AJ88: 0.596 | AK88: 0.528 | AL88: 1.102 | AM88: 1.173 | AN88: 0.951 | AO88: 0.701
A89: 2021-01-01T21:30:00 | B89: 0 | C89: 0 | D89: 0 | E89: 0 | F89: 0 | G89: 0 | H89: 16.397 | I89: 0.386 | J89: 0.591 | K89: 1.254 | L89: 0.701 | M89: 0.826 | N89: 1.132 | AB89: 1.57 | AC89: 1.54 | AD89: --- | AE89: --- | AF89: 22.2 | AG89: 2.89 | AH89: 4.16 | AI89: 32.5 | AJ89: 0.597 | AK89: 0.528 | AL89: 1.102 | AM89: 1.173 | AN89: 0.955 | AO89: 0.699
A90: 2021-01-01T21:45:00 | B90: 0 | C90: 0 | D90: 0 | E90: 0 | F90: 0 | G90: 0 | H90: 16.394 | I90: 0.386 | J90: 0.591 | K90: 1.253 | L90: 0.701 | M90: 0.823 | N90: 1.131 | AB90: 1.57 | AC90: 1.54 | AD90: --- | AE90: --- | AF90: 22.2 | AG90: 2.87 | AH90: 4.16 | AI90: 32.5 | AJ90: 0.596 | AK90: 0.528 | AL90: 1.101 | AM90: 1.173 | AN90: 0.955 | AO90: 0.699
A91: 2021-01-01T22:00:00 | B91: 0 | C91: 0 | D91: 0 | E91: 0 | F91: 0 | G91: 0 | H91: 16.39 | I91: 0.386 | J91: 0.59 | K91: 1.253 | L91: 0.7 | M91: 0.822 | N91: 1.13 | AB91: 1.57 | AC91: 1.53 | AD91: --- | AE91: --- | AF91: 22.2 | AG91: 2.87 | AH91: 4.16 | AI91: 32.7 | AJ91: 0.596 | AK91: 0.528 | AL91: 1.104 | AM91: 1.173 | AN91: 0.954 | AO91: 0.7
A92: 2021-01-01T22:15:00 | B92: 0 | C92: 0 | D92: 0 | E92: 0 | F92: 0 | G92: 0 | H92: 16.389 | I92: 0.386 | J92: 0.59 | K92: 1.254 | L92: 0.7 | M92: 0.823 | N92: 1.13 | AB92: 1.57 | AC92: 1.53 | AD92: --- | AE92: --- | AF92: 22.1 | AG92: 2.87 | AH92: 4.13 | AI92: 32.5 | AJ92: 0.596 | AK92: 0.527 | AL92: 1.101 | AM92: 1.17 | AN92: 0.944 | AO92: 0.699
A93: 2021-01-01T22:30:00 | B93: 0 | C93: 0 | D93: 0 | E93: 0 | F93: 0 | G93: 0 | H93: 16.39 | I93: 0.386 | J93: 0.59 | K93: 1.253 | L93: 0.699 | M93: 0.821 | N93: 1.129 | AB93: 1.57 | AC93: 1.53 | AD93: --- | AE93: --- | AF93: 22.1 | AG93: 2.87 | AH93: 4.13 | AI93: 32.9 | AJ93: 0.596 | AK93: 0.527 | AL93: 1.102 | AM93: 1.17 | AN93: 0.952 | AO93: 0.701
A94: 2021-01-01T22:45:00 | B94: 0 | C94: 0 | D94: 0 | E94: 0 | F94: 0.2 | G94: 0 | H94: 16.39 | I94: 0.386 | J94: 0.59 | K94: 1.253 | L94: 0.696 | M94: 0.823 | N94: 1.128 | AB94: 1.57 | AC94: 1.53 | AD94: --- | AE94: --- | AF94: 22 | AG94: 2.84 | AH94: 4.11 | AI94: 32.4 | AJ94: 0.594 | AK94: 0.526 | AL94: 1.1 | AM94: 1.168 | AN94: 0.951 | AO94: 0.698
A95: 2021-01-01T23:00:00 | B95: 0 | C95: 0 | D95: 0 | E95: 0 | F95: 0 | G95: 0 | H95: 16.387 | I95: 0.386 | J95: 0.59 | K95: 1.252 | L95: 0.696 | M95: 0.821 | N95: 1.126 | AB95: 1.57 | AC95: 1.53 | AD95: --- | AE95: --- | AF95: 22 | AG95: 2.84 | AH95: 4.09 | AI95: 32.2 | AJ95: 0.594 | AK95: 0.525 | AL95: 1.1 | AM95: 1.167 | AN95: 0.949 | AO95: 0.697
A96: 2021-01-01T23:15:00 | B96: 0 | C96: 0 | D96: 0 | E96: 0 | F96: 0 | G96: 0 | H96: 16.387 | I96: 0.386 | J96: 0.589 | K96: 1.252 | L96: 0.697 | M96: 0.82 | N96: 1.125 | AB96: 1.57 | AC96: 1.52 | AD96: --- | AE96: --- | AF96: 21.9 | AG96: 2.84 | AH96: 4.09 | AI96: 32.9 | AJ96: 0.594 | AK96: 0.525 | AL96: 1.098 | AM96: 1.166 | AN96: 0.949 | AO96: 0.701
A97: 2021-01-01T23:30:00 | B97: 0 | C97: 0 | D97: 0 | E97: 0 | F97: 0 | G97: 0 | H97: 16.386 | I97: 0.386 | J97: 0.589 | K97: 1.252 | L97: 0.694 | M97: 0.82 | N97: 1.125 | AB97: 1.57 | AC97: 1.52 | AD97: --- | AE97: --- | AF97: 21.8 | AG97: 2.85 | AH97: 4.07 | AI97: 32.2 | AJ97: 0.595 | AK97: 0.524 | AL97: 1.1 | AM97: 1.164 | AN97: 0.949 | AO97: 0.697
A98: 2021-01-01T23:45:00 | B98: 0 | C98: 0 | D98: 0 | E98: 0 | F98: 0 | G98: 0 | H98: 16.383 | I98: 0.386 | J98: 0.589 | K98: 1.253 | L98: 0.695 | M98: 0.82 | N98: 1.125 | AB98: 1.57 | AC98: 1.52 | AD98: --- | AE98: --- | AF98: 21.8 | AG98: 2.84 | AH98: 4.07 | AI98: 32.4 | AJ98: 0.594 | AK98: 0.524 | AL98: 1.098 | AM98: 1.164 | AN98: 0.946 | AO98: 0.698
A99: 2021-01-02 | B99: 0 | C99: 0 | D99: 0 | E99: 0 | F99: 0 | G99: 0 | H99: 16.382 | I99: 0.386 | J99: 0.589 | K99: 1.252 | L99: 0.695 | M99: 0.82 | N99: 1.124 | AB99: 1.57 | AC99: 1.52 | AD99: --- | AE99: --- | AF99: 21.7 | AG99: 2.85 | AH99: 4.07 | AI99: 32.4 | AJ99: 0.595 | AK99: 0.524 | AL99: 1.099 | AM99: 1.16 | AN99: 0.948 | AO99: 0.698
A100: 2021-01-02T00:15:00 | B100: 0 | C100: 0 | D100: 0 | E100: 0 | F100: 0 | G100: 0 | H100: 16.383 | I100: 0.386 | J100: 0.588 | K100: 1.251 | L100: 0.695 | M100: 0.817 | N100: 1.123 | AB100: 1.57 | AC100: 1.51 | AD100: --- | AE100: --- | AF100: 21.7 | AG100: 2.84 | AH100: 4.07 | AI100: 31.7 | AJ100: 0.594 | AK100: 0.524 | AL100: 1.098 | AM100: 1.16 | AN100: 0.947 | AO100: 0.694
A101: 2021-01-02T00:30:00 | B101: 0 | C101: 0 | D101: 0 | E101: 0 | F101: 0 | G101: 0 | H101: 16.382 | I101: 0.386 | J101: 0.588 | K101: 1.251 | L101: 0.694 | M101: 0.816 | N101: 1.123 | AB101: 1.57 | AC101: 1.51 | AD101: --- | AE101: --- | AF101: 21.7 | AG101: 2.84 | AH101: 4.07 | AI101: 32 | AJ101: 0.594 | AK101: 0.524 | AL101: 1.099 | AM101: 1.16 | AN101: 0.948 | AO101: 0.696
A102: 2021-01-02T00:45:00 | B102: 0 | C102: 0 | D102: 0 | E102: 0 | F102: 0 | G102: 0 | H102: 16.379 | I102: 0.386 | J102: 0.587 | K102: 1.251 | L102: 0.695 | M102: 0.817 | N102: 1.12 | AB102: 1.57 | AC102: 1.5 | AD102: --- | AE102: --- | AF102: 21.7 | AG102: 2.82 | AH102: 4.05 | AI102: 32 | AJ102: 0.593 | AK102: 0.523 | AL102: 1.098 | AM102: 1.16 | AN102: 0.943 | AO102: 0.696
A103: 2021-01-02T01:00:00 | B103: 0 | C103: 0 | D103: 0 | E103: 0 | F103: 0 | G103: 0 | H103: 16.377 | I103: 0.386 | J103: 0.587 | K103: 1.251 | L103: 0.694 | M103: 0.815 | N103: 1.12 | AB103: 1.57 | AC103: 1.5 | AD103: --- | AE103: --- | AF103: 21.6 | AG103: 2.78 | AH103: 4.03 | AI103: 31.8 | AJ103: 0.59 | AK103: 0.522 | AL103: 1.099 | AM103: 1.158 | AN103: 0.945 | AO103: 0.695
A104: 2021-01-02T01:15:00 | B104: 0 | C104: 0 | D104: 0 | E104: 0 | F104: 0 | G104: 0 | H104: 16.379 | I104: 0.386 | J104: 0.587 | K104: 1.25 | L104: 0.694 | M104: 0.817 | N104: 1.118 | AB104: 1.57 | AC104: 1.5 | AD104: --- | AE104: --- | AF104: 21.6 | AG104: 2.82 | AH104: 4.05 | AI104: 32.2 | AJ104: 0.593 | AK104: 0.523 | AL104: 1.098 | AM104: 1.159 | AN104: 0.938 | AO104: 0.697
A105: 2021-01-02T01:30:00 | B105: 0 | C105: 0 | D105: 0 | E105: 0 | F105: 0 | G105: 0 | H105: 16.379 | I105: 0.386 | J105: 0.586 | K105: 1.25 | L105: 0.692 | M105: 0.816 | N105: 1.118 | AB105: 1.57 | AC105: 1.49 | AD105: --- | AE105: --- | AF105: 21.5 | AG105: 2.79 | AH105: 4.03 | AI105: 31.8 | AJ105: 0.591 | AK105: 0.522 | AL105: 1.097 | AM105: 1.155 | AN105: 0.941 | AO105: 0.695
A106: 2021-01-02T01:45:00 | B106: 0 | C106: 0 | D106: 0 | E106: 0 | F106: 0 | G106: 0 | H106: 16.376 | I106: 0.386 | J106: 0.586 | K106: 1.249 | L106: 0.692 | M106: 0.814 | N106: 1.117 | AB106: 1.57 | AC106: 1.49 | AD106: --- | AE106: --- | AF106: 21.5 | AG106: 2.78 | AH106: 4.03 | AI106: 31.8 | AJ106: 0.59 | AK106: 0.522 | AL106: 1.096 | AM106: 1.155 | AN106: 0.944 | AO106: 0.695
A107: 2021-01-02T02:00:00 | B107: 0 | C107: 0 | D107: 0 | E107: 0 | F107: 0 | G107: 0 | H107: 16.374 | I107: 0.386 | J107: 0.586 | K107: 1.248 | L107: 0.689 | M107: 0.812 | N107: 1.117 | AB107: 1.57 | AC107: 1.49 | AD107: --- | AE107: --- | AF107: 21.5 | AG107: 2.78 | AH107: 4.03 | AI107: 31.8 | AJ107: 0.59 | AK107: 0.522 | AL107: 1.096 | AM107: 1.155 | AN107: 0.938 | AO107: 0.695
A108: 2021-01-02T02:15:00 | B108: 0 | C108: 0 | D108: 0 | E108: 0 | F108: 0 | G108: 0 | H108: 16.374 | I108: 0.386 | J108: 0.585 | K108: 1.248 | L108: 0.689 | M108: 0.812 | N108: 1.115 | AB108: 1.57 | AC108: 1.47 | AD108: --- | AE108: --- | AF108: 21.4 | AG108: 2.79 | AH108: 4.01 | AI108: 31.5 | AJ108: 0.591 | AK108: 0.521 | AL108: 1.096 | AM108: 1.153 | AN108: 0.939 | AO108: 0.693
A109: 2021-01-02T02:30:00 | B109: 0 | C109: 0 | D109: 0 | E109: 0 | F109: 0 | G109: 0 | H109: 16.374 | I109: 0.386 | J109: 0.585 | K109: 1.25 | L109: 0.692 | M109: 0.812 | N109: 1.115 | AB109: 1.57 | AC109: 1.47 | AD109: --- | AE109: --- | AF109: 21.4 | AG109: 2.78 | AH109: 4.01 | AI109: 31.7 | AJ109: 0.59 | AK109: 0.521 | AL109: 1.098 | AM109: 1.153 | AN109: 0.94 | AO109: 0.694
A110: 2021-01-02T02:45:00 | B110: 0 | C110: 0 | D110: 0 | E110: 0 | F110: 0 | G110: 0 | H110: 16.373 | I110: 0.386 | J110: 0.584 | K110: 1.248 | L110: 0.689 | M110: 0.812 | N110: 1.114 | AB110: 1.57 | AC110: 1.46 | AD110: --- | AE110: --- | AF110: 21.3 | AG110: 2.78 | AH110: 3.98 | AI110: 31.7 | AJ110: 0.59 | AK110: 0.52 | AL110: 1.096 | AM110: 1.152 | AN110: 0.938 | AO110: 0.694
A111: 2021-01-02T03:00:00 | B111: 0 | C111: 0 | D111: 0 | E111: 0 | F111: 0 | G111: 0 | H111: 16.372 | I111: 0.386 | J111: 0.585 | K111: 1.249 | L111: 0.687 | M111: 0.813 | N111: 1.114 | AB111: 1.57 | AC111: 1.47 | AD111: --- | AE111: --- | AF111: 21.2 | AG111: 2.78 | AH111: 3.98 | AI111: 31.7 | AJ111: 0.59 | AK111: 0.52 | AL111: 1.096 | AM111: 1.15 | AN111: 0.938 | AO111: 0.694
A112: 2021-01-02T03:15:00 | B112: 0 | C112: 0 | D112: 0 | E112: 0 | F112: 0 | G112: 0 | H112: 16.372 | I112: 0.386 | J112: 0.584 | K112: 1.248 | L112: 0.689 | M112: 0.811 | N112: 1.114 | AB112: 1.57 | AC112: 1.46 | AD112: --- | AE112: --- | AF112: 21.2 | AG112: 2.78 | AH112: 3.98 | AI112: 31.1 | AJ112: 0.59 | AK112: 0.52 | AL112: 1.096 | AM112: 1.148 | AN112: 0.942 | AO112: 0.691
A113: 2021-01-02T03:30:00 | B113: 0 | C113: 0 | D113: 0 | E113: 0 | F113: 0 | G113: 0 | H113: 16.372 | I113: 0.386 | J113: 0.584 | K113: 1.248 | L113: 0.687 | M113: 0.809 | N113: 1.114 | AB113: 1.57 | AC113: 1.46 | AD113: --- | AE113: --- | AF113: 21.2 | AG113: 2.75 | AH113: 3.98 | AI113: 31.5 | AJ113: 0.588 | AK113: 0.52 | AL113: 1.095 | AM113: 1.149 | AN113: 0.942 | AO113: 0.693
A114: 2021-01-02T03:45:00 | B114: 0 | C114: 0 | D114: 0 | E114: 0 | F114: 0 | G114: 0 | H114: 16.372 | I114: 0.386 | J114: 0.583 | K114: 1.248 | L114: 0.688 | M114: 0.808 | N114: 1.114 | AB114: 1.57 | AC114: 1.45 | AD114: --- | AE114: --- | AF114: 21.1 | AG114: 2.73 | AH114: 3.98 | AI114: 31 | AJ114: 0.587 | AK114: 0.52 | AL114: 1.095 | AM114: 1.146 | AN114: 0.935 | AO114: 0.69
A115: 2021-01-02T04:00:00 | B115: 0 | C115: 0 | D115: 0 | E115: 0 | F115: 0 | G115: 0 | H115: 16.372 | I115: 0.386 | J115: 0.583 | K115: 1.247 | L115: 0.684 | M115: 0.809 | N115: 1.114 | AB115: 1.57 | AC115: 1.45 | AD115: --- | AE115: --- | AF115: 21.1 | AG115: 2.73 | AH115: 3.96 | AI115: 31.3 | AJ115: 0.587 | AK115: 0.519 | AL115: 1.095 | AM115: 1.147 | AN115: 0.942 | AO115: 0.692
A116: 2021-01-02T04:15:00 | B116: 0 | C116: 0 | D116: 0 | E116: 0 | F116: 0 | G116: 0 | H116: 16.37 | I116: 0.386 | J116: 0.582 | K116: 1.247 | L116: 0.686 | M116: 0.807 | N116: 1.114 | AB116: 1.57 | AC116: 1.44 | AD116: --- | AE116: --- | AF116: 21.1 | AG116: 2.73 | AH116: 3.94 | AI116: 31 | AJ116: 0.587 | AK116: 0.518 | AL116: 1.095 | AM116: 1.146 | AN116: 0.941 | AO116: 0.69
A117: 2021-01-02T04:30:00 | B117: 0 | C117: 0 | D117: 0 | E117: 0 | F117: 0 | G117: 0 | H117: 16.37 | I117: 0.386 | J117: 0.582 | K117: 1.246 | L117: 0.687 | M117: 0.805 | N117: 1.114 | AB117: 1.57 | AC117: 1.44 | AD117: --- | AE117: --- | AF117: 21 | AG117: 2.73 | AH117: 3.94 | AI117: 30.6 | AJ117: 0.587 | AK117: 0.518 | AL117: 1.096 | AM117: 1.145 | AN117: 0.937 | AO117: 0.688
A118: 2021-01-02T04:45:00 | B118: 0 | C118: 0 | D118: 0 | E118: 0 | F118: 0 | G118: 0 | H118: 16.369 | I118: 0.386 | J118: 0.582 | K118: 1.247 | L118: 0.684 | M118: 0.805 | N118: 1.114 | AB118: 1.57 | AC118: 1.44 | AD118: --- | AE118: --- | AF118: 21 | AG118: 2.73 | AH118: 3.94 | AI118: 31.3 | AJ118: 0.587 | AK118: 0.518 | AL118: 1.094 | AM118: 1.144 | AN118: 0.937 | AO118: 0.692
A119: 2021-01-02T05:00:00 | B119: 0 | C119: 0 | D119: 0 | E119: 0 | F119: 0 | G119: 0 | H119: 16.37 | I119: 0.386 | J119: 0.581 | K119: 1.246 | L119: 0.685 | M119: 0.803 | N119: 1.114 | AB119: 1.57 | AC119: 1.43 | AD119: --- | AE119: --- | AF119: 21 | AG119: 2.7 | AH119: 3.92 | AI119: 30.4 | AJ119: 0.585 | AK119: 0.517 | AL119: 1.094 | AM119: 1.143 | AN119: 0.937 | AO119: 0.687
A120: 2021-01-02T05:15:00 | B120: 0 | C120: 0 | D120: 0 | E120: 0 | F120: 0 | G120: 0 | H120: 16.369 | I120: 0.386 | J120: 0.581 | K120: 1.246 | L120: 0.683 | M120: 0.803 | N120: 1.114 | AB120: 1.57 | AC120: 1.43 | AD120: --- | AE120: --- | AF120: 20.9 | AG120: 2.7 | AH120: 3.92 | AI120: 31.1 | AJ120: 0.585 | AK120: 0.517 | AL120: 1.093 | AM120: 1.141 | AN120: 0.939 | AO120: 0.691
A121: 2021-01-02T05:30:00 | B121: 0 | C121: 0 | D121: 0 | E121: 0 | F121: 0 | G121: 0 | H121: 16.366 | I121: 0.386 | J121: 0.58 | K121: 1.246 | L121: 0.682 | M121: 0.804 | N121: 1.114 | AB121: 1.57 | AC121: 1.42 | AD121: --- | AE121: --- | AF121: 20.9 | AG121: 2.71 | AH121: 3.92 | AI121: 31 | AJ121: 0.586 | AK121: 0.517 | AL121: 1.095 | AM121: 1.142 | AN121: 0.935 | AO121: 0.69
A122: 2021-01-02T05:45:00 | B122: 0 | C122: 0 | D122: 0 | E122: 0 | F122: 0 | G122: 0 | H122: 16.364 | I122: 0.386 | J122: 0.58 | K122: 1.247 | L122: 0.681 | M122: 0.803 | N122: 1.114 | AB122: 1.57 | AC122: 1.42 | AD122: --- | AE122: --- | AF122: 20.8 | AG122: 2.7 | AH122: 3.92 | AI122: 30.4 | AJ122: 0.585 | AK122: 0.517 | AL122: 1.093 | AM122: 1.139 | AN122: 0.929 | AO122: 0.687
A123: 2021-01-02T06:00:00 | B123: 0 | C123: 0 | D123: 0 | E123: 0 | F123: 0 | G123: 0 | H123: 16.363 | I123: 0.386 | J123: 0.58 | K123: 1.246 | L123: 0.681 | M123: 0.8 | N123: 1.114 | AB123: 1.57 | AC123: 1.42 | AD123: --- | AE123: --- | AF123: 20.8 | AG123: 2.7 | AH123: 3.92 | AI123: 30.4 | AJ123: 0.585 | AK123: 0.517 | AL123: 1.092 | AM123: 1.139 | AN123: 0.935 | AO123: 0.687
A124: 2021-01-02T06:15:00 | B124: 0 | C124: 0 | D124: 0 | E124: 0 | F124: 0 | G124: 0 | H124: 16.365 | I124: 0.386 | J124: 0.579 | K124: 1.245 | L124: 0.681 | M124: 0.802 | N124: 1.114 | AB124: 1.57 | AC124: 1.41 | AD124: --- | AE124: --- | AF124: 20.7 | AG124: 2.68 | AH124: 3.9 | AI124: 30.4 | AJ124: 0.584 | AK124: 0.516 | AL124: 1.092 | AM124: 1.138 | AN124: 0.93 | AO124: 0.687
A125: 2021-01-02T06:30:00 | B125: 0 | C125: 0 | D125: 0 | E125: 0 | F125: 0 | G125: 0 | H125: 16.362 | I125: 0.386 | J125: 0.579 | K125: 1.246 | L125: 0.682 | M125: 0.801 | N125: 1.114 | AB125: 1.57 | AC125: 1.41 | AD125: --- | AE125: --- | AF125: 20.6 | AG125: 2.67 | AH125: 3.88 | AI125: 30.3 | AJ125: 0.583 | AK125: 0.515 | AL125: 1.091 | AM125: 1.135 | AN125: 0.932 | AO125: 0.686
A126: 2021-01-02T06:45:00 | B126: 0 | C126: 0 | D126: 0 | E126: 0 | F126: 0 | G126: 0 | H126: 16.359 | I126: 0.386 | J126: 0.579 | K126: 1.245 | L126: 0.678 | M126: 0.801 | N126: 1.114 | AB126: 1.57 | AC126: 1.41 | AD126: --- | AE126: --- | AF126: 20.7 | AG126: 2.68 | AH126: 3.88 | AI126: 30.4 | AJ126: 0.584 | AK126: 0.515 | AL126: 1.092 | AM126: 1.137 | AN126: 0.924 | AO126: 0.687
A127: 2021-01-02T07:00:00 | B127: 0 | C127: 0 | D127: 0 | E127: 0 | F127: 0 | G127: 0 | H127: 16.356 | I127: 0.386 | J127: 0.578 | K127: 1.244 | L127: 0.681 | M127: 0.798 | N127: 1.114 | AB127: 1.57 | AC127: 1.4 | AD127: --- | AE127: --- | AF127: 20.6 | AG127: 2.67 | AH127: 3.86 | AI127: 30.4 | AJ127: 0.583 | AK127: 0.514 | AL127: 1.091 | AM127: 1.134 | AN127: 0.924 | AO127: 0.687
A128: 2021-01-02T07:15:00 | B128: 0 | C128: 0 | D128: 0 | E128: 0 | F128: 0 | G128: 0 | H128: 16.355 | I128: 0.386 | J128: 0.577 | K128: 1.246 | L128: 0.676 | M128: 0.797 | N128: 1.114 | AB128: 1.57 | AC128: 1.39 | AD128: --- | AE128: --- | AF128: 20.6 | AG128: 2.67 | AH128: 3.86 | AI128: 30.4 | AJ128: 0.583 | AK128: 0.514 | AL128: 1.09 | AM128: 1.135 | AN128: 0.933 | AO128: 0.687
A129: 2021-01-02T07:30:00 | B129: 0 | C129: 0 | D129: 0 | E129: 0 | F129: 0 | G129: 0 | H129: 16.355 | I129: 0.386 | J129: 0.577 | K129: 1.243 | L129: 0.678 | M129: 0.798 | N129: 1.114 | AB129: 1.57 | AC129: 1.39 | AD129: --- | AE129: --- | AF129: 20.5 | AG129: 2.62 | AH129: 3.86 | AI129: 29.9 | AJ129: 0.58 | AK129: 0.514 | AL129: 1.09 | AM129: 1.131 | AN129: 0.932 | AO129: 0.684
A130: 2021-01-02T07:45:00 | B130: 0 | C130: 0 | D130: 0 | E130: 0 | F130: 0 | G130: 0 | H130: 16.354 | I130: 0.386 | J130: 0.577 | K130: 1.245 | L130: 0.675 | M130: 0.797 | N130: 1.114 | AB130: 1.57 | AC130: 1.39 | AD130: --- | AE130: --- | AF130: 20.5 | AG130: 2.64 | AH130: 3.86 | AI130: 29.9 | AJ130: 0.581 | AK130: 0.514 | AL130: 1.089 | AM130: 1.131 | AN130: 0.928 | AO130: 0.684
A131: 2021-01-02T08:00:00 | B131: 0 | C131: 0 | D131: 0 | E131: 0 | F131: 0 | G131: 0 | H131: 16.351 | I131: 0.386 | J131: 0.576 | K131: 1.245 | L131: 0.68 | M131: 0.798 | N131: 1.114 | AB131: 1.57 | AC131: 1.38 | AD131: --- | AE131: --- | AF131: 20.3 | AG131: 2.62 | AH131: 3.84 | AI131: 30.1 | AJ131: 0.58 | AK131: 0.513 | AL131: 1.088 | AM131: 1.128 | AN131: 0.933 | AO131: 0.685
A132: 2021-01-02T08:15:00 | B132: 0 | C132: 0 | D132: 0 | E132: 0 | F132: 0 | G132: 0 | H132: 16.352 | I132: 0.386 | J132: 0.576 | K132: 1.244 | L132: 0.676 | M132: 0.797 | N132: 1.114 | AB132: 1.57 | AC132: 1.38 | AD132: --- | AE132: --- | AF132: 20.4 | AG132: 2.61 | AH132: 3.84 | AI132: 30.1 | AJ132: 0.579 | AK132: 0.513 | AL132: 1.088 | AM132: 1.13 | AN132: 0.929 | AO132: 0.685
A133: 2021-01-02T08:30:00 | B133: 0 | C133: 0 | D133: 0 | E133: 0 | F133: 0 | G133: 0 | H133: 16.353 | I133: 0.386 | J133: 0.576 | K133: 1.243 | L133: 0.675 | M133: 0.794 | N133: 1.114 | AB133: 1.57 | AC133: 1.38 | AD133: --- | AE133: --- | AF133: 20.2 | AG133: 2.61 | AH133: 3.84 | AI133: 29.7 | AJ133: 0.579 | AK133: 0.513 | AL133: 1.089 | AM133: 1.126 | AN133: 0.927 | AO133: 0.683
A134: 2021-01-02T08:45:00 | B134: 0 | C134: 0 | D134: 0 | E134: 0 | F134: 0 | G134: 0 | H134: 16.352 | I134: 0.386 | J134: 0.576 | K134: 1.244 | L134: 0.676 | M134: 0.792 | N134: 1.114 | AB134: 1.57 | AC134: 1.38 | AD134: --- | AE134: --- | AF134: 20.2 | AG134: 2.59 | AH134: 3.81 | AI134: 29.9 | AJ134: 0.578 | AK134: 0.512 | AL134: 1.088 | AM134: 1.125 | AN134: 0.926 | AO134: 0.684
A135: 2021-01-02T09:00:00 | B135: 0 | C135: 0 | D135: 0 | E135: 0 | F135: 0 | G135: 0 | H135: 16.349 | I135: 0.386 | J135: 0.575 | K135: 1.244 | L135: 0.675 | M135: 0.796 | N135: 1.114 | AB135: 1.57 | AC135: 1.37 | AD135: --- | AE135: --- | AF135: 20.3 | AG135: 2.61 | AH135: 3.79 | AI135: 30.1 | AJ135: 0.579 | AK135: 0.511 | AL135: 1.088 | AM135: 1.128 | AN135: 0.925 | AO135: 0.685
A136: 2021-01-02T09:15:00 | B136: 0 | C136: 0 | D136: 0 | E136: 0 | F136: 0 | G136: 0 | H136: 16.351 | I136: 0.386 | J136: 0.575 | K136: 1.243 | L136: 0.675 | M136: 0.794 | N136: 1.114 | AB136: 1.57 | AC136: 1.37 | AD136: --- | AE136: --- | AF136: 20.2 | AG136: 2.58 | AH136: 3.79 | AI136: 29.6 | AJ136: 0.577 | AK136: 0.511 | AL136: 1.088 | AM136: 1.124 | AN136: 0.928 | AO136: 0.682
A137: 2021-01-02T09:30:00 | B137: 0 | C137: 0 | D137: 0 | E137: 0 | F137: 0 | G137: 0 | H137: 16.349 | I137: 0.386 | J137: 0.574 | K137: 1.241 | L137: 0.675 | M137: 0.793 | N137: 1.114 | AB137: 1.57 | AC137: 1.36 | AD137: --- | AE137: --- | AF137: 20.2 | AG137: 2.61 | AH137: 3.77 | AI137: 29.9 | AJ137: 0.579 | AK137: 0.51 | AL137: 1.087 | AM137: 1.125 | AN137: 0.921 | AO137: 0.684
A138: 2021-01-02T09:45:00 | B138: 0 | C138: 0 | D138: 0 | E138: 0 | F138: 0 | G138: 0 | H138: 16.347 | I138: 0.386 | J138: 0.574 | K138: 1.242 | L138: 0.674 | M138: 0.792 | N138: 1.114 | AB138: 1.57 | AC138: 1.36 | AD138: --- | AE138: --- | AF138: 20.1 | AG138: 2.62 | AH138: 3.77 | AI138: 29.4 | AJ138: 0.58 | AK138: 0.51 | AL138: 1.088 | AM138: 1.122 | AN138: 0.923 | AO138: 0.681
A139: 2021-01-02T10:00:00 | B139: 0 | C139: 0 | D139: 0 | E139: 0 | F139: 0 | G139: 0 | H139: 16.35 | I139: 0.386 | J139: 0.574 | K139: 1.241 | L139: 0.672 | M139: 0.79 | N139: 1.114 | AB139: 1.57 | AC139: 1.36 | AD139: --- | AE139: --- | AF139: 20.2 | AG139: 2.62 | AH139: 3.77 | AI139: 29.7 | AJ139: 0.58 | AK139: 0.51 | AL139: 1.087 | AM139: 1.125 | AN139: 0.917 | AO139: 0.683
A140: 2021-01-02T10:15:00 | B140: 0 | C140: 0 | D140: 0 | E140: 0 | F140: 0 | G140: 0 | H140: 16.351 | I140: 0.386 | J140: 0.574 | K140: 1.242 | L140: 0.67 | M140: 0.788 | N140: 1.114 | AB140: 1.57 | AC140: 1.36 | AD140: --- | AE140: --- | AF140: 20 | AG140: 2.62 | AH140: 3.75 | AI140: 29.2 | AJ140: 0.58 | AK140: 0.509 | AL140: 1.086 | AM140: 1.119 | AN140: 0.922 | AO140: 0.68
A141: 2021-01-02T10:30:00 | B141: 0 | C141: 0 | D141: 0 | E141: 0 | F141: 0 | G141: 0 | H141: 16.346 | I141: 0.386 | J141: 0.573 | K141: 1.242 | L141: 0.673 | M141: 0.791 | N141: 1.114 | AB141: 1.57 | AC141: 1.35 | AD141: --- | AE141: --- | AF141: 20.1 | AG141: 2.58 | AH141: 3.73 | AI141: 29.9 | AJ141: 0.577 | AK141: 0.508 | AL141: 1.084 | AM141: 1.122 | AN141: 0.918 | AO141: 0.684
A142: 2021-01-02T10:45:00 | B142: 0 | C142: 0 | D142: 0 | E142: 0 | F142: 0 | G142: 0 | H142: 16.344 | I142: 0.386 | J142: 0.572 | K142: 1.241 | L142: 0.67 | M142: 0.789 | N142: 1.086 | AB142: 1.57 | AC142: 1.33 | AD142: --- | AE142: --- | AF142: 19.9 | AG142: 2.58 | AH142: 3.73 | AI142: 29.4 | AJ142: 0.577 | AK142: 0.508 | AL142: 1.086 | AM142: 1.117 | AN142: 0.922 | AO142: 0.681
A143: 2021-01-02T11:00:00 | B143: 0 | C143: 0 | D143: 0 | E143: 0 | F143: 0 | G143: 0 | H143: 16.344 | I143: 0.386 | J143: 0.572 | K143: 1.241 | L143: 0.669 | M143: 0.789 | N143: 1.085 | AB143: 1.57 | AC143: 1.33 | AD143: --- | AE143: --- | AF143: 19.9 | AG143: 2.58 | AH143: 3.73 | AI143: 29.4 | AJ143: 0.577 | AK143: 0.508 | AL143: 1.084 | AM143: 1.118 | AN143: 0.915 | AO143: 0.681
A144: 2021-01-02T11:15:00 | B144: 0 | C144: 0 | D144: 0 | E144: 0 | F144: 0 | G144: 0 | H144: 16.344 | I144: 0.386 | J144: 0.572 | K144: 1.24 | L144: 0.667 | M144: 0.786 | N144: 1.084 | AB144: 1.57 | AC144: 1.33 | AD144: --- | AE144: --- | AF144: 19.8 | AG144: 2.58 | AH144: 3.73 | AI144: 29.4 | AJ144: 0.577 | AK144: 0.508 | AL144: 1.085 | AM144: 1.116 | AN144: 0.917 | AO144: 0.681
A145: 2021-01-02T11:30:00 | B145: 0 | C145: 0 | D145: 0 | E145: 0 | F145: 0 | G145: 0 | H145: 16.342 | I145: 0.386 | J145: 0.572 | K145: 1.241 | L145: 0.668 | M145: 0.787 | N145: 1.083 | AB145: 1.57 | AC145: 1.33 | AD145: --- | AE145: --- | AF145: 19.9 | AG145: 2.56 | AH145: 3.73 | AI145: 29.6 | AJ145: 0.576 | AK145: 0.508 | AL145: 1.083 | AM145: 1.117 | AN145: 0.913 | AO145: 0.682
A146: 2021-01-02T11:45:00 | B146: 0 | C146: 0 | D146: 0 | E146: 0 | F146: 0 | G146: 0 | H146: 16.342 | I146: 0.386 | J146: 0.572 | K146: 1.241 | L146: 0.668 | M146: 0.787 | N146: 1.083 | AB146: 1.57 | AC146: 1.33 | AD146: --- | AE146: --- | AF146: 19.8 | AG146: 2.58 | AH146: 3.73 | AI146: 29.2 | AJ146: 0.577 | AK146: 0.508 | AL146: 1.082 | AM146: 1.114 | AN146: 0.916 | AO146: 0.68
A147: 2021-01-02T12:00:00 | B147: 0 | C147: 0 | D147: 0 | E147: 0 | F147: 0 | G147: 0 | H147: 16.337 | I147: 0.386 | J147: 0.571 | K147: 1.24 | L147: 0.666 | M147: 0.783 | N147: 1.082 | AB147: 1.57 | AC147: 1.32 | AD147: --- | AE147: --- | AF147: 19.8 | AG147: 2.58 | AH147: 3.73 | AI147: 29.2 | AJ147: 0.577 | AK147: 0.508 | AL147: 1.082 | AM147: 1.114 | AN147: 0.915 | AO147: 0.68
A148: 2021-01-02T12:15:00 | B148: 0 | C148: 0 | D148: 0 | E148: 0 | F148: 0 | G148: 0 | H148: 16.336 | I148: 0.386 | J148: 0.57 | K148: 1.241 | L148: 0.666 | M148: 0.786 | N148: 1.08 | AB148: 1.57 | AC148: 1.31 | AD148: --- | AE148: --- | AF148: 19.8 | AG148: 2.56 | AH148: 3.71 | AI148: 29 | AJ148: 0.576 | AK148: 0.507 | AL148: 1.083 | AM148: 1.114 | AN148: 0.906 | AO148: 0.679
A149: 2021-01-02T12:30:00 | B149: 0 | C149: 0 | D149: 0 | E149: 0 | F149: 0 | G149: 0 | H149: 16.337 | I149: 0.386 | J149: 0.57 | K149: 1.241 | L149: 0.667 | M149: 0.785 | N149: 1.08 | AB149: 1.57 | AC149: 1.31 | AD149: --- | AE149: --- | AF149: 19.6 | AG149: 2.56 | AH149: 3.71 | AI149: 28.9 | AJ149: 0.576 | AK149: 0.507 | AL149: 1.086 | AM149: 1.11 | AN149: 0.91 | AO149: 0.678
A150: 2021-01-02T12:45:00 | B150: 0 | C150: 0 | D150: 0 | E150: 0 | F150: 0 | G150: 0 | H150: 16.337 | I150: 0.386 | J150: 0.57 | K150: 1.239 | L150: 0.666 | M150: 0.786 | N150: 1.079 | AB150: 1.57 | AC150: 1.31 | AD150: --- | AE150: --- | AF150: 19.7 | AG150: 2.53 | AH150: 3.71 | AI150: 28.7 | AJ150: 0.574 | AK150: 0.507 | AL150: 1.082 | AM150: 1.112 | AN150: 0.916 | AO150: 0.677
A151: 2021-01-02T13:00:00 | B151: 0 | C151: 0 | D151: 0 | E151: 0 | F151: 0 | G151: 0 | H151: 16.339 | I151: 0.385 | J151: 0.57 | K151: 1.24 | L151: 0.665 | M151: 0.784 | N151: 1.079 | AB151: 1.55 | AC151: 1.31 | AD151: --- | AE151: --- | AF151: 19.6 | AG151: 2.52 | AH151: 3.71 | AI151: 28.7 | AJ151: 0.573 | AK151: 0.507 | AL151: 1.083 | AM151: 1.11 | AN151: 0.916 | AO151: 0.677
A152: 2021-01-02T13:15:00 | B152: 0 | C152: 0 | D152: 0 | E152: 0 | F152: 0 | G152: 0 | H152: 16.334 | I152: 0.386 | J152: 0.569 | K152: 1.238 | L152: 0.664 | M152: 0.781 | N152: 1.077 | AB152: 1.57 | AC152: 1.3 | AD152: --- | AE152: --- | AF152: 19.5 | AG152: 2.52 | AH152: 3.71 | AI152: 29 | AJ152: 0.573 | AK152: 0.507 | AL152: 1.082 | AM152: 1.109 | AN152: 0.917 | AO152: 0.679
A153: 2021-01-02T13:30:00 | B153: 0 | C153: 0 | D153: 0 | E153: 0 | F153: 0 | G153: 0 | H153: 16.334 | I153: 0.385 | J153: 0.569 | K153: 1.239 | L153: 0.664 | M153: 0.781 | N153: 1.077 | AB153: 1.55 | AC153: 1.3 | AD153: --- | AE153: --- | AF153: 19.5 | AG153: 2.49 | AH153: 3.69 | AI153: 28.1 | AJ153: 0.571 | AK153: 0.506 | AL153: 1.081 | AM153: 1.108 | AN153: 0.916 | AO153: 0.674
A154: 2021-01-02T13:45:00 | B154: 0 | C154: 0 | D154: 0 | E154: 0 | F154: 0 | G154: 0 | H154: 16.337 | I154: 0.387 | J154: 0.569 | K154: 1.24 | L154: 0.664 | M154: 0.782 | N154: 1.076 | AB154: 1.58 | AC154: 1.3 | AD154: --- | AE154: --- | AF154: 19.5 | AG154: 2.5 | AH154: 3.69 | AI154: 28.7 | AJ154: 0.572 | AK154: 0.506 | AL154: 1.082 | AM154: 1.107 | AN154: 0.908 | AO154: 0.677
A155: 2021-01-02T14:00:00 | B155: 0 | C155: 0 | D155: 0 | E155: 0 | F155: 0 | G155: 0 | H155: 16.34 | I155: 0.385 | J155: 0.569 | K155: 1.239 | L155: 0.662 | M155: 0.781 | N155: 1.076 | AB155: 1.55 | AC155: 1.3 | AD155: --- | AE155: --- | AF155: 19.4 | AG155: 2.49 | AH155: 3.69 | AI155: 28.7 | AJ155: 0.571 | AK155: 0.506 | AL155: 1.081 | AM155: 1.105 | AN155: 0.915 | AO155: 0.677
A156: 2021-01-02T14:15:00 | B156: 0 | C156: 0 | D156: 0 | E156: 0 | F156: 0 | G156: 0 | H156: 16.337 | I156: 0.386 | J156: 0.569 | K156: 1.238 | L156: 0.662 | M156: 0.782 | N156: 1.076 | AB156: 1.57 | AC156: 1.3 | AD156: --- | AE156: --- | AF156: 19.4 | AG156: 2.47 | AH156: 3.69 | AI156: 28.1 | AJ156: 0.57 | AK156: 0.506 | AL156: 1.081 | AM156: 1.105 | AN156: 0.909 | AO156: 0.674
A157: 2021-01-02T14:30:00 | B157: 0 | C157: 0 | D157: 0 | E157: 0 | F157: 0 | G157: 0 | H157: 16.336 | I157: 0.386 | J157: 0.569 | K157: 1.238 | L157: 0.662 | M157: 0.78 | N157: 1.074 | AB157: 1.57 | AC157: 1.3 | AD157: --- | AE157: --- | AF157: 19.3 | AG157: 2.47 | AH157: 3.67 | AI157: 28.1 | AJ157: 0.57 | AK157: 0.505 | AL157: 1.08 | AM157: 1.104 | AN157: 0.915 | AO157: 0.674
A158: 2021-01-02T14:45:00 | B158: 0 | C158: 0 | D158: 0 | E158: 0 | F158: 0 | G158: 0 | H158: 16.33 | I158: 0.385 | J158: 0.569 | K158: 1.238 | L158: 0.663 | M158: 0.777 | N158: 1.075 | AB158: 1.55 | AC158: 1.3 | AD158: --- | AE158: --- | AF158: 19.3 | AG158: 2.47 | AH158: 3.65 | AI158: 28.5 | AJ158: 0.57 | AK158: 0.504 | AL158: 1.079 | AM158: 1.103 | AN158: 0.909 | AO158: 0.676
A159: 2021-01-02T15:00:00 | B159: 0 | C159: 0 | D159: 0 | E159: 0 | F159: 0 | G159: 0 | H159: 16.33 | I159: 0.385 | J159: 0.569 | K159: 1.238 | L159: 0.662 | M159: 0.778 | N159: 1.073 | AB159: 1.55 | AC159: 1.3 | AD159: --- | AE159: --- | AF159: 19.3 | AG159: 2.47 | AH159: 3.63 | AI159: 28.1 | AJ159: 0.57 | AK159: 0.503 | AL159: 1.079 | AM159: 1.104 | AN159: 0.901 | AO159: 0.674
A160: 2021-01-02T15:15:00 | B160: 0 | C160: 0 | D160: 0 | E160: 0 | F160: 0 | G160: 0 | H160: 16.33 | I160: 0.386 | J160: 0.569 | K160: 1.238 | L160: 0.66 | M160: 0.777 | N160: 1.072 | AB160: 1.57 | AC160: 1.3 | AD160: --- | AE160: --- | AF160: 19.2 | AG160: 2.46 | AH160: 3.63 | AI160: 28.1 | AJ160: 0.569 | AK160: 0.503 | AL160: 1.08 | AM160: 1.101 | AN160: 0.907 | AO160: 0.674
A161: 2021-01-02T15:30:00 | B161: 0 | C161: 0 | D161: 0 | E161: 0 | F161: 0 | G161: 0 | H161: 16.333 | I161: 0.386 | J161: 0.568 | K161: 1.236 | L161: 0.658 | M161: 0.776 | N161: 1.072 | AB161: 1.57 | AC161: 1.29 | AD161: --- | AE161: --- | AF161: 19.2 | AG161: 2.46 | AH161: 3.63 | AI161: 28.1 | AJ161: 0.569 | AK161: 0.503 | AL161: 1.077 | AM161: 1.101 | AN161: 0.907 | AO161: 0.674
A162: 2021-01-02T15:45:00 | B162: 0 | C162: 0 | D162: 0 | E162: 0 | F162: 0 | G162: 0 | H162: 16.33 | I162: 0.385 | J162: 0.568 | K162: 1.237 | L162: 0.658 | M162: 0.775 | N162: 1.071 | AB162: 1.55 | AC162: 1.29 | AD162: --- | AE162: --- | AF162: 19.1 | AG162: 2.46 | AH162: 3.63 | AI162: 28.5 | AJ162: 0.569 | AK162: 0.503 | AL162: 1.078 | AM162: 1.098 | AN162: 0.906 | AO162: 0.676
A163: 2021-01-02T16:00:00 | B163: 0 | C163: 0 | D163: 0 | E163: 0 | F163: 0 | G163: 0 | H163: 16.327 | I163: 0.385 | J163: 0.568 | K163: 1.238 | L163: 0.659 | M163: 0.775 | N163: 1.071 | AB163: 1.55 | AC163: 1.29 | AD163: --- | AE163: --- | AF163: 19.1 | AG163: 2.43 | AH163: 3.6 | AI163: 28.1 | AJ163: 0.567 | AK163: 0.502 | AL163: 1.077 | AM163: 1.099 | AN163: 0.904 | AO163: 0.674
A164: 2021-01-02T16:15:00 | B164: 0 | C164: 0 | D164: 0 | E164: 0 | F164: 0 | G164: 0 | H164: 16.323 | I164: 0.386 | J164: 0.567 | K164: 1.237 | L164: 0.661 | M164: 0.775 | N164: 1.07 | AB164: 1.57 | AC164: 1.28 | AD164: --- | AE164: --- | AF164: 19.1 | AG164: 2.43 | AH164: 3.58 | AI164: 27.8 | AJ164: 0.567 | AK164: 0.501 | AL164: 1.076 | AM164: 1.097 | AN164: 0.906 | AO164: 0.672
A165: 2021-01-02T16:30:00 | B165: 0 | C165: 0 | D165: 0 | E165: 0 | F165: 0 | G165: 0 | H165: 16.324 | I165: 0.386 | J165: 0.567 | K165: 1.236 | L165: 0.659 | M165: 0.777 | N165: 1.069 | AB165: 1.57 | AC165: 1.28 | AD165: --- | AE165: --- | AF165: 19.1 | AG165: 2.42 | AH165: 3.56 | AI165: 27.8 | AJ165: 0.566 | AK165: 0.5 | AL165: 1.078 | AM165: 1.097 | AN165: 0.905 | AO165: 0.672
A166: 2021-01-02T16:45:00 | B166: 0 | C166: 0 | D166: 0 | E166: 0 | F166: 0 | G166: 0 | H166: 16.327 | I166: 0.387 | J166: 0.567 | K166: 1.235 | L166: 0.657 | M166: 0.773 | N166: 1.067 | AB166: 1.58 | AC166: 1.28 | AD166: --- | AE166: --- | AF166: 19.1 | AG166: 2.42 | AH166: 3.56 | AI166: 28 | AJ166: 0.566 | AK166: 0.5 | AL166: 1.075 | AM166: 1.097 | AN166: 0.909 | AO166: 0.673
A167: 2021-01-02T17:00:00 | B167: 0 | C167: 0 | D167: 0 | E167: 0 | F167: 0 | G167: 0 | H167: 16.322 | I167: 0.386 | J167: 0.566 | K167: 1.236 | L167: 0.656 | M167: 0.775 | N167: 1.066 | AB167: 1.57 | AC167: 1.27 | AD167: --- | AE167: --- | AF167: 19 | AG167: 2.42 | AH167: 3.56 | AI167: 28 | AJ167: 0.566 | AK167: 0.5 | AL167: 1.075 | AM167: 1.095 | AN167: 0.905 | AO167: 0.673
A168: 2021-01-02T17:15:00 | B168: 0 | C168: 0 | D168: 0 | E168: 0 | F168: 0 | G168: 0 | H168: 16.317 | I168: 0.386 | J168: 0.566 | K168: 1.235 | L168: 0.657 | M168: 0.773 | N168: 1.066 | AB168: 1.57 | AC168: 1.27 | AD168: --- | AE168: --- | AF168: 19 | AG168: 2.4 | AH168: 3.56 | AI168: 27.8 | AJ168: 0.565 | AK168: 0.5 | AL168: 1.076 | AM168: 1.096 | AN168: 0.906 | AO168: 0.672
A169: 2021-01-02T17:30:00 | B169: 0 | C169: 0 | D169: 0 | E169: 0 | F169: 0 | G169: 0 | H169: 16.319 | I169: 0.385 | J169: 0.566 | K169: 1.234 | L169: 0.655 | M169: 0.769 | N169: 1.066 | AB169: 1.55 | AC169: 1.27 | AD169: --- | AE169: --- | AF169: 18.9 | AG169: 2.42 | AH169: 3.56 | AI169: 28 | AJ169: 0.566 | AK169: 0.5 | AL169: 1.076 | AM169: 1.093 | AN169: 0.905 | AO169: 0.673
A170: 2021-01-02T17:45:00 | B170: 0 | C170: 0 | D170: 0 | E170: 0 | F170: 0 | G170: 0 | H170: 16.32 | I170: 0.385 | J170: 0.566 | K170: 1.235 | L170: 0.657 | M170: 0.771 | N170: 1.066 | AB170: 1.55 | AC170: 1.27 | AD170: --- | AE170: --- | AF170: 18.9 | AG170: 2.42 | AH170: 3.56 | AI170: 27.6 | AJ170: 0.566 | AK170: 0.5 | AL170: 1.074 | AM170: 1.094 | AN170: 0.903 | AO170: 0.671
A171: 2021-01-02T18:00:00 | B171: 0 | C171: 0 | D171: 0 | E171: 0 | F171: 0 | G171: 0 | H171: 16.324 | I171: 0.385 | J171: 0.566 | K171: 1.236 | L171: 0.655 | M171: 0.773 | N171: 1.065 | AB171: 1.55 | AC171: 1.27 | AD171: --- | AE171: --- | AF171: 18.7 | AG171: 2.42 | AH171: 3.54 | AI171: 27.6 | AJ171: 0.566 | AK171: 0.499 | AL171: 1.074 | AM171: 1.089 | AN171: 0.9 | AO171: 0.671
A172: 2021-01-02T18:15:00 | B172: 0 | C172: 0 | D172: 0 | E172: 0 | F172: 0 | G172: 0 | H172: 16.317 | I172: 0.385 | J172: 0.566 | K172: 1.235 | L172: 0.653 | M172: 0.771 | N172: 1.066 | AB172: 1.55 | AC172: 1.27 | AD172: --- | AE172: --- | AF172: 18.9 | AG172: 2.42 | AH172: 3.54 | AI172: 27.8 | AJ172: 0.566 | AK172: 0.499 | AL172: 1.074 | AM172: 1.092 | AN172: 0.898 | AO172: 0.672
A173: 2021-01-02T18:30:00 | B173: 0 | C173: 0 | D173: 0 | E173: 0 | F173: 0 | G173: 0 | H173: 16.313 | I173: 0.385 | J173: 0.566 | K173: 1.233 | L173: 0.656 | M173: 0.77 | N173: 1.065 | AB173: 1.55 | AC173: 1.27 | AD173: --- | AE173: --- | AF173: 18.7 | AG173: 2.37 | AH173: 3.5 | AI173: 28 | AJ173: 0.563 | AK173: 0.497 | AL173: 1.074 | AM173: 1.089 | AN173: 0.9 | AO173: 0.673
A174: 2021-01-02T18:45:00 | B174: 0 | C174: 0 | D174: 0 | E174: 0 | F174: 0 | G174: 0 | H174: 16.314 | I174: 0.385 | J174: 0.566 | K174: 1.235 | L174: 0.654 | M174: 0.769 | N174: 1.065 | AB174: 1.55 | AC174: 1.27 | AD174: --- | AE174: --- | AF174: 18.7 | AG174: 2.39 | AH174: 3.52 | AI174: 27.4 | AJ174: 0.564 | AK174: 0.498 | AL174: 1.072 | AM174: 1.089 | AN174: 0.899 | AO174: 0.67
A175: 2021-01-02T19:00:00 | B175: 0 | C175: 0 | D175: 0 | E175: 0 | F175: 0 | G175: 0 | H175: 16.316 | I175: 0.387 | J175: 0.566 | K175: 1.235 | L175: 0.656 | M175: 0.769 | N175: 1.063 | AB175: 1.58 | AC175: 1.27 | AD175: --- | AE175: --- | AF175: 18.7 | AG175: 2.39 | AH175: 3.5 | AI175: 27.8 | AJ175: 0.564 | AK175: 0.497 | AL175: 1.072 | AM175: 1.087 | AN175: 0.902 | AO175: 0.672
A176: 2021-01-02T19:15:00 | B176: 0 | C176: 0 | D176: 0 | E176: 0 | F176: 0 | G176: 0 | H176: 16.317 | I176: 0.385 | J176: 0.565 | K176: 1.235 | L176: 0.654 | M176: 0.771 | N176: 1.062 | AB176: 1.55 | AC176: 1.26 | AD176: --- | AE176: --- | AF176: 18.7 | AG176: 2.37 | AH176: 3.5 | AI176: 27.4 | AJ176: 0.563 | AK176: 0.497 | AL176: 1.072 | AM176: 1.088 | AN176: 0.905 | AO176: 0.67
A177: 2021-01-02T19:30:00 | B177: 0 | C177: 0 | D177: 0 | E177: 0 | F177: 0 | G177: 0 | H177: 16.313 | I177: 0.385 | J177: 0.565 | K177: 1.235 | L177: 0.652 | M177: 0.769 | N177: 1.06 | AB177: 1.55 | AC177: 1.26 | AD177: --- | AE177: --- | AF177: 18.5 | AG177: 2.36 | AH177: 3.5 | AI177: 27.6 | AJ177: 0.562 | AK177: 0.497 | AL177: 1.073 | AM177: 1.084 | AN177: 0.897 | AO177: 0.671
A178: 2021-01-02T19:45:00 | B178: 0 | C178: 0 | D178: 0 | E178: 0 | F178: 0 | G178: 0 | H178: 16.31 | I178: 0.385 | J178: 0.565 | K178: 1.235 | L178: 0.651 | M178: 0.768 | N178: 1.06 | AB178: 1.55 | AC178: 1.26 | AD178: --- | AE178: --- | AF178: 18.6 | AG178: 2.36 | AH178: 3.5 | AI178: 27.3 | AJ178: 0.562 | AK178: 0.497 | AL178: 1.072 | AM178: 1.086 | AN178: 0.914 | AO178: 0.669
A179: 2021-01-02T20:00:00 | B179: 0 | C179: 0 | D179: 0 | E179: 0 | F179: 0 | G179: 0 | H179: 16.31 | I179: 0.385 | J179: 0.565 | K179: 1.234 | L179: 0.652 | M179: 0.768 | N179: 1.059 | AB179: 1.55 | AC179: 1.26 | AD179: --- | AE179: --- | AF179: 18.5 | AG179: 2.36 | AH179: 3.5 | AI179: 27.3 | AJ179: 0.562 | AK179: 0.497 | AL179: 1.071 | AM179: 1.083 | AN179: 0.895 | AO179: 0.669
A180: 2021-01-02T20:15:00 | B180: 0 | C180: 0 | D180: 0 | E180: 0 | F180: 0 | G180: 0 | H180: 16.314 | I180: 0.385 | J180: 0.565 | K180: 1.233 | L180: 0.649 | M180: 0.767 | N180: 1.059 | AB180: 1.55 | AC180: 1.26 | AD180: --- | AE180: --- | AF180: 18.5 | AG180: 2.36 | AH180: 3.5 | AI180: 27.3 | AJ180: 0.562 | AK180: 0.497 | AL180: 1.071 | AM180: 1.083 | AN180: 0.9 | AO180: 0.669
A181: 2021-01-02T20:30:00 | B181: 0 | C181: 0 | D181: 0 | E181: 0 | F181: 0 | G181: 0 | H181: 16.31 | I181: 0.385 | J181: 0.564 | K181: 1.232 | L181: 0.648 | M181: 0.766 | N181: 1.059 | AB181: 1.55 | AC181: 1.25 | AD181: --- | AE181: --- | AF181: 18.4 | AG181: 2.36 | AH181: 3.48 | AI181: 27.1 | AJ181: 0.562 | AK181: 0.496 | AL181: 1.07 | AM181: 1.08 | AN181: 0.898 | AO181: 0.668
A182: 2021-01-02T20:45:00 | B182: 0 | C182: 0 | D182: 0 | E182: 0 | F182: 0 | G182: 0 | H182: 16.31 | I182: 0.384 | J182: 0.564 | K182: 1.233 | L182: 0.648 | M182: 0.766 | N182: 1.059 | AB182: 1.54 | AC182: 1.25 | AD182: --- | AE182: --- | AF182: 18.4 | AG182: 2.32 | AH182: 3.48 | AI182: 27.1 | AJ182: 0.559 | AK182: 0.496 | AL182: 1.071 | AM182: 1.08 | AN182: 0.898 | AO182: 0.668
A183: 2021-01-02T21:00:00 | B183: 0 | C183: 0 | D183: 0 | E183: 0 | F183: 0 | G183: 0 | H183: 16.309 | I183: 0.386 | J183: 0.564 | K183: 1.233 | L183: 0.649 | M183: 0.769 | N183: 1.055 | AB183: 1.57 | AC183: 1.25 | AD183: --- | AE183: --- | AF183: 18.3 | AG183: 2.32 | AH183: 3.44 | AI183: 27.3 | AJ183: 0.559 | AK183: 0.494 | AL183: 1.071 | AM183: 1.079 | AN183: 0.893 | AO183: 0.669
A184: 2021-01-02T21:15:00 | B184: 0 | C184: 0 | D184: 0 | E184: 0 | F184: 0 | G184: 0 | H184: 16.309 | I184: 0.385 | J184: 0.564 | K184: 1.233 | L184: 0.648 | M184: 0.765 | N184: 1.054 | AB184: 1.55 | AC184: 1.25 | AD184: --- | AE184: --- | AF184: 18.4 | AG184: 2.32 | AH184: 3.46 | AI184: 27.1 | AJ184: 0.559 | AK184: 0.495 | AL184: 1.068 | AM184: 1.08 | AN184: 0.899 | AO184: 0.668
A185: 2021-01-02T21:30:00 | B185: 0 | C185: 0 | D185: 0 | E185: 0 | F185: 0 | G185: 0 | H185: 16.307 | I185: 0.386 | J185: 0.563 | K185: 1.232 | L185: 0.65 | M185: 0.764 | N185: 1.053 | AB185: 1.57 | AC185: 1.24 | AD185: --- | AE185: --- | AF185: 18.3 | AG185: 2.32 | AH185: 3.46 | AI185: 26.9 | AJ185: 0.559 | AK185: 0.495 | AL185: 1.07 | AM185: 1.078 | AN185: 0.899 | AO185: 0.667
A186: 2021-01-02T21:45:00 | B186: 0 | C186: 0 | D186: 0 | E186: 0 | F186: 0 | G186: 0 | H186: 16.309 | I186: 0.389 | J186: 0.563 | K186: 1.233 | L186: 0.649 | M186: 0.763 | N186: 1.055 | AB186: 1.61 | AC186: 1.24 | AD186: --- | AE186: --- | AF186: 18.3 | AG186: 2.3 | AH186: 3.44 | AI186: 26.6 | AJ186: 0.558 | AK186: 0.494 | AL186: 1.07 | AM186: 1.077 | AN186: 0.897 | AO186: 0.665
A187: 2021-01-02T22:00:00 | B187: 0 | C187: 0 | D187: 0 | E187: 0 | F187: 0 | G187: 0 | H187: 16.302 | I187: 0.385 | J187: 0.562 | K187: 1.233 | L187: 0.643 | M187: 0.764 | N187: 1.054 | AB187: 1.55 | AC187: 1.23 | AD187: --- | AE187: --- | AF187: 18.2 | AG187: 2.3 | AH187: 3.42 | AI187: 26.9 | AJ187: 0.558 | AK187: 0.493 | AL187: 1.07 | AM187: 1.076 | AN187: 0.896 | AO187: 0.667
A188: 2021-01-02T22:15:00 | B188: 0 | C188: 0 | D188: 0 | E188: 0 | F188: 0 | G188: 0 | H188: 16.307 | I188: 0.385 | J188: 0.562 | K188: 1.231 | L188: 0.646 | M188: 0.761 | N188: 1.053 | AB188: 1.55 | AC188: 1.23 | AD188: --- | AE188: --- | AF188: 18.3 | AG188: 2.3 | AH188: 3.42 | AI188: 26.9 | AJ188: 0.558 | AK188: 0.493 | AL188: 1.069 | AM188: 1.077 | AN188: 0.893 | AO188: 0.667
A189: 2021-01-02T22:30:00 | B189: 0 | C189: 0 | D189: 0 | E189: 0 | F189: 0 | G189: 0 | H189: 16.299 | I189: 0.386 | J189: 0.562 | K189: 1.231 | L189: 0.644 | M189: 0.76 | N189: 1.052 | AB189: 1.57 | AC189: 1.23 | AD189: --- | AE189: --- | AF189: 18.1 | AG189: 2.3 | AH189: 3.42 | AI189: 26.7 | AJ189: 0.558 | AK189: 0.493 | AL189: 1.068 | AM189: 1.073 | AN189: 0.895 | AO189: 0.666
A190: 2021-01-02T22:45:00 | B190: 0 | C190: 0 | D190: 0 | E190: 0 | F190: 0 | G190: 0 | H190: 16.298 | I190: 0.387 | J190: 0.562 | K190: 1.232 | L190: 0.645 | M190: 0.761 | N190: 1.052 | AB190: 1.58 | AC190: 1.23 | AD190: --- | AE190: --- | AF190: 18.2 | AG190: 2.27 | AH190: 3.42 | AI190: 26.7 | AJ190: 0.556 | AK190: 0.493 | AL190: 1.069 | AM190: 1.076 | AN190: 0.888 | AO190: 0.666
A191: 2021-01-02T23:00:00 | B191: 0 | C191: 0 | D191: 0 | E191: 0 | F191: 0 | G191: 0 | H191: 16.299 | I191: 0.385 | J191: 0.562 | K191: 1.231 | L191: 0.646 | M191: 0.761 | N191: 1.051 | AB191: 1.55 | AC191: 1.23 | AD191: --- | AE191: --- | AF191: 18.1 | AG191: 2.26 | AH191: 3.42 | AI191: 26.6 | AJ191: 0.555 | AK191: 0.493 | AL191: 1.068 | AM191: 1.072 | AN191: 0.883 | AO191: 0.665
A192: 2021-01-02T23:15:00 | B192: 0 | C192: 0 | D192: 0 | E192: 0 | F192: 0 | G192: 0 | H192: 16.302 | I192: 0.385 | J192: 0.562 | K192: 1.231 | L192: 0.644 | M192: 0.76 | N192: 1.049 | AB192: 1.55 | AC192: 1.23 | AD192: --- | AE192: --- | AF192: 18.2 | AG192: 2.27 | AH192: 3.4 | AI192: 26.6 | AJ192: 0.556 | AK192: 0.492 | AL192: 1.067 | AM192: 1.076 | AN192: 0.886 | AO192: 0.665
A193: 2021-01-02T23:30:00 | B193: 0 | C193: 0 | D193: 0 | E193: 0 | F193: 0 | G193: 0 | H193: 16.302 | I193: 0.385 | J193: 0.562 | K193: 1.231 | L193: 0.643 | M193: 0.756 | N193: 1.049 | AB193: 1.55 | AC193: 1.23 | AD193: --- | AE193: --- | AF193: 18 | AG193: 2.26 | AH193: 3.4 | AI193: 26.4 | AJ193: 0.555 | AK193: 0.492 | AL193: 1.068 | AM193: 1.07 | AN193: 0.89 | AO193: 0.664
A194: 2021-01-02T23:45:00 | B194: 0 | C194: 0 | D194: 0 | E194: 0 | F194: 0 | G194: 0 | H194: 16.299 | I194: 0.385 | J194: 0.562 | K194: 1.232 | L194: 0.643 | M194: 0.755 | N194: 1.048 | AB194: 1.55 | AC194: 1.23 | AD194: --- | AE194: --- | AF194: 18.1 | AG194: 2.27 | AH194: 3.38 | AI194: 26.2 | AJ194: 0.556 | AK194: 0.491 | AL194: 1.067 | AM194: 1.073 | AN194: 0.889 | AO194: 0.663
A195: 2021-01-03 | B195: 0 | C195: 0 | D195: 0 | E195: 0 | F195: 0 | G195: 0 | H195: 16.297 | I195: 0.387 | J195: 0.562 | K195: 1.232 | L195: 0.643 | M195: 0.758 | N195: 1.048 | AB195: 1.58 | AC195: 1.23 | AD195: --- | AE195: --- | AF195: 18 | AG195: 2.24 | AH195: 3.36 | AI195: 26.4 | AJ195: 0.554 | AK195: 0.49 | AL195: 1.067 | AM195: 1.07 | AN195: 0.892 | AO195: 0.664
A196: 2021-01-03T00:15:00 | B196: 0 | C196: 0 | D196: 0 | E196: 0 | F196: 0 | G196: 0 | H196: 16.299 | I196: 0.386 | J196: 0.562 | K196: 1.232 | L196: 0.644 | M196: 0.76 | N196: 1.048 | AB196: 1.57 | AC196: 1.23 | AD196: --- | AE196: --- | AF196: 18 | AG196: 2.26 | AH196: 3.36 | AI196: 26.2 | AJ196: 0.555 | AK196: 0.49 | AL196: 1.067 | AM196: 1.07 | AN196: 0.891 | AO196: 0.663
A197: 2021-01-03T00:30:00 | B197: 0 | C197: 0 | D197: 0 | E197: 0 | F197: 0 | G197: 0 | H197: 16.294 | I197: 0.387 | J197: 0.562 | K197: 1.23 | L197: 0.642 | M197: 0.756 | N197: 1.045 | AB197: 1.58 | AC197: 1.23 | AD197: --- | AE197: --- | AF197: 17.9 | AG197: 2.26 | AH197: 3.36 | AI197: 26.2 | AJ197: 0.555 | AK197: 0.49 | AL197: 1.066 | AM197: 1.069 | AN197: 0.885 | AO197: 0.663
A198: 2021-01-03T00:45:00 | B198: 0 | C198: 0 | D198: 0 | E198: 0 | F198: 0 | G198: 0 | H198: 16.295 | I198: 0.385 | J198: 0.562 | K198: 1.232 | L198: 0.644 | M198: 0.759 | N198: 1.045 | AB198: 1.55 | AC198: 1.23 | AD198: --- | AE198: --- | AF198: 17.9 | AG198: 2.26 | AH198: 3.36 | AI198: 26.2 | AJ198: 0.555 | AK198: 0.49 | AL198: 1.065 | AM198: 1.069 | AN198: 0.886 | AO198: 0.663
A199: 2021-01-03T01:00:00 | B199: 0 | C199: 0 | D199: 0 | E199: 0 | F199: 0 | G199: 0 | H199: 16.294 | I199: 0.385 | J199: 0.562 | K199: 1.233 | L199: 0.641 | M199: 0.754 | N199: 1.046 | AB199: 1.55 | AC199: 1.23 | AD199: --- | AE199: --- | AF199: 17.9 | AG199: 2.26 | AH199: 3.36 | AI199: 26 | AJ199: 0.555 | AK199: 0.49 | AL199: 1.064 | AM199: 1.067 | AN199: 0.887 | AO199: 0.662
A200: 2021-01-03T01:15:00 | B200: 0 | C200: 0 | D200: 0 | E200: 0 | F200: 0 | G200: 0 | H200: 16.289 | I200: 0.386 | J200: 0.562 | K200: 1.229 | L200: 0.64 | M200: 0.754 | N200: 1.045 | AB200: 1.57 | AC200: 1.23 | AD200: --- | AE200: --- | AF200: 17.8 | AG200: 2.24 | AH200: 3.34 | AI200: 26 | AJ200: 0.554 | AK200: 0.489 | AL200: 1.065 | AM200: 1.066 | AN200: 0.888 | AO200: 0.662
... 2050 more rows

Sheet Feb
A1: date time | B1: SJB rain | C1: DH rain | D1: Portinscale rain | E1: Honister rain | F1: Matterdale End rain | G1: Mungrisdale rain | H1: Thirlmere - Y2 | I1: SJB | J1: Threlkeld | K1: Greta Bridge | L1: Derwent at Portinscale | M1: Greta Keswick Campsite | N1: Derwentwater at Lodore | Q1: DAILY | R1: SJB | S1: Dale Head | T1: Portinscale | U1: Honister | V1: Matterdale | W1: Mungrisdale | Y1: Check on rainfall calcs | AB1: SJB | AC1: Threlkeld | AD1: Low Briery | AE1: Portinscale | AF1: Ouse Bridge | AG1: Scalehill | AH1: Southwaite Bridge | AI1: Seaton Mill | AJ1: Scalehill | AK1: Southwaite Bridge | AL1: South St Footbridge | AM1: Ouse Bridge | AN1: Kingfisher | AO1: Seaton Mill
B2: =SUM(B3:B2690) -> 337.4 | C2: =SUM(C3:C2690) -> 410.6 | D2: 250.2 | E2: 445.4 | F2: 373.2 | G2: 223.8 | R2: =SUM(R3:R33) -> 337.4 | S2: =SUM(S3:S33) -> 410.6 | T2: 250.2 | U2: 445.4 | V2: 373.2 | W2: 223.8 | Y2: =SUM(R2:W2)-SUM(B2:G2) -> 3.183231456e-12 | AB2: Flows in m3/s | AJ2: Levels =m
A3: 2021-02-01 | B3: 0 | C3: 0 | D3: 0 | E3: 0 | F3: 0 | G3: 0 | H3: 16.208 | I3: 0.389 | J3: 0.619 | K3: 1.273 | L3: 0.733 | M3: 0.853 | N3: 1.157 | P3: =2+96 -> 98 | Q3: 2021-02-01 | R3: =SUM(B3:B98) -> 0 | S3: =SUM(C3:C98) -> 0 | T3: 0 | U3: 0 | V3: 0 | W3: 0 | AB3: 1.61 | AC3: 1.87 | AD3: --- | AE3: --- | AF3: 22.4 | AG3: 2.97 | AH3: 4.37 | AI3: 34.3 | AJ3: 0.602 | AK3: 0.538 | AL3: 1.119 | AM3: 1.176 | AN3: 0.96 | AO3: 0.709
A4: 2021-02-01T00:15:00 | B4: 0 | C4: 0 | D4: 0 | E4: 0 | F4: 0 | G4: 0 | H4: 16.206 | I4: 0.389 | J4: 0.619 | K4: 1.27 | L4: 0.73 | M4: 0.853 | N4: 1.156 | P4: =P3+96 -> 194 | Q4: 2021-02-02 | R4: =SUM(B99:B194) -> 14 | S4: =SUM(C99:C194) -> 16.6 | T4: 7.4 | U4: 10.2 | V4: 6 | W4: 12 | AB4: 1.61 | AC4: 1.87 | AD4: --- | AE4: --- | AF4: 22.4 | AG4: 2.98 | AH4: 4.35 | AI4: 34.1 | AJ4: 0.603 | AK4: 0.537 | AL4: 1.119 | AM4: 1.178 | AN4: 0.957 | AO4: 0.708
A5: 2021-02-01T00:30:00 | B5: 0 | C5: 0 | D5: 0 | E5: 0 | F5: 0 | G5: 0 | H5: 16.202 | I5: 0.389 | J5: 0.618 | K5: 1.273 | L5: 0.729 | M5: 0.852 | N5: 1.155 | P5: =P4+96 -> 290 | Q5: 2021-02-03 | R5: =SUM(B195:B290) -> 17.2 | S5: =SUM(C195:C290) -> 19.2 | T5: 10.6 | U5: 19.8 | V5: 23 | W5: 20.8 | AB5: 1.61 | AC5: 1.86 | AD5: --- | AE5: --- | AF5: 22.4 | AG5: 2.98 | AH5: 4.37 | AI5: 33.8 | AJ5: 0.603 | AK5: 0.538 | AL5: 1.115 | AM5: 1.178 | AN5: 0.954 | AO5: 0.706
A6: 2021-02-01T00:45:00 | B6: 0 | C6: 0 | D6: 0 | E6: 0 | F6: 0 | G6: 0 | H6: 16.208 | I6: 0.389 | J6: 0.618 | K6: 1.271 | L6: 0.729 | M6: 0.851 | N6: 1.154 | P6: 386 | Q6: 2021-02-04 | R6: =SUM(B291:B386) -> 6.8 | S6: =SUM(C291:C386) -> 14.4 | T6: 6.8 | U6: 8 | V6: 14.2 | W6: 6.4 | AB6: 1.61 | AC6: 1.86 | AD6: --- | AE6: --- | AF6: 22.4 | AG6: 3 | AH6: 4.33 | AI6: 33.6 | AJ6: 0.604 | AK6: 0.536 | AL6: 1.117 | AM6: 1.177 | AN6: 0.95 | AO6: 0.705
A7: 2021-02-01T01:00:00 | B7: 0 | C7: 0 | D7: 0 | E7: 0 | F7: 0 | G7: 0 | H7: 16.2 | I7: 0.389 | J7: 0.618 | K7: 1.271 | L7: 0.73 | M7: 0.85 | N7: 1.154 | P7: 482 | Q7: 2021-02-05 | R7: =SUM(B387:B482) -> 0.6 | S7: =SUM(C387:C482) -> 1.2 | T7: 0.4 | U7: 2.6 | V7: 1.6 | W7: 0.6 | AB7: 1.61 | AC7: 1.86 | AD7: --- | AE7: --- | AF7: 22.4 | AG7: 2.98 | AH7: 4.31 | AI7: 33.6 | AJ7: 0.603 | AK7: 0.535 | AL7: 1.115 | AM7: 1.177 | AN7: 0.953 | AO7: 0.705
A8: 2021-02-01T01:15:00 | B8: 0 | C8: 0 | D8: 0 | E8: 0 | F8: 0 | G8: 0 | H8: 16.205 | I8: 0.389 | J8: 0.617 | K8: 1.27 | L8: 0.729 | M8: 0.846 | N8: 1.153 | P8: 578 | Q8: 2021-02-06 | R8: =SUM(B483:B578) -> 8 | S8: =SUM(C483:C578) -> 10.4 | T8: 2 | U8: 2.2 | V8: 2.8 | W8: 2.4 | AB8: 1.61 | AC8: 1.85 | AD8: --- | AE8: --- | AF8: 22.4 | AG8: 2.95 | AH8: 4.31 | AI8: 33.6 | AJ8: 0.601 | AK8: 0.535 | AL8: 1.118 | AM8: 1.177 | AN8: 0.955 | AO8: 0.705
A9: 2021-02-01T01:30:00 | B9: 0 | C9: 0 | D9: 0 | E9: 0 | F9: 0 | G9: 0 | H9: 16.205 | I9: 0.389 | J9: 0.617 | K9: 1.269 | L9: 0.728 | M9: 0.848 | N9: 1.153 | P9: 674 | Q9: 2021-02-07 | R9: =SUM(B579:B674) -> 0 | S9: =SUM(C579:C674) -> 0 | T9: 0.4 | U9: 0 | V9: 0 | W9: 0 | AB9: 1.61 | AC9: 1.85 | AD9: --- | AE9: --- | AF9: 22.4 | AG9: 2.98 | AH9: 4.29 | AI9: 33.6 | AJ9: 0.603 | AK9: 0.534 | AL9: 1.114 | AM9: 1.177 | AN9: 0.961 | AO9: 0.705
A10: 2021-02-01T01:45:00 | B10: 0 | C10: 0 | D10: 0 | E10: 0 | F10: 0 | G10: 0 | H10: 16.206 | I10: 0.389 | J10: 0.616 | K10: 1.27 | L10: 0.726 | M10: 0.846 | N10: 1.151 | P10: 770 | Q10: 2021-02-08 | R10: =SUM(B675:B770) -> 0 | S10: =SUM(C675:C770) -> 0.2 | T10: 0.1 | U10: 0 | V10: 0.2 | W10: 0.4 | AB10: 1.61 | AC10: 1.84 | AD10: --- | AE10: --- | AF10: 22.3 | AG10: 2.95 | AH10: 4.29 | AI10: 33.8 | AJ10: 0.601 | AK10: 0.534 | AL10: 1.114 | AM10: 1.175 | AN10: 0.95 | AO10: 0.706
A11: 2021-02-01T02:00:00 | B11: 0 | C11: 0 | D11: 0 | E11: 0 | F11: 0 | G11: 0 | H11: 16.204 | I11: 0.389 | J11: 0.616 | K11: 1.269 | L11: 0.728 | M11: 0.846 | N11: 1.149 | P11: 866 | Q11: 2021-02-09 | R11: =SUM(B771:B866) -> 0 | S11: =SUM(C771:C866) -> 0.2 | T11: 0 | U11: 0 | V11: 0 | W11: 0 | AB11: 1.61 | AC11: 1.84 | AD11: --- | AE11: --- | AF11: 22.3 | AG11: 2.92 | AH11: 4.29 | AI11: 33.4 | AJ11: 0.599 | AK11: 0.534 | AL11: 1.114 | AM11: 1.175 | AN11: 0.954 | AO11: 0.704
A12: 2021-02-01T02:15:00 | B12: 0 | C12: 0 | D12: 0 | E12: 0 | F12: 0 | G12: 0 | H12: 16.202 | I12: 0.389 | J12: 0.615 | K12: 1.271 | L12: 0.724 | M12: 0.847 | N12: 1.148 | P12: 962 | Q12: 2021-02-10 | R12: =SUM(B867:B962) -> 0 | S12: =SUM(C867:C962) -> 0 | T12: 0 | U12: 0 | V12: 0 | W12: 0 | AB12: 1.61 | AC12: 1.83 | AD12: --- | AE12: --- | AF12: 22.2 | AG12: 2.92 | AH12: 4.29 | AI12: 33.6 | AJ12: 0.599 | AK12: 0.534 | AL12: 1.112 | AM12: 1.173 | AN12: 0.951 | AO12: 0.705
A13: 2021-02-01T02:30:00 | B13: 0 | C13: 0 | D13: 0 | E13: 0 | F13: 0 | G13: 0 | H13: 16.201 | I13: 0.389 | J13: 0.615 | K13: 1.269 | L13: 0.725 | M13: 0.845 | N13: 1.147 | P13: 1058 | Q13: 2021-02-11 | R13: =SUM(B963:B1058) -> 0 | S13: =SUM(C963:C1058) -> 0 | T13: 0 | U13: 0 | V13: 0 | W13: 0.2 | AB13: 1.61 | AC13: 1.83 | AD13: --- | AE13: --- | AF13: 22.2 | AG13: 2.89 | AH13: 4.29 | AI13: 33.1 | AJ13: 0.597 | AK13: 0.534 | AL13: 1.114 | AM13: 1.172 | AN13: 0.947 | AO13: 0.702
A14: 2021-02-01T02:45:00 | B14: 0 | C14: 0 | D14: 0 | E14: 0 | F14: 0 | G14: 0 | H14: 16.204 | I14: 0.389 | J14: 0.615 | K14: 1.269 | L14: 0.726 | M14: 0.843 | N14: 1.146 | P14: 1154 | Q14: 2021-02-12 | R14: =SUM(B1059:B1154) -> 0 | S14: 0 | T14: 0.4 | U14: 0 | V14: 0 | W14: 0 | AB14: 1.61 | AC14: 1.83 | AD14: --- | AE14: --- | AF14: 22.1 | AG14: 2.84 | AH14: 4.29 | AI14: 33.1 | AJ14: 0.594 | AK14: 0.534 | AL14: 1.113 | AM14: 1.17 | AN14: 0.949 | AO14: 0.702
A15: 2021-02-01T03:00:00 | B15: 0 | C15: 0 | D15: 0 | E15: 0 | F15: 0 | G15: 0 | H15: 16.198 | I15: 0.389 | J15: 0.615 | K15: 1.27 | L15: 0.724 | M15: 0.843 | N15: 1.146 | P15: 1250 | Q15: 2021-02-13 | R15: =SUM(B1155:B1250) -> 0 | S15: =SUM(C1155:C1250) -> 0 | T15: 0.5 | U15: 0 | V15: 0 | W15: 0 | AB15: 1.61 | AC15: 1.83 | AD15: --- | AE15: --- | AF15: 21.9 | AG15: 2.87 | AH15: 4.29 | AI15: 33.2 | AJ15: 0.596 | AK15: 0.534 | AL15: 1.111 | AM15: 1.165 | AN15: 0.948 | AO15: 0.703
A16: 2021-02-01T03:15:00 | B16: 0 | C16: 0 | D16: 0 | E16: 0 | F16: 0 | G16: 0 | H16: 16.198 | I16: 0.389 | J16: 0.614 | K16: 1.271 | L16: 0.724 | M16: 0.844 | N16: 1.145 | P16: 1346 | Q16: 2021-02-14 | R16: =SUM(B1251:B1346) -> 13.4 | S16: =SUM(C1251:C1346) -> 14 | T16: 11.2 | U16: 10.8 | V16: 14.6 | W16: 4.8 | AB16: 1.61 | AC16: 1.81 | AD16: --- | AE16: --- | AF16: 22.1 | AG16: 2.84 | AH16: 4.26 | AI16: 33.2 | AJ16: 0.594 | AK16: 0.533 | AL16: 1.114 | AM16: 1.17 | AN16: 0.949 | AO16: 0.703
A17: 2021-02-01T03:30:00 | B17: 0 | C17: 0 | D17: 0 | E17: 0 | F17: 0 | G17: 0 | H17: 16.202 | I17: 0.389 | J17: 0.613 | K17: 1.268 | L17: 0.721 | M17: 0.842 | N17: 1.143 | P17: 1442 | Q17: 2021-02-15 | R17: =SUM(B1347:B1442) -> 3.2 | S17: =SUM(C1347:C1442) -> 4.8 | T17: 1.5 | U17: 4 | V17: 1.2 | W17: 1 | AB17: 1.61 | AC17: 1.8 | AD17: --- | AE17: --- | AF17: 22 | AG17: 2.84 | AH17: 4.24 | AI17: 33.4 | AJ17: 0.594 | AK17: 0.532 | AL17: 1.111 | AM17: 1.167 | AN17: 0.946 | AO17: 0.704
A18: 2021-02-01T03:45:00 | B18: 0 | C18: 0 | D18: 0 | E18: 0 | F18: 0 | G18: 0 | H18: 16.197 | I18: 0.389 | J18: 0.612 | K18: 1.269 | L18: 0.72 | M18: 0.841 | N18: 1.142 | P18: 1538 | Q18: 2021-02-16 | R18: =SUM(B1443:B1538) -> 15 | S18: =SUM(C1443:C1538) -> 23.6 | T18: 10.9 | U18: 19.8 | V18: 24.4 | W18: 17.6 | AB18: 1.61 | AC18: 1.79 | AD18: --- | AE18: --- | AF18: 21.9 | AG18: 2.85 | AH18: 4.24 | AI18: 33.2 | AJ18: 0.595 | AK18: 0.532 | AL18: 1.111 | AM18: 1.166 | AN18: 0.952 | AO18: 0.703
A19: 2021-02-01T04:00:00 | B19: 0 | C19: 0 | D19: 0 | E19: 0 | F19: 0 | G19: 0 | H19: 16.196 | I19: 0.389 | J19: 0.612 | K19: 1.265 | L19: 0.719 | M19: 0.839 | N19: 1.142 | P19: 1634 | Q19: 2021-02-17 | R19: =SUM(B1539:B1634) -> 11.8 | S19: =SUM(C1539:C1634) -> 15.6 | T19: 5.2 | U19: 13 | V19: 14 | W19: 5.2 | AB19: 1.61 | AC19: 1.79 | AD19: --- | AE19: --- | AF19: 21.9 | AG19: 2.84 | AH19: 4.22 | AI19: 32.7 | AJ19: 0.594 | AK19: 0.531 | AL19: 1.112 | AM19: 1.166 | AN19: 0.95 | AO19: 0.7
A20: 2021-02-01T04:15:00 | B20: 0 | C20: 0 | D20: 0 | E20: 0 | F20: 0 | G20: 0 | H20: 16.194 | I20: 0.389 | J20: 0.612 | K20: 1.267 | L20: 0.719 | M20: 0.84 | N20: 1.141 | P20: 1730 | Q20: 2021-02-18 | R20: =SUM(B1635:B1730) -> 25.8 | S20: =SUM(C1635:C1730) -> 28.2 | T20: 13.5 | U20: 38.4 | V20: 27.6 | W20: 11.8 | AB20: 1.61 | AC20: 1.79 | AD20: --- | AE20: --- | AF20: 21.8 | AG20: 2.82 | AH20: 4.2 | AI20: 33.1 | AJ20: 0.593 | AK20: 0.53 | AL20: 1.111 | AM20: 1.163 | AN20: 0.944 | AO20: 0.702
A21: 2021-02-01T04:30:00 | B21: 0 | C21: 0 | D21: 0 | E21: 0 | F21: 0 | G21: 0 | H21: 16.194 | I21: 0.389 | J21: 0.611 | K21: 1.266 | L21: 0.721 | M21: 0.84 | N21: 1.139 | P21: 1826 | Q21: 2021-02-19 | R21: =SUM(B1731:B1826) -> 59 | S21: =SUM(C1731:C1826) -> 70.2 | T21: 71.5 | U21: 104.6 | V21: 70 | W21: 35.4 | AB21: 1.61 | AC21: 1.78 | AD21: --- | AE21: --- | AF21: 21.8 | AG21: 2.84 | AH21: 4.18 | AI21: 32.9 | AJ21: 0.594 | AK21: 0.529 | AL21: 1.109 | AM21: 1.164 | AN21: 0.939 | AO21: 0.701
A22: 2021-02-01T04:45:00 | B22: 0 | C22: 0 | D22: 0 | E22: 0 | F22: 0 | G22: 0 | H22: 16.196 | I22: 0.389 | J22: 0.611 | K22: 1.265 | L22: 0.717 | M22: 0.838 | N22: 1.139 | P22: 1922 | Q22: 2021-02-20 | R22: =SUM(B1827:B1922) -> 42.4 | S22: =SUM(C1827:C1922) -> 55.6 | T22: 27.7 | U22: 41 | V22: 62.6 | W22: 21.6 | AB22: 1.61 | AC22: 1.78 | AD22: --- | AE22: --- | AF22: 21.8 | AG22: 2.82 | AH22: 4.18 | AI22: 32.9 | AJ22: 0.593 | AK22: 0.529 | AL22: 1.11 | AM22: 1.162 | AN22: 0.94 | AO22: 0.701
A23: 2021-02-01T05:00:00 | B23: 0 | C23: 0 | D23: 0 | E23: 0 | F23: 0 | G23: 0 | H23: 16.193 | I23: 0.389 | J23: 0.611 | K23: 1.267 | L23: 0.719 | M23: 0.837 | N23: 1.137 | P23: 2018 | Q23: 2021-02-21 | R23: =SUM(B1923:B2018) -> 4 | S23: =SUM(C1923:C2018) -> 4 | T23: 0.3 | U23: 2 | V23: 2.8 | W23: 0.8 | AB23: 1.61 | AC23: 1.78 | AD23: --- | AE23: --- | AF23: 21.9 | AG23: 2.79 | AH23: 4.16 | AI23: 32.9 | AJ23: 0.591 | AK23: 0.528 | AL23: 1.107 | AM23: 1.165 | AN23: 0.944 | AO23: 0.701
A24: 2021-02-01T05:15:00 | B24: 0 | C24: 0 | D24: 0 | E24: 0 | F24: 0 | G24: 0 | H24: 16.191 | I24: 0.389 | J24: 0.611 | K24: 1.266 | L24: 0.716 | M24: 0.834 | N24: 1.136 | P24: 2114 | Q24: 2021-02-22 | R24: =SUM(B2019:B2114) -> 3.6 | S24: =SUM(C2019:C2114) -> 3.4 | T24: 1.2 | U24: 3.2 | V24: 3.2 | W24: 1.4 | AB24: 1.61 | AC24: 1.78 | AD24: --- | AE24: --- | AF24: 21.8 | AG24: 2.79 | AH24: 4.16 | AI24: 32.5 | AJ24: 0.591 | AK24: 0.528 | AL24: 1.107 | AM24: 1.162 | AN24: 0.946 | AO24: 0.699
A25: 2021-02-01T05:30:00 | B25: 0 | C25: 0 | D25: 0 | E25: 0 | F25: 0 | G25: 0 | H25: 16.191 | I25: 0.389 | J25: 0.61 | K25: 1.265 | L25: 0.716 | M25: 0.836 | N25: 1.137 | P25: 2210 | Q25: 2021-02-23 | R25: =SUM(B2115:B2210) -> 81.2 | S25: =SUM(C2115:C2210) -> 92.6 | T25: 62.1 | U25: 88 | V25: 83.4 | W25: 62.4 | AB25: 1.61 | AC25: 1.76 | AD25: --- | AE25: --- | AF25: 21.8 | AG25: 2.78 | AH25: 4.16 | AI25: 32.9 | AJ25: 0.59 | AK25: 0.528 | AL25: 1.107 | AM25: 1.162 | AN25: 0.938 | AO25: 0.701
A26: 2021-02-01T05:45:00 | B26: 0 | C26: 0 | D26: 0 | E26: 0 | F26: 0 | G26: 0 | H26: 16.188 | I26: 0.389 | J26: 0.61 | K26: 1.265 | L26: 0.716 | M26: 0.835 | N26: 1.136 | P26: 2306 | Q26: 2021-02-24 | R26: =SUM(B2211:B2306) -> 31.2 | S26: =SUM(C2211:C2306) -> 36.2 | T26: 16.5 | U26: 77.4 | V26: 21.6 | W26: 19 | AB26: 1.61 | AC26: 1.76 | AD26: --- | AE26: --- | AF26: 21.7 | AG26: 2.76 | AH26: 4.13 | AI26: 32.9 | AJ26: 0.589 | AK26: 0.527 | AL26: 1.106 | AM26: 1.16 | AN26: 0.943 | AO26: 0.701
A27: 2021-02-01T06:00:00 | B27: 0 | C27: 0 | D27: 0 | E27: 0 | F27: 0 | G27: 0 | H27: 16.188 | I27: 0.389 | J27: 0.609 | K27: 1.265 | L27: 0.714 | M27: 0.834 | N27: 1.135 | P27: 2402 | Q27: 2021-02-25 | R27: =SUM(B2307:B2402) -> 0.2 | S27: =SUM(C2307:C2402) -> 0.2 | T27: 0 | U27: 0.2 | V27: 0 | W27: 0 | AB27: 1.61 | AC27: 1.75 | AD27: --- | AE27: --- | AF27: 21.8 | AG27: 2.78 | AH27: 4.11 | AI27: 32.9 | AJ27: 0.59 | AK27: 0.526 | AL27: 1.105 | AM27: 1.162 | AN27: 0.942 | AO27: 0.701
A28: 2021-02-01T06:15:00 | B28: 0 | C28: 0 | D28: 0 | E28: 0 | F28: 0 | G28: 0 | H28: 16.188 | I28: 0.389 | J28: 0.608 | K28: 1.266 | L28: 0.716 | M28: 0.836 | N28: 1.134 | P28: 2498 | Q28: 2021-02-26 | R28: =SUM(B2403:B2498) -> 0 | S28: =SUM(C2403:C2498) -> 0 | T28: 0 | U28: 0.2 | V28: 0 | W28: 0 | AB28: 1.61 | AC28: 1.74 | AD28: --- | AE28: --- | AF28: 21.6 | AG28: 2.79 | AH28: 4.11 | AI28: 32.9 | AJ28: 0.591 | AK28: 0.526 | AL28: 1.106 | AM28: 1.159 | AN28: 0.942 | AO28: 0.701
A29: 2021-02-01T06:30:00 | B29: 0 | C29: 0 | D29: 0 | E29: 0 | F29: 0 | G29: 0 | H29: 16.188 | I29: 0.389 | J29: 0.608 | K29: 1.266 | L29: 0.714 | M29: 0.834 | N29: 1.133 | P29: 2594 | Q29: 2021-02-27 | R29: =SUM(B2499:B2594) -> 0 | S29: =SUM(C2499:C2594) -> 0 | T29: 0 | U29: 0 | V29: 0 | W29: 0 | AB29: 1.61 | AC29: 1.74 | AD29: --- | AE29: --- | AF29: 21.6 | AG29: 2.79 | AH29: 4.09 | AI29: 32.4 | AJ29: 0.591 | AK29: 0.525 | AL29: 1.105 | AM29: 1.159 | AN29: 0.945 | AO29: 0.698
A30: 2021-02-01T06:45:00 | B30: 0 | C30: 0 | D30: 0 | E30: 0 | F30: 0 | G30: 0 | H30: 16.187 | I30: 0.389 | J30: 0.608 | K30: 1.263 | L30: 0.714 | M30: 0.83 | N30: 1.132 | P30: 2690 | Q30: 2021-02-28 | R30: =SUM(B2595:B2690) -> 0 | S30: =SUM(C2595:C2690) -> 0 | T30: 0 | U30: 0 | V30: 0 | W30: 0 | AB30: 1.61 | AC30: 1.74 | AD30: --- | AE30: --- | AF30: 21.5 | AG30: 2.78 | AH30: 4.09 | AI30: 32.5 | AJ30: 0.59 | AK30: 0.525 | AL30: 1.104 | AM30: 1.156 | AN30: 0.935 | AO30: 0.699
A31: 2021-02-01T07:00:00 | B31: 0 | C31: 0 | D31: 0 | E31: 0 | F31: 0 | G31: 0 | H31: 16.186 | I31: 0.389 | J31: 0.607 | K31: 1.263 | L31: 0.715 | M31: 0.831 | N31: 1.132 | P31: 2786 | AB31: 1.61 | AC31: 1.73 | AD31: --- | AE31: --- | AF31: 21.6 | AG31: 2.81 | AH31: 4.07 | AI31: 32.4 | AJ31: 0.592 | AK31: 0.524 | AL31: 1.105 | AM31: 1.159 | AN31: 0.939 | AO31: 0.698
A32: 2021-02-01T07:15:00 | B32: 0 | C32: 0 | D32: 0 | E32: 0 | F32: 0 | G32: 0 | H32: 16.174 | I32: 0.388 | J32: 0.607 | K32: 1.265 | L32: 0.715 | M32: 0.833 | N32: 1.131 | P32: 2882 | AB32: 1.59 | AC32: 1.73 | AD32: --- | AE32: --- | AF32: 21.5 | AG32: 2.79 | AH32: 4.07 | AI32: 31.7 | AJ32: 0.591 | AK32: 0.524 | AL32: 1.104 | AM32: 1.156 | AN32: 0.94 | AO32: 0.694
A33: 2021-02-01T07:30:00 | B33: 0 | C33: 0 | D33: 0 | E33: 0 | F33: 0 | G33: 0 | H33: 16.18 | I33: 0.389 | J33: 0.606 | K33: 1.262 | L33: 0.712 | M33: 0.831 | N33: 1.128 | P33: 2978 | AB33: 1.61 | AC33: 1.72 | AD33: --- | AE33: --- | AF33: 21.6 | AG33: 2.78 | AH33: 4.07 | AI33: 32.2 | AJ33: 0.59 | AK33: 0.524 | AL33: 1.104 | AM33: 1.158 | AN33: 0.942 | AO33: 0.697
A34: 2021-02-01T07:45:00 | B34: 0 | C34: 0 | D34: 0 | E34: 0 | F34: 0 | G34: 0 | H34: 16.181 | I34: 0.389 | J34: 0.606 | K34: 1.262 | L34: 0.712 | M34: 0.83 | N34: 1.128 | AB34: 1.61 | AC34: 1.72 | AD34: --- | AE34: --- | AF34: 21.5 | AG34: 2.75 | AH34: 4.07 | AI34: 32 | AJ34: 0.588 | AK34: 0.524 | AL34: 1.103 | AM34: 1.155 | AN34: 0.937 | AO34: 0.696
A35: 2021-02-01T08:00:00 | B35: 0 | C35: 0 | D35: 0 | E35: 0 | F35: 0 | G35: 0 | H35: 16.179 | I35: 0.388 | J35: 0.605 | K35: 1.263 | L35: 0.711 | M35: 0.827 | N35: 1.128 | AB35: 1.59 | AC35: 1.7 | AD35: --- | AE35: --- | AF35: 21.5 | AG35: 2.75 | AH35: 4.07 | AI35: 32.9 | AJ35: 0.588 | AK35: 0.524 | AL35: 1.103 | AM35: 1.155 | AN35: 0.939 | AO35: 0.701
A36: 2021-02-01T08:15:00 | B36: 0 | C36: 0 | D36: 0 | E36: 0 | F36: 0 | G36: 0 | H36: 16.183 | I36: 0.389 | J36: 0.605 | K36: 1.263 | L36: 0.711 | M36: 0.827 | N36: 1.127 | AB36: 1.61 | AC36: 1.7 | AD36: --- | AE36: --- | AF36: 21.2 | AG36: 2.73 | AH36: 4.07 | AI36: 32 | AJ36: 0.587 | AK36: 0.524 | AL36: 1.101 | AM36: 1.149 | AN36: 0.94 | AO36: 0.696
A37: 2021-02-01T08:30:00 | B37: 0 | C37: 0 | D37: 0 | E37: 0 | F37: 0 | G37: 0 | H37: 16.182 | I37: 0.389 | J37: 0.605 | K37: 1.263 | L37: 0.71 | M37: 0.826 | N37: 1.126 | AB37: 1.61 | AC37: 1.7 | AD37: --- | AE37: --- | AF37: 21.2 | AG37: 2.73 | AH37: 4.07 | AI37: 31.8 | AJ37: 0.587 | AK37: 0.524 | AL37: 1.101 | AM37: 1.15 | AN37: 0.937 | AO37: 0.695
A38: 2021-02-01T08:45:00 | B38: 0 | C38: 0 | D38: 0 | E38: 0 | F38: 0 | G38: 0 | H38: 16.183 | I38: 0.389 | J38: 0.605 | K38: 1.261 | L38: 0.708 | M38: 0.826 | N38: 1.125 | AB38: 1.61 | AC38: 1.7 | AD38: --- | AE38: --- | AF38: 21.3 | AG38: 2.7 | AH38: 4.07 | AI38: 31.7 | AJ38: 0.585 | AK38: 0.524 | AL38: 1.1 | AM38: 1.151 | AN38: 0.94 | AO38: 0.694
A39: 2021-02-01T09:00:00 | B39: 0 | C39: 0 | D39: 0 | E39: 0 | F39: 0 | G39: 0 | H39: 16.183 | I39: 0.388 | J39: 0.604 | K39: 1.262 | L39: 0.708 | M39: 0.825 | N39: 1.124 | AB39: 1.59 | AC39: 1.69 | AD39: --- | AE39: --- | AF39: 21.3 | AG39: 2.71 | AH39: 4.05 | AI39: 31.8 | AJ39: 0.586 | AK39: 0.523 | AL39: 1.102 | AM39: 1.152 | AN39: 0.936 | AO39: 0.695
A40: 2021-02-01T09:15:00 | B40: 0 | C40: 0 | D40: 0 | E40: 0 | F40: 0 | G40: 0 | H40: 16.173 | I40: 0.389 | J40: 0.604 | K40: 1.261 | L40: 0.71 | M40: 0.823 | N40: 1.124 | AB40: 1.61 | AC40: 1.69 | AD40: --- | AE40: --- | AF40: 21.2 | AG40: 2.7 | AH40: 4.03 | AI40: 31.8 | AJ40: 0.585 | AK40: 0.522 | AL40: 1.102 | AM40: 1.149 | AN40: 0.937 | AO40: 0.695
A41: 2021-02-01T09:30:00 | B41: 0 | C41: 0 | D41: 0 | E41: 0 | F41: 0 | G41: 0 | H41: 16.184 | I41: 0.389 | J41: 0.604 | K41: 1.261 | L41: 0.703 | M41: 0.826 | N41: 1.122 | AB41: 1.61 | AC41: 1.69 | AD41: --- | AE41: --- | AF41: 21.3 | AG41: 2.7 | AH41: 4.01 | AI41: 31.7 | AJ41: 0.585 | AK41: 0.521 | AL41: 1.101 | AM41: 1.152 | AN41: 0.934 | AO41: 0.694
A42: 2021-02-01T09:45:00 | B42: 0 | C42: 0 | D42: 0 | E42: 0 | F42: 0 | G42: 0 | H42: 16.177 | I42: 0.389 | J42: 0.603 | K42: 1.26 | L42: 0.705 | M42: 0.822 | N42: 1.121 | AB42: 1.61 | AC42: 1.68 | AD42: --- | AE42: --- | AF42: 21.1 | AG42: 2.68 | AH42: 4.01 | AI42: 30.8 | AJ42: 0.584 | AK42: 0.521 | AL42: 1.102 | AM42: 1.146 | AN42: 0.935 | AO42: 0.689
A43: 2021-02-01T10:00:00 | B43: 0 | C43: 0 | D43: 0 | E43: 0 | F43: 0 | G43: 0 | H43: 16.176 | I43: 0.389 | J43: 0.603 | K43: 1.262 | L43: 0.706 | M43: 0.82 | N43: 1.12 | AB43: 1.61 | AC43: 1.68 | AD43: --- | AE43: --- | AF43: 21.1 | AG43: 2.7 | AH43: 4.01 | AI43: 31.3 | AJ43: 0.585 | AK43: 0.521 | AL43: 1.103 | AM43: 1.146 | AN43: 0.939 | AO43: 0.692
A44: 2021-02-01T10:15:00 | B44: 0 | C44: 0 | D44: 0 | E44: 0 | F44: 0 | G44: 0 | H44: 16.177 | I44: 0.389 | J44: 0.603 | K44: 1.261 | L44: 0.706 | M44: 0.821 | N44: 1.12 | AB44: 1.61 | AC44: 1.68 | AD44: --- | AE44: --- | AF44: 20.9 | AG44: 2.67 | AH44: 3.98 | AI44: 31.7 | AJ44: 0.583 | AK44: 0.52 | AL44: 1.1 | AM44: 1.142 | AN44: 0.932 | AO44: 0.694
A45: 2021-02-01T10:30:00 | B45: 0 | C45: 0 | D45: 0 | E45: 0 | F45: 0 | G45: 0 | H45: 16.179 | I45: 0.389 | J45: 0.603 | K45: 1.258 | L45: 0.706 | M45: 0.823 | N45: 1.118 | AB45: 1.61 | AC45: 1.68 | AD45: --- | AE45: --- | AF45: 21 | AG45: 2.68 | AH45: 3.98 | AI45: 31.3 | AJ45: 0.584 | AK45: 0.52 | AL45: 1.099 | AM45: 1.143 | AN45: 0.934 | AO45: 0.692
A46: 2021-02-01T10:45:00 | B46: 0 | C46: 0 | D46: 0 | E46: 0 | F46: 0 | G46: 0 | H46: 16.177 | I46: 0.389 | J46: 0.602 | K46: 1.261 | L46: 0.704 | M46: 0.82 | N46: 1.117 | AB46: 1.61 | AC46: 1.67 | AD46: --- | AE46: --- | AF46: 21 | AG46: 2.67 | AH46: 3.98 | AI46: 31.3 | AJ46: 0.583 | AK46: 0.52 | AL46: 1.098 | AM46: 1.145 | AN46: 0.928 | AO46: 0.692
A47: 2021-02-01T11:00:00 | B47: 0 | C47: 0 | D47: 0 | E47: 0 | F47: 0 | G47: 0 | H47: 16.176 | I47: 0.389 | J47: 0.602 | K47: 1.258 | L47: 0.701 | M47: 0.815 | N47: 1.115 | AB47: 1.61 | AC47: 1.67 | AD47: --- | AE47: --- | AF47: 20.8 | AG47: 2.67 | AH47: 3.96 | AI47: 31.1 | AJ47: 0.583 | AK47: 0.519 | AL47: 1.098 | AM47: 1.139 | AN47: 0.931 | AO47: 0.691
A48: 2021-02-01T11:15:00 | B48: 0 | C48: 0 | D48: 0 | E48: 0 | F48: 0 | G48: 0 | H48: 16.172 | I48: 0.389 | J48: 0.601 | K48: 1.259 | L48: 0.702 | M48: 0.817 | N48: 1.115 | AB48: 1.61 | AC48: 1.66 | AD48: --- | AE48: --- | AF48: 21 | AG48: 2.67 | AH48: 3.96 | AI48: 31.3 | AJ48: 0.583 | AK48: 0.519 | AL48: 1.097 | AM48: 1.144 | AN48: 0.932 | AO48: 0.692
A49: 2021-02-01T11:30:00 | B49: 0 | C49: 0 | D49: 0 | E49: 0 | F49: 0 | G49: 0 | H49: 16.173 | I49: 0.389 | J49: 0.601 | K49: 1.259 | L49: 0.703 | M49: 0.818 | N49: 1.115 | AB49: 1.61 | AC49: 1.66 | AD49: --- | AE49: --- | AF49: 20.7 | AG49: 2.67 | AH49: 3.98 | AI49: 31.3 | AJ49: 0.583 | AK49: 0.52 | AL49: 1.097 | AM49: 1.138 | AN49: 0.93 | AO49: 0.692
A50: 2021-02-01T11:45:00 | B50: 0 | C50: 0 | D50: 0 | E50: 0 | F50: 0 | G50: 0 | H50: 16.174 | I50: 0.389 | J50: 0.601 | K50: 1.259 | L50: 0.702 | M50: 0.818 | N50: 1.113 | AB50: 1.61 | AC50: 1.66 | AD50: --- | AE50: --- | AF50: 21 | AG50: 2.65 | AH50: 3.94 | AI50: 31 | AJ50: 0.582 | AK50: 0.518 | AL50: 1.097 | AM50: 1.144 | AN50: 0.926 | AO50: 0.69
A51: 2021-02-01T12:00:00 | B51: 0 | C51: 0 | D51: 0 | E51: 0 | F51: 0 | G51: 0 | H51: 16.17 | I51: 0.389 | J51: 0.601 | K51: 1.259 | L51: 0.699 | M51: 0.816 | N51: 1.112 | AB51: 1.61 | AC51: 1.66 | AD51: --- | AE51: --- | AF51: 20.6 | AG51: 2.67 | AH51: 3.94 | AI51: 31.1 | AJ51: 0.583 | AK51: 0.518 | AL51: 1.095 | AM51: 1.135 | AN51: 0.924 | AO51: 0.691
A52: 2021-02-01T12:15:00 | B52: 0 | C52: 0 | D52: 0 | E52: 0 | F52: 0 | G52: 0 | H52: 16.167 | I52: 0.389 | J52: 0.601 | K52: 1.259 | L52: 0.7 | M52: 0.814 | N52: 1.112 | AB52: 1.61 | AC52: 1.66 | AD52: --- | AE52: --- | AF52: 20.8 | AG52: 2.67 | AH52: 3.94 | AI52: 31 | AJ52: 0.583 | AK52: 0.518 | AL52: 1.097 | AM52: 1.139 | AN52: 0.929 | AO52: 0.69
A53: 2021-02-01T12:30:00 | B53: 0 | C53: 0 | D53: 0 | E53: 0 | F53: 0 | G53: 0 | H53: 16.167 | I53: 0.389 | J53: 0.6 | K53: 1.257 | L53: 0.7 | M53: 0.815 | N53: 1.111 | AB53: 1.61 | AC53: 1.65 | AD53: --- | AE53: --- | AF53: 20.7 | AG53: 2.65 | AH53: 3.94 | AI53: 31.1 | AJ53: 0.582 | AK53: 0.518 | AL53: 1.096 | AM53: 1.136 | AN53: 0.93 | AO53: 0.691
A54: 2021-02-01T12:45:00 | B54: 0 | C54: 0 | D54: 0 | E54: 0 | F54: 0 | G54: 0 | H54: 16.166 | I54: 0.389 | J54: 0.6 | K54: 1.258 | L54: 0.698 | M54: 0.815 | N54: 1.109 | AB54: 1.61 | AC54: 1.65 | AD54: --- | AE54: --- | AF54: 20.7 | AG54: 2.67 | AH54: 3.92 | AI54: 31 | AJ54: 0.583 | AK54: 0.517 | AL54: 1.094 | AM54: 1.138 | AN54: 0.927 | AO54: 0.69
A55: 2021-02-01T13:00:00 | B55: 0 | C55: 0 | D55: 0 | E55: 0 | F55: 0 | G55: 0 | H55: 16.164 | I55: 0.388 | J55: 0.6 | K55: 1.257 | L55: 0.699 | M55: 0.814 | N55: 1.108 | AB55: 1.59 | AC55: 1.65 | AD55: --- | AE55: --- | AF55: 20.6 | AG55: 2.65 | AH55: 3.92 | AI55: 31.1 | AJ55: 0.582 | AK55: 0.517 | AL55: 1.095 | AM55: 1.135 | AN55: 0.924 | AO55: 0.691
A56: 2021-02-01T13:15:00 | B56: 0 | C56: 0 | D56: 0 | E56: 0 | F56: 0 | G56: 0 | H56: 16.166 | I56: 0.389 | J56: 0.6 | K56: 1.256 | L56: 0.698 | M56: 0.814 | N56: 1.108 | AB56: 1.61 | AC56: 1.65 | AD56: --- | AE56: --- | AF56: 20.7 | AG56: 2.64 | AH56: 3.92 | AI56: 30.6 | AJ56: 0.581 | AK56: 0.517 | AL56: 1.094 | AM56: 1.137 | AN56: 0.925 | AO56: 0.688
A57: 2021-02-01T13:30:00 | B57: 0 | C57: 0 | D57: 0 | E57: 0 | F57: 0 | G57: 0 | H57: 16.156 | I57: 0.389 | J57: 0.6 | K57: 1.256 | L57: 0.696 | M57: 0.814 | N57: 1.107 | AB57: 1.61 | AC57: 1.65 | AD57: --- | AE57: --- | AF57: 20.7 | AG57: 2.67 | AH57: 3.92 | AI57: 30.6 | AJ57: 0.583 | AK57: 0.517 | AL57: 1.094 | AM57: 1.137 | AN57: 0.921 | AO57: 0.688
A58: 2021-02-01T13:45:00 | B58: 0 | C58: 0 | D58: 0 | E58: 0 | F58: 0 | G58: 0 | H58: 16.166 | I58: 0.389 | J58: 0.6 | K58: 1.258 | L58: 0.695 | M58: 0.813 | N58: 1.107 | AB58: 1.61 | AC58: 1.65 | AD58: --- | AE58: --- | AF58: 20.6 | AG58: 2.65 | AH58: 3.92 | AI58: 30.6 | AJ58: 0.582 | AK58: 0.517 | AL58: 1.094 | AM58: 1.135 | AN58: 0.924 | AO58: 0.688
A59: 2021-02-01T14:00:00 | B59: 0 | C59: 0 | D59: 0 | E59: 0 | F59: 0 | G59: 0 | H59: 16.166 | I59: 0.389 | J59: 0.599 | K59: 1.255 | L59: 0.697 | M59: 0.811 | N59: 1.105 | AB59: 1.61 | AC59: 1.63 | AD59: --- | AE59: --- | AF59: 20.6 | AG59: 2.67 | AH59: 3.92 | AI59: 30.4 | AJ59: 0.583 | AK59: 0.517 | AL59: 1.094 | AM59: 1.135 | AN59: 0.92 | AO59: 0.687
A60: 2021-02-01T14:15:00 | B60: 0 | C60: 0 | D60: 0 | E60: 0 | F60: 0 | G60: 0 | H60: 16.16 | I60: 0.389 | J60: 0.598 | K60: 1.255 | L60: 0.695 | M60: 0.812 | N60: 1.104 | AA60: Date | AB60: 1.61 | AC60: 1.62 | AD60: --- | AE60: --- | AF60: 20.4 | AG60: 2.65 | AH60: 3.92 | AI60: 30.4 | AJ60: 0.582 | AK60: 0.517 | AL60: 1.094 | AM60: 1.13 | AN60: 0.922 | AO60: 0.687 | AT60: Date | AU60: Thirl - m | AV60: cumecs | AW60: ML/d
A61: 2021-02-01T14:30:00 | B61: 0 | C61: 0 | D61: 0 | E61: 0 | F61: 0 | G61: 0 | H61: 16.162 | I61: 0.389 | J61: 0.598 | K61: 1.256 | L61: 0.692 | M61: 0.81 | N61: 1.104 | AB61: 1.61 | AC61: 1.62 | AD61: --- | AE61: --- | AF61: 20.5 | AG61: 2.67 | AH61: 3.9 | AI61: 30.8 | AJ61: 0.583 | AK61: 0.516 | AL61: 1.093 | AM61: 1.132 | AN61: 0.925 | AO61: 0.689 | AT61: 2021-02-20T21:00:00 | AU61: 16.907 | AV61: 13.836 | AW61: =AV61*60*60*24/1000 -> 1195.4304
A62: 2021-02-01T14:45:00 | B62: 0 | C62: 0 | D62: 0 | E62: 0 | F62: 0 | G62: 0 | H62: 16.157 | I62: 0.389 | J62: 0.599 | K62: 1.255 | L62: 0.693 | M62: 0.809 | N62: 1.103 | AB62: 1.61 | AC62: 1.63 | AD62: --- | AE62: --- | AF62: 20.5 | AG62: 2.65 | AH62: 3.88 | AI62: 30.6 | AJ62: 0.582 | AK62: 0.515 | AL62: 1.093 | AM62: 1.131 | AN62: 0.92 | AO62: 0.688 | AT62: 2021-02-24T03:45:00 | AU62: =MAX(AA3:AA2800) -> 0 | AV62: 34.071 | AW62: =AV62*60*60*24/1000 -> 2943.7344
A63: 2021-02-01T15:00:00 | B63: 0 | C63: 0 | D63: 0 | E63: 0 | F63: 0 | G63: 0 | H63: 16.162 | I63: 0.389 | J63: 0.598 | K63: 1.254 | L63: 0.693 | M63: 0.809 | N63: 1.101 | AB63: 1.61 | AC63: 1.62 | AD63: --- | AE63: --- | AF63: 20.5 | AG63: 2.62 | AH63: 3.88 | AI63: 30.6 | AJ63: 0.58 | AK63: 0.515 | AL63: 1.093 | AM63: 1.131 | AN63: 0.922 | AO63: 0.688
A64: 2021-02-01T15:15:00 | B64: 0 | C64: 0 | D64: 0 | E64: 0 | F64: 0 | G64: 0 | H64: 16.157 | I64: 0.389 | J64: 0.598 | K64: 1.253 | L64: 0.692 | M64: 0.807 | N64: 1.101 | AB64: 1.61 | AC64: 1.62 | AD64: --- | AE64: --- | AF64: 20.4 | AG64: 2.65 | AH64: 3.88 | AI64: 30.4 | AJ64: 0.582 | AK64: 0.515 | AL64: 1.092 | AM64: 1.129 | AN64: 0.923 | AO64: 0.687
A65: 2021-02-01T15:30:00 | B65: 0 | C65: 0 | D65: 0 | E65: 0 | F65: 0 | G65: 0 | H65: 16.154 | I65: 0.389 | J65: 0.598 | K65: 1.254 | L65: 0.692 | M65: 0.807 | N65: 1.101 | AB65: 1.61 | AC65: 1.62 | AD65: --- | AE65: --- | AF65: 20.2 | AG65: 2.64 | AH65: 3.88 | AI65: 30.6 | AJ65: 0.581 | AK65: 0.515 | AL65: 1.091 | AM65: 1.126 | AN65: 0.917 | AO65: 0.688 | AT65: Rainfall over 12 hrs | AU65: SJB | AV65: DH | AW65: Matt | AX65: Mun
A66: 2021-02-01T15:45:00 | B66: 0 | C66: 0 | D66: 0 | E66: 0 | F66: 0 | G66: 0 | H66: 16.157 | I66: 0.389 | J66: 0.598 | K66: 1.254 | L66: 0.692 | M66: 0.807 | N66: 1.1 | AB66: 1.61 | AC66: 1.62 | AD66: --- | AE66: --- | AF66: 20.3 | AG66: 2.64 | AH66: 3.88 | AI66: 29.9 | AJ66: 0.581 | AK66: 0.515 | AL66: 1.093 | AM66: 1.128 | AN66: 0.921 | AO66: 0.684 | AT66: 2021-02-20T21:00:00 | AU66: =SUM(B1864:B1911) -> 33.6 | AV66: =SUM(C1864:C1911) -> 43.2 | AW66: =SUM(F1864:F1911) -> 53.2 | AX66: =SUM(G1864:G1911) -> 16.2
A67: 2021-02-01T16:00:00 | B67: 0 | C67: 0 | D67: 0 | E67: 0 | F67: 0 | G67: 0 | H67: 16.159 | I67: 0.389 | J67: 0.598 | K67: 1.252 | L67: 0.691 | M67: 0.807 | N67: 1.099 | AB67: 1.61 | AC67: 1.62 | AD67: --- | AE67: --- | AF67: 20.3 | AG67: 2.62 | AH67: 3.86 | AI67: 30.6 | AJ67: 0.58 | AK67: 0.514 | AL67: 1.09 | AM67: 1.128 | AN67: 0.917 | AO67: 0.688 | AT67: 2021-02-24T03:45:00 | AU67: =SUM(B2179:B2226) -> 66.6 | AV67: =SUM(C2179:C2226) -> 78.6 | AW67: =SUM(F2179:F2226) -> 59 | AX67: =SUM(G2179:G2226) -> 49.6
A68: 2021-02-01T16:15:00 | B68: 0 | C68: 0 | D68: 0 | E68: 0 | F68: 0 | G68: 0 | H68: 16.153 | I68: 0.389 | J68: 0.598 | K68: 1.254 | L68: 0.693 | M68: 0.809 | N68: 1.098 | AB68: 1.61 | AC68: 1.62 | AD68: --- | AE68: --- | AF68: 20.2 | AG68: 2.62 | AH68: 3.88 | AI68: 30.6 | AJ68: 0.58 | AK68: 0.515 | AL68: 1.091 | AM68: 1.125 | AN68: 0.92 | AO68: 0.688
A69: 2021-02-01T16:30:00 | B69: 0 | C69: 0 | D69: 0 | E69: 0 | F69: 0 | G69: 0 | H69: 16.15 | I69: 0.389 | J69: 0.599 | K69: 1.252 | L69: 0.69 | M69: 0.805 | N69: 1.097 | AB69: 1.61 | AC69: 1.63 | AD69: --- | AE69: --- | AF69: 20.2 | AG69: 2.62 | AH69: 3.88 | AI69: 30.1 | AJ69: 0.58 | AK69: 0.515 | AL69: 1.089 | AM69: 1.125 | AN69: 0.924 | AO69: 0.685 | AT69: 2021-02-20T21:00:00
A70: 2021-02-01T16:45:00 | B70: 0 | C70: 0 | D70: 0 | E70: 0 | F70: 0 | G70: 0 | H70: 16.152 | I70: 0.389 | J70: 0.598 | K70: 1.254 | L70: 0.691 | M70: 0.807 | N70: 1.097 | AB70: 1.61 | AC70: 1.62 | AD70: --- | AE70: --- | AF70: 20.2 | AG70: 2.64 | AH70: 3.86 | AI70: 30.1 | AJ70: 0.581 | AK70: 0.514 | AL70: 1.09 | AM70: 1.124 | AN70: 0.922 | AO70: 0.685 | AT70: Catchments as per map | AU70: No | AV70: Area km2 | AW70: Rain station | AX70: Rain x Area | AY70: Flow cumecs | AZ70: Flow ML/d
A71: 2021-02-01T17:00:00 | B71: 0 | C71: 0 | D71: 0 | E71: 0 | F71: 0 | G71: 0 | H71: 16.15 | I71: 0.389 | J71: 0.598 | K71: 1.251 | L71: 0.69 | M71: 0.806 | N71: 1.096 | AB71: 1.61 | AC71: 1.62 | AD71: --- | AE71: --- | AF71: 20.1 | AG71: 2.62 | AH71: 3.86 | AI71: 30.1 | AJ71: 0.58 | AK71: 0.514 | AL71: 1.089 | AM71: 1.123 | AN71: 0.919 | AO71: 0.685 | AT71: Thirlmere | AU71: 4 | AV71: 41 | AW71: DH | AX71: =AV66*AV71 -> 1771.2 | AY71: =AV61 -> 13.836 | AZ71: =AY71*60*60*24/1000 -> 1195.4304
A72: 2021-02-01T17:15:00 | B72: 0 | C72: 0 | D72: 0 | E72: 0 | F72: 0 | G72: 0 | H72: 16.149 | I72: 0.389 | J72: 0.598 | K72: 1.251 | L72: 0.69 | M72: 0.807 | N72: 1.095 | AB72: 1.61 | AC72: 1.62 | AD72: --- | AE72: --- | AF72: 20.1 | AG72: 2.62 | AH72: 3.86 | AI72: 30.4 | AJ72: 0.58 | AK72: 0.514 | AL72: 1.091 | AM72: 1.122 | AN72: 0.917 | AO72: 0.687 | AT72: SJB (ex Thirlmere) | AU72: 4 | AV72: 10.1 | AW72: SJB | AX72: =AU66*AV72 -> 339.36 | AY72: =$AY$71/$AX$71*AX72 -> 2.650962602 | AZ72: 229.0431688
A73: 2021-02-01T17:30:00 | B73: 0 | C73: 0 | D73: 0 | E73: 0 | F73: 0 | G73: 0 | H73: 16.157 | I73: 0.389 | J73: 0.598 | K73: 1.25 | L73: 0.689 | M73: 0.803 | N73: 1.094 | AB73: 1.61 | AC73: 1.62 | AD73: --- | AE73: --- | AF73: 20.2 | AG73: 2.65 | AH73: 3.86 | AI73: 30.4 | AJ73: 0.582 | AK73: 0.514 | AL73: 1.089 | AM73: 1.124 | AN73: 0.918 | AO73: 0.687 | AT73: Naddle beck | AU73: 5 | AV73: 12 | AW73: SJB | AX73: =AU66*AV73 -> 403.2 | AY73: =$AY$71/$AX$71*AX73 -> 3.149658537 | AZ73: 272.1304976
A74: 2021-02-01T17:45:00 | B74: 0 | C74: 0 | D74: 0 | E74: 0 | F74: 0 | G74: 0 | H74: 16.15 | I74: 0.389 | J74: 0.598 | K74: 1.252 | L74: 0.687 | M74: 0.804 | N74: 1.094 | AB74: 1.61 | AC74: 1.62 | AD74: --- | AE74: --- | AF74: 20.1 | AG74: 2.67 | AH74: 3.86 | AI74: 29.9 | AJ74: 0.583 | AK74: 0.514 | AL74: 1.09 | AM74: 1.122 | AN74: 0.918 | AO74: 0.684 | AT74: Threlkeld | AU74: 1 | AV74: 26.5 | AW74: Matt | AX74: =AW66*AV74 -> 1409.8 | AY74: 11.01286856 | AZ74: 951.5118439
A75: 2021-02-01T18:00:00 | B75: 0 | C75: 0 | D75: 0 | E75: 0 | F75: 0 | G75: 0 | H75: 16.149 | I75: 0.389 | J75: 0.598 | K75: 1.251 | L75: 0.688 | M75: 0.805 | N75: 1.093 | AB75: 1.61 | AC75: 1.62 | AD75: --- | AE75: --- | AF75: 20 | AG75: 2.67 | AH75: 3.86 | AI75: 29.9 | AJ75: 0.583 | AK75: 0.514 | AL75: 1.09 | AM75: 1.121 | AN75: 0.916 | AO75: 0.684 | AT75: Matterdale | AU75: 3 | AV75: 16.4 | AW75: Matt | AX75: =AW66*AV75 -> 872.48 | AY75: 6.815511111 | AZ75: 588.86016
A76: 2021-02-01T18:15:00 | B76: 0 | C76: 0 | D76: 0 | E76: 0 | F76: 0 | G76: 0 | H76: 16.147 | I76: 0.389 | J76: 0.598 | K76: 1.252 | L76: 0.687 | M76: 0.804 | N76: 1.093 | AB76: 1.61 | AC76: 1.62 | AD76: --- | AE76: --- | AF76: 20 | AG76: 2.67 | AH76: 3.84 | AI76: 30.3 | AJ76: 0.583 | AK76: 0.513 | AL76: 1.088 | AM76: 1.121 | AN76: 0.918 | AO76: 0.686 | AT76: Mungrisdale | AU76: 2 | AV76: 23.4 | AW76: Mun | AX76: =AX66*AV76 -> 379.08 | AY76: 2.961241463 | AZ76: 255.8512624
A77: 2021-02-01T18:30:00 | B77: 0 | C77: 0 | D77: 0 | E77: 0 | F77: 0 | G77: 0 | H77: 16.149 | I77: 0.389 | J77: 0.598 | K77: 1.248 | L77: 0.687 | M77: 0.802 | N77: 1.092 | AB77: 1.61 | AC77: 1.62 | AD77: --- | AE77: --- | AF77: 20 | AG77: 2.71 | AH77: 3.84 | AI77: 30.6 | AJ77: 0.586 | AK77: 0.513 | AL77: 1.089 | AM77: 1.121 | AN77: 0.914 | AO77: 0.688 | AT77: Glenderaterra | AU77: 6 | AV77: 11.8 | AW77: Mun | AX77: =AX66*AV77 -> 191.16 | AY77: 1.49327561 | AZ77: 129.0190127
A78: 2021-02-01T18:45:00 | B78: 0 | C78: 0 | D78: 0 | E78: 0 | F78: 0 | G78: 0 | H78: 16.15 | I78: 0.389 | J78: 0.598 | K78: 1.249 | L78: 0.688 | M78: 0.801 | N78: 1.091 | AB78: 1.61 | AC78: 1.62 | AD78: --- | AE78: --- | AF78: 20 | AG78: 2.73 | AH78: 3.84 | AI78: 29.9 | AJ78: 0.587 | AK78: 0.513 | AL78: 1.09 | AM78: 1.12 | AN78: 0.916 | AO78: 0.684
A79: 2021-02-01T19:00:00 | B79: 0 | C79: 0 | D79: 0 | E79: 0 | F79: 0 | G79: 0 | H79: 16.15 | I79: 0.389 | J79: 0.598 | K79: 1.249 | L79: 0.685 | M79: 0.802 | N79: 1.09 | AB79: 1.61 | AC79: 1.62 | AD79: --- | AE79: --- | AF79: 20 | AG79: 2.71 | AH79: 3.84 | AI79: 29.9 | AJ79: 0.586 | AK79: 0.513 | AL79: 1.089 | AM79: 1.119 | AN79: 0.912 | AO79: 0.684 | AT79: Totals | AY79: =SUM(AY71:AY78) -> 41.91951789 | AZ79: =SUM(AZ71:AZ78) -> 3621.846345
A80: 2021-02-01T19:15:00 | B80: 0 | C80: 0 | D80: 0 | E80: 0 | F80: 0 | G80: 0 | H80: 16.15 | I80: 0.389 | J80: 0.597 | K80: 1.25 | L80: 0.686 | M80: 0.8 | N80: 1.089 | AB80: 1.61 | AC80: 1.61 | AD80: --- | AE80: --- | AF80: 19.8 | AG80: 2.71 | AH80: 3.86 | AI80: 29.4 | AJ80: 0.586 | AK80: 0.514 | AL80: 1.09 | AM80: 1.115 | AN80: 0.911 | AO80: 0.681
A81: 2021-02-01T19:30:00 | B81: 0 | C81: 0 | D81: 0 | E81: 0 | F81: 0 | G81: 0 | H81: 16.143 | I81: 0.388 | J81: 0.597 | K81: 1.249 | L81: 0.685 | M81: 0.801 | N81: 1.087 | AB81: 1.59 | AC81: 1.61 | AD81: --- | AE81: --- | AF81: 20.1 | AG81: 2.73 | AH81: 3.84 | AI81: 29.4 | AJ81: 0.587 | AK81: 0.513 | AL81: 1.088 | AM81: 1.122 | AN81: 0.912 | AO81: 0.681 | AT81: Level at GB | AU81: 2.598
A82: 2021-02-01T19:45:00 | B82: 0 | C82: 0 | D82: 0 | E82: 0 | F82: 0 | G82: 0 | H82: 16.146 | I82: 0.389 | J82: 0.597 | K82: 1.251 | L82: 0.686 | M82: 0.8 | N82: 1.089 | AB82: 1.61 | AC82: 1.61 | AD82: --- | AE82: --- | AF82: 19.8 | AG82: 2.75 | AH82: 3.84 | AI82: 29.6 | AJ82: 0.588 | AK82: 0.513 | AL82: 1.089 | AM82: 1.115 | AN82: 0.919 | AO82: 0.682
A83: 2021-02-01T20:00:00 | B83: 0 | C83: 0 | D83: 0 | E83: 0 | F83: 0 | G83: 0 | H83: 16.142 | I83: 0.389 | J83: 0.597 | K83: 1.25 | L83: 0.686 | M83: 0.8 | N83: 1.087 | AB83: 1.61 | AC83: 1.61 | AD83: --- | AE83: --- | AF83: 19.9 | AG83: 2.73 | AH83: 3.86 | AI83: 29.9 | AJ83: 0.587 | AK83: 0.514 | AL83: 1.089 | AM83: 1.117 | AN83: 0.915 | AO83: 0.684 | AT83: 2021-02-24T03:45:00
A84: 2021-02-01T20:15:00 | B84: 0 | C84: 0 | D84: 0 | E84: 0 | F84: 0 | G84: 0 | H84: 16.141 | I84: 0.389 | J84: 0.597 | K84: 1.25 | L84: 0.684 | M84: 0.797 | N84: 1.086 | AB84: 1.61 | AC84: 1.61 | AD84: --- | AE84: --- | AF84: 19.7 | AG84: 2.73 | AH84: 3.86 | AI84: 29.2 | AJ84: 0.587 | AK84: 0.514 | AL84: 1.09 | AM84: 1.112 | AN84: 0.909 | AO84: 0.68 | AT84: Catchments as per map | AU84: No | AV84: Area km2 | AW84: Rain station | AX84: Rain x Area | AY84: Flow cumecs | AZ84: Flow ML/d
A85: 2021-02-01T20:30:00 | B85: 0 | C85: 0 | D85: 0 | E85: 0 | F85: 0 | G85: 0 | H85: 16.145 | I85: 0.389 | J85: 0.596 | K85: 1.248 | L85: 0.684 | M85: 0.799 | N85: 1.084 | AB85: 1.61 | AC85: 1.6 | AD85: --- | AE85: --- | AF85: 19.8 | AG85: 2.73 | AH85: 3.88 | AI85: 29.4 | AJ85: 0.587 | AK85: 0.515 | AL85: 1.089 | AM85: 1.114 | AN85: 0.913 | AO85: 0.681 | AT85: Thirlmere | AU85: 4 | AV85: 41 | AW85: DH | AX85: =AV67*AV85 -> 3222.6 | AY85: =AV62 -> 34.071 | AZ85: =AY85*60*60*24/1000 -> 2943.7344
A86: 2021-02-01T20:45:00 | B86: 0 | C86: 0 | D86: 0 | E86: 0 | F86: 0 | G86: 0 | H86: 16.146 | I86: 0.389 | J86: 0.596 | K86: 1.25 | L86: 0.683 | M86: 0.797 | N86: 1.083 | AB86: 1.61 | AC86: 1.6 | AD86: --- | AE86: --- | AF86: 19.8 | AG86: 2.78 | AH86: 3.86 | AI86: 29.7 | AJ86: 0.59 | AK86: 0.514 | AL86: 1.089 | AM86: 1.114 | AN86: 0.92 | AO86: 0.683 | AT86: SJB (ex Thirlmere) | AU86: 4 | AV86: 10.1 | AW86: SJB | AX86: =AU67*AV86 -> 672.66 | AY86: =$AY$85/$AX$85*AX86 -> 7.111710687 | AZ86: 614.4518034
A87: 2021-02-01T21:00:00 | B87: 0 | C87: 0 | D87: 0 | E87: 0 | F87: 0 | G87: 0 | H87: 16.144 | I87: 0.389 | J87: 0.596 | K87: 1.248 | L87: 0.683 | M87: 0.796 | N87: 1.083 | AB87: 1.61 | AC87: 1.6 | AD87: --- | AE87: --- | AF87: 19.8 | AG87: 2.73 | AH87: 3.86 | AI87: 29.4 | AJ87: 0.587 | AK87: 0.514 | AL87: 1.089 | AM87: 1.114 | AN87: 0.912 | AO87: 0.681 | AT87: Naddle beck | AU87: 5 | AV87: 12 | AW87: SJB | AX87: =AU67*AV87 -> 799.2 | AY87: =$AY$85/$AX$85*AX87 -> 8.449557252 | AZ87: 730.0417466
A88: 2021-02-01T21:15:00 | B88: 0 | C88: 0 | D88: 0 | E88: 0 | F88: 0 | G88: 0 | H88: 16.136 | I88: 0.389 | J88: 0.596 | K88: 1.249 | L88: 0.682 | M88: 0.796 | N88: 1.083 | AB88: 1.61 | AC88: 1.6 | AD88: --- | AE88: --- | AF88: 19.7 | AG88: 2.71 | AH88: 3.86 | AI88: 29.4 | AJ88: 0.586 | AK88: 0.514 | AL88: 1.089 | AM88: 1.112 | AN88: 0.916 | AO88: 0.681 | AT88: Threlkeld | AU88: 1 | AV88: 26.5 | AW88: Matt | AX88: =AW67*AV88 -> 1563.5 | AY88: 16.53013359 | AZ88: 1428.203542
A89: 2021-02-01T21:30:00 | B89: 0 | C89: 0 | D89: 0 | E89: 0 | F89: 0 | G89: 0 | H89: 16.14 | I89: 0.389 | J89: 0.596 | K89: 1.249 | L89: 0.683 | M89: 0.797 | N89: 1.083 | AB89: 1.61 | AC89: 1.6 | AD89: --- | AE89: --- | AF89: 19.8 | AG89: 2.76 | AH89: 3.9 | AI89: 29.2 | AJ89: 0.589 | AK89: 0.516 | AL89: 1.091 | AM89: 1.114 | AN89: 0.914 | AO89: 0.68 | AT89: Matterdale | AU89: 3 | AV89: 16.4 | AW89: Matt | AX89: =AW67*AV89 -> 967.6 | AY89: 10.22996947 | AZ89: 883.8693618
A90: 2021-02-01T21:45:00 | B90: 0 | C90: 0 | D90: 0 | E90: 0 | F90: 0 | G90: 0 | H90: 16.143 | I90: 0.389 | J90: 0.595 | K90: 1.248 | L90: 0.68 | M90: 0.794 | N90: 1.08 | AB90: 1.61 | AC90: 1.59 | AD90: --- | AE90: --- | AF90: 19.8 | AG90: 2.75 | AH90: 3.88 | AI90: 29 | AJ90: 0.588 | AK90: 0.515 | AL90: 1.089 | AM90: 1.114 | AN90: 0.914 | AO90: 0.679 | AT90: Mungrisdale | AU90: 2 | AV90: 23.4 | AW90: Mun | AX90: =AX67*AV90 -> 1160.64 | AY90: 12.27088855 | AZ90: 1060.204771
A91: 2021-02-01T22:00:00 | B91: 0 | C91: 0 | D91: 0 | E91: 0 | F91: 0 | G91: 0 | H91: 16.136 | I91: 0.389 | J91: 0.595 | K91: 1.246 | L91: 0.681 | M91: 0.795 | N91: 1.08 | AB91: 1.61 | AC91: 1.59 | AD91: --- | AE91: --- | AF91: 19.6 | AG91: 2.81 | AH91: 3.88 | AI91: 29.4 | AJ91: 0.592 | AK91: 0.515 | AL91: 1.09 | AM91: 1.111 | AN91: 0.91 | AO91: 0.681 | AT91: Glenderaterra | AU91: 6 | AV91: 11.8 | AW91: Mun | AX91: =AX67*AV91 -> 585.28 | AY91: 6.187883969 | AZ91: 534.633175
A92: 2021-02-01T22:15:00 | B92: 0 | C92: 0 | D92: 0 | E92: 0 | F92: 0 | G92: 0 | H92: 16.134 | I92: 0.387 | J92: 0.594 | K92: 1.245 | L92: 0.683 | M92: 0.797 | N92: 1.08 | AB92: 1.58 | AC92: 1.58 | AD92: --- | AE92: --- | AF92: 19.9 | AG92: 2.78 | AH92: 3.88 | AI92: 29.4 | AJ92: 0.59 | AK92: 0.515 | AL92: 1.092 | AM92: 1.118 | AN92: 0.91 | AO92: 0.681
A93: 2021-02-01T22:30:00 | B93: 0 | C93: 0 | D93: 0 | E93: 0 | F93: 0 | G93: 0 | H93: 16.14 | I93: 0.389 | J93: 0.594 | K93: 1.25 | L93: 0.681 | M93: 0.793 | N93: 1.079 | AB93: 1.61 | AC93: 1.58 | AD93: --- | AE93: --- | AF93: 19.7 | AG93: 2.73 | AH93: 3.88 | AI93: 28.9 | AJ93: 0.587 | AK93: 0.515 | AL93: 1.091 | AM93: 1.112 | AN93: 0.912 | AO93: 0.678 | AT93: Totals | AY93: =SUM(AY85:AY92) -> 94.85114351 | AZ93: =SUM(AZ85:AZ92) -> 8195.138799
A94: 2021-02-01T22:45:00 | B94: 0 | C94: 0 | D94: 0 | E94: 0 | F94: 0 | G94: 0 | H94: 16.135 | I94: 0.389 | J94: 0.594 | K94: 1.249 | L94: 0.678 | M94: 0.79 | N94: 1.078 | AB94: 1.61 | AC94: 1.58 | AD94: --- | AE94: --- | AF94: 19.8 | AG94: 2.79 | AH94: 3.88 | AI94: 29.2 | AJ94: 0.591 | AK94: 0.515 | AL94: 1.09 | AM94: 1.115 | AN94: 0.912 | AO94: 0.68
A95: 2021-02-01T23:00:00 | B95: 0 | C95: 0 | D95: 0 | E95: 0 | F95: 0 | G95: 0 | H95: 16.129 | I95: 0.389 | J95: 0.593 | K95: 1.248 | L95: 0.679 | M95: 0.793 | N95: 1.077 | AB95: 1.61 | AC95: 1.56 | AD95: --- | AE95: --- | AF95: 19.6 | AG95: 2.85 | AH95: 3.86 | AI95: 29.4 | AJ95: 0.595 | AK95: 0.514 | AL95: 1.09 | AM95: 1.111 | AN95: 0.909 | AO95: 0.681 | AT95: Level at GB | AU95: 3.841
A96: 2021-02-01T23:15:00 | B96: 0 | C96: 0 | D96: 0 | E96: 0 | F96: 0 | G96: 0 | H96: 16.123 | I96: 0.389 | J96: 0.593 | K96: 1.247 | L96: 0.677 | M96: 0.791 | N96: 1.076 | AB96: 1.61 | AC96: 1.56 | AD96: --- | AE96: --- | AF96: 19.8 | AG96: 2.87 | AH96: 3.86 | AI96: 29.2 | AJ96: 0.596 | AK96: 0.514 | AL96: 1.091 | AM96: 1.115 | AN96: 0.91 | AO96: 0.68
A97: 2021-02-01T23:30:00 | B97: 0 | C97: 0 | D97: 0 | E97: 0 | F97: 0 | G97: 0 | H97: 16.126 | I97: 0.389 | J97: 0.59 | K97: 1.248 | L97: 0.677 | M97: 0.791 | N97: 1.075 | AB97: 1.61 | AC97: 1.53 | AD97: --- | AE97: --- | AF97: 19.6 | AG97: 2.84 | AH97: 3.86 | AI97: 29.2 | AJ97: 0.594 | AK97: 0.514 | AL97: 1.091 | AM97: 1.111 | AN97: 0.908 | AO97: 0.68
A98: 2021-02-01T23:45:00 | B98: 0 | C98: 0 | D98: 0 | E98: 0 | F98: 0 | G98: 0 | H98: 16.131 | I98: 0.389 | J98: 0.59 | K98: 1.247 | L98: 0.678 | M98: 0.79 | N98: 1.074 | AB98: 1.61 | AC98: 1.53 | AD98: --- | AE98: --- | AF98: 19.5 | AG98: 2.76 | AH98: 3.88 | AI98: 29.2 | AJ98: 0.589 | AK98: 0.515 | AL98: 1.091 | AM98: 1.108 | AN98: 0.911 | AO98: 0.68
A99: 2021-02-02 | B99: 0 | C99: 0 | D99: 0 | E99: 0 | F99: 0 | G99: 0 | H99: 16.135 | I99: 0.388 | J99: 0.589 | K99: 1.248 | L99: 0.677 | M99: 0.787 | N99: 1.074 | AB99: 1.59 | AC99: 1.52 | AD99: --- | AE99: --- | AF99: 19.3 | AG99: 2.76 | AH99: 3.88 | AI99: 29.2 | AJ99: 0.589 | AK99: 0.515 | AL99: 1.09 | AM99: 1.104 | AN99: 0.908 | AO99: 0.68
A100: 2021-02-02T00:15:00 | B100: 0 | C100: 0 | D100: 0 | E100: 0 | F100: 0 | G100: 0 | H100: 16.128 | I100: 0.389 | J100: 0.588 | K100: 1.248 | L100: 0.678 | M100: 0.789 | N100: 1.073 | AB100: 1.61 | AC100: 1.51 | AD100: --- | AE100: --- | AF100: 19.5 | AG100: 2.76 | AH100: 3.86 | AI100: 28.9 | AJ100: 0.589 | AK100: 0.514 | AL100: 1.09 | AM100: 1.108 | AN100: 0.909 | AO100: 0.678
A101: 2021-02-02T00:30:00 | B101: 0 | C101: 0 | D101: 0 | E101: 0 | F101: 0 | G101: 0 | H101: 16.112 | I101: 0.389 | J101: 0.588 | K101: 1.245 | L101: 0.676 | M101: 0.789 | N101: 1.073 | AB101: 1.61 | AC101: 1.51 | AD101: --- | AE101: --- | AF101: 19.5 | AG101: 2.73 | AH101: 3.88 | AI101: 28.7 | AJ101: 0.587 | AK101: 0.515 | AL101: 1.092 | AM101: 1.108 | AN101: 0.905 | AO101: 0.677
A102: 2021-02-02T00:45:00 | B102: 0 | C102: 0 | D102: 0 | E102: 0 | F102: 0 | G102: 0 | H102: 16.115 | I102: 0.389 | J102: 0.587 | K102: 1.247 | L102: 0.675 | M102: 0.787 | N102: 1.072 | AB102: 1.61 | AC102: 1.5 | AD102: --- | AE102: --- | AF102: 19.4 | AG102: 2.79 | AH102: 3.9 | AI102: 28.7 | AJ102: 0.591 | AK102: 0.516 | AL102: 1.092 | AM102: 1.105 | AN102: 0.908 | AO102: 0.677
A103: 2021-02-02T01:00:00 | B103: 0 | C103: 0 | D103: 0 | E103: 0 | F103: 0 | G103: 0 | H103: 16.126 | I103: 0.389 | J103: 0.587 | K103: 1.244 | L103: 0.674 | M103: 0.787 | N103: 1.071 | AB103: 1.61 | AC103: 1.5 | AD103: --- | AE103: --- | AF103: 19.5 | AG103: 2.81 | AH103: 3.92 | AI103: 28.5 | AJ103: 0.592 | AK103: 0.517 | AL103: 1.092 | AM103: 1.107 | AN103: 0.909 | AO103: 0.676
A104: 2021-02-02T01:15:00 | B104: 0 | C104: 0 | D104: 0 | E104: 0 | F104: 0 | G104: 0 | H104: 16.121 | I104: 0.389 | J104: 0.587 | K104: 1.245 | L104: 0.675 | M104: 0.789 | N104: 1.07 | AB104: 1.61 | AC104: 1.5 | AD104: --- | AE104: --- | AF104: 19.4 | AG104: 2.79 | AH104: 3.88 | AI104: 29 | AJ104: 0.591 | AK104: 0.515 | AL104: 1.092 | AM104: 1.106 | AN104: 0.912 | AO104: 0.679
A105: 2021-02-02T01:30:00 | B105: 0 | C105: 0 | D105: 0 | E105: 0 | F105: 0 | G105: 0 | H105: 16.125 | I105: 0.389 | J105: 0.587 | K105: 1.244 | L105: 0.673 | M105: 0.787 | N105: 1.069 | AB105: 1.61 | AC105: 1.5 | AD105: --- | AE105: --- | AF105: 19.3 | AG105: 2.82 | AH105: 3.88 | AI105: 28.7 | AJ105: 0.593 | AK105: 0.515 | AL105: 1.092 | AM105: 1.104 | AN105: 0.913 | AO105: 0.677
A106: 2021-02-02T01:45:00 | B106: 0 | C106: 0 | D106: 0 | E106: 0 | F106: 0 | G106: 0 | H106: 16.116 | I106: 0.389 | J106: 0.587 | K106: 1.244 | L106: 0.675 | M106: 0.783 | N106: 1.07 | AB106: 1.61 | AC106: 1.5 | AD106: --- | AE106: --- | AF106: 19.5 | AG106: 3.13 | AH106: 3.86 | AI106: 28.5 | AJ106: 0.612 | AK106: 0.514 | AL106: 1.093 | AM106: 1.108 | AN106: 0.911 | AO106: 0.676
A107: 2021-02-02T02:00:00 | B107: 0 | C107: 0 | D107: 0 | E107: 0 | F107: 0 | G107: 0 | H107: 16.12 | I107: 0.389 | J107: 0.587 | K107: 1.242 | L107: 0.67 | M107: 0.782 | N107: 1.068 | AB107: 1.61 | AC107: 1.5 | AD107: --- | AE107: --- | AF107: 19.2 | AG107: 3.11 | AH107: 3.86 | AI107: 28.7 | AJ107: 0.611 | AK107: 0.514 | AL107: 1.093 | AM107: 1.101 | AN107: 0.909 | AO107: 0.677
A108: 2021-02-02T02:15:00 | B108: 0 | C108: 0 | D108: 0 | E108: 0 | F108: 0 | G108: 0 | H108: 16.113 | I108: 0.389 | J108: 0.587 | K108: 1.244 | L108: 0.673 | M108: 0.783 | N108: 1.065 | AB108: 1.61 | AC108: 1.5 | AD108: --- | AE108: --- | AF108: 19.4 | AG108: 2.95 | AH108: 3.86 | AI108: 28.7 | AJ108: 0.601 | AK108: 0.514 | AL108: 1.092 | AM108: 1.105 | AN108: 0.909 | AO108: 0.677
A109: 2021-02-02T02:30:00 | B109: 0 | C109: 0 | D109: 0 | E109: 0 | F109: 0 | G109: 0 | H109: 16.122 | I109: 0.389 | J109: 0.588 | K109: 1.243 | L109: 0.671 | M109: 0.783 | N109: 1.069 | AB109: 1.61 | AC109: 1.51 | AD109: --- | AE109: --- | AF109: 19.4 | AG109: 3.06 | AH109: 3.86 | AI109: 28.7 | AJ109: 0.608 | AK109: 0.514 | AL109: 1.09 | AM109: 1.105 | AN109: 0.916 | AO109: 0.677
A110: 2021-02-02T02:45:00 | B110: 0 | C110: 0 | D110: 0 | E110: 0 | F110: 0 | G110: 0 | H110: 16.111 | I110: 0.39 | J110: 0.589 | K110: 1.243 | L110: 0.674 | M110: 0.782 | N110: 1.065 | AB110: 1.62 | AC110: 1.52 | AD110: --- | AE110: --- | AF110: 19.3 | AG110: 3.11 | AH110: 3.9 | AI110: 28.7 | AJ110: 0.611 | AK110: 0.516 | AL110: 1.091 | AM110: 1.104 | AN110: 0.91 | AO110: 0.677
A111: 2021-02-02T03:00:00 | B111: 0 | C111: 0 | D111: 0 | E111: 0 | F111: 0 | G111: 0 | H111: 16.118 | I111: 0.389 | J111: 0.589 | K111: 1.242 | L111: 0.669 | M111: 0.779 | N111: 1.063 | AB111: 1.61 | AC111: 1.52 | AD111: --- | AE111: --- | AF111: 19.2 | AG111: 3.06 | AH111: 3.88 | AI111: 28.5 | AJ111: 0.608 | AK111: 0.515 | AL111: 1.09 | AM111: 1.101 | AN111: 0.907 | AO111: 0.676
A112: 2021-02-02T03:15:00 | B112: 0 | C112: 0 | D112: 0 | E112: 0 | F112: 0 | G112: 0 | H112: 16.115 | I112: 0.389 | J112: 0.589 | K112: 1.242 | L112: 0.669 | M112: 0.782 | N112: 1.062 | AB112: 1.61 | AC112: 1.52 | AD112: --- | AE112: --- | AF112: 19.4 | AG112: 3.11 | AH112: 3.92 | AI112: 28.7 | AJ112: 0.611 | AK112: 0.517 | AL112: 1.09 | AM112: 1.105 | AN112: 0.905 | AO112: 0.677
A113: 2021-02-02T03:30:00 | B113: 0 | C113: 0 | D113: 0 | E113: 0 | F113: 0 | G113: 0 | H113: 16.108 | I113: 0.39 | J113: 0.589 | K113: 1.243 | L113: 0.668 | M113: 0.779 | N113: 1.063 | AB113: 1.62 | AC113: 1.52 | AD113: --- | AE113: --- | AF113: 19.4 | AG113: 3.13 | AH113: 4.07 | AI113: 28.7 | AJ113: 0.612 | AK113: 0.524 | AL113: 1.093 | AM113: 1.105 | AN113: 0.906 | AO113: 0.677
A114: 2021-02-02T03:45:00 | B114: 0 | C114: 0 | D114: 0 | E114: 0 | F114: 0 | G114: 0 | H114: 16.119 | I114: 0.388 | J114: 0.588 | K114: 1.242 | L114: 0.67 | M114: 0.78 | N114: 1.062 | AB114: 1.59 | AC114: 1.51 | AD114: --- | AE114: --- | AF114: 19.1 | AG114: 2.98 | AH114: 4.09 | AI114: 28.3 | AJ114: 0.603 | AK114: 0.525 | AL114: 1.093 | AM114: 1.098 | AN114: 0.91 | AO114: 0.675
A115: 2021-02-02T04:00:00 | B115: 0 | C115: 0 | D115: 0 | E115: 0 | F115: 0 | G115: 0 | H115: 16.131 | I115: 0.389 | J115: 0.588 | K115: 1.243 | L115: 0.67 | M115: 0.776 | N115: 1.062 | AB115: 1.61 | AC115: 1.51 | AD115: --- | AE115: --- | AF115: 19.1 | AG115: 3.01 | AH115: 4.05 | AI115: 28.7 | AJ115: 0.605 | AK115: 0.523 | AL115: 1.094 | AM115: 1.098 | AN115: 0.906 | AO115: 0.677
A116: 2021-02-02T04:15:00 | B116: 0 | C116: 0 | D116: 0 | E116: 0 | F116: 0 | G116: 0 | H116: 16.119 | I116: 0.388 | J116: 0.588 | K116: 1.242 | L116: 0.668 | M116: 0.78 | N116: 1.061 | AB116: 1.59 | AC116: 1.51 | AD116: --- | AE116: --- | AF116: 19.5 | AG116: 2.98 | AH116: 4.07 | AI116: 28.1 | AJ116: 0.603 | AK116: 0.524 | AL116: 1.099 | AM116: 1.107 | AN116: 0.907 | AO116: 0.674
A117: 2021-02-02T04:30:00 | B117: 0 | C117: 0 | D117: 0 | E117: 0 | F117: 0 | G117: 0 | H117: 16.125 | I117: 0.389 | J117: 0.588 | K117: 1.246 | L117: 0.666 | M117: 0.78 | N117: 1.06 | AB117: 1.61 | AC117: 1.51 | AD117: --- | AE117: --- | AF117: 19.2 | AG117: 3 | AH117: 4.09 | AI117: 28.5 | AJ117: 0.604 | AK117: 0.525 | AL117: 1.1 | AM117: 1.1 | AN117: 0.909 | AO117: 0.676
A118: 2021-02-02T04:45:00 | B118: 0 | C118: 0 | D118: 0 | E118: 0 | F118: 0 | G118: 0 | H118: 16.083 | I118: 0.388 | J118: 0.588 | K118: 1.244 | L118: 0.669 | M118: 0.778 | N118: 1.059 | AB118: 1.59 | AC118: 1.51 | AD118: --- | AE118: --- | AF118: 19.2 | AG118: 2.78 | AH118: 4.09 | AI118: 28.7 | AJ118: 0.59 | AK118: 0.525 | AL118: 1.099 | AM118: 1.1 | AN118: 0.908 | AO118: 0.677
A119: 2021-02-02T05:00:00 | B119: 0 | C119: 0 | D119: 0 | E119: 0 | F119: 0 | G119: 0 | H119: 16.112 | I119: 0.389 | J119: 0.588 | K119: 1.244 | L119: 0.667 | M119: 0.781 | N119: 1.059 | AB119: 1.61 | AC119: 1.51 | AD119: --- | AE119: --- | AF119: 18.9 | AG119: 2.67 | AH119: 4.13 | AI119: 28.1 | AJ119: 0.583 | AK119: 0.527 | AL119: 1.1 | AM119: 1.094 | AN119: 0.909 | AO119: 0.674
A120: 2021-02-02T05:15:00 | B120: 0 | C120: 0 | D120: 0 | E120: 0 | F120: 0 | G120: 0 | H120: 16.13 | I120: 0.389 | J120: 0.587 | K120: 1.244 | L120: 0.669 | M120: 0.779 | N120: 1.059 | AB120: 1.61 | AC120: 1.5 | AD120: --- | AE120: --- | AF120: 18.9 | AG120: 2.67 | AH120: 4.13 | AI120: 28.7 | AJ120: 0.583 | AK120: 0.527 | AL120: 1.103 | AM120: 1.094 | AN120: 0.915 | AO120: 0.677
A121: 2021-02-02T05:30:00 | B121: 0 | C121: 0 | D121: 0 | E121: 0 | F121: 0 | G121: 0 | H121: 16.105 | I121: 0.387 | J121: 0.587 | K121: 1.243 | L121: 0.67 | M121: 0.781 | N121: 1.058 | AB121: 1.58 | AC121: 1.5 | AD121: --- | AE121: --- | AF121: 18.9 | AG121: 2.73 | AH121: 4.07 | AI121: 28.9 | AJ121: 0.587 | AK121: 0.524 | AL121: 1.101 | AM121: 1.093 | AN121: 0.912 | AO121: 0.678
A122: 2021-02-02T05:45:00 | B122: 0 | C122: 0 | D122: 0 | E122: 0 | F122: 0 | G122: 0 | H122: 16.13 | I122: 0.389 | J122: 0.587 | K122: 1.244 | L122: 0.665 | M122: 0.776 | N122: 1.058 | AB122: 1.61 | AC122: 1.5 | AD122: --- | AE122: --- | AF122: 18.8 | AG122: 2.73 | AH122: 4.07 | AI122: 28.5 | AJ122: 0.587 | AK122: 0.524 | AL122: 1.103 | AM122: 1.09 | AN122: 0.907 | AO122: 0.676
A123: 2021-02-02T06:00:00 | B123: 0 | C123: 0 | D123: 0 | E123: 0 | F123: 0 | G123: 0 | H123: 16.138 | I123: 0.391 | J123: 0.588 | K123: 1.244 | L123: 0.666 | M123: 0.777 | N123: 1.057 | AB123: 1.64 | AC123: 1.51 | AD123: --- | AE123: --- | AF123: 19 | AG123: 2.68 | AH123: 4.07 | AI123: 28.7 | AJ123: 0.584 | AK123: 0.524 | AL123: 1.103 | AM123: 1.096 | AN123: 0.91 | AO123: 0.677
A124: 2021-02-02T06:15:00 | B124: 0 | C124: 0 | D124: 0.1 | E124: 0 | F124: 0 | G124: 0 | H124: 16.145 | I124: 0.388 | J124: 0.588 | K124: 1.243 | L124: 0.665 | M124: 0.778 | N124: 1.056 | AB124: 1.59 | AC124: 1.51 | AD124: --- | AE124: --- | AF124: 19.2 | AG124: 2.62 | AH124: 4.01 | AI124: 29.2 | AJ124: 0.58 | AK124: 0.521 | AL124: 1.102 | AM124: 1.101 | AN124: 0.907 | AO124: 0.68
A125: 2021-02-02T06:30:00 | B125: 0.2 | C125: 0 | D125: 0.1 | E125: 0 | F125: 0 | G125: 0 | H125: 16.094 | I125: 0.39 | J125: 0.588 | K125: 1.247 | L125: 0.665 | M125: 0.776 | N125: 1.053 | AB125: 1.62 | AC125: 1.51 | AD125: --- | AE125: --- | AF125: 18.8 | AG125: 2.61 | AH125: 4.01 | AI125: 28.1 | AJ125: 0.579 | AK125: 0.521 | AL125: 1.1 | AM125: 1.09 | AN125: 0.908 | AO125: 0.674
A126: 2021-02-02T06:45:00 | B126: 0 | C126: 0 | D126: 0.1 | E126: 0 | F126: 0 | G126: 0 | H126: 16.115 | I126: 0.391 | J126: 0.588 | K126: 1.24 | L126: 0.665 | M126: 0.78 | N126: 1.053 | AB126: 1.64 | AC126: 1.51 | AD126: --- | AE126: --- | AF126: 18.8 | AG126: 2.73 | AH126: 3.86 | AI126: 28.5 | AJ126: 0.587 | AK126: 0.514 | AL126: 1.101 | AM126: 1.09 | AN126: 0.908 | AO126: 0.676
A127: 2021-02-02T07:00:00 | B127: 0 | C127: 0 | D127: 0 | E127: 0 | F127: 0 | G127: 0 | H127: 16.087 | I127: 0.39 | J127: 0.588 | K127: 1.246 | L127: 0.666 | M127: 0.776 | N127: 1.052 | AB127: 1.62 | AC127: 1.51 | AD127: --- | AE127: --- | AF127: 18.7 | AG127: 2.76 | AH127: 3.81 | AI127: 29.2 | AJ127: 0.589 | AK127: 0.512 | AL127: 1.099 | AM127: 1.087 | AN127: 0.905 | AO127: 0.68
A128: 2021-02-02T07:15:00 | B128: 0 | C128: 0 | D128: 0 | E128: 0 | F128: 0 | G128: 0 | H128: 16.092 | I128: 0.39 | J128: 0.589 | K128: 1.246 | L128: 0.665 | M128: 0.779 | N128: 1.054 | AB128: 1.62 | AC128: 1.52 | AD128: --- | AE128: --- | AF128: 19.1 | AG128: 2.89 | AH128: 3.84 | AI128: 28.7 | AJ128: 0.597 | AK128: 0.513 | AL128: 1.097 | AM128: 1.097 | AN128: 0.909 | AO128: 0.677
A129: 2021-02-02T07:30:00 | B129: 0 | C129: 0 | D129: 0.1 | E129: 0 | F129: 0 | G129: 0 | H129: 16.1 | I129: 0.391 | J129: 0.589 | K129: 1.247 | L129: 0.668 | M129: 0.776 | N129: 1.053 | AB129: 1.64 | AC129: 1.52 | AD129: --- | AE129: --- | AF129: 18.9 | AG129: 2.85 | AH129: 3.86 | AI129: 28.9 | AJ129: 0.595 | AK129: 0.514 | AL129: 1.094 | AM129: 1.094 | AN129: 0.905 | AO129: 0.678
A130: 2021-02-02T07:45:00 | B130: 0.2 | C130: 0 | D130: 0.1 | E130: 0 | F130: 0 | G130: 0 | H130: 16.107 | I130: 0.39 | J130: 0.588 | K130: 1.246 | L130: 0.666 | M130: 0.777 | N130: 1.053 | AB130: 1.62 | AC130: 1.51 | AD130: --- | AE130: --- | AF130: 18.5 | AG130: 2.84 | AH130: 3.86 | AI130: 28.7 | AJ130: 0.594 | AK130: 0.514 | AL130: 1.091 | AM130: 1.082 | AN130: 0.908 | AO130: 0.677
A131: 2021-02-02T08:00:00 | B131: 0 | C131: 0 | D131: 0.1 | E131: 0 | F131: 0 | G131: 0 | H131: 16.123 | I131: 0.389 | J131: 0.588 | K131: 1.246 | L131: 0.664 | M131: 0.777 | N131: 1.052 | AB131: 1.61 | AC131: 1.51 | AD131: --- | AE131: --- | AF131: 18.7 | AG131: 2.79 | AH131: 3.81 | AI131: 29.2 | AJ131: 0.591 | AK131: 0.512 | AL131: 1.093 | AM131: 1.087 | AN131: 0.908 | AO131: 0.68
A132: 2021-02-02T08:15:00 | B132: 0 | C132: 0 | D132: 0.1 | E132: 0 | F132: 0 | G132: 0 | H132: 16.104 | I132: 0.389 | J132: 0.588 | K132: 1.246 | L132: 0.664 | M132: 0.777 | N132: 1.049 | AB132: 1.61 | AC132: 1.51 | AD132: --- | AE132: --- | AF132: 18.7 | AG132: 2.78 | AH132: 3.79 | AI132: 29 | AJ132: 0.59 | AK132: 0.511 | AL132: 1.092 | AM132: 1.089 | AN132: 0.906 | AO132: 0.679
A133: 2021-02-02T08:30:00 | B133: 0.2 | C133: 0 | D133: 0.2 | E133: 0 | F133: 0 | G133: 0 | H133: 16.087 | I133: 0.39 | J133: 0.588 | K133: 1.246 | L133: 0.669 | M133: 0.777 | N133: 1.052 | AB133: 1.62 | AC133: 1.51 | AD133: --- | AE133: --- | AF133: 18.9 | AG133: 2.76 | AH133: 3.86 | AI133: 28.7 | AJ133: 0.589 | AK133: 0.514 | AL133: 1.09 | AM133: 1.094 | AN133: 0.905 | AO133: 0.677
A134: 2021-02-02T08:45:00 | B134: 0 | C134: 0 | D134: 0 | E134: 0 | F134: 0 | G134: 0 | H134: 16.106 | I134: 0.389 | J134: 0.589 | K134: 1.246 | L134: 0.666 | M134: 0.779 | N134: 1.052 | AB134: 1.61 | AC134: 1.52 | AD134: --- | AE134: --- | AF134: 18.8 | AG134: 2.82 | AH134: 3.94 | AI134: 28.7 | AJ134: 0.593 | AK134: 0.518 | AL134: 1.092 | AM134: 1.09 | AN134: 0.903 | AO134: 0.677
A135: 2021-02-02T09:00:00 | B135: 0 | C135: 0 | D135: 0.1 | E135: 0 | F135: 0 | G135: 0 | H135: 16.106 | I135: 0.39 | J135: 0.589 | K135: 1.247 | L135: 0.662 | M135: 0.775 | N135: 1.052 | AB135: 1.62 | AC135: 1.52 | AD135: --- | AE135: --- | AF135: 18.8 | AG135: 2.93 | AH135: 4.01 | AI135: 28.1 | AJ135: 0.6 | AK135: 0.521 | AL135: 1.093 | AM135: 1.09 | AN135: 0.902 | AO135: 0.674
A136: 2021-02-02T09:15:00 | B136: 0 | C136: 0 | D136: 0 | E136: 0 | F136: 0 | G136: 0 | H136: 16.108 | I136: 0.391 | J136: 0.589 | K136: 1.248 | L136: 0.666 | M136: 0.779 | N136: 1.05 | AB136: 1.64 | AC136: 1.52 | AD136: --- | AE136: --- | AF136: 18.9 | AG136: 3.01 | AH136: 4.01 | AI136: 28.1 | AJ136: 0.605 | AK136: 0.521 | AL136: 1.092 | AM136: 1.094 | AN136: 0.902 | AO136: 0.674
A137: 2021-02-02T09:30:00 | B137: 0.2 | C137: 0 | D137: 0.7 | E137: 0 | F137: 0 | G137: 0 | H137: 16.101 | I137: 0.388 | J137: 0.589 | K137: 1.249 | L137: 0.662 | M137: 0.779 | N137: 1.05 | AB137: 1.59 | AC137: 1.52 | AD137: --- | AE137: --- | AF137: 19.2 | AG137: 2.95 | AH137: 4.03 | AI137: 28.3 | AJ137: 0.601 | AK137: 0.522 | AL137: 1.095 | AM137: 1.1 | AN137: 0.903 | AO137: 0.675
A138: 2021-02-02T09:45:00 | B138: 0 | C138: 0 | D138: 0 | E138: 0 | F138: 0 | G138: 0 | H138: 16.124 | I138: 0.388 | J138: 0.589 | K138: 1.247 | L138: 0.665 | M138: 0.774 | N138: 1.049 | AB138: 1.59 | AC138: 1.52 | AD138: --- | AE138: --- | AF138: 18.9 | AG138: 2.89 | AH138: 4.01 | AI138: 28.5 | AJ138: 0.597 | AK138: 0.521 | AL138: 1.098 | AM138: 1.094 | AN138: 0.908 | AO138: 0.676
A139: 2021-02-02T10:00:00 | B139: 0.2 | C139: 0 | D139: 0.1 | E139: 0 | F139: 0 | G139: 0 | H139: 16.097 | I139: 0.389 | J139: 0.589 | K139: 1.248 | L139: 0.664 | M139: 0.776 | N139: 1.049 | AB139: 1.61 | AC139: 1.52 | AD139: --- | AE139: --- | AF139: 19.2 | AG139: 2.93 | AH139: 4.01 | AI139: 28.5 | AJ139: 0.6 | AK139: 0.521 | AL139: 1.102 | AM139: 1.1 | AN139: 0.904 | AO139: 0.676
A140: 2021-02-02T10:15:00 | B140: 0.2 | C140: 0 | D140: 0.1 | E140: 0 | F140: 0 | G140: 0 | H140: 16.102 | I140: 0.389 | J140: 0.589 | K140: 1.248 | L140: 0.664 | M140: 0.778 | N140: 1.049 | AB140: 1.61 | AC140: 1.52 | AD140: --- | AE140: --- | AF140: 18.7 | AG140: 2.95 | AH140: 4.01 | AI140: 28.3 | AJ140: 0.601 | AK140: 0.521 | AL140: 1.1 | AM140: 1.088 | AN140: 0.909 | AO140: 0.675
A141: 2021-02-02T10:30:00 | B141: 0.6 | C141: 0 | D141: 0 | E141: 0 | F141: 0 | G141: 0 | H141: 16.089 | I141: 0.389 | J141: 0.589 | K141: 1.25 | L141: 0.664 | M141: 0.778 | N141: 1.049 | AB141: 1.61 | AC141: 1.52 | AD141: --- | AE141: --- | AF141: 18.8 | AG141: 2.84 | AH141: 4.03 | AI141: 28.1 | AJ141: 0.594 | AK141: 0.522 | AL141: 1.102 | AM141: 1.09 | AN141: 0.909 | AO141: 0.674
A142: 2021-02-02T10:45:00 | B142: 0.6 | C142: 0 | D142: 0 | E142: 0 | F142: 0 | G142: 0 | H142: 16.087 | I142: 0.39 | J142: 0.589 | K142: 1.247 | L142: 0.662 | M142: 0.778 | N142: 1.046 | AB142: 1.62 | AC142: 1.52 | AD142: --- | AE142: --- | AF142: 18.6 | AG142: 2.76 | AH142: 4.11 | AI142: 28.1 | AJ142: 0.589 | AK142: 0.526 | AL142: 1.1 | AM142: 1.085 | AN142: 0.903 | AO142: 0.674
A143: 2021-02-02T11:00:00 | B143: 0.6 | C143: 0 | D143: 0 | E143: 0 | F143: 0 | G143: 0 | H143: 16.084 | I143: 0.389 | J143: 0.589 | K143: 1.247 | L143: 0.663 | M143: 0.775 | N143: 1.046 | AB143: 1.61 | AC143: 1.52 | AD143: --- | AE143: --- | AF143: 18.7 | AG143: 2.68 | AH143: 4.16 | AI143: 28.1 | AJ143: 0.584 | AK143: 0.528 | AL143: 1.1 | AM143: 1.087 | AN143: 0.901 | AO143: 0.674
A144: 2021-02-02T11:15:00 | B144: 0.4 | C144: 0.6 | D144: 0 | E144: 0 | F144: 0 | G144: 0 | H144: 16.096 | I144: 0.389 | J144: 0.589 | K144: 1.246 | L144: 0.662 | M144: 0.773 | N144: 1.045 | AB144: 1.61 | AC144: 1.52 | AD144: --- | AE144: --- | AF144: 18.3 | AG144: 2.68 | AH144: 4.16 | AI144: 28 | AJ144: 0.584 | AK144: 0.528 | AL144: 1.1 | AM144: 1.078 | AN144: 0.907 | AO144: 0.673
A145: 2021-02-02T11:30:00 | B145: 0.4 | C145: 0.6 | D145: 0 | E145: 0 | F145: 0 | G145: 0.2 | H145: 16.086 | I145: 0.382 | J145: 0.589 | K145: 1.248 | L145: 0.661 | M145: 0.777 | N145: 1.045 | AB145: 1.51 | AC145: 1.52 | AD145: --- | AE145: --- | AF145: 18.4 | AG145: 2.61 | AH145: 4.11 | AI145: 28 | AJ145: 0.579 | AK145: 0.526 | AL145: 1.104 | AM145: 1.08 | AN145: 0.908 | AO145: 0.673
A146: 2021-02-02T11:45:00 | B146: 0.4 | C146: 0.6 | D146: 0 | E146: 0 | F146: 0 | G146: 0 | H146: 16.083 | I146: 0.34 | J146: 0.589 | K146: 1.25 | L146: 0.661 | M146: 0.778 | N146: 1.045 | AB146: 0.998 | AC146: 1.52 | AD146: --- | AE146: --- | AF146: 18.1 | AG146: 2.53 | AH146: 4.11 | AI146: 28.1 | AJ146: 0.574 | AK146: 0.526 | AL146: 1.107 | AM146: 1.074 | AN146: 0.905 | AO146: 0.674
A147: 2021-02-02T12:00:00 | B147: 0.4 | C147: 0.6 | D147: 0 | E147: 0 | F147: 0 | G147: 0.2 | H147: 16.087 | I147: 0.302 | J147: 0.589 | K147: 1.246 | L147: 0.663 | M147: 0.774 | N147: 1.042 | AB147: 0.667 | AC147: 1.52 | AD147: --- | AE147: --- | AF147: 18.5 | AG147: 2.56 | AH147: 4.09 | AI147: 28.1 | AJ147: 0.576 | AK147: 0.525 | AL147: 1.105 | AM147: 1.082 | AN147: 0.909 | AO147: 0.674
A148: 2021-02-02T12:15:00 | B148: 0.2 | C148: 0.6 | D148: 0.3 | E148: 0 | F148: 0 | G148: 0.2 | H148: 16.099 | I148: 0.27 | J148: 0.589 | K148: 1.248 | L148: 0.662 | M148: 0.773 | N148: 1.042 | AB148: 0.551 | AC148: 1.52 | AD148: --- | AE148: --- | AF148: 18.1 | AG148: 2.59 | AH148: 4.07 | AI148: 28.1 | AJ148: 0.578 | AK148: 0.524 | AL148: 1.104 | AM148: 1.073 | AN148: 0.907 | AO148: 0.674
A149: 2021-02-02T12:30:00 | B149: 0.4 | C149: 0.4 | D149: 0.4 | E149: 0 | F149: 0.2 | G149: 0 | H149: 16.094 | I149: 0.24 | J149: 0.589 | K149: 1.246 | L149: 0.659 | M149: 0.771 | N149: 1.044 | AB149: 0.462 | AC149: 1.52 | AD149: --- | AE149: --- | AF149: 18.6 | AG149: 2.58 | AH149: 4.03 | AI149: 28 | AJ149: 0.577 | AK149: 0.522 | AL149: 1.107 | AM149: 1.085 | AN149: 0.906 | AO149: 0.673
A150: 2021-02-02T12:45:00 | B150: 0.6 | C150: 0.6 | D150: 0 | E150: 0 | F150: 0 | G150: 0.4 | H150: 16.089 | I150: 0.225 | J150: 0.589 | K150: 1.249 | L150: 0.66 | M150: 0.776 | N150: 1.043 | AB150: 0.419 | AC150: 1.52 | AD150: --- | AE150: --- | AF150: 18.2 | AG150: 2.58 | AH150: 4.01 | AI150: 28.5 | AJ150: 0.577 | AK150: 0.521 | AL150: 1.108 | AM150: 1.076 | AN150: 0.908 | AO150: 0.676
A151: 2021-02-02T13:00:00 | B151: 0.2 | C151: 0.4 | D151: 0.2 | E151: 0 | F151: 0.4 | G151: 0.2 | H151: 16.084 | I151: 0.217 | J151: 0.589 | K151: 1.251 | L151: 0.661 | M151: 0.774 | N151: 1.042 | AB151: 0.397 | AC151: 1.52 | AD151: --- | AE151: --- | AF151: 18.3 | AG151: 2.59 | AH151: 3.96 | AI151: 28.1 | AJ151: 0.578 | AK151: 0.519 | AL151: 1.105 | AM151: 1.079 | AN151: 0.903 | AO151: 0.674
A152: 2021-02-02T13:15:00 | B152: 0.2 | C152: 0.4 | D152: 0 | E152: 0 | F152: 0.2 | G152: 0.6 | H152: 16.091 | I152: 0.212 | J152: 0.589 | K152: 1.249 | L152: 0.661 | M152: 0.776 | N152: 1.041 | AB152: 0.383 | AC152: 1.52 | AD152: --- | AE152: --- | AF152: 18.1 | AG152: 2.61 | AH152: 3.92 | AI152: 28.1 | AJ152: 0.579 | AK152: 0.517 | AL152: 1.102 | AM152: 1.072 | AN152: 0.905 | AO152: 0.674
A153: 2021-02-02T13:30:00 | B153: 0.2 | C153: 0.4 | D153: 0 | E153: 0 | F153: 0.2 | G153: 0.6 | H153: 16.098 | I153: 0.209 | J153: 0.589 | K153: 1.252 | L153: 0.661 | M153: 0.774 | N153: 1.041 | AB153: 0.375 | AC153: 1.52 | AD153: --- | AE153: --- | AF153: 18.6 | AG153: 2.56 | AH153: 3.9 | AI153: 28.3 | AJ153: 0.576 | AK153: 0.516 | AL153: 1.101 | AM153: 1.086 | AN153: 0.901 | AO153: 0.675
A154: 2021-02-02T13:45:00 | B154: 0.2 | C154: 0.2 | D154: 0 | E154: 0 | F154: 0.2 | G154: 0.4 | H154: 16.087 | I154: 0.209 | J154: 0.589 | K154: 1.251 | L154: 0.662 | M154: 0.777 | N154: 1.04 | AB154: 0.375 | AC154: 1.52 | AD154: --- | AE154: --- | AF154: 18.1 | AG154: 2.52 | AH154: 3.88 | AI154: 28.7 | AJ154: 0.573 | AK154: 0.515 | AL154: 1.099 | AM154: 1.074 | AN154: 0.903 | AO154: 0.677
A155: 2021-02-02T14:00:00 | B155: 0.4 | C155: 0.4 | D155: 0 | E155: 0 | F155: 0 | G155: 0.2 | H155: 16.092 | I155: 0.208 | J155: 0.589 | K155: 1.25 | L155: 0.663 | M155: 0.772 | N155: 1.039 | AB155: 0.372 | AC155: 1.52 | AD155: --- | AE155: --- | AF155: 18.5 | AG155: 2.46 | AH155: 3.88 | AI155: 28.5 | AJ155: 0.569 | AK155: 0.515 | AL155: 1.099 | AM155: 1.083 | AN155: 0.903 | AO155: 0.676
A156: 2021-02-02T14:15:00 | B156: 0.2 | C156: 0.4 | D156: 0 | E156: 0 | F156: 0.2 | G156: 0.2 | H156: 16.093 | I156: 0.208 | J156: 0.589 | K156: 1.252 | L156: 0.659 | M156: 0.776 | N156: 1.04 | AB156: 0.372 | AC156: 1.52 | AD156: --- | AE156: --- | AF156: 18.1 | AG156: 2.47 | AH156: 3.92 | AI156: 29 | AJ156: 0.57 | AK156: 0.517 | AL156: 1.097 | AM156: 1.073 | AN156: 0.899 | AO156: 0.679
A157: 2021-02-02T14:30:00 | B157: 0.2 | C157: 0.4 | D157: 0 | E157: 0 | F157: 0 | G157: 0.2 | H157: 16.094 | I157: 0.207 | J157: 0.589 | K157: 1.25 | L157: 0.659 | M157: 0.773 | N157: 1.037 | AB157: 0.37 | AC157: 1.52 | AD157: --- | AE157: --- | AF157: 18.5 | AG157: 2.43 | AH157: 3.92 | AI157: 28.7 | AJ157: 0.567 | AK157: 0.517 | AL157: 1.098 | AM157: 1.083 | AN157: 0.9 | AO157: 0.677
A158: 2021-02-02T14:45:00 | B158: 0 | C158: 0.2 | D158: 0 | E158: 0 | F158: 0.2 | G158: 0.2 | H158: 16.094 | I158: 0.206 | J158: 0.589 | K158: 1.251 | L158: 0.66 | M158: 0.774 | N158: 1.037 | AB158: 0.367 | AC158: 1.52 | AD158: --- | AE158: --- | AF158: 18.1 | AG158: 2.42 | AH158: 3.94 | AI158: 28.7 | AJ158: 0.566 | AK158: 0.518 | AL158: 1.095 | AM158: 1.074 | AN158: 0.897 | AO158: 0.677
A159: 2021-02-02T15:00:00 | B159: 0 | C159: 0.2 | D159: 0 | E159: 0 | F159: 0 | G159: 0.2 | H159: 16.093 | I159: 0.205 | J159: 0.589 | K159: 1.245 | L159: 0.659 | M159: 0.771 | N159: 1.036 | AB159: 0.364 | AC159: 1.52 | AD159: --- | AE159: --- | AF159: 18.7 | AG159: 2.43 | AH159: 3.94 | AI159: 28.1 | AJ159: 0.567 | AK159: 0.518 | AL159: 1.095 | AM159: 1.087 | AN159: 0.895 | AO159: 0.674
A160: 2021-02-02T15:15:00 | B160: 0 | C160: 0.4 | D160: 0 | E160: 0 | F160: 0 | G160: 0.2 | H160: 16.087 | I160: 0.205 | J160: 0.588 | K160: 1.242 | L160: 0.658 | M160: 0.766 | N160: 1.037 | AB160: 0.364 | AC160: 1.51 | AD160: --- | AE160: --- | AF160: 18.2 | AG160: 2.4 | AH160: 3.92 | AI160: 28.7 | AJ160: 0.565 | AK160: 0.517 | AL160: 1.098 | AM160: 1.076 | AN160: 0.899 | AO160: 0.677
A161: 2021-02-02T15:30:00 | B161: 0.2 | C161: 0.4 | D161: 0.1 | E161: 0 | F161: 0.2 | G161: 0 | H161: 16.098 | I161: 0.207 | J161: 0.589 | K161: 1.236 | L161: 0.653 | M161: 0.759 | N161: 1.036 | AB161: 0.37 | AC161: 1.52 | AD161: --- | AE161: --- | AF161: 18.3 | AG161: 2.42 | AH161: 3.92 | AI161: 28.1 | AJ161: 0.566 | AK161: 0.517 | AL161: 1.097 | AM161: 1.079 | AN161: 0.893 | AO161: 0.674
A162: 2021-02-02T15:45:00 | B162: 0.2 | C162: 0.2 | D162: 0.1 | E162: 0 | F162: 0 | G162: 0.2 | H162: 16.096 | I162: 0.205 | J162: 0.589 | K162: 1.232 | L162: 0.649 | M162: 0.752 | N162: 1.036 | AB162: 0.364 | AC162: 1.52 | AD162: --- | AE162: --- | AF162: 18.4 | AG162: 2.42 | AH162: 3.88 | AI162: 28.1 | AJ162: 0.566 | AK162: 0.515 | AL162: 1.097 | AM162: 1.08 | AN162: 0.901 | AO162: 0.674
A163: 2021-02-02T16:00:00 | B163: 0 | C163: 0.4 | D163: 0.1 | E163: 0 | F163: 0 | G163: 0 | H163: 16.092 | I163: 0.206 | J163: 0.589 | K163: 1.225 | L163: 0.645 | M163: 0.748 | N163: 1.034 | AB163: 0.367 | AC163: 1.52 | AD163: --- | AE163: --- | AF163: 18.1 | AG163: 2.34 | AH163: 3.86 | AI163: 28.5 | AJ163: 0.561 | AK163: 0.514 | AL163: 1.099 | AM163: 1.073 | AN163: 0.899 | AO163: 0.676
A164: 2021-02-02T16:15:00 | B164: 0 | C164: 0.2 | D164: 0 | E164: 0 | F164: 0.2 | G164: 0.2 | H164: 16.082 | I164: 0.206 | J164: 0.589 | K164: 1.222 | L164: 0.642 | M164: 0.742 | N164: 1.035 | AB164: 0.367 | AC164: 1.52 | AD164: --- | AE164: --- | AF164: 18.1 | AG164: 2.37 | AH164: 3.86 | AI164: 28.3 | AJ164: 0.563 | AK164: 0.514 | AL164: 1.098 | AM164: 1.073 | AN164: 0.898 | AO164: 0.675
A165: 2021-02-02T16:30:00 | B165: 0 | C165: 0.2 | D165: 0 | E165: 0 | F165: 0 | G165: 0 | H165: 16.086 | I165: 0.206 | J165: 0.589 | K165: 1.221 | L165: 0.638 | M165: 0.74 | N165: 1.034 | AB165: 0.367 | AC165: 1.52 | AD165: --- | AE165: --- | AF165: 17.7 | AG165: 2.4 | AH165: 3.84 | AI165: 28.1 | AJ165: 0.565 | AK165: 0.513 | AL165: 1.097 | AM165: 1.062 | AN165: 0.897 | AO165: 0.674
A166: 2021-02-02T16:45:00 | B166: 0 | C166: 0.2 | D166: 0 | E166: 0 | F166: 0 | G166: 0.2 | H166: 16.086 | I166: 0.205 | J166: 0.589 | K166: 1.218 | L166: 0.637 | M166: 0.741 | N166: 1.033 | AB166: 0.364 | AC166: 1.52 | AD166: --- | AE166: --- | AF166: 17.9 | AG166: 2.42 | AH166: 3.84 | AI166: 28 | AJ166: 0.566 | AK166: 0.513 | AL166: 1.094 | AM166: 1.068 | AN166: 0.895 | AO166: 0.673
A167: 2021-02-02T17:00:00 | B167: 0 | C167: 0 | D167: 0 | E167: 0 | F167: 0 | G167: 0 | H167: 16.082 | I167: 0.206 | J167: 0.589 | K167: 1.216 | L167: 0.637 | M167: 0.735 | N167: 1.032 | AB167: 0.367 | AC167: 1.52 | AD167: --- | AE167: --- | AF167: 17.6 | AG167: 2.46 | AH167: 3.84 | AI167: 28 | AJ167: 0.569 | AK167: 0.513 | AL167: 1.092 | AM167: 1.06 | AN167: 0.895 | AO167: 0.673
A168: 2021-02-02T17:15:00 | B168: 0 | C168: 0.4 | D168: 0 | E168: 0 | F168: 0 | G168: 0 | H168: 16.079 | I168: 0.205 | J168: 0.589 | K168: 1.214 | L168: 0.634 | M168: 0.734 | N168: 1.031 | AB168: 0.364 | AC168: 1.52 | AD168: --- | AE168: --- | AF168: 17.9 | AG168: 2.42 | AH168: 3.79 | AI168: 28.5 | AJ168: 0.566 | AK168: 0.511 | AL168: 1.093 | AM168: 1.067 | AN168: 0.895 | AO168: 0.676
A169: 2021-02-02T17:30:00 | B169: 0.2 | C169: 0.2 | D169: 0 | E169: 0 | F169: 0 | G169: 0.2 | H169: 16.077 | I169: 0.206 | J169: 0.589 | K169: 1.214 | L169: 0.636 | M169: 0.736 | N169: 1.031 | AB169: 0.367 | AC169: 1.52 | AD169: --- | AE169: --- | AF169: 17.6 | AG169: 2.43 | AH169: 3.81 | AI169: 28.5 | AJ169: 0.567 | AK169: 0.512 | AL169: 1.092 | AM169: 1.06 | AN169: 0.894 | AO169: 0.676
A170: 2021-02-02T17:45:00 | B170: 0.4 | C170: 0.4 | D170: 0.1 | E170: 0 | F170: 0.2 | G170: 0 | H170: 16.086 | I170: 0.206 | J170: 0.589 | K170: 1.213 | L170: 0.635 | M170: 0.731 | N170: 1.031 | AB170: 0.367 | AC170: 1.52 | AD170: --- | AE170: --- | AF170: 17.9 | AG170: 2.5 | AH170: 3.79 | AI170: 28.5 | AJ170: 0.572 | AK170: 0.511 | AL170: 1.092 | AM170: 1.069 | AN170: 0.895 | AO170: 0.676
A171: 2021-02-02T18:00:00 | B171: 0 | C171: 0.2 | D171: 0.8 | E171: 0 | F171: 0 | G171: 0.2 | H171: 16.077 | I171: 0.204 | J171: 0.589 | K171: 1.212 | L171: 0.633 | M171: 0.731 | N171: 1.032 | AB171: 0.362 | AC171: 1.52 | AD171: --- | AE171: --- | AF171: 17.9 | AG171: 2.5 | AH171: 3.79 | AI171: 28.7 | AJ171: 0.572 | AK171: 0.511 | AL171: 1.092 | AM171: 1.069 | AN171: 0.897 | AO171: 0.677
A172: 2021-02-02T18:15:00 | B172: 0.2 | C172: 0.4 | D172: 0.1 | E172: 0 | F172: 0 | G172: 0 | H172: 16.077 | I172: 0.205 | J172: 0.589 | K172: 1.211 | L172: 0.635 | M172: 0.732 | N172: 1.03 | AB172: 0.364 | AC172: 1.52 | AD172: --- | AE172: --- | AF172: 17.9 | AG172: 2.47 | AH172: 3.77 | AI172: 28.7 | AJ172: 0.57 | AK172: 0.51 | AL172: 1.09 | AM172: 1.067 | AN172: 0.895 | AO172: 0.677
A173: 2021-02-02T18:30:00 | B173: 0 | C173: 0 | D173: 0.1 | E173: 0 | F173: 0 | G173: 0.2 | H173: 16.076 | I173: 0.205 | J173: 0.589 | K173: 1.216 | L173: 0.634 | M173: 0.735 | N173: 1.03 | AB173: 0.364 | AC173: 1.52 | AD173: --- | AE173: --- | AF173: 17.4 | AG173: 2.43 | AH173: 3.77 | AI173: 28.7 | AJ173: 0.567 | AK173: 0.51 | AL173: 1.092 | AM173: 1.055 | AN173: 0.894 | AO173: 0.677
A174: 2021-02-02T18:45:00 | B174: 0.4 | C174: 0.4 | D174: 0.1 | E174: 0 | F174: 0 | G174: 0.2 | H174: 16.079 | I174: 0.206 | J174: 0.59 | K174: 1.216 | L174: 0.635 | M174: 0.735 | N174: 1.027 | AB174: 0.367 | AC174: 1.53 | AD174: --- | AE174: --- | AF174: 17.3 | AG174: 2.46 | AH174: 3.79 | AI174: 28.7 | AJ174: 0.569 | AK174: 0.511 | AL174: 1.091 | AM174: 1.052 | AN174: 0.89 | AO174: 0.677
A175: 2021-02-02T19:00:00 | B175: 0.2 | C175: 0.4 | D175: 0 | E175: 0 | F175: 0 | G175: 0.2 | H175: 16.087 | I175: 0.208 | J175: 0.59 | K175: 1.215 | L175: 0.634 | M175: 0.734 | N175: 1.028 | AB175: 0.372 | AC175: 1.53 | AD175: --- | AE175: --- | AF175: 17.2 | AG175: 2.53 | AH175: 3.84 | AI175: 28.7 | AJ175: 0.574 | AK175: 0.513 | AL175: 1.092 | AM175: 1.05 | AN175: 0.897 | AO175: 0.677
A176: 2021-02-02T19:15:00 | B176: 1.8 | C176: 1 | D176: 0.2 | E176: 0 | F176: 0 | G176: 0.2 | H176: 16.084 | I176: 0.209 | J176: 0.59 | K176: 1.216 | L176: 0.634 | M176: 0.733 | N176: 1.029 | AB176: 0.375 | AC176: 1.53 | AD176: --- | AE176: --- | AF176: 17.4 | AG176: 2.58 | AH176: 3.84 | AI176: 28.3 | AJ176: 0.577 | AK176: 0.513 | AL176: 1.091 | AM176: 1.056 | AN176: 0.891 | AO176: 0.675
A177: 2021-02-02T19:30:00 | B177: 1 | C177: 0.8 | D177: 0.6 | E177: 0 | F177: 0.2 | G177: 0.4 | H177: 16.087 | I177: 0.208 | J177: 0.594 | K177: 1.216 | L177: 0.634 | M177: 0.737 | N177: 1.029 | AB177: 0.372 | AC177: 1.58 | AD177: --- | AE177: --- | AF177: 17.7 | AG177: 2.62 | AH177: 3.84 | AI177: 28.1 | AJ177: 0.58 | AK177: 0.513 | AL177: 1.096 | AM177: 1.063 | AN177: 0.892 | AO177: 0.674
A178: 2021-02-02T19:45:00 | B178: 0 | C178: 0.2 | D178: 0 | E178: 0 | F178: 0 | G178: 0.4 | H178: 16.083 | I178: 0.208 | J178: 0.596 | K178: 1.219 | L178: 0.635 | M178: 0.738 | N178: 1.031 | AB178: 0.372 | AC178: 1.6 | AD178: --- | AE178: --- | AF178: 17.3 | AG178: 2.61 | AH178: 3.86 | AI178: 28.1 | AJ178: 0.579 | AK178: 0.514 | AL178: 1.097 | AM178: 1.053 | AN178: 0.894 | AO178: 0.674
A179: 2021-02-02T20:00:00 | B179: 0 | C179: 0 | D179: 0 | E179: 0 | F179: 0 | G179: 0.4 | H179: 16.09 | I179: 0.208 | J179: 0.6 | K179: 1.219 | L179: 0.634 | M179: 0.739 | N179: 1.028 | AB179: 0.372 | AC179: 1.65 | AD179: --- | AE179: --- | AF179: 17.5 | AG179: 2.56 | AH179: 3.88 | AI179: 28.1 | AJ179: 0.576 | AK179: 0.515 | AL179: 1.094 | AM179: 1.058 | AN179: 0.887 | AO179: 0.674
A180: 2021-02-02T20:15:00 | B180: 0 | C180: 0.2 | D180: 0 | E180: 0 | F180: 0 | G180: 0.2 | H180: 16.09 | I180: 0.208 | J180: 0.603 | K180: 1.218 | L180: 0.636 | M180: 0.74 | N180: 1.027 | AB180: 0.372 | AC180: 1.68 | AD180: --- | AE180: --- | AF180: 17.5 | AG180: 2.53 | AH180: 3.86 | AI180: 28.3 | AJ180: 0.574 | AK180: 0.514 | AL180: 1.095 | AM180: 1.058 | AN180: 0.887 | AO180: 0.675
A181: 2021-02-02T20:30:00 | B181: 0.2 | C181: 0.2 | D181: 0 | E181: 6.4 | F181: 0.2 | G181: 0.4 | H181: 16.089 | I181: 0.208 | J181: 0.605 | K181: 1.22 | L181: 0.635 | M181: 0.741 | N181: 1.026 | AB181: 0.372 | AC181: 1.7 | AD181: --- | AE181: --- | AF181: 17.5 | AG181: 2.56 | AH181: 3.86 | AI181: 28.1 | AJ181: 0.576 | AK181: 0.514 | AL181: 1.095 | AM181: 1.058 | AN181: 0.89 | AO181: 0.674
A182: 2021-02-02T20:45:00 | B182: 0.4 | C182: 0.4 | D182: 0.1 | E182: 0.4 | F182: 0 | G182: 0.2 | H182: 16.096 | I182: 0.211 | J182: 0.608 | K182: 1.225 | L182: 0.636 | M182: 0.738 | N182: 1.027 | AB182: 0.381 | AC182: 1.74 | AD182: --- | AE182: --- | AF182: 17.4 | AG182: 2.52 | AH182: 3.92 | AI182: 28.1 | AJ182: 0.573 | AK182: 0.517 | AL182: 1.096 | AM182: 1.056 | AN182: 0.892 | AO182: 0.674
A183: 2021-02-02T21:00:00 | B183: 0 | C183: 0 | D183: 0.2 | E183: 0.6 | F183: 0.2 | G183: 0.4 | H183: 16.084 | I183: 0.212 | J183: 0.611 | K183: 1.224 | L183: 0.638 | M183: 0.743 | N183: 1.027 | AB183: 0.383 | AC183: 1.78 | AD183: --- | AE183: --- | AF183: 17.4 | AG183: 2.46 | AH183: 3.98 | AI183: 28.3 | AJ183: 0.569 | AK183: 0.52 | AL183: 1.096 | AM183: 1.055 | AN183: 0.889 | AO183: 0.675
A184: 2021-02-02T21:15:00 | B184: 0.8 | C184: 0.8 | D184: 0.2 | E184: 0.6 | F184: 0.4 | G184: 0.6 | H184: 16.091 | I184: 0.211 | J184: 0.616 | K184: 1.229 | L184: 0.639 | M184: 0.747 | N184: 1.028 | AB184: 0.381 | AC184: 1.84 | AD184: --- | AE184: --- | AF184: 17.3 | AG184: 2.46 | AH184: 4.01 | AI184: 28.1 | AJ184: 0.569 | AK184: 0.521 | AL184: 1.098 | AM184: 1.054 | AN184: 0.891 | AO184: 0.674
A185: 2021-02-02T21:30:00 | B185: 0 | C185: 0.2 | D185: 1.1 | E185: 0.2 | F185: 0.2 | G185: 0.6 | H185: 16.094 | I185: 0.21 | J185: 0.622 | K185: 1.239 | L185: 0.644 | M185: 0.753 | N185: 1.028 | AB185: 0.378 | AC185: 1.91 | AD185: --- | AE185: --- | AF185: 17.3 | AG185: 2.5 | AH185: 4.01 | AI185: 28.1 | AJ185: 0.572 | AK185: 0.521 | AL185: 1.102 | AM185: 1.052 | AN185: 0.89 | AO185: 0.674
A186: 2021-02-02T21:45:00 | B186: 0.2 | C186: 0.2 | D186: 0.2 | E186: 0 | F186: 0.2 | G186: 0.4 | H186: 16.101 | I186: 0.21 | J186: 0.628 | K186: 1.24 | L186: 0.645 | M186: 0.755 | N186: 1.029 | AB186: 0.378 | AC186: 1.99 | AD186: --- | AE186: --- | AF186: 17.4 | AG186: 2.52 | AH186: 4.03 | AI186: 28.7 | AJ186: 0.573 | AK186: 0.522 | AL186: 1.102 | AM186: 1.055 | AN186: 0.896 | AO186: 0.677
A187: 2021-02-02T22:00:00 | B187: 0 | C187: 0.2 | D187: 0.1 | E187: 0.2 | F187: 0.2 | G187: 0.4 | H187: 16.08 | I187: 0.209 | J187: 0.636 | K187: 1.242 | L187: 0.646 | M187: 0.76 | N187: 1.025 | AB187: 0.375 | AC187: 2.09 | AD187: --- | AE187: --- | AF187: 17.1 | AG187: 2.5 | AH187: 4.01 | AI187: 28.7 | AJ187: 0.572 | AK187: 0.521 | AL187: 1.104 | AM187: 1.049 | AN187: 0.892 | AO187: 0.677
A188: 2021-02-02T22:15:00 | B188: 0.2 | C188: 0.2 | D188: 0.1 | E188: 0.4 | F188: 0.2 | G188: 0.2 | H188: 16.077 | I188: 0.21 | J188: 0.642 | K188: 1.247 | L188: 0.649 | M188: 0.764 | N188: 1.027 | AB188: 0.378 | AC188: 2.17 | AD188: --- | AE188: --- | AF188: 17.3 | AG188: 2.49 | AH188: 4.03 | AI188: 28.5 | AJ188: 0.571 | AK188: 0.522 | AL188: 1.104 | AM188: 1.053 | AN188: 0.89 | AO188: 0.676
A189: 2021-02-02T22:30:00 | B189: 0 | C189: 0 | D189: 0.2 | E189: 0.2 | F189: 0.4 | G189: 0.2 | H189: 16.074 | I189: 0.211 | J189: 0.65 | K189: 1.25 | L189: 0.652 | M189: 0.771 | N189: 1.027 | AB189: 0.381 | AC189: 2.28 | AD189: --- | AE189: --- | AF189: 17.1 | AG189: 2.46 | AH189: 4.03 | AI189: 28.5 | AJ189: 0.569 | AK189: 0.522 | AL189: 1.107 | AM189: 1.048 | AN189: 0.897 | AO189: 0.676
A190: 2021-02-02T22:45:00 | B190: 0 | C190: 0.2 | D190: 0.1 | E190: 0.2 | F190: 0.4 | G190: 0.6 | H190: 16.087 | I190: 0.208 | J190: 0.659 | K190: 1.256 | L190: 0.655 | M190: 0.775 | N190: 1.027 | AB190: 0.372 | AC190: 2.41 | AD190: --- | AE190: --- | AF190: 17.4 | AG190: 2.46 | AH190: 4.01 | AI190: 28.7 | AJ190: 0.569 | AK190: 0.521 | AL190: 1.107 | AM190: 1.056 | AN190: 0.897 | AO190: 0.677
A191: 2021-02-02T23:00:00 | B191: 0 | C191: 0.2 | D191: 0 | E191: 0.2 | F191: 0.2 | G191: 0.2 | H191: 16.084 | I191: 0.211 | J191: 0.667 | K191: 1.268 | L191: 0.658 | M191: 0.786 | N191: 1.027 | AB191: 0.381 | AC191: 2.52 | AD191: --- | AE191: --- | AF191: 17.1 | AG191: 2.46 | AH191: 4.01 | AI191: 28.9 | AJ191: 0.569 | AK191: 0.521 | AL191: 1.108 | AM191: 1.048 | AN191: 0.893 | AO191: 0.678
A192: 2021-02-02T23:15:00 | B192: 0 | C192: 0 | D192: 0 | E192: 0.2 | F192: 0.2 | G192: 0.2 | H192: 16.086 | I192: 0.207 | J192: 0.679 | K192: 1.279 | L192: 0.665 | M192: 0.795 | N192: 1.027 | AB192: 0.37 | AC192: 2.7 | AD192: --- | AE192: --- | AF192: 17.3 | AG192: 2.49 | AH192: 4.01 | AI192: 29.2 | AJ192: 0.571 | AK192: 0.521 | AL192: 1.108 | AM192: 1.054 | AN192: 0.895 | AO192: 0.68
A193: 2021-02-02T23:30:00 | B193: 0.2 | C193: 0.2 | D193: 0 | E193: 0.4 | F193: 0.4 | G193: 0.2 | H193: 16.084 | I193: 0.209 | J193: 0.691 | K193: 1.292 | L193: 0.67 | M193: 0.807 | N193: 1.029 | AB193: 0.375 | AC193: 2.89 | AD193: --- | AE193: --- | AF193: 17.1 | AG193: 2.49 | AH193: 4.03 | AI193: 29.2 | AJ193: 0.571 | AK193: 0.522 | AL193: 1.108 | AM193: 1.049 | AN193: 0.894 | AO193: 0.68
A194: 2021-02-02T23:45:00 | B194: 0 | C194: 0.2 | D194: 0 | E194: 0.2 | F194: 0.4 | G194: 0.2 | H194: 16.08 | I194: 0.21 | J194: 0.705 | K194: 1.298 | L194: 0.679 | M194: 0.819 | N194: 1.028 | AB194: 0.378 | AC194: 3.11 | AD194: --- | AE194: --- | AF194: 17.3 | AG194: 2.5 | AH194: 4.03 | AI194: 29.2 | AJ194: 0.572 | AK194: 0.522 | AL194: 1.107 | AM194: 1.052 | AN194: 0.898 | AO194: 0.68
A195: 2021-02-03 | B195: 0.4 | C195: 0.4 | D195: 0.2 | E195: 0.2 | F195: 0.4 | G195: 0.2 | H195: 16.076 | I195: 0.212 | J195: 0.716 | K195: 1.305 | L195: 0.689 | M195: 0.83 | N195: 1.029 | AB195: 0.383 | AC195: 3.29 | AD195: --- | AE195: --- | AF195: 17.3 | AG195: 2.52 | AH195: 4.03 | AI195: 29.7 | AJ195: 0.573 | AK195: 0.522 | AL195: 1.109 | AM195: 1.052 | AN195: 0.893 | AO195: 0.683
A196: 2021-02-03T00:15:00 | B196: 0.2 | C196: 0.4 | D196: 0.2 | E196: 0.4 | F196: 0.4 | G196: 0.6 | H196: 16.084 | I196: 0.208 | J196: 0.729 | K196: 1.307 | L196: 0.693 | M196: 0.833 | N196: 1.03 | AB196: 0.372 | AC196: 3.51 | AD196: --- | AE196: --- | AF196: 17 | AG196: 2.47 | AH196: 4.03 | AI196: 29.7 | AJ196: 0.57 | AK196: 0.522 | AL196: 1.107 | AM196: 1.046 | AN196: 0.898 | AO196: 0.683
A197: 2021-02-03T00:30:00 | B197: 0.2 | C197: 0.4 | D197: 0.2 | E197: 0.6 | F197: 0.4 | G197: 0.4 | H197: 16.087 | I197: 0.21 | J197: 0.74 | K197: 1.312 | L197: 0.696 | M197: 0.84 | N197: 1.03 | AB197: 0.378 | AC197: 3.7 | AD197: --- | AE197: --- | AF197: 17.3 | AG197: 2.52 | AH197: 4.03 | AI197: 29.7 | AJ197: 0.573 | AK197: 0.522 | AL197: 1.11 | AM197: 1.052 | AN197: 0.895 | AO197: 0.683
A198: 2021-02-03T00:45:00 | B198: 0.4 | C198: 0.6 | D198: 0.4 | E198: 0.6 | F198: 0.8 | G198: 0.6 | H198: 16.094 | I198: 0.21 | J198: 0.75 | K198: 1.315 | L198: 0.696 | M198: 0.846 | N198: 1.031 | AB198: 0.378 | AC198: 3.88 | AD198: --- | AE198: --- | AF198: 17.1 | AG198: 2.55 | AH198: 4.07 | AI198: 30.1 | AJ198: 0.575 | AK198: 0.524 | AL198: 1.109 | AM198: 1.049 | AN198: 0.888 | AO198: 0.685
A199: 2021-02-03T01:00:00 | B199: 0.6 | C199: 1 | D199: 0.6 | E199: 0.4 | F199: 1 | G199: 0.4 | H199: 16.096 | I199: 0.211 | J199: 0.76 | K199: 1.321 | L199: 0.7 | M199: 0.846 | N199: 1.031 | AB199: 0.381 | AC199: 4.06 | AD199: --- | AE199: --- | AF199: 17.5 | AG199: 2.58 | AH199: 4.03 | AI199: 30.3 | AJ199: 0.577 | AK199: 0.522 | AL199: 1.108 | AM199: 1.059 | AN199: 0.894 | AO199: 0.686
A200: 2021-02-03T01:15:00 | B200: 0.6 | C200: 0.4 | D200: 0.4 | E200: 0.4 | F200: 1 | G200: 0.6 | H200: 16.091 | I200: 0.212 | J200: 0.77 | K200: 1.332 | L200: 0.706 | M200: 0.86 | N200: 1.034 | AB200: 0.383 | AC200: 4.25 | AD200: --- | AE200: --- | AF200: 17 | AG200: 2.58 | AH200: 4.07 | AI200: 30.4 | AJ200: 0.577 | AK200: 0.524 | AL200: 1.115 | AM200: 1.046 | AN200: 0.905 | AO200: 0.687
... 2050 more rows

Sheet Mar
A1: date time | B1: SJB | C1: Dale Head | D1: Portinscale | E1: Honister | F1: Matterdale | G1: Mungrisdale | H1: Thirlmere - Y2 | I1: SJB | J1: Threlkeld | K1: Greta Bridge | L1: Derwent at Portinscale | M1: Greta Keswick Campsite | N1: Derwent at Lodore | Q1: DAILY | R1: SJB | S1: Dale Head | T1: Portinscale | U1: Honister | V1: Matterdale | W1: Mungrisdale | Y1: Check on rainfall calcs | AB1: SJB | AC1: Threlkeld | AD1: Low Briery | AE1: Portinscale | AF1: Ouse Bridge | AG1: Scalehill | AH1: Southwaite Bridge | AI1: Seaton Mill | AJ1: Scalehill | AK1: Southwaite Bridge | AL1: South St Footbridge | AM1: Ouse Bridge | AN1: Kingfisher | AO1: Seaton Mill | AS1: Macro Seaton Flow
A2: TOTALS | B2: =SUM(B3:B2978) -> 331.6 | C2: =SUM(C3:C2978) -> 377 | D2: =SUM(D3:D2978) -> 189 | E2: 623 | F2: 277.2 | G2: 256.8 | R2: =SUM(R3:R33) -> 331.6 | S2: =SUM(S3:S33) -> 377 | T2: 189 | U2: 623 | V2: 277.2 | W2: 256.8 | Y2: =SUM(R2:W2)-SUM(B2:G2) -> 6.366462912e-12 | AB2: Flows in m3/s | AJ2: Levels =m
A3: 2021-03-01 | B3: 0 | C3: 0 | D3: 0 | E3: 0 | F3: 0 | G3: 0 | H3: 16.569 | I3: 0.228 | J3: 0.605 | K3: 1.248 | L3: 0.893 | M3: 1.013 | N3: 1.489 | P3: =2+96 -> 98 | Q3: 2021-03-01 | R3: =SUM(B3:B98) -> 0.2 | S3: =SUM(C3:C98) -> 0.2 | T3: 0 | U3: 0.2 | V3: 0.2 | W3: 0.2 | AB3: 0.427 | AC3: 1.7 | AD3: --- | AE3: --- | AF3: 44.5 | AG3: 4.84 | AH3: 6.15 | AI3: 62.7 | AJ3: 0.705 | AK3: 0.605 | AL3: 1.185 | AM3: 1.633 | AN3: 1.206 | AO3: 0.862 | AS3: 62.66210872
A4: 2021-03-01T00:15:00 | B4: 0 | C4: 0 | D4: 0 | E4: 0 | F4: 0 | G4: 0 | H4: 16.567 | I4: 0.226 | J4: 0.604 | K4: 1.247 | L4: 0.891 | M4: 1.01 | N4: 1.487 | P4: =P3+96 -> 194 | Q4: 2021-03-02 | R4: =SUM(B99:B194) -> 0.2 | S4: =SUM(C99:C194) -> 0.2 | T4: 0 | U4: 0 | V4: 0 | W4: 0 | AB4: 0.422 | AC4: 1.69 | AD4: --- | AE4: --- | AF4: 44.5 | AG4: 4.82 | AH4: 6.15 | AI4: 62.7 | AJ4: 0.704 | AK4: 0.605 | AL4: 1.184 | AM4: 1.632 | AN4: 1.203 | AO4: 0.862 | AS4: 62.66210872
A5: 2021-03-01T00:30:00 | B5: 0 | C5: 0 | D5: 0 | E5: 0 | F5: 0 | G5: 0 | H5: 16.567 | I5: 0.225 | J5: 0.604 | K5: 1.248 | L5: 0.891 | M5: 1.011 | N5: 1.485 | P5: =P4+96 -> 290 | Q5: 2021-03-03 | R5: =SUM(B195:B290) -> 0 | S5: =SUM(C195:C290) -> 0.2 | T5: 0 | U5: 0 | V5: 0 | W5: 0 | AB5: 0.419 | AC5: 1.69 | AD5: --- | AE5: --- | AF5: 44.6 | AG5: 4.82 | AH5: 6.15 | AI5: 62.5 | AJ5: 0.704 | AK5: 0.605 | AL5: 1.183 | AM5: 1.635 | AN5: 1.205 | AO5: 0.861 | AS5: 62.4523118
A6: 2021-03-01T00:45:00 | B6: 0 | C6: 0 | D6: 0 | E6: 0 | F6: 0 | G6: 0 | H6: 16.564 | I6: 0.223 | J6: 0.604 | K6: 1.246 | L6: 0.888 | M6: 1.007 | N6: 1.483 | P6: 386 | Q6: 2021-03-04 | R6: =SUM(B291:B386) -> 0.6 | S6: =SUM(C291:C386) -> 0.4 | T6: 0 | U6: 0.4 | V6: 0.2 | W6: 0.6 | AB6: 0.413 | AC6: 1.69 | AD6: --- | AE6: --- | AF6: 44.3 | AG6: 4.8 | AH6: 6.12 | AI6: 62.3 | AJ6: 0.703 | AK6: 0.604 | AL6: 1.181 | AM6: 1.629 | AN6: 1.201 | AO6: 0.86 | AS6: 62.24246507
A7: 2021-03-01T01:00:00 | B7: 0 | C7: 0 | D7: 0 | E7: 0 | F7: 0 | G7: 0 | H7: 16.564 | I7: 0.222 | J7: 0.604 | K7: 1.245 | L7: 0.885 | M7: 1.006 | N7: 1.48 | P7: 482 | Q7: 2021-03-05 | R7: =SUM(B387:B482) -> 0 | S7: =SUM(C387:C482) -> 0 | T7: 0 | U7: 0 | V7: 0 | W7: 0 | AB7: 0.411 | AC7: 1.69 | AD7: --- | AE7: --- | AF7: 44.2 | AG7: 4.78 | AH7: 6.12 | AI7: 61.6 | AJ7: 0.702 | AK7: 0.604 | AL7: 1.183 | AM7: 1.627 | AN7: 1.199 | AO7: 0.857 | AS7: 61.61262406
A8: 2021-03-01T01:15:00 | B8: 0 | C8: 0 | D8: 0 | E8: 0 | F8: 0 | G8: 0 | H8: 16.567 | I8: 0.221 | J8: 0.603 | K8: 1.245 | L8: 0.885 | M8: 1.005 | N8: 1.478 | P8: 578 | Q8: 2021-03-06 | R8: =SUM(B483:B578) -> 0 | S8: =SUM(C483:C578) -> 0.2 | T8: 0 | U8: 0 | V8: 0 | W8: 0 | AB8: 0.408 | AC8: 1.68 | AD8: --- | AE8: --- | AF8: 44 | AG8: 4.78 | AH8: 6.09 | AI8: 61 | AJ8: 0.702 | AK8: 0.603 | AL8: 1.182 | AM8: 1.623 | AN8: 1.199 | AO8: 0.854 | AS8: 60.98232773
A9: 2021-03-01T01:30:00 | B9: 0 | C9: 0 | D9: 0 | E9: 0 | F9: 0 | G9: 0 | H9: 16.564 | I9: 0.22 | J9: 0.603 | K9: 1.244 | L9: 0.884 | M9: 1.001 | N9: 1.476 | P9: 674 | Q9: 2021-03-07 | R9: =SUM(B579:B674) -> 0 | S9: =SUM(C579:C674) -> 0 | T9: 0.2 | U9: 0 | V9: 0 | W9: 0 | AB9: 0.405 | AC9: 1.68 | AD9: --- | AE9: --- | AF9: 43.8 | AG9: 4.74 | AH9: 6.06 | AI9: 61.2 | AJ9: 0.7 | AK9: 0.602 | AL9: 1.179 | AM9: 1.619 | AN9: 1.199 | AO9: 0.855 | AS9: 61.19247742
A10: 2021-03-01T01:45:00 | B10: 0 | C10: 0 | D10: 0 | E10: 0 | F10: 0 | G10: 0 | H10: 16.563 | I10: 0.219 | J10: 0.603 | K10: 1.244 | L10: 0.882 | M10: 1 | N10: 1.474 | P10: 770 | Q10: 2021-03-08 | R10: =SUM(B675:B770) -> 6 | S10: =SUM(C675:C770) -> 6.4 | T10: 4 | U10: 6.2 | V10: 3.2 | W10: 2 | AB10: 0.402 | AC10: 1.68 | AD10: --- | AE10: --- | AF10: 43.8 | AG10: 4.76 | AH10: 6.03 | AI10: 61.2 | AJ10: 0.701 | AK10: 0.601 | AL10: 1.18 | AM10: 1.619 | AN10: 1.197 | AO10: 0.855 | AS10: 61.19247742
A11: 2021-03-01T02:00:00 | B11: 0 | C11: 0 | D11: 0 | E11: 0 | F11: 0 | G11: 0 | H11: 16.562 | I11: 0.218 | J11: 0.602 | K11: 1.243 | L11: 0.883 | M11: 1 | N11: 1.472 | P11: 866 | Q11: 2021-03-09 | R11: =SUM(B771:B866) -> 18.8 | S11: =SUM(C771:C866) -> 17.6 | T11: 10 | U11: 26.8 | V11: 16.8 | W11: 12.4 | AB11: 0.4 | AC11: 1.67 | AD11: --- | AE11: --- | AF11: 43.5 | AG11: 4.72 | AH11: 6.03 | AI11: 61.2 | AJ11: 0.699 | AK11: 0.601 | AL11: 1.179 | AM11: 1.614 | AN11: 1.191 | AO11: 0.855 | AS11: 61.19247742
A12: 2021-03-01T02:15:00 | B12: 0 | C12: 0 | D12: 0 | E12: 0 | F12: 0 | G12: 0 | H12: 16.566 | I12: 0.216 | J12: 0.601 | K12: 1.243 | L12: 0.88 | M12: 1.002 | N12: 1.47 | P12: 962 | Q12: 2021-03-10 | R12: =SUM(B867:B962) -> 63.6 | S12: =SUM(C867:C962) -> 72.4 | T12: 36.8 | U12: 117 | V12: 58.2 | W12: 49 | AB12: 0.394 | AC12: 1.66 | AD12: --- | AE12: --- | AF12: 43.5 | AG12: 4.72 | AH12: 6.01 | AI12: 60.8 | AJ12: 0.699 | AK12: 0.6 | AL12: 1.18 | AM12: 1.614 | AN12: 1.193 | AO12: 0.853 | AS12: 60.77212685
A13: 2021-03-01T02:30:00 | B13: 0 | C13: 0 | D13: 0 | E13: 0 | F13: 0 | G13: 0 | H13: 16.566 | I13: 0.215 | J13: 0.601 | K13: 1.242 | L13: 0.877 | M13: 0.997 | N13: 1.468 | P13: 1058 | Q13: 2021-03-11 | R13: =SUM(B963:B1058) -> 24 | S13: =SUM(C963:C1058) -> 27.2 | T13: 18.9 | U13: 59.2 | V13: 33.2 | W13: 30.2 | AB13: 0.391 | AC13: 1.66 | AD13: --- | AE13: --- | AF13: 43.3 | AG13: 4.7 | AH13: 6.01 | AI13: 60.6 | AJ13: 0.698 | AK13: 0.6 | AL13: 1.178 | AM13: 1.611 | AN13: 1.195 | AO13: 0.852 | AS13: 60.56187458
A14: 2021-03-01T02:45:00 | B14: 0 | C14: 0 | D14: 0 | E14: 0 | F14: 0 | G14: 0 | H14: 16.564 | I14: 0.213 | J14: 0.601 | K14: 1.242 | L14: 0.876 | M14: 0.995 | N14: 1.466 | P14: 1154 | Q14: 2021-03-12 | R14: =SUM(B1059:B1154) -> 11.4 | S14: 18.4 | T14: 11.7 | U14: 20.6 | V14: 14 | W14: 17 | AB14: 0.386 | AC14: 1.66 | AD14: --- | AE14: --- | AF14: 43.4 | AG14: 4.7 | AH14: 5.95 | AI14: 60.6 | AJ14: 0.698 | AK14: 0.598 | AL14: 1.178 | AM14: 1.612 | AN14: 1.19 | AO14: 0.852 | AS14: 60.56187458
A15: 2021-03-01T03:00:00 | B15: 0 | C15: 0 | D15: 0 | E15: 0 | F15: 0 | G15: 0 | H15: 16.566 | I15: 0.212 | J15: 0.601 | K15: 1.241 | L15: 0.876 | M15: 0.991 | N15: 1.465 | P15: 1250 | Q15: 2021-03-13 | R15: =SUM(B1155:B1250) -> 19.8 | S15: =SUM(C1155:C1250) -> 23 | T15: 15.1 | U15: 29.6 | V15: 9 | W15: 16.6 | AB15: 0.383 | AC15: 1.66 | AD15: --- | AE15: --- | AF15: 43 | AG15: 4.68 | AH15: 5.95 | AI15: 60.8 | AJ15: 0.697 | AK15: 0.598 | AL15: 1.177 | AM15: 1.604 | AN15: 1.187 | AO15: 0.853 | AS15: 60.77212685
A16: 2021-03-01T03:15:00 | B16: 0 | C16: 0 | D16: 0 | E16: 0 | F16: 0 | G16: 0 | H16: 16.564 | I16: 0.212 | J16: 0.601 | K16: 1.241 | L16: 0.877 | M16: 0.991 | N16: 1.462 | P16: 1346 | Q16: 2021-03-14 | R16: =SUM(B1251:B1346) -> 6.8 | S16: =SUM(C1251:C1346) -> 6.2 | T16: 4.1 | U16: 8.6 | V16: 4.6 | W16: 5 | AB16: 0.383 | AC16: 1.66 | AD16: --- | AE16: --- | AF16: 42.9 | AG16: 4.66 | AH16: 5.92 | AI16: 60.8 | AJ16: 0.696 | AK16: 0.597 | AL16: 1.177 | AM16: 1.603 | AN16: 1.185 | AO16: 0.853 | AS16: 60.77212685
A17: 2021-03-01T03:30:00 | B17: 0 | C17: 0 | D17: 0 | E17: 0 | F17: 0 | G17: 0 | H17: 16.567 | I17: 0.211 | J17: 0.6 | K17: 1.24 | L17: 0.871 | M17: 0.99 | N17: 1.461 | P17: 1442 | Q17: 2021-03-15 | R17: =SUM(B1347:B1442) -> 1.8 | S17: =SUM(C1347:C1442) -> 1.6 | T17: 0.2 | U17: 0.4 | V17: 0.6 | W17: 1 | AB17: 0.381 | AC17: 1.65 | AD17: --- | AE17: --- | AF17: 42.5 | AG17: 4.62 | AH17: 5.92 | AI17: 60.2 | AJ17: 0.694 | AK17: 0.597 | AL17: 1.176 | AM17: 1.596 | AN17: 1.185 | AO17: 0.85 | AS17: 60.14121505
A18: 2021-03-01T03:45:00 | B18: 0 | C18: 0 | D18: 0 | E18: 0 | F18: 0 | G18: 0 | H18: 16.567 | I18: 0.209 | J18: 0.6 | K18: 1.24 | L18: 0.872 | M18: 0.989 | N18: 1.458 | P18: 1538 | Q18: 2021-03-16 | R18: =SUM(B1443:B1538) -> 4.8 | S18: =SUM(C1443:C1538) -> 5.6 | T18: 3.1 | U18: 7.4 | V18: 1.6 | W18: 1.8 | AB18: 0.375 | AC18: 1.65 | AD18: --- | AE18: --- | AF18: 42.7 | AG18: 4.64 | AH18: 5.92 | AI18: 59.8 | AJ18: 0.695 | AK18: 0.597 | AL18: 1.174 | AM18: 1.6 | AN18: 1.182 | AO18: 0.848 | AS18: 59.72034751
A19: 2021-03-01T04:00:00 | B19: 0 | C19: 0 | D19: 0 | E19: 0 | F19: 0 | G19: 0 | H19: 16.564 | I19: 0.208 | J19: 0.6 | K19: 1.238 | L19: 0.869 | M19: 0.987 | N19: 1.456 | P19: 1634 | Q19: 2021-03-17 | R19: =SUM(B1539:B1634) -> 0 | S19: =SUM(C1539:C1634) -> 0 | T19: 0 | U19: 0 | V19: 0 | W19: 0 | AB19: 0.372 | AC19: 1.65 | AD19: --- | AE19: --- | AF19: 42.6 | AG19: 4.64 | AH19: 5.9 | AI19: 59.1 | AJ19: 0.695 | AK19: 0.596 | AL19: 1.173 | AM19: 1.597 | AN19: 1.183 | AO19: 0.845 | AS19: 59.08865249
A20: 2021-03-01T04:15:00 | B20: 0 | C20: 0 | D20: 0 | E20: 0 | F20: 0 | G20: 0 | H20: 16.566 | I20: 0.208 | J20: 0.6 | K20: 1.239 | L20: 0.871 | M20: 0.984 | N20: 1.454 | P20: 1730 | Q20: 2021-03-18 | R20: =SUM(B1635:B1730) -> 0 | S20: =SUM(C1635:C1730) -> 0 | T20: 0 | U20: 0 | V20: 0 | W20: 0 | AB20: 0.372 | AC20: 1.65 | AD20: --- | AE20: --- | AF20: 42.3 | AG20: 4.62 | AH20: 5.9 | AI20: 60.2 | AJ20: 0.694 | AK20: 0.596 | AL20: 1.173 | AM20: 1.591 | AN20: 1.183 | AO20: 0.85 | AS20: 60.14121505
A21: 2021-03-01T04:30:00 | B21: 0 | C21: 0 | D21: 0 | E21: 0 | F21: 0 | G21: 0 | H21: 16.564 | I21: 0.206 | J21: 0.6 | K21: 1.237 | L21: 0.865 | M21: 0.985 | N21: 1.452 | P21: 1826 | Q21: 2021-03-19 | R21: =SUM(B1731:B1826) -> 0 | S21: =SUM(C1731:C1826) -> 0 | T21: 0 | U21: 0 | V21: 0 | W21: 0 | AB21: 0.367 | AC21: 1.65 | AD21: --- | AE21: --- | AF21: 42.3 | AG21: 4.62 | AH21: 5.87 | AI21: 59.3 | AJ21: 0.694 | AK21: 0.595 | AL21: 1.174 | AM21: 1.591 | AN21: 1.177 | AO21: 0.846 | AS21: 59.29927027
A22: 2021-03-01T04:45:00 | B22: 0 | C22: 0 | D22: 0 | E22: 0 | F22: 0 | G22: 0 | H22: 16.564 | I22: 0.205 | J22: 0.599 | K22: 1.238 | L22: 0.866 | M22: 0.983 | N22: 1.451 | P22: 1922 | Q22: 2021-03-20 | R22: =SUM(B1827:B1922) -> 0 | S22: =SUM(C1827:C1922) -> 0 | T22: =SUM(D1827:D1922) -> 0 | U22: 0 | V22: 0 | W22: 0 | AB22: 0.364 | AC22: 1.63 | AD22: --- | AE22: --- | AF22: 42 | AG22: 4.62 | AH22: 5.84 | AI22: 59.5 | AJ22: 0.694 | AK22: 0.594 | AL22: 1.173 | AM22: 1.585 | AN22: 1.182 | AO22: 0.847 | AS22: 59.50983521
A23: 2021-03-01T05:00:00 | B23: 0 | C23: 0 | D23: 0 | E23: 0 | F23: 0 | G23: 0 | H23: 16.563 | I23: 0.205 | J23: 0.598 | K23: 1.237 | L23: 0.864 | M23: 0.983 | N23: 1.448 | P23: 2018 | Q23: 2021-03-21 | R23: =SUM(B1923:B2018) -> 0 | S23: =SUM(C1923:C2018) -> 0 | T23: =SUM(D1923:D2018) -> 0 | U23: 0 | V23: 0 | W23: 0 | AB23: 0.364 | AC23: 1.62 | AD23: --- | AE23: --- | AF23: 42 | AG23: 4.6 | AH23: 5.84 | AI23: 59.1 | AJ23: 0.693 | AK23: 0.594 | AL23: 1.171 | AM23: 1.586 | AN23: 1.176 | AO23: 0.845 | AS23: 59.08865249
A24: 2021-03-01T05:15:00 | B24: 0 | C24: 0 | D24: 0 | E24: 0 | F24: 0 | G24: 0 | H24: 16.562 | I24: 0.204 | J24: 0.598 | K24: 1.237 | L24: 0.866 | M24: 0.979 | N24: 1.447 | P24: 2114 | Q24: 2021-03-22 | R24: =SUM(B2019:B2114) -> 0 | S24: =SUM(C2019:C2114) -> 0 | T24: =SUM(D2019:D2114) -> 0 | U24: 0.2 | V24: 0 | W24: 0 | AB24: 0.362 | AC24: 1.62 | AD24: --- | AE24: --- | AF24: 41.7 | AG24: 4.56 | AH24: 5.81 | AI24: 58.9 | AJ24: 0.691 | AK24: 0.593 | AL24: 1.173 | AM24: 1.58 | AN24: 1.176 | AO24: 0.844 | AS24: 58.87798164
A25: 2021-03-01T05:30:00 | B25: 0 | C25: 0 | D25: 0 | E25: 0 | F25: 0 | G25: 0 | H25: 16.564 | I25: 0.202 | J25: 0.598 | K25: 1.235 | L25: 0.863 | M25: 0.979 | N25: 1.444 | P25: 2210 | Q25: 2021-03-23 | R25: =SUM(B2115:B2210) -> 4.2 | S25: =SUM(C2115:C2210) -> 4.8 | T25: =SUM(D2115:D2210) -> 0.8 | U25: 5.4 | V25: 4.2 | W25: 1.8 | AB25: 0.356 | AC25: 1.62 | AD25: --- | AE25: --- | AF25: 41.8 | AG25: 4.54 | AH25: 5.81 | AI25: 58.1 | AJ25: 0.69 | AK25: 0.593 | AL25: 1.17 | AM25: 1.582 | AN25: 1.178 | AO25: 0.84 | AS25: 58.03476325
A26: 2021-03-01T05:45:00 | B26: 0 | C26: 0 | D26: 0 | E26: 0 | F26: 0 | G26: 0 | H26: 16.56 | I26: 0.201 | J26: 0.597 | K26: 1.236 | L26: 0.861 | M26: 0.979 | N26: 1.442 | P26: 2306 | Q26: 2021-03-24 | R26: =SUM(B2211:B2306) -> 12.4 | S26: =SUM(C2211:C2306) -> 10.2 | T26: =SUM(D2211:D2306) -> 5.2 | U26: 28.6 | V26: 11 | W26: 8.8 | AB26: 0.354 | AC26: 1.61 | AD26: --- | AE26: --- | AF26: 41.3 | AG26: 4.5 | AH26: 5.76 | AI26: 59.1 | AJ26: 0.688 | AK26: 0.591 | AL26: 1.171 | AM26: 1.573 | AN26: 1.167 | AO26: 0.845 | AS26: 59.08865249
A27: 2021-03-01T06:00:00 | B27: 0 | C27: 0 | D27: 0 | E27: 0 | F27: 0 | G27: 0 | H27: 16.56 | I27: 0.201 | J27: 0.597 | K27: 1.234 | L27: 0.858 | M27: 0.976 | N27: 1.441 | P27: 2402 | Q27: 2021-03-25 | R27: =SUM(B2307:B2402) -> 5.4 | S27: =SUM(C2307:C2402) -> 5.4 | T27: =SUM(D2307:D2402) -> 3.1 | U27: 8.6 | V27: 3.6 | W27: 5.6 | AB27: 0.354 | AC27: 1.61 | AD27: --- | AE27: --- | AF27: 41.5 | AG27: 4.5 | AH27: 5.76 | AI27: 58.3 | AJ27: 0.688 | AK27: 0.591 | AL27: 1.17 | AM27: 1.576 | AN27: 1.171 | AO27: 0.841 | AS27: 58.24564854
A28: 2021-03-01T06:15:00 | B28: 0 | C28: 0 | D28: 0 | E28: 0 | F28: 0.2 | G28: 0 | H28: 16.559 | I28: 0.2 | J28: 0.597 | K28: 1.233 | L28: 0.858 | M28: 0.977 | N28: 1.438 | P28: 2498 | Q28: 2021-03-26 | R28: =SUM(B2403:B2498) -> 26 | S28: =SUM(C2403:C2498) -> 25.6 | T28: =SUM(D2403:D2498) -> 15.1 | U28: 30.6 | V28: 27 | W28: 26.8 | AB28: 0.351 | AC28: 1.61 | AD28: --- | AE28: --- | AF28: 41.6 | AG28: 4.5 | AH28: 5.73 | AI28: 57.4 | AJ28: 0.688 | AK28: 0.59 | AL28: 1.17 | AM28: 1.578 | AN28: 1.171 | AO28: 0.837 | AS28: 57.40178151
A29: 2021-03-01T06:30:00 | B29: 0 | C29: 0 | D29: 0 | E29: 0 | F29: 0 | G29: 0 | H29: 16.56 | I29: 0.199 | J29: 0.596 | K29: 1.235 | L29: 0.858 | M29: 0.974 | N29: 1.438 | P29: 2594 | Q29: 2021-03-27 | R29: =SUM(B2499:B2594) -> 19.4 | S29: =SUM(C2499:C2594) -> 20.6 | T29: =SUM(D2499:D2594) -> 13.6 | U29: 42 | V29: 24 | W29: 23.6 | AB29: 0.349 | AC29: 1.6 | AD29: --- | AE29: --- | AF29: 41.3 | AG29: 4.5 | AH29: 5.73 | AI29: 58.1 | AJ29: 0.688 | AK29: 0.59 | AL29: 1.17 | AM29: 1.572 | AN29: 1.17 | AO29: 0.84 | AS29: 58.03476325
A30: 2021-03-01T06:45:00 | B30: 0 | C30: 0 | D30: 0 | E30: 0 | F30: 0 | G30: 0 | H30: 16.559 | I30: 0.198 | J30: 0.596 | K30: 1.235 | L30: 0.856 | M30: 0.97 | N30: 1.438 | P30: 2690 | Q30: 2021-03-28 | R30: =SUM(B2595:B2690) -> 80.4 | S30: =SUM(C2595:C2690) -> 97.4 | T30: =SUM(D2595:D2690) -> 37.9 | U30: 172.4 | V30: 53.2 | W30: 43.8 | AB30: 0.346 | AC30: 1.6 | AD30: --- | AE30: --- | AF30: 41 | AG30: 4.48 | AH30: 5.73 | AI30: 57.9 | AJ30: 0.687 | AK30: 0.59 | AL30: 1.169 | AM30: 1.567 | AN30: 1.165 | AO30: 0.839 | AS30: 57.8238238
A31: 2021-03-01T07:00:00 | B31: 0 | C31: 0 | D31: 0 | E31: 0 | F31: 0 | G31: 0 | H31: 16.557 | I31: 0.198 | J31: 0.596 | K31: 1.234 | L31: 0.852 | M31: 0.971 | N31: 1.438 | P31: 2786 | Q31: 2021-03-29 | R31: =SUM(B2691:B2786) -> 25.4 | S31: =SUM(C2691:C2786) -> 32.8 | T31: =SUM(D2691:D2786) -> 9.2 | U31: 58.4 | V31: 12.6 | W31: 10.2 | AB31: 0.346 | AC31: 1.6 | AD31: --- | AE31: --- | AF31: 41 | AG31: 4.48 | AH31: 5.7 | AI31: 57.2 | AJ31: 0.687 | AK31: 0.589 | AL31: 1.167 | AM31: 1.566 | AN31: 1.168 | AO31: 0.836 | AS31: 57.1906782
A32: 2021-03-01T07:15:00 | B32: 0 | C32: 0 | D32: 0 | E32: 0 | F32: 0 | G32: 0 | H32: 16.557 | I32: 0.197 | J32: 0.596 | K32: 1.235 | L32: 0.853 | M32: 0.97 | N32: 1.438 | P32: 2882 | Q32: 2021-03-30 | R32: =SUM(B2787:B2882) -> 0.4 | S32: =SUM(C2787:C2882) -> 0.6 | T32: =SUM(D2787:D2882) -> 0 | U32: 0.4 | V32: 0 | W32: 0.4 | AB32: 0.343 | AC32: 1.6 | AD32: --- | AE32: --- | AF32: 41 | AG32: 4.46 | AH32: 5.68 | AI32: 57.4 | AJ32: 0.686 | AK32: 0.588 | AL32: 1.169 | AM32: 1.566 | AN32: 1.158 | AO32: 0.837 | AS32: 57.40178151
A33: 2021-03-01T07:30:00 | B33: 0 | C33: 0 | D33: 0 | E33: 0 | F33: 0 | G33: 0 | H33: 16.557 | I33: 0.197 | J33: 0.596 | K33: 1.234 | L33: 0.851 | M33: 0.966 | N33: 1.438 | P33: 2978 | Q33: 2021-03-31 | R33: =SUM(B2883:B2978) -> 0 | S33: =SUM(C2883:C2978) -> 0 | T33: =SUM(D2883:D2978) -> 0 | U33: 0 | V33: 0 | W33: 0 | AB33: 0.343 | AC33: 1.6 | AD33: --- | AE33: --- | AF33: 40.7 | AG33: 4.44 | AH33: 5.65 | AI33: 56.6 | AJ33: 0.685 | AK33: 0.587 | AL33: 1.168 | AM33: 1.562 | AN33: 1.163 | AO33: 0.833 | AS33: 56.55703689
A34: 2021-03-01T07:45:00 | B34: 0 | C34: 0 | D34: 0 | E34: 0 | F34: 0 | G34: 0 | H34: 16.556 | I34: 0.195 | J34: 0.595 | K34: 1.232 | L34: 0.851 | M34: 0.964 | N34: 1.438 | AB34: 0.338 | AC34: 1.59 | AD34: --- | AE34: --- | AF34: 40.5 | AG34: 4.42 | AH34: 5.65 | AI34: 56.6 | AJ34: 0.684 | AK34: 0.587 | AL34: 1.166 | AM34: 1.557 | AN34: 1.161 | AO34: 0.833 | AS34: 56.55703689
A35: 2021-03-01T08:00:00 | B35: 0 | C35: 0 | D35: 0 | E35: 0 | F35: 0 | G35: 0 | H35: 16.554 | I35: 0.195 | J35: 0.596 | K35: 1.231 | L35: 0.85 | M35: 0.967 | N35: 1.438 | AB35: 0.338 | AC35: 1.6 | AD35: --- | AE35: --- | AF35: 40.5 | AG35: 4.42 | AH35: 5.65 | AI35: 57.6 | AJ35: 0.684 | AK35: 0.587 | AL35: 1.165 | AM35: 1.557 | AN35: 1.163 | AO35: 0.838 | AS35: 57.61282996
A36: 2021-03-01T08:15:00 | B36: 0 | C36: 0 | D36: 0 | E36: 0 | F36: 0 | G36: 0 | H36: 16.553 | I36: 0.194 | J36: 0.595 | K36: 1.23 | L36: 0.849 | M36: 0.966 | N36: 1.438 | AB36: 0.336 | AC36: 1.59 | AD36: --- | AE36: --- | AF36: 40.3 | AG36: 4.4 | AH36: 5.62 | AI36: 56.6 | AJ36: 0.683 | AK36: 0.586 | AL36: 1.166 | AM36: 1.553 | AN36: 1.163 | AO36: 0.833 | AS36: 56.55703689
A37: 2021-03-01T08:30:00 | B37: 0 | C37: 0 | D37: 0 | E37: 0 | F37: 0 | G37: 0 | H37: 16.553 | I37: 0.194 | J37: 0.594 | K37: 1.23 | L37: 0.847 | M37: 0.962 | N37: 1.438 | AB37: 0.336 | AC37: 1.58 | AD37: --- | AE37: --- | AF37: 40.2 | AG37: 4.4 | AH37: 5.62 | AI37: 56 | AJ37: 0.683 | AK37: 0.586 | AL37: 1.166 | AM37: 1.551 | AN37: 1.154 | AO37: 0.83 | AS37: 55.92289352
A38: 2021-03-01T08:45:00 | B38: 0 | C38: 0 | D38: 0 | E38: 0 | F38: 0 | G38: 0.2 | H38: 16.553 | I38: 0.193 | J38: 0.594 | K38: 1.23 | L38: 0.845 | M38: 0.961 | N38: 1.438 | AB38: 0.333 | AC38: 1.58 | AD38: --- | AE38: --- | AF38: 39.9 | AG38: 4.36 | AH38: 5.57 | AI38: 56.2 | AJ38: 0.681 | AK38: 0.584 | AL38: 1.164 | AM38: 1.545 | AN38: 1.155 | AO38: 0.831 | AS38: 56.13433083
A39: 2021-03-01T09:00:00 | B39: 0 | C39: 0 | D39: 0 | E39: 0 | F39: 0 | G39: 0 | H39: 16.553 | I39: 0.192 | J39: 0.593 | K39: 1.229 | L39: 0.845 | M39: 0.957 | N39: 1.418 | AB39: 0.33 | AC39: 1.56 | AD39: --- | AE39: --- | AF39: 39.9 | AG39: 4.38 | AH39: 5.57 | AI39: 55.3 | AJ39: 0.682 | AK39: 0.584 | AL39: 1.164 | AM39: 1.545 | AN39: 1.153 | AO39: 0.827 | AS39: 55.2882416
A40: 2021-03-01T09:15:00 | B40: 0 | C40: 0 | D40: 0 | E40: 0 | F40: 0 | G40: 0 | H40: 16.552 | I40: 0.192 | J40: 0.593 | K40: 1.229 | L40: 0.841 | M40: 0.957 | N40: 1.417 | AB40: 0.33 | AC40: 1.56 | AD40: --- | AE40: --- | AF40: 39.8 | AG40: 4.36 | AH40: 5.54 | AI40: 55.5 | AJ40: 0.681 | AK40: 0.583 | AL40: 1.163 | AM40: 1.543 | AN40: 1.156 | AO40: 0.828 | AS40: 55.49984915
A41: 2021-03-01T09:30:00 | B41: 0.2 | C41: 0 | D41: 0 | E41: 0.2 | F41: 0 | G41: 0 | H41: 16.55 | I41: 0.191 | J41: 0.593 | K41: 1.23 | L41: 0.842 | M41: 0.956 | N41: 1.414 | AB41: 0.328 | AC41: 1.56 | AD41: --- | AE41: --- | AF41: 39.5 | AG41: 4.31 | AH41: 5.54 | AI41: 55.7 | AJ41: 0.678 | AK41: 0.583 | AL41: 1.164 | AM41: 1.538 | AN41: 1.155 | AO41: 0.829 | AS41: 55.71139971
A42: 2021-03-01T09:45:00 | B42: 0 | C42: 0.2 | D42: 0 | E42: 0 | F42: 0 | G42: 0 | H42: 16.552 | I42: 0.191 | J42: 0.593 | K42: 1.23 | L42: 0.838 | M42: 0.955 | N42: 1.412 | AB42: 0.328 | AC42: 1.56 | AD42: --- | AE42: --- | AF42: 39.8 | AG42: 4.31 | AH42: 5.54 | AI42: 55.1 | AJ42: 0.678 | AK42: 0.583 | AL42: 1.162 | AM42: 1.543 | AN42: 1.152 | AO42: 0.826 | AS42: 55.07657679
A43: 2021-03-01T10:00:00 | B43: 0 | C43: 0 | D43: 0 | E43: 0 | F43: 0 | G43: 0 | H43: 16.552 | I43: 0.191 | J43: 0.593 | K43: 1.228 | L43: 0.84 | M43: 0.954 | N43: 1.409 | AB43: 0.328 | AC43: 1.56 | AD43: --- | AE43: --- | AF43: 39.5 | AG43: 4.29 | AH43: 5.49 | AI43: 55.3 | AJ43: 0.677 | AK43: 0.581 | AL43: 1.16 | AM43: 1.538 | AN43: 1.151 | AO43: 0.827 | AS43: 55.2882416
A44: 2021-03-01T10:15:00 | B44: 0 | C44: 0 | D44: 0 | E44: 0 | F44: 0 | G44: 0 | H44: 16.553 | I44: 0.19 | J44: 0.593 | K44: 1.23 | L44: 0.837 | M44: 0.953 | N44: 1.406 | AB44: 0.325 | AC44: 1.56 | AD44: --- | AE44: --- | AF44: 39.1 | AG44: 4.29 | AH44: 5.49 | AI44: 55.3 | AJ44: 0.677 | AK44: 0.581 | AL44: 1.161 | AM44: 1.531 | AN44: 1.147 | AO44: 0.827 | AS44: 55.2882416
A45: 2021-03-01T10:30:00 | B45: 0 | C45: 0 | D45: 0 | E45: 0 | F45: 0 | G45: 0 | H45: 16.553 | I45: 0.19 | J45: 0.592 | K45: 1.228 | L45: 0.838 | M45: 0.95 | N45: 1.404 | AB45: 0.325 | AC45: 1.55 | AD45: --- | AE45: --- | AF45: 39.1 | AG45: 4.29 | AH45: 5.46 | AI45: 55.1 | AJ45: 0.677 | AK45: 0.58 | AL45: 1.16 | AM45: 1.531 | AN45: 1.147 | AO45: 0.826 | AS45: 55.07657679
A46: 2021-03-01T10:45:00 | B46: 0 | C46: 0 | D46: 0 | E46: 0 | F46: 0 | G46: 0 | H46: 16.554 | I46: 0.189 | J46: 0.592 | K46: 1.227 | L46: 0.835 | M46: 0.949 | N46: 1.402 | AB46: 0.323 | AC46: 1.55 | AD46: --- | AE46: --- | AF46: 38.9 | AG46: 4.29 | AH46: 5.46 | AI46: 54.5 | AJ46: 0.677 | AK46: 0.58 | AL46: 1.16 | AM46: 1.526 | AN46: 1.148 | AO46: 0.823 | AS46: 54.44123639
A47: 2021-03-01T11:00:00 | B47: 0 | C47: 0 | D47: 0 | E47: 0 | F47: 0 | G47: 0 | H47: 16.557 | I47: 0.188 | J47: 0.591 | K47: 1.226 | L47: 0.836 | M47: 0.946 | N47: 1.399 | AB47: 0.32 | AC47: 1.54 | AD47: --- | AE47: --- | AF47: 38.8 | AG47: 4.29 | AH47: 5.46 | AI47: 54.9 | AJ47: 0.677 | AK47: 0.58 | AL47: 1.158 | AM47: 1.524 | AN47: 1.147 | AO47: 0.825 | AS47: 54.86485449
A48: 2021-03-01T11:15:00 | B48: 0 | C48: 0 | D48: 0 | E48: 0 | F48: 0 | G48: 0 | H48: 16.557 | I48: 0.188 | J48: 0.591 | K48: 1.227 | L48: 0.832 | M48: 0.949 | N48: 1.398 | AB48: 0.32 | AC48: 1.54 | AD48: --- | AE48: --- | AF48: 38.8 | AG48: 4.29 | AH48: 5.43 | AI48: 54.5 | AJ48: 0.677 | AK48: 0.579 | AL48: 1.157 | AM48: 1.524 | AN48: 1.144 | AO48: 0.823 | AS48: 54.44123639
A49: 2021-03-01T11:30:00 | B49: 0 | C49: 0 | D49: 0 | E49: 0 | F49: 0 | G49: 0 | H49: 16.556 | I49: 0.188 | J49: 0.591 | K49: 1.225 | L49: 0.832 | M49: 0.946 | N49: 1.396 | AB49: 0.32 | AC49: 1.54 | AD49: --- | AE49: --- | AF49: 38.8 | AG49: 4.23 | AH49: 5.43 | AI49: 54.5 | AJ49: 0.674 | AK49: 0.579 | AL49: 1.159 | AM49: 1.525 | AN49: 1.137 | AO49: 0.823 | AS49: 54.44123639
A50: 2021-03-01T11:45:00 | B50: 0 | C50: 0 | D50: 0 | E50: 0 | F50: 0 | G50: 0 | H50: 16.557 | I50: 0.188 | J50: 0.591 | K50: 1.225 | L50: 0.829 | M50: 0.942 | N50: 1.394 | AB50: 0.32 | AC50: 1.54 | AD50: --- | AE50: --- | AF50: 38.6 | AG50: 4.25 | AH50: 5.41 | AI50: 53.8 | AJ50: 0.675 | AK50: 0.578 | AL50: 1.157 | AM50: 1.52 | AN50: 1.134 | AO50: 0.82 | AS50: 53.8053716
A51: 2021-03-01T12:00:00 | B51: 0 | C51: 0 | D51: 0 | E51: 0 | F51: 0 | G51: 0 | H51: 16.557 | I51: 0.187 | J51: 0.591 | K51: 1.226 | L51: 0.83 | M51: 0.94 | N51: 1.392 | AB51: 0.318 | AC51: 1.54 | AD51: --- | AE51: --- | AF51: 38.3 | AG51: 4.23 | AH51: 5.38 | AI51: 53.4 | AJ51: 0.674 | AK51: 0.577 | AL51: 1.157 | AM51: 1.514 | AN51: 1.137 | AO51: 0.818 | AS51: 53.38116692
A52: 2021-03-01T12:15:00 | B52: 0 | C52: 0 | D52: 0 | E52: 0 | F52: 0 | G52: 0 | H52: 16.557 | I52: 0.187 | J52: 0.591 | K52: 1.225 | L52: 0.83 | M52: 0.944 | N52: 1.39 | AB52: 0.318 | AC52: 1.54 | AD52: --- | AE52: --- | AF52: 38.3 | AG52: 4.21 | AH52: 5.38 | AI52: 53.8 | AJ52: 0.673 | AK52: 0.577 | AL52: 1.156 | AM52: 1.514 | AN52: 1.137 | AO52: 0.82 | AS52: 53.8053716
A53: 2021-03-01T12:30:00 | B53: 0 | C53: 0 | D53: 0 | E53: 0 | F53: 0 | G53: 0 | H53: 16.559 | I53: 0.187 | J53: 0.59 | K53: 1.227 | L53: 0.829 | M53: 0.937 | N53: 1.389 | AB53: 0.318 | AC53: 1.53 | AD53: --- | AE53: --- | AF53: 38.2 | AG53: 4.21 | AH53: 5.38 | AI53: 53.6 | AJ53: 0.673 | AK53: 0.577 | AL53: 1.157 | AM53: 1.512 | AN53: 1.13 | AO53: 0.819 | AS53: 53.59329892
A54: 2021-03-01T12:45:00 | B54: 0 | C54: 0 | D54: 0 | E54: 0 | F54: 0 | G54: 0 | H54: 16.557 | I54: 0.187 | J54: 0.59 | K54: 1.224 | L54: 0.829 | M54: 0.941 | N54: 1.387 | AB54: 0.318 | AC54: 1.53 | AD54: --- | AE54: --- | AF54: 38.1 | AG54: 4.19 | AH54: 5.35 | AI54: 53 | AJ54: 0.672 | AK54: 0.576 | AL54: 1.154 | AM54: 1.511 | AN54: 1.137 | AO54: 0.816 | AS54: 52.9567239
A55: 2021-03-01T13:00:00 | B55: 0 | C55: 0 | D55: 0 | E55: 0 | F55: 0 | G55: 0 | H55: 16.559 | I55: 0.186 | J55: 0.59 | K55: 1.224 | L55: 0.825 | M55: 0.939 | N55: 1.385 | AB55: 0.315 | AC55: 1.53 | AD55: --- | AE55: --- | AF55: 38.1 | AG55: 4.17 | AH55: 5.35 | AI55: 52.8 | AJ55: 0.671 | AK55: 0.576 | AL55: 1.154 | AM55: 1.51 | AN55: 1.131 | AO55: 0.815 | AS55: 53.30416522
A56: 2021-03-01T13:15:00 | B56: 0 | C56: 0 | D56: 0 | E56: 0 | F56: 0 | G56: 0 | H56: 16.556 | I56: 0.186 | J56: 0.59 | K56: 1.226 | L56: 0.824 | M56: 0.938 | N56: 1.383 | AB56: 0.315 | AC56: 1.53 | AD56: --- | AE56: --- | AF56: 37.9 | AG56: 4.17 | AH56: 5.33 | AI56: 52.8 | AJ56: 0.671 | AK56: 0.575 | AL56: 1.154 | AM56: 1.506 | AN56: 1.133 | AO56: 0.815 | AS56: 53.30416522
A57: 2021-03-01T13:30:00 | B57: 0 | C57: 0 | D57: 0 | E57: 0 | F57: 0 | G57: 0 | H57: 16.55 | I57: 0.186 | J57: 0.59 | K57: 1.227 | L57: 0.823 | M57: 0.935 | N57: 1.381 | AB57: 0.315 | AC57: 1.53 | AD57: --- | AE57: --- | AF57: 37.6 | AG57: 4.17 | AH57: 5.3 | AI57: 53 | AJ57: 0.671 | AK57: 0.574 | AL57: 1.153 | AM57: 1.5 | AN57: 1.131 | AO57: 0.816 | AS57: 52.9567239
A58: 2021-03-01T13:45:00 | B58: 0 | C58: 0 | D58: 0 | E58: 0 | F58: 0 | G58: 0 | H58: 16.56 | I58: 0.185 | J58: 0.59 | K58: 1.225 | L58: 0.82 | M58: 0.932 | N58: 1.379 | AB58: 0.312 | AC58: 1.53 | AD58: --- | AE58: --- | AF58: 37.6 | AG58: 4.17 | AH58: 5.3 | AI58: 52.3 | AJ58: 0.671 | AK58: 0.574 | AL58: 1.151 | AM58: 1.5 | AN58: 1.133 | AO58: 0.812 | AS58: 52.78104903
A59: 2021-03-01T14:00:00 | B59: 0 | C59: 0 | D59: 0 | E59: 0 | F59: 0 | G59: 0 | H59: 16.557 | I59: 0.187 | J59: 0.59 | K59: 1.224 | L59: 0.82 | M59: 0.934 | N59: 1.378 | AB59: 0.318 | AC59: 1.53 | AD59: --- | AE59: --- | AF59: 37.6 | AG59: 4.13 | AH59: 5.27 | AI59: 51.9 | AJ59: 0.669 | AK59: 0.573 | AL59: 1.151 | AM59: 1.5 | AN59: 1.129 | AO59: 0.81 | AS59: 52.43224017
A60: 2021-03-01T14:15:00 | B60: 0 | C60: 0 | D60: 0 | E60: 0 | F60: 0 | G60: 0 | H60: 16.553 | I60: 0.187 | J60: 0.59 | K60: 1.225 | L60: 0.819 | M60: 0.933 | N60: 1.376 | AB60: 0.318 | AC60: 1.53 | AD60: --- | AE60: --- | AF60: 37.4 | AG60: 4.1 | AH60: 5.27 | AI60: 52.3 | AJ60: 0.667 | AK60: 0.573 | AL60: 1.15 | AM60: 1.497 | AN60: 1.128 | AO60: 0.812 | AS60: 52.78104903
A61: 2021-03-01T14:30:00 | B61: 0 | C61: 0 | D61: 0 | E61: 0 | F61: 0 | G61: 0 | H61: 16.56 | I61: 0.188 | J61: 0.59 | K61: 1.223 | L61: 0.818 | M61: 0.932 | N61: 1.374 | AB61: 0.32 | AC61: 1.53 | AD61: --- | AE61: --- | AF61: 37.1 | AG61: 4.12 | AH61: 5.27 | AI61: 52.6 | AJ61: 0.668 | AK61: 0.573 | AL61: 1.149 | AM61: 1.492 | AN61: 1.128 | AO61: 0.814 | AS61: 53.12980604
A62: 2021-03-01T14:45:00 | B62: 0 | C62: 0 | D62: 0 | E62: 0 | F62: 0 | G62: 0 | H62: 16.557 | I62: 0.188 | J62: 0.59 | K62: 1.222 | L62: 0.82 | M62: 0.929 | N62: 1.372 | AB62: 0.32 | AC62: 1.53 | AD62: --- | AE62: --- | AF62: 36.9 | AG62: 4.1 | AH62: 5.27 | AI62: 52.3 | AJ62: 0.667 | AK62: 0.573 | AL62: 1.149 | AM62: 1.487 | AN62: 1.117 | AO62: 0.812 | AS62: 52.78104903
A63: 2021-03-01T15:00:00 | B63: 0 | C63: 0 | D63: 0 | E63: 0 | F63: 0 | G63: 0 | H63: 16.556 | I63: 0.187 | J63: 0.59 | K63: 1.223 | L63: 0.816 | M63: 0.928 | N63: 1.37 | AB63: 0.318 | AC63: 1.53 | AD63: --- | AE63: --- | AF63: 37.1 | AG63: 4.08 | AH63: 5.25 | AI63: 51.7 | AJ63: 0.666 | AK63: 0.572 | AL63: 1.149 | AM63: 1.491 | AN63: 1.121 | AO63: 0.809 | AS63: 52.25781618
A64: 2021-03-01T15:15:00 | B64: 0 | C64: 0 | D64: 0 | E64: 0 | F64: 0 | G64: 0 | H64: 16.554 | I64: 0.187 | J64: 0.59 | K64: 1.224 | L64: 0.816 | M64: 0.926 | N64: 1.368 | AB64: 0.318 | AC64: 1.53 | AD64: --- | AE64: --- | AF64: 37 | AG64: 4.06 | AH64: 5.22 | AI64: 51.6 | AJ64: 0.665 | AK64: 0.571 | AL64: 1.149 | AM64: 1.49 | AN64: 1.121 | AO64: 0.808 | AS64: 52.0833791
A65: 2021-03-01T15:30:00 | B65: 0 | C65: 0 | D65: 0 | E65: 0 | F65: 0 | G65: 0 | H65: 16.55 | I65: 0.186 | J65: 0.59 | K65: 1.221 | L65: 0.817 | M65: 0.925 | N65: 1.366 | AB65: 0.315 | AC65: 1.53 | AD65: --- | AE65: --- | AF65: 36.6 | AG65: 4.08 | AH65: 5.22 | AI65: 51.4 | AJ65: 0.666 | AK65: 0.571 | AL65: 1.149 | AM65: 1.482 | AN65: 1.119 | AO65: 0.807 | AS65: 51.90892887
A66: 2021-03-01T15:45:00 | B66: 0 | C66: 0 | D66: 0 | E66: 0 | F66: 0 | G66: 0 | H66: 16.549 | I66: 0.185 | J66: 0.59 | K66: 1.222 | L66: 0.813 | M66: 0.924 | N66: 1.365 | AB66: 0.312 | AC66: 1.53 | AD66: --- | AE66: --- | AF66: 36.6 | AG66: 4.06 | AH66: 5.19 | AI66: 51.6 | AJ66: 0.665 | AK66: 0.57 | AL66: 1.149 | AM66: 1.482 | AN66: 1.12 | AO66: 0.808 | AS66: 52.0833791
A67: 2021-03-01T16:00:00 | B67: 0 | C67: 0 | D67: 0 | E67: 0 | F67: 0 | G67: 0 | H67: 16.546 | I67: 0.185 | J67: 0.59 | K67: 1.22 | L67: 0.814 | M67: 0.924 | N67: 1.363 | AB67: 0.312 | AC67: 1.53 | AD67: --- | AE67: --- | AF67: 36.6 | AG67: 4.04 | AH67: 5.17 | AI67: 52.4 | AJ67: 0.664 | AK67: 0.569 | AL67: 1.146 | AM67: 1.482 | AN67: 1.117 | AO67: 0.813 | AS67: 52.95543399
A68: 2021-03-01T16:15:00 | B68: 0 | C68: 0 | D68: 0 | E68: 0 | F68: 0 | G68: 0 | H68: 16.544 | I68: 0.184 | J68: 0.59 | K68: 1.222 | L68: 0.81 | M68: 0.921 | N68: 1.361 | AB68: 0.31 | AC68: 1.53 | AD68: --- | AE68: --- | AF68: 36.3 | AG68: 4.02 | AH68: 5.17 | AI68: 51.2 | AJ68: 0.663 | AK68: 0.569 | AL68: 1.146 | AM68: 1.476 | AN68: 1.115 | AO68: 0.806 | AS68: 51.73446546
A69: 2021-03-01T16:30:00 | B69: 0 | C69: 0 | D69: 0 | E69: 0 | F69: 0 | G69: 0 | H69: 16.543 | I69: 0.184 | J69: 0.59 | K69: 1.22 | L69: 0.811 | M69: 0.922 | N69: 1.359 | AB69: 0.31 | AC69: 1.53 | AD69: --- | AE69: --- | AF69: 36.4 | AG69: 4.02 | AH69: 5.14 | AI69: 51.4 | AJ69: 0.663 | AK69: 0.568 | AL69: 1.147 | AM69: 1.477 | AN69: 1.117 | AO69: 0.807 | AS69: 51.90892887
A70: 2021-03-01T16:45:00 | B70: 0 | C70: 0 | D70: 0 | E70: 0 | F70: 0 | G70: 0 | H70: 16.544 | I70: 0.184 | J70: 0.59 | K70: 1.22 | L70: 0.808 | M70: 0.923 | N70: 1.358 | AB70: 0.31 | AC70: 1.53 | AD70: --- | AE70: --- | AF70: 36.1 | AG70: 4.02 | AH70: 5.11 | AI70: 51.2 | AJ70: 0.663 | AK70: 0.567 | AL70: 1.144 | AM70: 1.472 | AN70: 1.109 | AO70: 0.806 | AS70: 51.73446546
A71: 2021-03-01T17:00:00 | B71: 0 | C71: 0 | D71: 0 | E71: 0 | F71: 0 | G71: 0 | H71: 16.544 | I71: 0.184 | J71: 0.59 | K71: 1.219 | L71: 0.809 | M71: 0.92 | N71: 1.357 | AB71: 0.31 | AC71: 1.53 | AD71: --- | AE71: --- | AF71: 36.1 | AG71: 4 | AH71: 5.11 | AI71: 50.9 | AJ71: 0.662 | AK71: 0.567 | AL71: 1.143 | AM71: 1.472 | AN71: 1.112 | AO71: 0.804 | AS71: 51.38549888
A72: 2021-03-01T17:15:00 | B72: 0 | C72: 0 | D72: 0 | E72: 0 | F72: 0 | G72: 0 | H72: 16.543 | I72: 0.184 | J72: 0.589 | K72: 1.219 | L72: 0.807 | M72: 0.919 | N72: 1.356 | AB72: 0.31 | AC72: 1.52 | AD72: --- | AE72: --- | AF72: 36.1 | AG72: 3.98 | AH72: 5.11 | AI72: 51 | AJ72: 0.661 | AK72: 0.567 | AL72: 1.144 | AM72: 1.471 | AN72: 1.108 | AO72: 0.805 | AS72: 51.55998881
A73: 2021-03-01T17:30:00 | B73: 0 | C73: 0 | D73: 0 | E73: 0 | F73: 0 | G73: 0 | H73: 16.544 | I73: 0.183 | J73: 0.589 | K73: 1.22 | L73: 0.808 | M73: 0.917 | N73: 1.355 | AB73: 0.307 | AC73: 1.52 | AD73: --- | AE73: --- | AF73: 36 | AG73: 3.97 | AH73: 5.09 | AI73: 51 | AJ73: 0.66 | AK73: 0.566 | AL73: 1.144 | AM73: 1.469 | AN73: 1.111 | AO73: 0.805 | AS73: 51.55998881
A74: 2021-03-01T17:45:00 | B74: 0 | C74: 0 | D74: 0 | E74: 0 | F74: 0 | G74: 0 | H74: 16.543 | I74: 0.184 | J74: 0.589 | K74: 1.219 | L74: 0.806 | M74: 0.915 | N74: 1.353 | AB74: 0.31 | AC74: 1.52 | AD74: --- | AE74: --- | AF74: 35.6 | AG74: 3.97 | AH74: 5.09 | AI74: 50.7 | AJ74: 0.66 | AK74: 0.566 | AL74: 1.142 | AM74: 1.462 | AN74: 1.107 | AO74: 0.803 | AS74: 51.21099561
A75: 2021-03-01T18:00:00 | B75: 0 | C75: 0 | D75: 0 | E75: 0 | F75: 0 | G75: 0 | H75: 16.544 | I75: 0.184 | J75: 0.588 | K75: 1.22 | L75: 0.805 | M75: 0.912 | N75: 1.351 | AB75: 0.31 | AC75: 1.51 | AD75: --- | AE75: --- | AF75: 35.6 | AG75: 3.95 | AH75: 5.09 | AI75: 50.2 | AJ75: 0.659 | AK75: 0.566 | AL75: 1.141 | AM75: 1.461 | AN75: 1.101 | AO75: 0.8 | AS75: 50.68740537
A76: 2021-03-01T18:15:00 | B76: 0 | C76: 0 | D76: 0 | E76: 0 | F76: 0 | G76: 0 | H76: 16.54 | I76: 0.183 | J76: 0.587 | K76: 1.218 | L76: 0.803 | M76: 0.911 | N76: 1.35 | AB76: 0.307 | AC76: 1.5 | AD76: --- | AE76: --- | AF76: 35.5 | AG76: 3.95 | AH76: 5.06 | AI76: 50.2 | AJ76: 0.659 | AK76: 0.565 | AL76: 1.143 | AM76: 1.459 | AN76: 1.104 | AO76: 0.8 | AS76: 50.68740537
A77: 2021-03-01T18:30:00 | B77: 0 | C77: 0 | D77: 0 | E77: 0 | F77: 0 | G77: 0 | H77: 16.541 | I77: 0.184 | J77: 0.587 | K77: 1.218 | L77: 0.801 | M77: 0.912 | N77: 1.348 | AB77: 0.31 | AC77: 1.5 | AD77: --- | AE77: --- | AF77: 35.4 | AG77: 3.95 | AH77: 5.03 | AI77: 50 | AJ77: 0.659 | AK77: 0.564 | AL77: 1.143 | AM77: 1.457 | AN77: 1.106 | AO77: 0.799 | AS77: 50.51284831
A78: 2021-03-01T18:45:00 | B78: 0 | C78: 0 | D78: 0 | E78: 0 | F78: 0 | G78: 0 | H78: 16.54 | I78: 0.183 | J78: 0.587 | K78: 1.218 | L78: 0.802 | M78: 0.908 | N78: 1.347 | AB78: 0.307 | AC78: 1.5 | AD78: --- | AE78: --- | AF78: 35.3 | AG78: 3.93 | AH78: 5.01 | AI78: 49.8 | AJ78: 0.658 | AK78: 0.563 | AL78: 1.143 | AM78: 1.455 | AN78: 1.105 | AO78: 0.798 | AS78: 50.33827768
A79: 2021-03-01T19:00:00 | B79: 0 | C79: 0 | D79: 0 | E79: 0 | F79: 0 | G79: 0 | H79: 16.54 | I79: 0.183 | J79: 0.587 | K79: 1.218 | L79: 0.798 | M79: 0.909 | N79: 1.346 | AB79: 0.307 | AC79: 1.5 | AD79: --- | AE79: --- | AF79: 35.1 | AG79: 3.91 | AH79: 5.01 | AI79: 49.8 | AJ79: 0.657 | AK79: 0.563 | AL79: 1.14 | AM79: 1.452 | AN79: 1.104 | AO79: 0.798 | AS79: 50.33827768
A80: 2021-03-01T19:15:00 | B80: 0 | C80: 0 | D80: 0 | E80: 0 | F80: 0 | G80: 0 | H80: 16.539 | I80: 0.183 | J80: 0.587 | K80: 1.219 | L80: 0.8 | M80: 0.908 | N80: 1.344 | Q80: Date | R80: Thirl - m | S80: cumecs | T80: ML/d | AB80: 0.307 | AC80: 1.5 | AD80: --- | AE80: --- | AF80: 35.2 | AG80: 3.89 | AH80: 4.98 | AI80: 49.3 | AJ80: 0.656 | AK80: 0.562 | AL80: 1.14 | AM80: 1.454 | AN80: 1.106 | AO80: 0.795 | AS80: 49.81448388
A81: 2021-03-01T19:30:00 | B81: 0 | C81: 0 | D81: 0 | E81: 0 | F81: 0 | G81: 0 | H81: 16.54 | I81: 0.183 | J81: 0.586 | K81: 1.218 | L81: 0.797 | M81: 0.905 | N81: 1.342 | Q81: 2021-03-29T07:15:00 | R81: =MAX(H4:H2979) -> 17.108 | S81: 27.038 | T81: =S81*60*60*24/1000 -> 2336.0832 | AB81: 0.307 | AC81: 1.49 | AD81: --- | AE81: --- | AF81: 35.1 | AG81: 3.89 | AH81: 4.98 | AI81: 49.1 | AJ81: 0.656 | AK81: 0.562 | AL81: 1.138 | AM81: 1.452 | AN81: 1.099 | AO81: 0.794 | AS81: 49.63985847
A82: 2021-03-01T19:45:00 | B82: 0 | C82: 0 | D82: 0 | E82: 0 | F82: 0 | G82: 0 | H82: 16.54 | I82: 0.184 | J82: 0.586 | K82: 1.218 | L82: 0.799 | M82: 0.905 | N82: 1.34 | AB82: 0.31 | AC82: 1.49 | AD82: --- | AE82: --- | AF82: 34.9 | AG82: 3.89 | AH82: 4.98 | AI82: 49.1 | AJ82: 0.656 | AK82: 0.562 | AL82: 1.139 | AM82: 1.447 | AN82: 1.097 | AO82: 0.794 | AS82: 49.63985847
A83: 2021-03-01T20:00:00 | B83: 0 | C83: 0 | D83: 0 | E83: 0 | F83: 0 | G83: 0 | H83: 16.543 | I83: 0.185 | J83: 0.586 | K83: 1.217 | L83: 0.796 | M83: 0.903 | N83: 1.34 | Q83: Max storage quoted | S83: =14900 -> 14900 | T83: cum | AB83: 0.312 | AC83: 1.49 | AD83: --- | AE83: --- | AF83: 34.8 | AG83: 3.87 | AH83: 4.96 | AI83: 49.1 | AJ83: 0.655 | AK83: 0.561 | AL83: 1.139 | AM83: 1.446 | AN83: 1.105 | AO83: 0.794 | AS83: 49.63985847
A84: 2021-03-01T20:15:00 | B84: 0 | C84: 0 | D84: 0 | E84: 0 | F84: 0 | G84: 0 | H84: 16.541 | I84: 0.188 | J84: 0.586 | K84: 1.215 | L84: 0.794 | M84: 0.902 | N84: 1.338 | Q84: Therefore time to fill at peak | S84: =S83/S81 -> 551.076263 | T84: secs | AB84: 0.32 | AC84: 1.49 | AD84: --- | AE84: --- | AF84: 34.4 | AG84: 3.87 | AH84: 4.93 | AI84: 49.3 | AJ84: 0.655 | AK84: 0.56 | AL84: 1.14 | AM84: 1.438 | AN84: 1.095 | AO84: 0.795 | AS84: 49.81448388
A85: 2021-03-01T20:30:00 | B85: 0 | C85: 0 | D85: 0 | E85: 0 | F85: 0 | G85: 0 | H85: 16.539 | I85: 0.189 | J85: 0.585 | K85: 1.215 | L85: 0.795 | M85: 0.899 | N85: 1.336 | S85: =S84/60 -> 9.184604384 | T85: mins | AB85: 0.323 | AC85: 1.47 | AD85: --- | AE85: --- | AF85: 34.5 | AG85: 3.84 | AH85: 4.9 | AI85: 49.3 | AJ85: 0.653 | AK85: 0.559 | AL85: 1.137 | AM85: 1.44 | AN85: 1.092 | AO85: 0.795 | AS85: 49.81448388
A86: 2021-03-01T20:45:00 | B86: 0 | C86: 0 | D86: 0 | E86: 0 | F86: 0 | G86: 0 | H86: 16.541 | I86: 0.189 | J86: 0.584 | K86: 1.217 | L86: 0.794 | M86: 0.899 | N86: 1.335 | AB86: 0.323 | AC86: 1.46 | AD86: --- | AE86: --- | AF86: 34.4 | AG86: 3.84 | AH86: 4.9 | AI86: 48.3 | AJ86: 0.653 | AK86: 0.559 | AL86: 1.138 | AM86: 1.438 | AN86: 1.092 | AO86: 0.789 | AS86: 48.76652312
A87: 2021-03-01T21:00:00 | B87: 0 | C87: 0 | D87: 0 | E87: 0 | F87: 0 | G87: 0 | H87: 16.538 | I87: 0.188 | J87: 0.584 | K87: 1.215 | L87: 0.791 | M87: 0.9 | N87: 1.333 | Q87: Estimation of flows at peak levels (~7am 29/3/21) | AB87: 0.32 | AC87: 1.46 | AD87: --- | AE87: --- | AF87: 34.4 | AG87: 3.84 | AH87: 4.9 | AI87: 48.6 | AJ87: 0.653 | AK87: 0.559 | AL87: 1.136 | AM87: 1.437 | AN87: 1.093 | AO87: 0.791 | AS87: 49.11589913
A88: 2021-03-01T21:15:00 | B88: 0 | C88: 0 | D88: 0 | E88: 0 | F88: 0 | G88: 0 | H88: 16.535 | I88: 0.188 | J88: 0.584 | K88: 1.215 | L88: 0.79 | M88: 0.897 | N88: 1.331 | Q88: Assumptions | AB88: 0.32 | AC88: 1.46 | AD88: --- | AE88: --- | AF88: 34.2 | AG88: 3.82 | AH88: 4.9 | AI88: 47.9 | AJ88: 0.652 | AK88: 0.559 | AL88: 1.136 | AM88: 1.433 | AN88: 1.1 | AO88: 0.787 | AS88: 48.41709079
A89: 2021-03-01T21:30:00 | B89: 0 | C89: 0 | D89: 0 | E89: 0 | F89: 0 | G89: 0 | H89: 16.535 | I89: 0.187 | J89: 0.584 | K89: 1.216 | L89: 0.789 | M89: 0.895 | N89: 1.33 | Q89: All levels for Greta and tributaries peak at approx same time (7am 29/3/21) | AB89: 0.318 | AC89: 1.46 | AD89: --- | AE89: --- | AF89: 34.1 | AG89: 3.8 | AH89: 4.88 | AI89: 48.1 | AJ89: 0.651 | AK89: 0.558 | AL89: 1.137 | AM89: 1.431 | AN89: 1.087 | AO89: 0.788 | AS89: 48.59181402
A90: 2021-03-01T21:45:00 | B90: 0 | C90: 0 | D90: 0 | E90: 0 | F90: 0 | G90: 0 | H90: 16.531 | I90: 0.186 | J90: 0.583 | K90: 1.215 | L90: 0.79 | M90: 0.894 | N90: 1.329 | Q90: Flow at peak is proportional to catchment rainfall over 12 hours prior to max levels and catchment size | AB90: 0.315 | AC90: 1.45 | AD90: --- | AE90: --- | AF90: 34.1 | AG90: 3.78 | AH90: 4.88 | AI90: 48.1 | AJ90: 0.65 | AK90: 0.558 | AL90: 1.134 | AM90: 1.431 | AN90: 1.092 | AO90: 0.788 | AS90: 48.59181402
A91: 2021-03-01T22:00:00 | B91: 0 | C91: 0 | D91: 0 | E91: 0 | F91: 0 | G91: 0 | H91: 16.535 | I91: 0.185 | J91: 0.583 | K91: 1.214 | L91: 0.788 | M91: 0.891 | N91: 1.327 | Q91: This applies to Thirlmere peak overflow as well as it was overflowing since for more than 12 hours previously (since 14:30 28/3/21) | AB91: 0.312 | AC91: 1.45 | AD91: --- | AE91: --- | AF91: 33.9 | AG91: 3.77 | AH91: 4.88 | AI91: 48.1 | AJ91: 0.649 | AK91: 0.558 | AL91: 1.135 | AM91: 1.427 | AN91: 1.093 | AO91: 0.788 | AS91: 48.59181402
A92: 2021-03-01T22:15:00 | B92: 0 | C92: 0 | D92: 0 | E92: 0 | F92: 0 | G92: 0 | H92: 16.532 | I92: 0.184 | J92: 0.583 | K92: 1.214 | L92: 0.786 | M92: 0.892 | N92: 1.325 | Q92: Abstraction rates from Thirlmere are much smaller than spill and are ignored | AB92: 0.31 | AC92: 1.45 | AD92: --- | AE92: --- | AF92: 33.9 | AG92: 3.77 | AH92: 4.85 | AI92: 48.1 | AJ92: 0.649 | AK92: 0.557 | AL92: 1.137 | AM92: 1.427 | AN92: 1.093 | AO92: 0.788 | AS92: 48.59181402
A93: 2021-03-01T22:30:00 | B93: 0 | C93: 0 | D93: 0 | E93: 0 | F93: 0 | G93: 0 | H93: 16.528 | I93: 0.184 | J93: 0.583 | K93: 1.211 | L93: 0.787 | M93: 0.889 | N93: 1.324 | R93: SJB | S93: DH | T93: Matt | U93: Mun | AB93: 0.31 | AC93: 1.45 | AD93: --- | AE93: --- | AF93: 33.8 | AG93: 3.77 | AH93: 4.83 | AI93: 47.9 | AJ93: 0.649 | AK93: 0.556 | AL93: 1.135 | AM93: 1.424 | AN93: 1.089 | AO93: 0.787 | AS93: 48.41709079
A94: 2021-03-01T22:45:00 | B94: 0 | C94: 0 | D94: 0 | E94: 0 | F94: 0 | G94: 0 | H94: 16.526 | I94: 0.184 | J94: 0.583 | K94: 1.212 | L94: 0.785 | M94: 0.891 | N94: 1.322 | Q94: Rainfall over 12 hrs | R94: =SUM(B2673:B2720) -> 35 | S94: =SUM(C2673:C2720) -> 47.2 | T94: =SUM(F2673:F2720) -> 17.4 | U94: =SUM(G2673:G2720) -> 14.2 | AB94: 0.31 | AC94: 1.45 | AD94: --- | AE94: --- | AF94: 33.7 | AG94: 3.73 | AH94: 4.83 | AI94: 48.1 | AJ94: 0.647 | AK94: 0.556 | AL94: 1.135 | AM94: 1.423 | AN94: 1.089 | AO94: 0.788 | AS94: 48.59181402
A95: 2021-03-01T23:00:00 | B95: 0 | C95: 0 | D95: 0 | E95: 0 | F95: 0 | G95: 0 | H95: 16.526 | I95: 0.183 | J95: 0.583 | K95: 1.213 | L95: 0.784 | M95: 0.888 | N95: 1.32 | AB95: 0.307 | AC95: 1.45 | AD95: --- | AE95: --- | AF95: 33.6 | AG95: 3.73 | AH95: 4.83 | AI95: 47.4 | AJ95: 0.647 | AK95: 0.556 | AL95: 1.135 | AM95: 1.42 | AN95: 1.085 | AO95: 0.784 | AS95: 47.89283578
A96: 2021-03-01T23:15:00 | B96: 0 | C96: 0 | D96: 0 | E96: 0 | F96: 0 | G96: 0 | H96: 16.526 | I96: 0.183 | J96: 0.582 | K96: 1.211 | L96: 0.784 | M96: 0.89 | N96: 1.319 | Q96: Catchments as per map | R96: No | S96: Area km2 | T96: Rain station | U96: Rain x Area | V96: Flow cumecs | W96: Flow ML/d | AB96: 0.307 | AC96: 1.44 | AD96: --- | AE96: --- | AF96: 33.5 | AG96: 3.71 | AH96: 4.8 | AI96: 47.2 | AJ96: 0.646 | AK96: 0.555 | AL96: 1.134 | AM96: 1.418 | AN96: 1.089 | AO96: 0.783 | AS96: 47.71805548
A97: 2021-03-01T23:30:00 | B97: 0 | C97: 0 | D97: 0 | E97: 0 | F97: 0 | G97: 0 | H97: 16.525 | I97: 0.183 | J97: 0.582 | K97: 1.212 | L97: 0.785 | M97: 0.885 | N97: 1.317 | Q97: Thirlmere | R97: 4 | S97: 41 | T97: DH | U97: =S94*S97 -> 1935.2 | V97: =S81 -> 27.038 | W97: =V97*60*60*24/1000 -> 2336.0832 | AB97: 0.307 | AC97: 1.44 | AD97: --- | AE97: --- | AF97: 33.3 | AG97: 3.71 | AH97: 4.8 | AI97: 46.7 | AJ97: 0.646 | AK97: 0.555 | AL97: 1.134 | AM97: 1.414 | AN97: 1.085 | AO97: 0.78 | AS97: 47.19362797
A98: 2021-03-01T23:45:00 | B98: 0 | C98: 0 | D98: 0 | E98: 0 | F98: 0 | G98: 0 | H98: 16.527 | I98: 0.183 | J98: 0.581 | K98: 1.212 | L98: 0.783 | M98: 0.884 | N98: 1.316 | Q98: SJB (ex Thirlmere) | R98: 4 | S98: 10.1 | T98: SJB | U98: =R94*S98 -> 353.5 | V98: =$V$97/$U$97*U98 -> 4.938989768 | W98: 426.728716 | AB98: 0.307 | AC98: 1.43 | AD98: --- | AE98: --- | AF98: 33.3 | AG98: 3.71 | AH98: 4.75 | AI98: 46.9 | AJ98: 0.646 | AK98: 0.553 | AL98: 1.134 | AM98: 1.414 | AN98: 1.083 | AO98: 0.781 | AS98: 47.36845164
A99: 2021-03-02 | B99: 0 | C99: 0 | D99: 0 | E99: 0 | F99: 0 | G99: 0 | H99: 16.524 | I99: 0.182 | J99: 0.581 | K99: 1.211 | L99: 0.781 | M99: 0.882 | N99: 1.315 | Q99: Naddle beck | R99: 5 | S99: 12 | T99: SJB | U99: =R94*S99 -> 420 | V99: 5.868106656 | W99: 507.004415 | AB99: 0.305 | AC99: 1.43 | AD99: --- | AE99: --- | AF99: 33.1 | AG99: 3.69 | AH99: 4.75 | AI99: 46.9 | AJ99: 0.645 | AK99: 0.553 | AL99: 1.132 | AM99: 1.41 | AN99: 1.083 | AO99: 0.781 | AS99: 47.36845164
A100: 2021-03-02T00:15:00 | B100: 0 | C100: 0 | D100: 0 | E100: 0 | F100: 0 | G100: 0 | H100: 16.524 | I100: 0.182 | J100: 0.581 | K100: 1.211 | L100: 0.78 | M100: 0.883 | N100: 1.312 | Q100: Threlkeld | R100: 1 | S100: 26.5 | T100: Matt | U100: =T94*S100 -> 461.1 | V100: 6.442342807 | W100: 556.6184185 | AB100: 0.305 | AC100: 1.43 | AD100: --- | AE100: --- | AF100: 32.9 | AG100: 3.69 | AH100: 4.75 | AI100: 46.5 | AJ100: 0.645 | AK100: 0.553 | AL100: 1.133 | AM100: 1.407 | AN100: 1.083 | AO100: 0.779 | AS100: 47.01878974
A101: 2021-03-02T00:30:00 | B101: 0 | C101: 0 | D101: 0 | E101: 0 | F101: 0 | G101: 0 | H101: 16.524 | I101: 0.181 | J101: 0.581 | K101: 1.21 | L101: 0.781 | M101: 0.882 | N101: 1.312 | Q101: Matterdale | R101: 3 | S101: 16.4 | T101: Matt | U101: =T94*S101 -> 285.36 | V101: 3.986959322 | W101: 344.4732854 | AB101: 0.302 | AC101: 1.43 | AD101: --- | AE101: --- | AF101: 33 | AG101: 3.69 | AH101: 4.72 | AI101: 46.7 | AJ101: 0.645 | AK101: 0.552 | AL101: 1.131 | AM101: 1.408 | AN101: 1.08 | AO101: 0.78 | AS101: 47.19362797
A102: 2021-03-02T00:45:00 | B102: 0 | C102: 0 | D102: 0 | E102: 0 | F102: 0 | G102: 0 | H102: 16.523 | I102: 0.181 | J102: 0.58 | K102: 1.211 | L102: 0.779 | M102: 0.877 | N102: 1.31 | Q102: Mungrisdale | R102: 2 | S102: 23.4 | T102: Mun | U102: =U94*S102 -> 332.28 | V102: 4.642510666 | W102: 401.1129215 | AB102: 0.302 | AC102: 1.42 | AD102: --- | AE102: --- | AF102: 32.8 | AG102: 3.69 | AH102: 4.7 | AI102: 46.9 | AJ102: 0.645 | AK102: 0.551 | AL102: 1.133 | AM102: 1.405 | AN102: 1.081 | AO102: 0.781 | AS102: 47.36845164
A103: 2021-03-02T01:00:00 | B103: 0 | C103: 0 | D103: 0 | E103: 0 | F103: 0 | G103: 0 | H103: 16.525 | I103: 0.182 | J103: 0.58 | K103: 1.211 | L103: 0.778 | M103: 0.878 | N103: 1.308 | Q103: Glenderaterra | R103: 6 | S103: 11.8 | T103: Mun | U103: =U94*S103 -> 167.56 | V103: 2.341095122 | W103: 202.2706185 | AB103: 0.305 | AC103: 1.42 | AD103: --- | AE103: --- | AF103: 32.7 | AG103: 3.64 | AH103: 4.72 | AI103: 46.2 | AJ103: 0.642 | AK103: 0.552 | AL103: 1.13 | AM103: 1.402 | AN103: 1.079 | AO103: 0.777 | AS103: 46.66906934
A104: 2021-03-02T01:15:00 | B104: 0 | C104: 0 | D104: 0 | E104: 0 | F104: 0 | G104: 0 | H104: 16.529 | I104: 0.183 | J104: 0.58 | K104: 1.211 | L104: 0.776 | M104: 0.879 | N104: 1.306 | AB104: 0.307 | AC104: 1.42 | AD104: --- | AE104: --- | AF104: 32.7 | AG104: 3.64 | AH104: 4.7 | AI104: 46.5 | AJ104: 0.642 | AK104: 0.551 | AL104: 1.131 | AM104: 1.403 | AN104: 1.074 | AO104: 0.779 | AS104: 47.01878974
A105: 2021-03-02T01:30:00 | B105: 0 | C105: 0 | D105: 0 | E105: 0 | F105: 0 | G105: 0 | H105: 16.525 | I105: 0.184 | J105: 0.58 | K105: 1.21 | L105: 0.776 | M105: 0.877 | N105: 1.305 | Q105: Totals | V105: =SUM(V97:V104) -> 55.25800434 | W105: =SUM(W97:W104) -> 4774.291575 | AB105: 0.31 | AC105: 1.42 | AD105: --- | AE105: --- | AF105: 32.5 | AG105: 3.64 | AH105: 4.67 | AI105: 46.2 | AJ105: 0.642 | AK105: 0.55 | AL105: 1.129 | AM105: 1.398 | AN105: 1.079 | AO105: 0.777 | AS105: 46.66906934
A106: 2021-03-02T01:45:00 | B106: 0 | C106: 0 | D106: 0 | E106: 0 | F106: 0 | G106: 0 | H106: 16.523 | I106: 0.188 | J106: 0.579 | K106: 1.209 | L106: 0.777 | M106: 0.874 | N106: 1.303 | AB106: 0.32 | AC106: 1.41 | AD106: --- | AE106: --- | AF106: 32.5 | AG106: 3.61 | AH106: 4.65 | AI106: 45.6 | AJ106: 0.64 | AK106: 0.549 | AL106: 1.128 | AM106: 1.399 | AN106: 1.075 | AO106: 0.774 | AS106: 46.14437803
A107: 2021-03-02T02:00:00 | B107: 0 | C107: 0 | D107: 0 | E107: 0 | F107: 0 | G107: 0 | H107: 16.521 | I107: 0.192 | J107: 0.579 | K107: 1.209 | L107: 0.773 | M107: 0.873 | N107: 1.302 | Q107: Max level at GB | R107: =MAX(K4:K2979) -> 3.001 | AB107: 0.33 | AC107: 1.41 | AD107: --- | AE107: --- | AF107: 32.3 | AG107: 3.61 | AH107: 4.65 | AI107: 45.6 | AJ107: 0.64 | AK107: 0.549 | AL107: 1.128 | AM107: 1.395 | AN107: 1.069 | AO107: 0.774 | AS107: 46.14437803
A108: 2021-03-02T02:15:00 | B108: 0 | C108: 0 | D108: 0 | E108: 0 | F108: 0 | G108: 0 | H108: 16.525 | I108: 0.196 | J108: 0.579 | K108: 1.209 | L108: 0.774 | M108: 0.871 | N108: 1.301 | AB108: 0.341 | AC108: 1.41 | AD108: --- | AE108: --- | AF108: 32.1 | AG108: 3.64 | AH108: 4.65 | AI108: 45.8 | AJ108: 0.642 | AK108: 0.549 | AL108: 1.129 | AM108: 1.39 | AN108: 1.073 | AO108: 0.775 | AS108: 46.31928997
A109: 2021-03-02T02:30:00 | B109: 0 | C109: 0 | D109: 0 | E109: 0 | F109: 0 | G109: 0 | H109: 16.521 | I109: 0.197 | J109: 0.578 | K109: 1.208 | L109: 0.774 | M109: 0.87 | N109: 1.299 | AB109: 0.343 | AC109: 1.4 | AD109: --- | AE109: --- | AF109: 32.2 | AG109: 3.59 | AH109: 4.62 | AI109: 45.6 | AJ109: 0.639 | AK109: 0.548 | AL109: 1.128 | AM109: 1.391 | AN109: 1.073 | AO109: 0.774 | AS109: 46.14437803
A110: 2021-03-02T02:45:00 | B110: 0 | C110: 0 | D110: 0 | E110: 0 | F110: 0 | G110: 0 | H110: 16.522 | I110: 0.194 | J110: 0.578 | K110: 1.207 | L110: 0.771 | M110: 0.869 | N110: 1.297 | AB110: 0.336 | AC110: 1.4 | AD110: --- | AE110: --- | AF110: 31.8 | AG110: 3.61 | AH110: 4.62 | AI110: 45.6 | AJ110: 0.64 | AK110: 0.548 | AL110: 1.128 | AM110: 1.384 | AN110: 1.069 | AO110: 0.774 | AS110: 46.14437803
A111: 2021-03-02T03:00:00 | B111: 0 | C111: 0 | D111: 0 | E111: 0 | F111: 0 | G111: 0 | H111: 16.519 | I111: 0.192 | J111: 0.579 | K111: 1.208 | L111: 0.77 | M111: 0.869 | N111: 1.296 | AB111: 0.33 | AC111: 1.41 | AD111: --- | AE111: --- | AF111: 31.8 | AG111: 3.59 | AH111: 4.62 | AI111: 45.6 | AJ111: 0.639 | AK111: 0.548 | AL111: 1.128 | AM111: 1.384 | AN111: 1.069 | AO111: 0.774 | AS111: 46.14437803
A112: 2021-03-02T03:15:00 | B112: 0 | C112: 0 | D112: 0 | E112: 0 | F112: 0 | G112: 0 | H112: 16.519 | I112: 0.191 | J112: 0.578 | K112: 1.207 | L112: 0.769 | M112: 0.868 | N112: 1.295 | AB112: 0.328 | AC112: 1.4 | AD112: --- | AE112: --- | AF112: 31.7 | AG112: 3.57 | AH112: 4.6 | AI112: 44.9 | AJ112: 0.638 | AK112: 0.547 | AL112: 1.127 | AM112: 1.382 | AN112: 1.069 | AO112: 0.77 | AS112: 45.44458053
A113: 2021-03-02T03:30:00 | B113: 0 | C113: 0 | D113: 0 | E113: 0 | F113: 0 | G113: 0 | H113: 16.525 | I113: 0.188 | J113: 0.577 | K113: 1.205 | L113: 0.768 | M113: 0.863 | N113: 1.293 | AB113: 0.32 | AC113: 1.39 | AD113: --- | AE113: --- | AF113: 31.6 | AG113: 3.57 | AH113: 4.57 | AI113: 45.6 | AJ113: 0.638 | AK113: 0.546 | AL113: 1.127 | AM113: 1.38 | AN113: 1.07 | AO113: 0.774 | AS113: 46.14437803
A114: 2021-03-02T03:45:00 | B114: 0 | C114: 0 | D114: 0 | E114: 0 | F114: 0 | G114: 0 | H114: 16.524 | I114: 0.186 | J114: 0.577 | K114: 1.206 | L114: 0.767 | M114: 0.864 | N114: 1.292 | AB114: 0.315 | AC114: 1.39 | AD114: --- | AE114: --- | AF114: 31.4 | AG114: 3.57 | AH114: 4.57 | AI114: 45.3 | AJ114: 0.638 | AK114: 0.546 | AL114: 1.126 | AM114: 1.376 | AN114: 1.064 | AO114: 0.772 | AS114: 45.79450935
A115: 2021-03-02T04:00:00 | B115: 0 | C115: 0 | D115: 0 | E115: 0 | F115: 0 | G115: 0 | H115: 16.52 | I115: 0.184 | J115: 0.576 | K115: 1.206 | L115: 0.766 | M115: 0.863 | N115: 1.29 | AB115: 0.31 | AC115: 1.38 | AD115: --- | AE115: --- | AF115: 31.6 | AG115: 3.57 | AH115: 4.55 | AI115: 44.9 | AJ115: 0.638 | AK115: 0.545 | AL115: 1.125 | AM115: 1.379 | AN115: 1.067 | AO115: 0.77 | AS115: 45.44458053
A116: 2021-03-02T04:15:00 | B116: 0 | C116: 0 | D116: 0 | E116: 0 | F116: 0 | G116: 0 | H116: 16.518 | I116: 0.184 | J116: 0.576 | K116: 1.207 | L116: 0.765 | M116: 0.863 | N116: 1.289 | AB116: 0.31 | AC116: 1.38 | AD116: --- | AE116: --- | AF116: 31.2 | AG116: 3.55 | AH116: 4.55 | AI116: 45.3 | AJ116: 0.637 | AK116: 0.545 | AL116: 1.125 | AM116: 1.372 | AN116: 1.063 | AO116: 0.772 | AS116: 45.79450935
A117: 2021-03-02T04:30:00 | B117: 0 | C117: 0 | D117: 0 | E117: 0 | F117: 0 | G117: 0 | H117: 16.518 | I117: 0.183 | J117: 0.576 | K117: 1.205 | L117: 0.765 | M117: 0.86 | N117: 1.287 | AB117: 0.307 | AC117: 1.38 | AD117: --- | AE117: --- | AF117: 31.2 | AG117: 3.52 | AH117: 4.55 | AI117: 45.1 | AJ117: 0.635 | AK117: 0.545 | AL117: 1.126 | AM117: 1.372 | AN117: 1.059 | AO117: 0.771 | AS117: 45.61955249
A118: 2021-03-02T04:45:00 | B118: 0 | C118: 0 | D118: 0 | E118: 0 | F118: 0 | G118: 0 | H118: 16.517 | I118: 0.182 | J118: 0.576 | K118: 1.205 | L118: 0.765 | M118: 0.859 | N118: 1.285 | AB118: 0.305 | AC118: 1.38 | AD118: --- | AE118: --- | AF118: 31.2 | AG118: 3.52 | AH118: 4.55 | AI118: 44.4 | AJ118: 0.635 | AK118: 0.545 | AL118: 1.124 | AM118: 1.372 | AN118: 1.062 | AO118: 0.767 | AS118: 44.91957347
A119: 2021-03-02T05:00:00 | B119: 0 | C119: 0 | D119: 0 | E119: 0 | F119: 0 | G119: 0 | H119: 16.518 | I119: 0.182 | J119: 0.575 | K119: 1.206 | L119: 0.761 | M119: 0.859 | N119: 1.284 | AB119: 0.305 | AC119: 1.37 | AD119: --- | AE119: --- | AF119: 31.1 | AG119: 3.52 | AH119: 4.52 | AI119: 44.4 | AJ119: 0.635 | AK119: 0.544 | AL119: 1.123 | AM119: 1.369 | AN119: 1.063 | AO119: 0.767 | AS119: 44.91957347
A120: 2021-03-02T05:15:00 | B120: 0 | C120: 0 | D120: 0 | E120: 0 | F120: 0 | G120: 0 | H120: 16.516 | I120: 0.181 | J120: 0.575 | K120: 1.205 | L120: 0.76 | M120: 0.857 | N120: 1.283 | AB120: 0.302 | AC120: 1.37 | AD120: --- | AE120: --- | AF120: 31 | AG120: 3.52 | AH120: 4.5 | AI120: 44.4 | AJ120: 0.635 | AK120: 0.543 | AL120: 1.123 | AM120: 1.367 | AN120: 1.061 | AO120: 0.767 | AS120: 44.91957347
A121: 2021-03-02T05:30:00 | B121: 0 | C121: 0 | D121: 0 | E121: 0 | F121: 0 | G121: 0 | H121: 16.517 | I121: 0.181 | J121: 0.574 | K121: 1.204 | L121: 0.761 | M121: 0.857 | N121: 1.281 | AB121: 0.302 | AC121: 1.36 | AD121: --- | AE121: --- | AF121: 31 | AG121: 3.5 | AH121: 4.5 | AI121: 44.4 | AJ121: 0.634 | AK121: 0.543 | AL121: 1.125 | AM121: 1.368 | AN121: 1.061 | AO121: 0.767 | AS121: 44.91957347
A122: 2021-03-02T05:45:00 | B122: 0 | C122: 0 | D122: 0 | E122: 0 | F122: 0 | G122: 0 | H122: 16.517 | I122: 0.181 | J122: 0.574 | K122: 1.204 | L122: 0.759 | M122: 0.853 | N122: 1.28 | AB122: 0.302 | AC122: 1.36 | AD122: --- | AE122: --- | AF122: 30.7 | AG122: 3.5 | AH122: 4.47 | AI122: 44.4 | AJ122: 0.634 | AK122: 0.542 | AL122: 1.123 | AM122: 1.36 | AN122: 1.058 | AO122: 0.767 | AS122: 44.91957347
A123: 2021-03-02T06:00:00 | B123: 0 | C123: 0 | D123: 0 | E123: 0 | F123: 0 | G123: 0 | H123: 16.511 | I123: 0.181 | J123: 0.574 | K123: 1.203 | L123: 0.759 | M123: 0.856 | N123: 1.28 | AB123: 0.302 | AC123: 1.36 | AD123: --- | AE123: --- | AF123: 30.7 | AG123: 3.48 | AH123: 4.47 | AI123: 44.4 | AJ123: 0.633 | AK123: 0.542 | AL123: 1.123 | AM123: 1.361 | AN123: 1.057 | AO123: 0.767 | AS123: 44.91957347
A124: 2021-03-02T06:15:00 | B124: 0 | C124: 0 | D124: 0 | E124: 0 | F124: 0 | G124: 0 | H124: 16.508 | I124: 0.181 | J124: 0.574 | K124: 1.203 | L124: 0.76 | M124: 0.852 | N124: 1.28 | AB124: 0.302 | AC124: 1.36 | AD124: --- | AE124: --- | AF124: 30.6 | AG124: 3.47 | AH124: 4.47 | AI124: 43.5 | AJ124: 0.632 | AK124: 0.542 | AL124: 1.123 | AM124: 1.358 | AN124: 1.054 | AO124: 0.762 | AS124: 44.04425404
A125: 2021-03-02T06:30:00 | B125: 0 | C125: 0 | D125: 0 | E125: 0 | F125: 0 | G125: 0 | H125: 16.51 | I125: 0.181 | J125: 0.574 | K125: 1.203 | L125: 0.757 | M125: 0.853 | N125: 1.28 | AB125: 0.302 | AC125: 1.36 | AD125: --- | AE125: --- | AF125: 30.6 | AG125: 3.48 | AH125: 4.45 | AI125: 44.1 | AJ125: 0.633 | AK125: 0.541 | AL125: 1.12 | AM125: 1.358 | AN125: 1.056 | AO125: 0.765 | AS125: 44.56949217
A126: 2021-03-02T06:45:00 | B126: 0 | C126: 0 | D126: 0 | E126: 0 | F126: 0 | G126: 0 | H126: 16.51 | I126: 0.181 | J126: 0.573 | K126: 1.204 | L126: 0.757 | M126: 0.852 | N126: 1.28 | AB126: 0.302 | AC126: 1.35 | AD126: --- | AE126: --- | AF126: 30.4 | AG126: 3.47 | AH126: 4.45 | AI126: 43.7 | AJ126: 0.632 | AK126: 0.541 | AL126: 1.122 | AM126: 1.354 | AN126: 1.054 | AO126: 0.763 | AS126: 44.21934899
A127: 2021-03-02T07:00:00 | B127: 0 | C127: 0 | D127: 0 | E127: 0 | F127: 0 | G127: 0 | H127: 16.514 | I127: 0.181 | J127: 0.573 | K127: 1.204 | L127: 0.755 | M127: 0.851 | N127: 1.28 | AB127: 0.302 | AC127: 1.35 | AD127: --- | AE127: --- | AF127: 30.3 | AG127: 3.45 | AH127: 4.42 | AI127: 43.9 | AJ127: 0.631 | AK127: 0.54 | AL127: 1.12 | AM127: 1.353 | AN127: 1.053 | AO127: 0.764 | AS127: 44.39442834
A128: 2021-03-02T07:15:00 | B128: 0 | C128: 0 | D128: 0 | E128: 0 | F128: 0 | G128: 0 | H128: 16.507 | I128: 0.181 | J128: 0.573 | K128: 1.202 | L128: 0.755 | M128: 0.851 | N128: 1.28 | AB128: 0.302 | AC128: 1.35 | AD128: --- | AE128: --- | AF128: 30.2 | AG128: 3.47 | AH128: 4.4 | AI128: 43.9 | AJ128: 0.632 | AK128: 0.539 | AL128: 1.121 | AM128: 1.35 | AN128: 1.056 | AO128: 0.764 | AS128: 44.39442834
A129: 2021-03-02T07:30:00 | B129: 0 | C129: 0 | D129: 0 | E129: 0 | F129: 0 | G129: 0 | H129: 16.512 | I129: 0.183 | J129: 0.573 | K129: 1.203 | L129: 0.754 | M129: 0.846 | N129: 1.28 | AB129: 0.307 | AC129: 1.35 | AD129: --- | AE129: --- | AF129: 30 | AG129: 3.45 | AH129: 4.4 | AI129: 43.4 | AJ129: 0.631 | AK129: 0.539 | AL129: 1.12 | AM129: 1.347 | AN129: 1.051 | AO129: 0.761 | AS129: 43.86914344
A130: 2021-03-02T07:45:00 | B130: 0 | C130: 0 | D130: 0 | E130: 0 | F130: 0 | G130: 0 | H130: 16.513 | I130: 0.184 | J130: 0.573 | K130: 1.201 | L130: 0.754 | M130: 0.847 | N130: 1.28 | AB130: 0.31 | AC130: 1.35 | AD130: --- | AE130: --- | AF130: 30 | AG130: 3.41 | AH130: 4.4 | AI130: 43.4 | AJ130: 0.629 | AK130: 0.539 | AL130: 1.119 | AM130: 1.346 | AN130: 1.049 | AO130: 0.761 | AS130: 43.86914344
A131: 2021-03-02T08:00:00 | B131: 0 | C131: 0 | D131: 0 | E131: 0 | F131: 0 | G131: 0 | H131: 16.509 | I131: 0.184 | J131: 0.573 | K131: 1.203 | L131: 0.751 | M131: 0.844 | N131: 1.28 | AB131: 0.31 | AC131: 1.35 | AD131: --- | AE131: --- | AF131: 29.9 | AG131: 3.4 | AH131: 4.37 | AI131: 43.5 | AJ131: 0.628 | AK131: 0.538 | AL131: 1.12 | AM131: 1.344 | AN131: 1.05 | AO131: 0.762 | AS131: 44.04425404
A132: 2021-03-02T08:15:00 | B132: 0 | C132: 0 | D132: 0 | E132: 0 | F132: 0 | G132: 0 | H132: 16.507 | I132: 0.184 | J132: 0.572 | K132: 1.202 | L132: 0.75 | M132: 0.847 | N132: 1.28 | AB132: 0.31 | AC132: 1.33 | AD132: --- | AE132: --- | AF132: 29.9 | AG132: 3.4 | AH132: 4.37 | AI132: 43.7 | AJ132: 0.628 | AK132: 0.538 | AL132: 1.12 | AM132: 1.343 | AN132: 1.048 | AO132: 0.763 | AS132: 44.21934899
A133: 2021-03-02T08:30:00 | B133: 0 | C133: 0 | D133: 0 | E133: 0 | F133: 0 | G133: 0 | H133: 16.51 | I133: 0.184 | J133: 0.572 | K133: 1.202 | L133: 0.749 | M133: 0.842 | N133: 1.28 | AB133: 0.31 | AC133: 1.33 | AD133: --- | AE133: --- | AF133: 29.9 | AG133: 3.4 | AH133: 4.37 | AI133: 42.7 | AJ133: 0.628 | AK133: 0.538 | AL133: 1.118 | AM133: 1.343 | AN133: 1.047 | AO133: 0.757 | AS133: 43.1685431
A134: 2021-03-02T08:45:00 | B134: 0 | C134: 0 | D134: 0 | E134: 0 | F134: 0 | G134: 0 | H134: 16.508 | I134: 0.183 | J134: 0.572 | K134: 1.201 | L134: 0.748 | M134: 0.844 | N134: 1.28 | AB134: 0.307 | AC134: 1.33 | AD134: --- | AE134: --- | AF134: 29.7 | AG134: 3.4 | AH134: 4.37 | AI134: 43.2 | AJ134: 0.628 | AK134: 0.538 | AL134: 1.119 | AM134: 1.339 | AN134: 1.046 | AO134: 0.76 | AS134: 43.69401711
A135: 2021-03-02T09:00:00 | B135: 0 | C135: 0 | D135: 0 | E135: 0 | F135: 0 | G135: 0 | H135: 16.507 | I135: 0.183 | J135: 0.571 | K135: 1.201 | L135: 0.748 | M135: 0.841 | N135: 1.28 | AB135: 0.307 | AC135: 1.32 | AD135: --- | AE135: --- | AF135: 29.5 | AG135: 3.36 | AH135: 4.35 | AI135: 42.8 | AJ135: 0.626 | AK135: 0.537 | AL135: 1.119 | AM135: 1.336 | AN135: 1.045 | AO135: 0.758 | AS135: 43.343717
A136: 2021-03-02T09:15:00 | B136: 0 | C136: 0 | D136: 0 | E136: 0 | F136: 0 | G136: 0 | H136: 16.512 | I136: 0.183 | J136: 0.571 | K136: 1.2 | L136: 0.746 | M136: 0.841 | N136: 1.28 | AB136: 0.307 | AC136: 1.32 | AD136: --- | AE136: --- | AF136: 29.6 | AG136: 3.36 | AH136: 4.35 | AI136: 42.7 | AJ136: 0.626 | AK136: 0.537 | AL136: 1.118 | AM136: 1.337 | AN136: 1.043 | AO136: 0.757 | AS136: 43.1685431
A137: 2021-03-02T09:30:00 | B137: 0 | C137: 0.2 | D137: 0 | E137: 0 | F137: 0 | G137: 0 | H137: 16.513 | I137: 0.183 | J137: 0.57 | K137: 1.199 | L137: 0.747 | M137: 0.838 | N137: 1.28 | AB137: 0.307 | AC137: 1.31 | AD137: --- | AE137: --- | AF137: 29.4 | AG137: 3.36 | AH137: 4.31 | AI137: 42.5 | AJ137: 0.626 | AK137: 0.535 | AL137: 1.115 | AM137: 1.333 | AN137: 1.045 | AO137: 0.756 | AS137: 42.9933532
A138: 2021-03-02T09:45:00 | B138: 0.2 | C138: 0 | D138: 0 | E138: 0 | F138: 0 | G138: 0 | H138: 16.511 | I138: 0.182 | J138: 0.57 | K138: 1.199 | L138: 0.746 | M138: 0.838 | N138: 1.28 | AB138: 0.305 | AC138: 1.31 | AD138: --- | AE138: --- | AF138: 29.3 | AG138: 3.35 | AH138: 4.31 | AI138: 42.5 | AJ138: 0.625 | AK138: 0.535 | AL138: 1.117 | AM138: 1.332 | AN138: 1.043 | AO138: 0.756 | AS138: 42.9933532
A139: 2021-03-02T10:00:00 | B139: 0 | C139: 0 | D139: 0 | E139: 0 | F139: 0 | G139: 0 | H139: 16.509 | I139: 0.181 | J139: 0.57 | K139: 1.199 | L139: 0.744 | M139: 0.837 | N139: 1.254 | AB139: 0.302 | AC139: 1.31 | AD139: --- | AE139: --- | AF139: 29.2 | AG139: 3.35 | AH139: 4.31 | AI139: 42.5 | AJ139: 0.625 | AK139: 0.535 | AL139: 1.116 | AM139: 1.328 | AN139: 1.039 | AO139: 0.756 | AS139: 42.9933532
A140: 2021-03-02T10:15:00 | B140: 0 | C140: 0 | D140: 0 | E140: 0 | F140: 0 | G140: 0 | H140: 16.513 | I140: 0.272 | J140: 0.57 | K140: 1.199 | L140: 0.743 | M140: 0.837 | N140: 1.251 | AB140: 0.557 | AC140: 1.31 | AD140: --- | AE140: --- | AF140: 29.2 | AG140: 3.35 | AH140: 4.29 | AI140: 42.7 | AJ140: 0.625 | AK140: 0.534 | AL140: 1.116 | AM140: 1.328 | AN140: 1.039 | AO140: 0.757 | AS140: 43.1685431
A141: 2021-03-02T10:30:00 | B141: 0 | C141: 0 | D141: 0 | E141: 0 | F141: 0 | G141: 0 | H141: 16.511 | I141: 0.42 | J141: 0.569 | K141: 1.198 | L141: 0.741 | M141: 0.835 | N141: 1.25 | AB141: 2.07 | AC141: 1.3 | AD141: --- | AE141: --- | AF141: 29 | AG141: 3.33 | AH141: 4.29 | AI141: 41.8 | AJ141: 0.624 | AK141: 0.534 | AL141: 1.115 | AM141: 1.324 | AN141: 1.04 | AO141: 0.752 | AS141: 42.29243233
A142: 2021-03-02T10:45:00 | B142: 0 | C142: 0 | D142: 0 | E142: 0 | F142: 0 | G142: 0 | H142: 16.51 | I142: 0.451 | J142: 0.569 | K142: 1.2 | L142: 0.741 | M142: 0.832 | N142: 1.248 | AB142: 2.6 | AC142: 1.3 | AD142: --- | AE142: --- | AF142: 28.9 | AG142: 3.33 | AH142: 4.29 | AI142: 42.5 | AJ142: 0.624 | AK142: 0.534 | AL142: 1.113 | AM142: 1.323 | AN142: 1.041 | AO142: 0.756 | AS142: 42.9933532
A143: 2021-03-02T11:00:00 | B143: 0 | C143: 0 | D143: 0 | E143: 0 | F143: 0 | G143: 0 | H143: 16.51 | I143: 0.46 | J143: 0.569 | K143: 1.201 | L143: 0.74 | M143: 0.832 | N143: 1.247 | AB143: 2.76 | AC143: 1.3 | AD143: --- | AE143: --- | AF143: 28.8 | AG143: 3.29 | AH143: 4.29 | AI143: 42 | AJ143: 0.622 | AK143: 0.534 | AL143: 1.115 | AM143: 1.32 | AN143: 1.038 | AO143: 0.753 | AS143: 42.46768688
A144: 2021-03-02T11:15:00 | B144: 0 | C144: 0 | D144: 0 | E144: 0 | F144: 0 | G144: 0 | H144: 16.505 | I144: 0.462 | J144: 0.569 | K144: 1.197 | L144: 0.738 | M144: 0.831 | N144: 1.247 | AB144: 2.79 | AC144: 1.3 | AD144: --- | AE144: --- | AF144: 28.7 | AG144: 3.29 | AH144: 4.26 | AI144: 42.3 | AJ144: 0.622 | AK144: 0.533 | AL144: 1.114 | AM144: 1.319 | AN144: 1.032 | AO144: 0.755 | AS144: 42.81814725
A145: 2021-03-02T11:30:00 | B145: 0 | C145: 0 | D145: 0 | E145: 0 | F145: 0 | G145: 0 | H145: 16.505 | I145: 0.463 | J145: 0.569 | K145: 1.198 | L145: 0.737 | M145: 0.83 | N145: 1.246 | AB145: 2.81 | AC145: 1.3 | AD145: --- | AE145: --- | AF145: 28.8 | AG145: 3.31 | AH145: 4.24 | AI145: 41.6 | AJ145: 0.623 | AK145: 0.532 | AL145: 1.112 | AM145: 1.32 | AN145: 1.033 | AO145: 0.751 | AS145: 42.11716144
A146: 2021-03-02T11:45:00 | B146: 0 | C146: 0 | D146: 0 | E146: 0 | F146: 0 | G146: 0 | H146: 16.505 | I146: 0.463 | J146: 0.569 | K146: 1.199 | L146: 0.737 | M146: 0.828 | N146: 1.244 | AB146: 2.81 | AC146: 1.3 | AD146: --- | AE146: --- | AF146: 28.5 | AG146: 3.29 | AH146: 4.24 | AI146: 42.2 | AJ146: 0.622 | AK146: 0.532 | AL146: 1.114 | AM146: 1.313 | AN146: 1.034 | AO146: 0.754 | AS146: 42.64292516
A147: 2021-03-02T12:00:00 | B147: 0 | C147: 0 | D147: 0 | E147: 0 | F147: 0 | G147: 0 | H147: 16.507 | I147: 0.463 | J147: 0.569 | K147: 1.2 | L147: 0.735 | M147: 0.827 | N147: 1.243 | AB147: 2.81 | AC147: 1.3 | AD147: --- | AE147: --- | AF147: 28.6 | AG147: 3.28 | AH147: 4.22 | AI147: 41.5 | AJ147: 0.621 | AK147: 0.531 | AL147: 1.11 | AM147: 1.315 | AN147: 1.031 | AO147: 0.75 | AS147: 41.94187415
A148: 2021-03-02T12:15:00 | B148: 0 | C148: 0 | D148: 0 | E148: 0 | F148: 0 | G148: 0 | H148: 16.506 | I148: 0.463 | J148: 0.569 | K148: 1.197 | L148: 0.735 | M148: 0.828 | N148: 1.242 | AB148: 2.81 | AC148: 1.3 | AD148: --- | AE148: --- | AF148: 28.5 | AG148: 3.28 | AH148: 4.22 | AI148: 41.3 | AJ148: 0.621 | AK148: 0.531 | AL148: 1.111 | AM148: 1.313 | AN148: 1.032 | AO148: 0.749 | AS148: 41.76657037
A149: 2021-03-02T12:30:00 | B149: 0 | C149: 0 | D149: 0 | E149: 0 | F149: 0 | G149: 0 | H149: 16.505 | I149: 0.463 | J149: 0.569 | K149: 1.198 | L149: 0.736 | M149: 0.823 | N149: 1.24 | AB149: 2.81 | AC149: 1.3 | AD149: --- | AE149: --- | AF149: 28.3 | AG149: 3.24 | AH149: 4.22 | AI149: 41.3 | AJ149: 0.619 | AK149: 0.531 | AL149: 1.113 | AM149: 1.31 | AN149: 1.031 | AO149: 0.749 | AS149: 41.76657037
A150: 2021-03-02T12:45:00 | B150: 0 | C150: 0 | D150: 0 | E150: 0 | F150: 0 | G150: 0 | H150: 16.503 | I150: 0.463 | J150: 0.569 | K150: 1.197 | L150: 0.735 | M150: 0.825 | N150: 1.239 | AB150: 2.81 | AC150: 1.3 | AD150: --- | AE150: --- | AF150: 28.3 | AG150: 3.23 | AH150: 4.22 | AI150: 40.9 | AJ150: 0.618 | AK150: 0.531 | AL150: 1.111 | AM150: 1.309 | AN150: 1.03 | AO150: 0.747 | AS150: 41.41591308
A151: 2021-03-02T13:00:00 | B151: 0 | C151: 0 | D151: 0 | E151: 0 | F151: 0 | G151: 0 | H151: 16.5 | I151: 0.464 | J151: 0.569 | K151: 1.197 | L151: 0.734 | M151: 0.826 | N151: 1.237 | AB151: 2.83 | AC151: 1.3 | AD151: --- | AE151: --- | AF151: 28.1 | AG151: 3.23 | AH151: 4.22 | AI151: 40.8 | AJ151: 0.618 | AK151: 0.531 | AL151: 1.111 | AM151: 1.306 | AN151: 1.029 | AO151: 0.746 | AS151: 41.24055943
A152: 2021-03-02T13:15:00 | B152: 0 | C152: 0 | D152: 0 | E152: 0 | F152: 0 | G152: 0 | H152: 16.499 | I152: 0.464 | J152: 0.569 | K152: 1.197 | L152: 0.733 | M152: 0.824 | N152: 1.236 | AB152: 2.83 | AC152: 1.3 | AD152: --- | AE152: --- | AF152: 28 | AG152: 3.23 | AH152: 4.22 | AI152: 40.8 | AJ152: 0.618 | AK152: 0.531 | AL152: 1.11 | AM152: 1.302 | AN152: 1.031 | AO152: 0.746 | AS152: 41.24055943
A153: 2021-03-02T13:30:00 | B153: 0 | C153: 0 | D153: 0 | E153: 0 | F153: 0 | G153: 0 | H153: 16.499 | I153: 0.464 | J153: 0.568 | K153: 1.197 | L153: 0.733 | M153: 0.823 | N153: 1.233 | AB153: 2.83 | AC153: 1.29 | AD153: --- | AE153: --- | AF153: 28 | AG153: 3.23 | AH153: 4.2 | AI153: 40.4 | AJ153: 0.618 | AK153: 0.53 | AL153: 1.11 | AM153: 1.304 | AN153: 1.027 | AO153: 0.744 | AS153: 40.88980172
A154: 2021-03-02T13:45:00 | B154: 0 | C154: 0 | D154: 0 | E154: 0 | F154: 0 | G154: 0 | H154: 16.501 | I154: 0.464 | J154: 0.568 | K154: 1.197 | L154: 0.731 | M154: 0.82 | N154: 1.232 | AB154: 2.83 | AC154: 1.29 | AD154: --- | AE154: --- | AF154: 28 | AG154: 3.23 | AH154: 4.18 | AI154: 40.8 | AJ154: 0.618 | AK154: 0.529 | AL154: 1.108 | AM154: 1.302 | AN154: 1.025 | AO154: 0.746 | AS154: 41.24055943
A155: 2021-03-02T14:00:00 | B155: 0 | C155: 0 | D155: 0 | E155: 0 | F155: 0 | G155: 0 | H155: 16.493 | I155: 0.465 | J155: 0.568 | K155: 1.209 | L155: 0.73 | M155: 0.821 | N155: 1.231 | AB155: 2.85 | AC155: 1.29 | AD155: --- | AE155: --- | AF155: 28.1 | AG155: 3.21 | AH155: 4.18 | AI155: 40.4 | AJ155: 0.617 | AK155: 0.529 | AL155: 1.108 | AM155: 1.305 | AN155: 1.023 | AO155: 0.744 | AS155: 40.88980172
A156: 2021-03-02T14:15:00 | B156: 0 | C156: 0 | D156: 0 | E156: 0 | F156: 0 | G156: 0 | H156: 16.493 | I156: 0.464 | J156: 0.568 | K156: 1.263 | L156: 0.736 | M156: 0.856 | N156: 1.23 | AB156: 2.83 | AC156: 1.29 | AD156: --- | AE156: --- | AF156: 27.9 | AG156: 3.21 | AH156: 4.16 | AI156: 40.6 | AJ156: 0.617 | AK156: 0.528 | AL156: 1.108 | AM156: 1.3 | AN156: 1.024 | AO156: 0.745 | AS156: 41.065189
A157: 2021-03-02T14:30:00 | B157: 0 | C157: 0 | D157: 0 | E157: 0 | F157: 0 | G157: 0 | H157: 16.491 | I157: 0.464 | J157: 0.568 | K157: 1.276 | L157: 0.761 | M157: 0.892 | N157: 1.228 | AB157: 2.83 | AC157: 1.29 | AD157: --- | AE157: --- | AF157: 27.8 | AG157: 3.21 | AH157: 4.16 | AI157: 40.6 | AJ157: 0.617 | AK157: 0.528 | AL157: 1.107 | AM157: 1.298 | AN157: 1.021 | AO157: 0.745 | AS157: 41.065189
A158: 2021-03-02T14:45:00 | B158: 0 | C158: 0 | D158: 0 | E158: 0 | F158: 0 | G158: 0 | H158: 16.494 | I158: 0.463 | J158: 0.568 | K158: 1.279 | L158: 0.776 | M158: 0.899 | N158: 1.226 | AB158: 2.81 | AC158: 1.29 | AD158: --- | AE158: --- | AF158: 27.6 | AG158: 3.18 | AH158: 4.16 | AI158: 40.2 | AJ158: 0.615 | AK158: 0.528 | AL158: 1.106 | AM158: 1.295 | AN158: 1.021 | AO158: 0.743 | AS158: 40.71439751
A159: 2021-03-02T15:00:00 | B159: 0 | C159: 0 | D159: 0 | E159: 0 | F159: 0 | G159: 0 | H159: 16.486 | I159: 0.464 | J159: 0.569 | K159: 1.28 | L159: 0.775 | M159: 0.905 | N159: 1.225 | AB159: 2.83 | AC159: 1.3 | AD159: --- | AE159: --- | AF159: 27.6 | AG159: 3.21 | AH159: 4.13 | AI159: 40.2 | AJ159: 0.617 | AK159: 0.527 | AL159: 1.107 | AM159: 1.295 | AN159: 1.019 | AO159: 0.743 | AS159: 40.71439751
A160: 2021-03-02T15:15:00 | B160: 0 | C160: 0 | D160: 0 | E160: 0 | F160: 0 | G160: 0 | H160: 16.494 | I160: 0.464 | J160: 0.568 | K160: 1.282 | L160: 0.775 | M160: 0.903 | N160: 1.223 | AB160: 2.83 | AC160: 1.29 | AD160: --- | AE160: --- | AF160: 27.4 | AG160: 3.19 | AH160: 4.13 | AI160: 40.1 | AJ160: 0.616 | AK160: 0.527 | AL160: 1.107 | AM160: 1.29 | AN160: 1.019 | AO160: 0.742 | AS160: 40.53897631
A161: 2021-03-02T15:30:00 | B161: 0 | C161: 0 | D161: 0 | E161: 0 | F161: 0 | G161: 0 | H161: 16.491 | I161: 0.463 | J161: 0.568 | K161: 1.284 | L161: 0.775 | M161: 0.902 | N161: 1.221 | AB161: 2.81 | AC161: 1.29 | AD161: --- | AE161: --- | AF161: 27.5 | AG161: 3.19 | AH161: 4.13 | AI161: 40.1 | AJ161: 0.616 | AK161: 0.527 | AL161: 1.106 | AM161: 1.292 | AN161: 1.016 | AO161: 0.742 | AS161: 40.53897631
A162: 2021-03-02T15:45:00 | B162: 0 | C162: 0 | D162: 0 | E162: 0 | F162: 0 | G162: 0 | H162: 16.489 | I162: 0.464 | J162: 0.568 | K162: 1.282 | L162: 0.777 | M162: 0.904 | N162: 1.221 | AB162: 2.83 | AC162: 1.29 | AD162: --- | AE162: --- | AF162: 27.3 | AG162: 3.18 | AH162: 4.11 | AI162: 39.7 | AJ162: 0.615 | AK162: 0.526 | AL162: 1.105 | AM162: 1.288 | AN162: 1.018 | AO162: 0.74 | AS162: 40.18808259
A163: 2021-03-02T16:00:00 | B163: 0 | C163: 0 | D163: 0 | E163: 0 | F163: 0 | G163: 0 | H163: 16.484 | I163: 0.463 | J163: 0.568 | K163: 1.281 | L163: 0.775 | M163: 0.899 | N163: 1.219 | AB163: 2.81 | AC163: 1.29 | AD163: --- | AE163: --- | AF163: 27.2 | AG163: 3.18 | AH163: 4.11 | AI163: 39.9 | AJ163: 0.615 | AK163: 0.526 | AL163: 1.105 | AM163: 1.286 | AN163: 1.017 | AO163: 0.741 | AS163: 40.36353803
A164: 2021-03-02T16:15:00 | B164: 0 | C164: 0 | D164: 0 | E164: 0 | F164: 0 | G164: 0 | H164: 16.483 | I164: 0.463 | J164: 0.568 | K164: 1.282 | L164: 0.775 | M164: 0.903 | N164: 1.218 | AB164: 2.81 | AC164: 1.29 | AD164: --- | AE164: --- | AF164: 27.3 | AG164: 3.16 | AH164: 4.09 | AI164: 39.9 | AJ164: 0.614 | AK164: 0.525 | AL164: 1.104 | AM164: 1.288 | AN164: 1.016 | AO164: 0.741 | AS164: 40.36353803
A165: 2021-03-02T16:30:00 | B165: 0 | C165: 0 | D165: 0 | E165: 0 | F165: 0 | G165: 0 | H165: 16.482 | I165: 0.464 | J165: 0.568 | K165: 1.285 | L165: 0.774 | M165: 0.902 | N165: 1.216 | AB165: 2.83 | AC165: 1.29 | AD165: --- | AE165: --- | AF165: 27.2 | AG165: 3.16 | AH165: 4.09 | AI165: 39.7 | AJ165: 0.614 | AK165: 0.525 | AL165: 1.103 | AM165: 1.285 | AN165: 1.015 | AO165: 0.74 | AS165: 40.18808259
A166: 2021-03-02T16:45:00 | B166: 0 | C166: 0 | D166: 0 | E166: 0 | F166: 0 | G166: 0 | H166: 16.48 | I166: 0.464 | J166: 0.567 | K166: 1.285 | L166: 0.773 | M166: 0.899 | N166: 1.215 | AB166: 2.83 | AC166: 1.28 | AD166: --- | AE166: --- | AF166: 27.1 | AG166: 3.14 | AH166: 4.07 | AI166: 39.9 | AJ166: 0.613 | AK166: 0.524 | AL166: 1.103 | AM166: 1.283 | AN166: 1.015 | AO166: 0.741 | AS166: 40.36353803
A167: 2021-03-02T17:00:00 | B167: 0 | C167: 0 | D167: 0 | E167: 0 | F167: 0 | G167: 0 | H167: 16.48 | I167: 0.464 | J167: 0.567 | K167: 1.283 | L167: 0.774 | M167: 0.899 | N167: 1.215 | AB167: 2.83 | AC167: 1.28 | AD167: --- | AE167: --- | AF167: 27 | AG167: 3.14 | AH167: 4.09 | AI167: 39.4 | AJ167: 0.613 | AK167: 0.525 | AL167: 1.1 | AM167: 1.281 | AN167: 1.014 | AO167: 0.738 | AS167: 39.83711994
A168: 2021-03-02T17:15:00 | B168: 0 | C168: 0 | D168: 0 | E168: 0 | F168: 0 | G168: 0 | H168: 16.48 | I168: 0.463 | J168: 0.567 | K168: 1.282 | L168: 0.775 | M168: 0.896 | N168: 1.214 | AB168: 2.81 | AC168: 1.28 | AD168: --- | AE168: --- | AF168: 27 | AG168: 3.13 | AH168: 4.07 | AI168: 39.5 | AJ168: 0.612 | AK168: 0.524 | AL168: 1.103 | AM168: 1.281 | AN168: 1.011 | AO168: 0.739 | AS168: 40.01260992
A169: 2021-03-02T17:30:00 | B169: 0 | C169: 0 | D169: 0 | E169: 0 | F169: 0 | G169: 0 | H169: 16.479 | I169: 0.463 | J169: 0.567 | K169: 1.284 | L169: 0.773 | M169: 0.902 | N169: 1.213 | AB169: 2.81 | AC169: 1.28 | AD169: --- | AE169: --- | AF169: 26.9 | AG169: 3.13 | AH169: 4.07 | AI169: 39.9 | AJ169: 0.612 | AK169: 0.524 | AL169: 1.102 | AM169: 1.28 | AN169: 1.014 | AO169: 0.741 | AS169: 40.36353803
A170: 2021-03-02T17:45:00 | B170: 0 | C170: 0 | D170: 0 | E170: 0 | F170: 0 | G170: 0 | H170: 16.477 | I170: 0.463 | J170: 0.567 | K170: 1.284 | L170: 0.773 | M170: 0.9 | N170: 1.212 | AB170: 2.81 | AC170: 1.28 | AD170: --- | AE170: --- | AF170: 26.9 | AG170: 3.11 | AH170: 4.07 | AI170: 39 | AJ170: 0.611 | AK170: 0.524 | AL170: 1.103 | AM170: 1.278 | AN170: 1.01 | AO170: 0.736 | AS170: 39.48608773
A171: 2021-03-02T18:00:00 | B171: 0 | C171: 0 | D171: 0 | E171: 0 | F171: 0 | G171: 0 | H171: 16.476 | I171: 0.463 | J171: 0.567 | K171: 1.283 | L171: 0.772 | M171: 0.898 | N171: 1.211 | AB171: 2.81 | AC171: 1.28 | AD171: --- | AE171: --- | AF171: 26.8 | AG171: 3.1 | AH171: 4.05 | AI171: 39.4 | AJ171: 0.61 | AK171: 0.523 | AL171: 1.103 | AM171: 1.277 | AN171: 1.013 | AO171: 0.738 | AS171: 39.83711994
A172: 2021-03-02T18:15:00 | B172: 0 | C172: 0 | D172: 0 | E172: 0 | F172: 0 | G172: 0 | H172: 16.474 | I172: 0.464 | J172: 0.567 | K172: 1.283 | L172: 0.77 | M172: 0.896 | N172: 1.209 | AB172: 2.83 | AC172: 1.28 | AD172: --- | AE172: --- | AF172: 26.6 | AG172: 3.11 | AH172: 4.05 | AI172: 39.4 | AJ172: 0.611 | AK172: 0.523 | AL172: 1.1 | AM172: 1.273 | AN172: 1.008 | AO172: 0.738 | AS172: 39.83711994
A173: 2021-03-02T18:30:00 | B173: 0 | C173: 0 | D173: 0 | E173: 0 | F173: 0 | G173: 0 | H173: 16.472 | I173: 0.465 | J173: 0.566 | K173: 1.284 | L173: 0.77 | M173: 0.898 | N173: 1.209 | AB173: 2.85 | AC173: 1.27 | AD173: --- | AE173: --- | AF173: 26.6 | AG173: 3.1 | AH173: 4.05 | AI173: 39 | AJ173: 0.61 | AK173: 0.523 | AL173: 1.101 | AM173: 1.273 | AN173: 1.009 | AO173: 0.736 | AS173: 39.48608773
A174: 2021-03-02T18:45:00 | B174: 0 | C174: 0 | D174: 0 | E174: 0 | F174: 0 | G174: 0 | H174: 16.469 | I174: 0.463 | J174: 0.566 | K174: 1.284 | L174: 0.77 | M174: 0.894 | N174: 1.208 | AB174: 2.81 | AC174: 1.27 | AD174: --- | AE174: --- | AF174: 26.5 | AG174: 3.08 | AH174: 4.03 | AI174: 39.2 | AJ174: 0.609 | AK174: 0.522 | AL174: 1.1 | AM174: 1.271 | AN174: 1.007 | AO174: 0.737 | AS174: 39.66161257
A175: 2021-03-02T19:00:00 | B175: 0 | C175: 0 | D175: 0 | E175: 0 | F175: 0 | G175: 0 | H175: 16.467 | I175: 0.464 | J175: 0.566 | K175: 1.284 | L175: 0.769 | M175: 0.896 | N175: 1.207 | AB175: 2.83 | AC175: 1.27 | AD175: --- | AE175: --- | AF175: 26.5 | AG175: 3.06 | AH175: 4.01 | AI175: 38.5 | AJ175: 0.608 | AK175: 0.521 | AL175: 1.099 | AM175: 1.271 | AN175: 1.011 | AO175: 0.733 | AS175: 38.95940754
A176: 2021-03-02T19:15:00 | B176: 0 | C176: 0 | D176: 0 | E176: 0 | F176: 0 | G176: 0 | H176: 16.466 | I176: 0.465 | J176: 0.566 | K176: 1.282 | L176: 0.767 | M176: 0.896 | N176: 1.205 | AB176: 2.85 | AC176: 1.27 | AD176: --- | AE176: --- | AF176: 26.4 | AG176: 3.06 | AH176: 4.01 | AI176: 38.8 | AJ176: 0.608 | AK176: 0.521 | AL176: 1.101 | AM176: 1.268 | AN176: 1.008 | AO176: 0.735 | AS176: 39.31054533
A177: 2021-03-02T19:30:00 | B177: 0 | C177: 0 | D177: 0 | E177: 0 | F177: 0 | G177: 0 | H177: 16.464 | I177: 0.464 | J177: 0.566 | K177: 1.283 | L177: 0.766 | M177: 0.897 | N177: 1.204 | AB177: 2.83 | AC177: 1.27 | AD177: --- | AE177: --- | AF177: 26.4 | AG177: 3.08 | AH177: 4.01 | AI177: 38.5 | AJ177: 0.609 | AK177: 0.521 | AL177: 1.098 | AM177: 1.269 | AN177: 1.003 | AO177: 0.733 | AS177: 38.95940754
A178: 2021-03-02T19:45:00 | B178: 0 | C178: 0 | D178: 0 | E178: 0 | F178: 0 | G178: 0 | H178: 16.463 | I178: 0.464 | J178: 0.566 | K178: 1.284 | L178: 0.766 | M178: 0.894 | N178: 1.202 | AB178: 2.83 | AC178: 1.27 | AD178: --- | AE178: --- | AF178: 26.4 | AG178: 3.06 | AH178: 4.01 | AI178: 38.3 | AJ178: 0.608 | AK178: 0.521 | AL178: 1.1 | AM178: 1.267 | AN178: 1.006 | AO178: 0.732 | AS178: 38.78381199
A179: 2021-03-02T20:00:00 | B179: 0 | C179: 0 | D179: 0 | E179: 0 | F179: 0 | G179: 0 | H179: 16.46 | I179: 0.464 | J179: 0.566 | K179: 1.285 | L179: 0.766 | M179: 0.891 | N179: 1.201 | AB179: 2.83 | AC179: 1.27 | AD179: --- | AE179: --- | AF179: 26.2 | AG179: 3.06 | AH179: 3.98 | AI179: 38.3 | AJ179: 0.608 | AK179: 0.52 | AL179: 1.098 | AM179: 1.264 | AN179: 1.006 | AO179: 0.732 | AS179: 38.78381199
A180: 2021-03-02T20:15:00 | B180: 0 | C180: 0 | D180: 0 | E180: 0 | F180: 0 | G180: 0 | H180: 16.459 | I180: 0.464 | J180: 0.565 | K180: 1.283 | L180: 0.767 | M180: 0.891 | N180: 1.201 | AB180: 2.83 | AC180: 1.26 | AD180: --- | AE180: --- | AF180: 26.3 | AG180: 3.06 | AH180: 3.98 | AI180: 38.1 | AJ180: 0.608 | AK180: 0.52 | AL180: 1.098 | AM180: 1.266 | AN180: 1.004 | AO180: 0.731 | AS180: 38.60819855
A181: 2021-03-02T20:30:00 | B181: 0 | C181: 0 | D181: 0 | E181: 0 | F181: 0 | G181: 0 | H181: 16.46 | I181: 0.464 | J181: 0.565 | K181: 1.285 | L181: 0.765 | M181: 0.89 | N181: 1.199 | AB181: 2.83 | AC181: 1.26 | AD181: --- | AE181: --- | AF181: 26 | AG181: 3.05 | AH181: 3.98 | AI181: 37.8 | AJ181: 0.607 | AK181: 0.52 | AL181: 1.097 | AM181: 1.26 | AN181: 1.001 | AO181: 0.729 | AS181: 38.25691767
A182: 2021-03-02T20:45:00 | B182: 0 | C182: 0 | D182: 0 | E182: 0 | F182: 0 | G182: 0 | H182: 16.46 | I182: 0.464 | J182: 0.565 | K182: 1.281 | L182: 0.764 | M182: 0.89 | N182: 1.198 | AB182: 2.83 | AC182: 1.26 | AD182: --- | AE182: --- | AF182: 26.1 | AG182: 3.03 | AH182: 3.96 | AI182: 38 | AJ182: 0.606 | AK182: 0.519 | AL182: 1.098 | AM182: 1.262 | AN182: 1.001 | AO182: 0.73 | AS182: 38.43256714
A183: 2021-03-02T21:00:00 | B183: 0 | C183: 0 | D183: 0 | E183: 0 | F183: 0 | G183: 0 | H183: 16.456 | I183: 0.463 | J183: 0.565 | K183: 1.284 | L183: 0.764 | M183: 0.889 | N183: 1.197 | AB183: 2.81 | AC183: 1.26 | AD183: --- | AE183: --- | AF183: 26 | AG183: 3.01 | AH183: 3.94 | AI183: 38.5 | AJ183: 0.605 | AK183: 0.518 | AL183: 1.096 | AM183: 1.259 | AN183: 0.999 | AO183: 0.733 | AS183: 38.95940754
A184: 2021-03-02T21:15:00 | B184: 0 | C184: 0 | D184: 0 | E184: 0 | F184: 0 | G184: 0 | H184: 16.454 | I184: 0.464 | J184: 0.565 | K184: 1.284 | L184: 0.763 | M184: 0.889 | N184: 1.196 | AB184: 2.83 | AC184: 1.26 | AD184: --- | AE184: --- | AF184: 25.9 | AG184: 3.01 | AH184: 3.94 | AI184: 37.8 | AJ184: 0.605 | AK184: 0.518 | AL184: 1.096 | AM184: 1.258 | AN184: 0.997 | AO184: 0.729 | AS184: 38.25691767
A185: 2021-03-02T21:30:00 | B185: 0 | C185: 0 | D185: 0 | E185: 0 | F185: 0 | G185: 0 | H185: 16.454 | I185: 0.464 | J185: 0.564 | K185: 1.284 | L185: 0.762 | M185: 0.888 | N185: 1.194 | AB185: 2.83 | AC185: 1.25 | AD185: --- | AE185: --- | AF185: 25.9 | AG185: 3.01 | AH185: 3.94 | AI185: 37.8 | AJ185: 0.605 | AK185: 0.518 | AL185: 1.097 | AM185: 1.257 | AN185: 1.003 | AO185: 0.729 | AS185: 38.25691767
A186: 2021-03-02T21:45:00 | B186: 0 | C186: 0 | D186: 0 | E186: 0 | F186: 0 | G186: 0 | H186: 16.453 | I186: 0.464 | J186: 0.564 | K186: 1.282 | L186: 0.761 | M186: 0.888 | N186: 1.194 | AB186: 2.83 | AC186: 1.25 | AD186: --- | AE186: --- | AF186: 25.9 | AG186: 3 | AH186: 3.94 | AI186: 37.8 | AJ186: 0.604 | AK186: 0.518 | AL186: 1.096 | AM186: 1.257 | AN186: 1 | AO186: 0.729 | AS186: 38.25691767
A187: 2021-03-02T22:00:00 | B187: 0 | C187: 0 | D187: 0 | E187: 0 | F187: 0 | G187: 0 | H187: 16.45 | I187: 0.464 | J187: 0.563 | K187: 1.282 | L187: 0.76 | M187: 0.882 | N187: 1.192 | AB187: 2.83 | AC187: 1.24 | AD187: --- | AE187: --- | AF187: 25.9 | AG187: 3 | AH187: 3.94 | AI187: 37.3 | AJ187: 0.604 | AK187: 0.518 | AL187: 1.096 | AM187: 1.256 | AN187: 0.999 | AO187: 0.726 | AS187: 37.72986006
A188: 2021-03-02T22:15:00 | B188: 0 | C188: 0 | D188: 0 | E188: 0 | F188: 0 | G188: 0 | H188: 16.449 | I188: 0.464 | J188: 0.563 | K188: 1.281 | L188: 0.758 | M188: 0.884 | N188: 1.191 | AB188: 2.83 | AC188: 1.24 | AD188: --- | AE188: --- | AF188: 25.8 | AG188: 3 | AH188: 3.92 | AI188: 37.4 | AJ188: 0.604 | AK188: 0.517 | AL188: 1.095 | AM188: 1.254 | AN188: 0.997 | AO188: 0.727 | AS188: 37.90556422
A189: 2021-03-02T22:30:00 | B189: 0 | C189: 0 | D189: 0 | E189: 0 | F189: 0 | G189: 0 | H189: 16.449 | I189: 0.463 | J189: 0.563 | K189: 1.281 | L189: 0.758 | M189: 0.884 | N189: 1.19 | AB189: 2.81 | AC189: 1.24 | AD189: --- | AE189: --- | AF189: 25.7 | AG189: 3 | AH189: 3.9 | AI189: 37.6 | AJ189: 0.604 | AK189: 0.516 | AL189: 1.096 | AM189: 1.252 | AN189: 0.998 | AO189: 0.728 | AS189: 38.08125006
A190: 2021-03-02T22:45:00 | B190: 0 | C190: 0 | D190: 0 | E190: 0 | F190: 0 | G190: 0 | H190: 16.448 | I190: 0.463 | J190: 0.563 | K190: 1.282 | L190: 0.759 | M190: 0.882 | N190: 1.188 | AB190: 2.81 | AC190: 1.24 | AD190: --- | AE190: --- | AF190: 25.6 | AG190: 2.98 | AH190: 3.92 | AI190: 37.3 | AJ190: 0.603 | AK190: 0.517 | AL190: 1.094 | AM190: 1.251 | AN190: 0.996 | AO190: 0.726 | AS190: 37.72986006
A191: 2021-03-02T23:00:00 | B191: 0 | C191: 0 | D191: 0 | E191: 0 | F191: 0 | G191: 0 | H191: 16.446 | I191: 0.464 | J191: 0.563 | K191: 1.282 | L191: 0.757 | M191: 0.882 | N191: 1.187 | AB191: 2.83 | AC191: 1.24 | AD191: --- | AE191: --- | AF191: 25.5 | AG191: 2.95 | AH191: 3.88 | AI191: 37.3 | AJ191: 0.601 | AK191: 0.515 | AL191: 1.094 | AM191: 1.249 | AN191: 0.994 | AO191: 0.726 | AS191: 37.72986006
A192: 2021-03-02T23:15:00 | B192: 0 | C192: 0 | D192: 0 | E192: 0 | F192: 0 | G192: 0 | H192: 16.445 | I192: 0.463 | J192: 0.562 | K192: 1.282 | L192: 0.758 | M192: 0.883 | N192: 1.187 | AB192: 2.81 | AC192: 1.23 | AD192: --- | AE192: --- | AF192: 25.6 | AG192: 2.98 | AH192: 3.88 | AI192: 36.9 | AJ192: 0.603 | AK192: 0.515 | AL192: 1.094 | AM192: 1.25 | AN192: 0.997 | AO192: 0.724 | AS192: 37.37839643
A193: 2021-03-02T23:30:00 | B193: 0 | C193: 0 | D193: 0 | E193: 0 | F193: 0 | G193: 0 | H193: 16.443 | I193: 0.464 | J193: 0.562 | K193: 1.283 | L193: 0.755 | M193: 0.877 | N193: 1.185 | AB193: 2.83 | AC193: 1.23 | AD193: --- | AE193: --- | AF193: 25.5 | AG193: 2.97 | AH193: 3.88 | AI193: 36.6 | AJ193: 0.602 | AK193: 0.515 | AL193: 1.095 | AM193: 1.247 | AN193: 0.997 | AO193: 0.722 | AS193: 37.02685844
A194: 2021-03-02T23:45:00 | B194: 0 | C194: 0 | D194: 0 | E194: 0 | F194: 0 | G194: 0 | H194: 16.445 | I194: 0.463 | J194: 0.562 | K194: 1.283 | L194: 0.757 | M194: 0.881 | N194: 1.184 | AB194: 2.81 | AC194: 1.23 | AD194: --- | AE194: --- | AF194: 25.5 | AG194: 2.95 | AH194: 3.88 | AI194: 36.7 | AJ194: 0.601 | AK194: 0.515 | AL194: 1.093 | AM194: 1.247 | AN194: 0.992 | AO194: 0.723 | AS194: 37.20263678
A195: 2021-03-03 | B195: 0 | C195: 0 | D195: 0 | E195: 0 | F195: 0 | G195: 0 | H195: 16.442 | I195: 0.464 | J195: 0.562 | K195: 1.282 | L195: 0.756 | M195: 0.881 | N195: 1.182 | AB195: 2.83 | AC195: 1.23 | AD195: --- | AE195: --- | AF195: 25.3 | AG195: 2.95 | AH195: 3.88 | AI195: 37.1 | AJ195: 0.601 | AK195: 0.515 | AL195: 1.093 | AM195: 1.243 | AN195: 0.997 | AO195: 0.725 | AS195: 37.5541375
A196: 2021-03-03T00:15:00 | B196: 0 | C196: 0 | D196: 0 | E196: 0 | F196: 0 | G196: 0 | H196: 16.443 | I196: 0.464 | J196: 0.562 | K196: 1.28 | L196: 0.754 | M196: 0.88 | N196: 1.181 | AB196: 2.83 | AC196: 1.23 | AD196: --- | AE196: --- | AF196: 25.4 | AG196: 2.95 | AH196: 3.86 | AI196: 36.6 | AJ196: 0.601 | AK196: 0.514 | AL196: 1.093 | AM196: 1.245 | AN196: 0.998 | AO196: 0.722 | AS196: 37.02685844
A197: 2021-03-03T00:30:00 | B197: 0 | C197: 0 | D197: 0 | E197: 0 | F197: 0 | G197: 0 | H197: 16.441 | I197: 0.463 | J197: 0.561 | K197: 1.28 | L197: 0.755 | M197: 0.877 | N197: 1.18 | AB197: 2.81 | AC197: 1.22 | AD197: --- | AE197: --- | AF197: 25.2 | AG197: 2.93 | AH197: 3.86 | AI197: 36.7 | AJ197: 0.6 | AK197: 0.514 | AL197: 1.093 | AM197: 1.242 | AN197: 0.992 | AO197: 0.723 | AS197: 37.20263678
A198: 2021-03-03T00:45:00 | B198: 0 | C198: 0 | D198: 0 | E198: 0 | F198: 0 | G198: 0 | H198: 16.44 | I198: 0.464 | J198: 0.561 | K198: 1.281 | L198: 0.753 | M198: 0.873 | N198: 1.18 | AB198: 2.83 | AC198: 1.22 | AD198: --- | AE198: --- | AF198: 25.2 | AG198: 2.92 | AH198: 3.86 | AI198: 36.2 | AJ198: 0.599 | AK198: 0.514 | AL198: 1.093 | AM198: 1.242 | AN198: 0.992 | AO198: 0.72 | AS198: 36.67524536
A199: 2021-03-03T01:00:00 | B199: 0 | C199: 0 | D199: 0 | E199: 0 | F199: 0 | G199: 0 | H199: 16.439 | I199: 0.464 | J199: 0.56 | K199: 1.281 | L199: 0.752 | M199: 0.876 | N199: 1.178 | AB199: 2.83 | AC199: 1.21 | AD199: --- | AE199: --- | AF199: 25.1 | AG199: 2.92 | AH199: 3.86 | AI199: 37.3 | AJ199: 0.599 | AK199: 0.514 | AL199: 1.093 | AM199: 1.24 | AN199: 0.989 | AO199: 0.726 | AS199: 37.72986006
A200: 2021-03-03T01:15:00 | B200: 0 | C200: 0 | D200: 0 | E200: 0 | F200: 0 | G200: 0 | H200: 16.438 | I200: 0.464 | J200: 0.56 | K200: 1.279 | L200: 0.751 | M200: 0.876 | N200: 1.177 | AB200: 2.83 | AC200: 1.21 | AD200: --- | AE200: --- | AF200: 25.1 | AG200: 2.9 | AH200: 3.84 | AI200: 36.7 | AJ200: 0.598 | AK200: 0.513 | AL200: 1.093 | AM200: 1.24 | AN200: 0.99 | AO200: 0.723 | AS200: 37.20263678
... 925 more rows

Sheet Apr
A1: date time | B1: SJB | C1: Dale Head | D1: Portinscale | E1: Honister | F1: Matterdale | G1: Mungrisdale | H1: Thirlmere - Y2 | I1: SJB | J1: Threlkeld | K1: Greta Bridge | L1: Derwent at Portinscale | M1: Greta Keswick Campsite | N1: Derwent at Lodore | Q1: DAILY | R1: SJB | S1: Dale Head | T1: Portinscale | U1: Honister | V1: Matterdale | W1: Mungrisdale | Y1: Check on rainfall calcs | AB1: SJB | AC1: Threlkeld | AD1: Low Briery | AE1: Portinscale | AF1: Ouse Bridge | AG1: Scalehill | AH1: Southwaite Bridge | AI1: Seaton Mill | AJ1: Scalehill | AK1: Southwaite Bridge | AL1: South St Footbridge | AM1: Ouse Bridge | AN1: Kingfisher | AO1: Seaton Mill
A2: TOTALS | B2: =SUM(B3:B2882) -> 12.2 | C2: 21 | D2: 10.4 | E2: 29.2 | F2: 12.4 | G2: 21.2 | R2: =SUM(R3:R33) -> 12.2 | S2: =SUM(S3:S33) -> 21 | T2: 10.4 | U2: 29.2 | V2: 12.4 | W2: 21.2 | Y2: =SUM(R2:W2)-SUM(B2:G2) -> 0 | AB2: Flows in m3/s | AJ2: Levels =m
A3: 2021-04-01 | C3: 0 | D3: 0 | E3: 0 | F3: 0 | G3: 0 | H3: 16.656 | I3: 0.43 | J3: 0.656 | K3: 1.352 | L3: 1.186 | M3: 1.283 | N3: 1.891 | P3: =2+96 -> 98 | Q3: 2021-04-01 | R3: =SUM(B3:B98) -> 0 | S3: =SUM(C3:C98) -> 0 | T3: 0.1 | U3: 0 | V3: 0 | W3: 0 | AB3: 2.24 | AC3: 2.37 | AD3: --- | AE3: --- | AF3: 67.2 | AG3: 7.4 | AH3: 9.71 | AI3: 90.2 | AJ3: 0.838 | AK3: 0.722 | AL3: 1.284 | AM3: 2.007 | AN3: 1.449 | AO3: 0.995
A4: 2021-04-01T00:15:00 | C4: 0 | D4: 0 | E4: 0 | F4: 0 | G4: 0 | H4: 16.663 | I4: 0.428 | J4: 0.656 | K4: 1.353 | L4: 1.185 | M4: 1.279 | N4: 1.887 | P4: =P3+96 -> 194 | Q4: 2021-04-02 | R4: =SUM(B99:B194) -> 0 | S4: =SUM(C99:C194) -> 0 | T4: 0.4 | U4: 0 | V4: 0 | W4: 0 | AB4: 2.2 | AC4: 2.37 | AD4: --- | AE4: --- | AF4: 66.9 | AG4: 7.4 | AH4: 9.68 | AI4: 90.2 | AJ4: 0.838 | AK4: 0.721 | AL4: 1.284 | AM4: 2.004 | AN4: 1.438 | AO4: 0.995
A5: 2021-04-01T00:30:00 | C5: 0 | D5: 0 | E5: 0 | F5: 0 | G5: 0 | H5: 16.656 | I5: 0.427 | J5: 0.656 | K5: 1.349 | L5: 1.181 | M5: 1.277 | N5: 1.883 | P5: =P4+96 -> 290 | Q5: 2021-04-03 | R5: =SUM(B195:B290) -> 0 | S5: =SUM(C195:C290) -> 0 | T5: 0.6 | U5: 0 | V5: 0 | W5: 0 | AB5: 2.19 | AC5: 2.37 | AD5: --- | AE5: --- | AF5: 67.3 | AG5: 7.44 | AH5: 9.68 | AI5: 89.2 | AJ5: 0.84 | AK5: 0.721 | AL5: 1.283 | AM5: 2.009 | AN5: 1.45 | AO5: 0.99
A6: 2021-04-01T00:45:00 | C6: 0 | D6: 0 | E6: 0 | F6: 0 | G6: 0 | H6: 16.669 | I6: 0.427 | J6: 0.656 | K6: 1.348 | L6: 1.176 | M6: 1.277 | N6: 1.879 | P6: 386 | Q6: 2021-04-04 | R6: =SUM(B291:B386) -> 0 | S6: =SUM(C291:C386) -> 0.6 | T6: 0.4 | U6: 0.4 | V6: 0.2 | W6: 0.6 | AB6: 2.19 | AC6: 2.37 | AD6: --- | AE6: --- | AF6: 66.4 | AG6: 7.38 | AH6: 9.61 | AI6: 89.8 | AJ6: 0.837 | AK6: 0.719 | AL6: 1.281 | AM6: 1.996 | AN6: 1.435 | AO6: 0.993
A7: 2021-04-01T01:00:00 | C7: 0 | D7: 0 | E7: 0 | F7: 0 | G7: 0 | H7: 16.67 | I7: 0.425 | J7: 0.655 | K7: 1.347 | L7: 1.174 | M7: 1.272 | N7: 1.875 | P7: 482 | Q7: 2021-04-05 | R7: =SUM(B387:B482) -> 0 | S7: =SUM(C387:C482) -> 0 | T7: 0.3 | U7: 0.6 | V7: 0 | W7: 0 | AB7: 2.16 | AC7: 2.35 | AD7: --- | AE7: --- | AF7: 66.5 | AG7: 7.36 | AH7: 9.58 | AI7: 88.6 | AJ7: 0.836 | AK7: 0.718 | AL7: 1.282 | AM7: 1.998 | AN7: 1.431 | AO7: 0.987
A8: 2021-04-01T01:15:00 | C8: 0 | D8: 0 | E8: 0 | F8: 0 | G8: 0 | H8: 16.664 | I8: 0.424 | J8: 0.653 | K8: 1.345 | L8: 1.174 | M8: 1.271 | N8: 1.872 | P8: 578 | Q8: 2021-04-06 | R8: =SUM(B483:B578) -> 0.2 | S8: =SUM(C483:C578) -> 0 | T8: 0.1 | U8: 0.6 | V8: 0 | W8: 0 | AB8: 2.14 | AC8: 2.32 | AD8: --- | AE8: --- | AF8: 66.7 | AG8: 7.3 | AH8: 9.52 | AI8: 88.8 | AJ8: 0.833 | AK8: 0.716 | AL8: 1.28 | AM8: 2.001 | AN8: 1.43 | AO8: 0.988
A9: 2021-04-01T01:30:00 | C9: 0 | D9: 0 | E9: 0 | F9: 0 | G9: 0 | H9: 16.656 | I9: 0.423 | J9: 0.653 | K9: 1.346 | L9: 1.172 | M9: 1.27 | N9: 1.869 | P9: 674 | Q9: 2021-04-07 | R9: =SUM(B579:B674) -> 0 | S9: =SUM(C579:C674) -> 0 | T9: 0 | U9: 0 | V9: 0 | W9: 0 | AB9: 2.12 | AC9: 2.32 | AD9: --- | AE9: --- | AF9: 66.2 | AG9: 7.32 | AH9: 9.48 | AI9: 87.8 | AJ9: 0.834 | AK9: 0.715 | AL9: 1.28 | AM9: 1.994 | AN9: 1.426 | AO9: 0.983
A10: 2021-04-01T01:45:00 | C10: 0 | D10: 0 | E10: 0 | F10: 0 | G10: 0 | H10: 16.649 | I10: 0.421 | J10: 0.653 | K10: 1.346 | L10: 1.169 | M10: 1.265 | N10: 1.866 | P10: 770 | Q10: 2021-04-08 | R10: =SUM(B675:B770) -> 6 | S10: =SUM(C675:C770) -> 12 | T10: 5 | U10: 22.4 | V10: 8.8 | W10: 6.4 | AB10: 2.09 | AC10: 2.32 | AD10: --- | AE10: --- | AF10: 65.9 | AG10: 7.21 | AH10: 9.48 | AI10: 88.2 | AJ10: 0.829 | AK10: 0.715 | AL10: 1.277 | AM10: 1.989 | AN10: 1.425 | AO10: 0.985
A11: 2021-04-01T02:00:00 | C11: 0 | D11: 0 | E11: 0 | F11: 0 | G11: 0 | H11: 16.661 | I11: 0.419 | J11: 0.653 | K11: 1.345 | L11: 1.164 | M11: 1.261 | N11: 1.862 | P11: 866 | Q11: 2021-04-09 | R11: =SUM(B771:B866) -> 0 | S11: =SUM(C771:C866) -> 0 | T11: 0 | U11: 0 | V11: 0 | W11: 0 | AB11: 2.06 | AC11: 2.32 | AD11: --- | AE11: --- | AF11: 65.7 | AG11: 7.17 | AH11: 9.39 | AI11: 87.8 | AJ11: 0.827 | AK11: 0.712 | AL11: 1.277 | AM11: 1.986 | AN11: 1.424 | AO11: 0.983
A12: 2021-04-01T02:15:00 | C12: 0 | D12: 0 | E12: 0 | F12: 0 | G12: 0 | H12: 16.661 | I12: 0.417 | J12: 0.652 | K12: 1.342 | L12: 1.164 | M12: 1.26 | N12: 1.859 | P12: 962 | Q12: 2021-04-10 | R12: =SUM(B867:B962) -> 0.2 | S12: =SUM(C867:C962) -> 0 | T12: 0.3 | U12: 0 | V12: 0 | W12: 0 | AB12: 2.03 | AC12: 2.31 | AD12: --- | AE12: --- | AF12: 65.7 | AG12: 7.13 | AH12: 9.32 | AI12: 87.6 | AJ12: 0.825 | AK12: 0.71 | AL12: 1.275 | AM12: 1.987 | AN12: 1.422 | AO12: 0.982
A13: 2021-04-01T02:30:00 | C13: 0 | D13: 0 | E13: 0 | F13: 0 | G13: 0 | H13: 16.666 | I13: 0.417 | J13: 0.652 | K13: 1.343 | L13: 1.162 | M13: 1.258 | N13: 1.855 | P13: 1058 | Q13: 2021-04-11 | R13: =SUM(B963:B1058) -> 0 | S13: =SUM(C963:C1058) -> 0 | T13: 0 | U13: 0 | V13: 0.2 | W13: 0 | AB13: 2.03 | AC13: 2.31 | AD13: --- | AE13: --- | AF13: 65.7 | AG13: 7.13 | AH13: 9.29 | AI13: 87.8 | AJ13: 0.825 | AK13: 0.709 | AL13: 1.275 | AM13: 1.986 | AN13: 1.417 | AO13: 0.983
A14: 2021-04-01T02:45:00 | C14: 0 | D14: 0 | E14: 0 | F14: 0 | G14: 0 | H14: 16.654 | I14: 0.417 | J14: 0.651 | K14: 1.342 | L14: 1.159 | M14: 1.254 | N14: 1.851 | P14: 1154 | Q14: 2021-04-12 | R14: =SUM(B1059:B1154) -> 0 | S14: 0 | T14: 0 | U14: 0 | V14: 0 | W14: 0 | AB14: 2.03 | AC14: 2.3 | AD14: --- | AE14: --- | AF14: 65.5 | AG14: 7.05 | AH14: 9.26 | AI14: 87.1 | AJ14: 0.821 | AK14: 0.708 | AL14: 1.275 | AM14: 1.983 | AN14: 1.422 | AO14: 0.98
A15: 2021-04-01T03:00:00 | C15: 0 | D15: 0 | E15: 0 | F15: 0 | G15: 0 | H15: 16.65 | I15: 0.416 | J15: 0.65 | K15: 1.34 | L15: 1.155 | M15: 1.25 | N15: 1.849 | P15: 1250 | Q15: 2021-04-13 | R15: =SUM(B1155:B1250) -> 0.6 | S15: =SUM(C1155:C1250) -> 0.6 | T15: 0 | U15: 0.4 | V15: 1.8 | W15: 2.2 | AB15: 2.01 | AC15: 2.28 | AD15: --- | AE15: --- | AF15: 65 | AG15: 7.03 | AH15: 9.19 | AI15: 86.9 | AJ15: 0.82 | AK15: 0.706 | AL15: 1.273 | AM15: 1.976 | AN15: 1.42 | AO15: 0.979
A16: 2021-04-01T03:15:00 | C16: 0 | D16: 0 | E16: 0 | F16: 0 | G16: 0 | H16: 16.652 | I16: 0.414 | J16: 0.65 | K16: 1.337 | L16: 1.152 | M16: 1.248 | N16: 1.845 | P16: 1346 | Q16: 2021-04-14 | R16: =SUM(B1251:B1346) -> 0 | S16: =SUM(C1251:C1346) -> 0.2 | T16: 0 | U16: 0 | V16: 0 | W16: 0 | AB16: 1.98 | AC16: 2.28 | AD16: --- | AE16: --- | AF16: 64.9 | AG16: 7.03 | AH16: 9.16 | AI16: 86.9 | AJ16: 0.82 | AK16: 0.705 | AL16: 1.274 | AM16: 1.975 | AN16: 1.426 | AO16: 0.979
A17: 2021-04-01T03:30:00 | C17: 0 | D17: 0 | E17: 0 | F17: 0 | G17: 0 | H17: 16.654 | I17: 0.413 | J17: 0.65 | K17: 1.337 | L17: 1.152 | M17: 1.248 | N17: 1.843 | P17: 1442 | Q17: 2021-04-15 | R17: =SUM(B1347:B1442) -> 0 | S17: =SUM(C1347:C1442) -> 0 | T17: 0 | U17: 0 | V17: 0 | W17: 0 | AB17: 1.96 | AC17: 2.28 | AD17: --- | AE17: --- | AF17: 65 | AG17: 6.95 | AH17: 9.13 | AI17: 85.7 | AJ17: 0.816 | AK17: 0.704 | AL17: 1.27 | AM17: 1.976 | AN17: 1.409 | AO17: 0.973
A18: 2021-04-01T03:45:00 | C18: 0 | D18: 0 | E18: 0 | F18: 0 | G18: 0 | H18: 16.654 | I18: 0.413 | J18: 0.649 | K18: 1.337 | L18: 1.148 | M18: 1.247 | N18: 1.839 | P18: 1538 | Q18: 2021-04-16 | R18: =SUM(B1443:B1538) -> 0 | S18: =SUM(C1443:C1538) -> 0 | T18: 0 | U18: 0 | V18: 0 | W18: 0 | AB18: 1.96 | AC18: 2.27 | AD18: --- | AE18: --- | AF18: 64.6 | AG18: 6.93 | AH18: 9.06 | AI18: 85.9 | AJ18: 0.815 | AK18: 0.702 | AL18: 1.268 | AM18: 1.971 | AN18: 1.407 | AO18: 0.974
A19: 2021-04-01T04:00:00 | C19: 0 | D19: 0 | E19: 0 | F19: 0 | G19: 0 | H19: 16.652 | I19: 0.412 | J19: 0.648 | K19: 1.336 | L19: 1.149 | M19: 1.244 | N19: 1.836 | P19: 1634 | Q19: 2021-04-17 | R19: =SUM(B1539:B1634) -> 0 | S19: =SUM(C1539:C1634) -> 0 | T19: 0 | U19: 0 | V19: 0 | W19: 0 | AB19: 1.95 | AC19: 2.26 | AD19: --- | AE19: --- | AF19: 64.4 | AG19: 6.95 | AH19: 9.03 | AI19: 86.9 | AJ19: 0.816 | AK19: 0.701 | AL19: 1.267 | AM19: 1.968 | AN19: 1.417 | AO19: 0.979
A20: 2021-04-01T04:15:00 | C20: 0 | D20: 0 | E20: 0 | F20: 0 | G20: 0 | H20: 16.651 | I20: 0.41 | J20: 0.647 | K20: 1.335 | L20: 1.146 | M20: 1.24 | N20: 1.833 | P20: 1730 | Q20: 2021-04-18 | R20: =SUM(B1635:B1730) -> 0 | S20: =SUM(C1635:C1730) -> 0 | T20: 0 | U20: 0 | V20: 0 | W20: 0 | AB20: 1.92 | AC20: 2.24 | AD20: --- | AE20: --- | AF20: 64.2 | AG20: 6.95 | AH20: 8.94 | AI20: 85.3 | AJ20: 0.816 | AK20: 0.698 | AL20: 1.268 | AM20: 1.965 | AN20: 1.415 | AO20: 0.971
A21: 2021-04-01T04:30:00 | C21: 0 | D21: 0 | E21: 0 | F21: 0 | G21: 0 | H21: 16.654 | I21: 0.409 | J21: 0.647 | K21: 1.336 | L21: 1.142 | M21: 1.237 | N21: 1.829 | P21: 1826 | Q21: 2021-04-19 | R21: =SUM(B1731:B1826) -> 0 | S21: =SUM(C1731:C1826) -> 0 | T21: 0 | U21: 0 | V21: 0 | W21: 0 | AB21: 1.9 | AC21: 2.24 | AD21: --- | AE21: --- | AF21: 63.9 | AG21: 6.89 | AH21: 8.94 | AI21: 84.7 | AJ21: 0.813 | AK21: 0.698 | AL21: 1.264 | AM21: 1.961 | AN21: 1.402 | AO21: 0.968
A22: 2021-04-01T04:45:00 | C22: 0 | D22: 0 | E22: 0 | F22: 0 | G22: 0 | H22: 16.652 | I22: 0.407 | K22: 1.333 | L22: 1.138 | M22: 1.235 | N22: 1.825 | P22: 1922 | Q22: 2021-04-20 | R22: =SUM(B1827:B1922) -> 0 | S22: =SUM(C1827:C1922) -> 0 | T22: 0 | U22: 0 | V22: 0 | W22: 0 | AB22: 1.87 | AC22: 2.24 | AD22: --- | AE22: --- | AF22: 64 | AG22: 6.83 | AH22: 8.9 | AI22: 85.1 | AJ22: 0.81 | AK22: 0.697 | AL22: 1.264 | AM22: 1.962 | AN22: 1.404 | AO22: 0.97
A23: 2021-04-01T05:00:00 | C23: 0 | D23: 0 | E23: 0 | F23: 0 | G23: 0 | H23: 16.648 | I23: 0.407 | K23: 1.33 | L23: 1.141 | M23: 1.235 | N23: 1.823 | P23: 2018 | Q23: 2021-04-21 | R23: =SUM(B1923:B2018) -> 0 | S23: =SUM(C1923:C2018) -> 0 | T23: 0 | U23: 0 | V23: 0 | W23: 0 | AB23: 1.87 | AC23: 2.23 | AD23: --- | AE23: --- | AF23: 63.5 | AG23: 6.83 | AH23: 8.84 | AI23: 84.9 | AJ23: 0.81 | AK23: 0.695 | AL23: 1.261 | AM23: 1.954 | AN23: 1.405 | AO23: 0.969
A24: 2021-04-01T05:15:00 | C24: 0 | D24: 0 | E24: 0 | F24: 0 | G24: 0 | H24: 16.646 | I24: 0.407 | K24: 1.332 | L24: 1.136 | M24: 1.231 | N24: 1.82 | P24: 2114 | Q24: 2021-04-22 | R24: =SUM(B2019:B2114) -> 0 | S24: =SUM(C2019:C2114) -> 0 | T24: 0 | U24: 0 | V24: 0 | W24: 0 | AB24: 1.87 | AC24: 2.23 | AD24: --- | AE24: --- | AF24: 63.3 | AG24: 6.79 | AH24: 8.84 | AI24: 85.3 | AJ24: 0.808 | AK24: 0.695 | AL24: 1.261 | AM24: 1.952 | AN24: 1.406 | AO24: 0.971
A25: 2021-04-01T05:30:00 | C25: 0 | D25: 0 | E25: 0 | F25: 0 | G25: 0 | H25: 16.651 | I25: 0.406 | K25: 1.329 | L25: 1.134 | M25: 1.228 | N25: 1.817 | P25: 2210 | Q25: 2021-04-23 | R25: =SUM(B2115:B2210) -> 0 | S25: =SUM(C2115:C2210) -> 0 | T25: 0 | U25: 0 | V25: 0 | W25: 0 | AB25: 1.86 | AC25: 2.21 | AD25: --- | AE25: --- | AF25: 62.5 | AG25: 6.81 | AH25: 8.81 | AI25: 84.7 | AJ25: 0.809 | AK25: 0.694 | AL25: 1.26 | AM25: 1.94 | AN25: 1.398 | AO25: 0.968
A26: 2021-04-01T05:45:00 | C26: 0 | D26: 0 | E26: 0 | F26: 0 | G26: 0 | H26: 16.653 | I26: 0.405 | K26: 1.331 | L26: 1.127 | M26: 1.227 | N26: 1.813 | P26: 2306 | Q26: 2021-04-24 | R26: =SUM(B2211:B2306) -> 0 | S26: =SUM(C2211:C2306) -> 0 | T26: 0 | U26: 0 | V26: 0 | W26: 0 | AB26: 1.84 | AC26: 2.23 | AD26: --- | AE26: --- | AF26: 63 | AG26: 6.77 | AH26: 8.78 | AI26: 84.1 | AJ26: 0.807 | AK26: 0.693 | AL26: 1.257 | AM26: 1.948 | AN26: 1.4 | AO26: 0.965
A27: 2021-04-01T06:00:00 | C27: 0 | D27: 0 | E27: 0 | F27: 0 | G27: 0 | H27: 16.653 | I27: 0.403 | K27: 1.33 | L27: 1.128 | M27: 1.223 | N27: 1.81 | P27: 2402 | Q27: 2021-04-25 | R27: =SUM(B2307:B2402) -> 0 | S27: =SUM(C2307:C2402) -> 0 | T27: 0 | U27: 0 | V27: 0 | W27: 0 | AB27: 1.81 | AC27: 2.23 | AD27: --- | AE27: --- | AF27: 62.9 | AG27: 6.73 | AH27: 8.75 | AI27: 84.3 | AJ27: 0.805 | AK27: 0.692 | AL27: 1.257 | AM27: 1.946 | AN27: 1.396 | AO27: 0.966
A28: 2021-04-01T06:15:00 | C28: 0 | D28: 0 | E28: 0 | F28: 0 | G28: 0 | H28: 16.649 | I28: 0.402 | K28: 1.331 | L28: 1.126 | M28: 1.219 | N28: 1.808 | P28: 2498 | Q28: 2021-04-26 | R28: =SUM(B2403:B2498) -> 0.2 | S28: =SUM(C2403:C2498) -> 0.2 | T28: 0 | U28: 0.2 | V28: 0 | W28: 0 | AB28: 1.8 | AC28: 2.21 | AD28: --- | AE28: --- | AF28: 62.5 | AG28: 6.65 | AH28: 8.71 | AI28: 83 | AJ28: 0.801 | AK28: 0.691 | AL28: 1.259 | AM28: 1.94 | AN28: 1.4 | AO28: 0.96
A29: 2021-04-01T06:30:00 | C29: 0 | D29: 0 | E29: 0 | F29: 0 | G29: 0 | H29: 16.648 | I29: 0.401 | K29: 1.325 | L29: 1.126 | M29: 1.216 | N29: 1.805 | P29: 2594 | Q29: 2021-04-27 | R29: =SUM(B2499:B2594) -> 4 | S29: =SUM(C2499:C2594) -> 5.6 | T29: 1.6 | U29: 3.6 | V29: 0.6 | W29: 10.4 | AB29: 1.78 | AC29: 2.19 | AD29: --- | AE29: --- | AF29: 62.5 | AG29: 6.67 | AH29: 8.68 | AI29: 84.1 | AJ29: 0.802 | AK29: 0.69 | AL29: 1.256 | AM29: 1.94 | AN29: 1.395 | AO29: 0.965
A30: 2021-04-01T06:45:00 | C30: 0 | D30: 0 | E30: 0 | F30: 0 | G30: 0 | H30: 16.65 | I30: 0.399 | K30: 1.325 | L30: 1.121 | M30: 1.216 | N30: 1.802 | P30: 2690 | Q30: 2021-04-28 | R30: =SUM(B2595:B2690) -> 0.2 | S30: =SUM(C2595:C2690) -> 0.4 | T30: 0 | U30: 0 | V30: 0.2 | W30: 0.4 | AB30: 1.75 | AC30: 2.19 | AD30: --- | AE30: --- | AF30: 62.2 | AG30: 6.65 | AH30: 8.62 | AI30: 84.1 | AJ30: 0.801 | AK30: 0.688 | AL30: 1.256 | AM30: 1.935 | AN30: 1.387 | AO30: 0.965
A31: 2021-04-01T07:00:00 | C31: 0 | D31: 0.1 | E31: 0 | F31: 0 | G31: 0 | H31: 16.649 | I31: 0.398 | K31: 1.326 | L31: 1.12 | M31: 1.212 | N31: 1.799 | P31: 2786 | Q31: 2021-04-29 | R31: =SUM(B2691:B2786) -> 0 | S31: =SUM(C2691:C2786) -> 0.2 | T31: 1.6 | U31: 0.4 | V31: 0.2 | W31: 1.2 | AB31: 1.74 | AC31: 2.19 | AD31: --- | AE31: --- | AF31: 61.4 | AG31: 6.61 | AH31: 8.59 | AI31: 83.2 | AJ31: 0.799 | AK31: 0.687 | AL31: 1.255 | AM31: 1.924 | AN31: 1.385 | AO31: 0.961
A32: 2021-04-01T07:15:00 | C32: 0 | D32: 0 | E32: 0 | F32: 0 | G32: 0 | H32: 16.646 | I32: 0.397 | K32: 1.325 | L32: 1.118 | M32: 1.211 | N32: 1.798 | P32: 2882 | Q32: 2021-04-30 | R32: =SUM(B2787:B2882) -> 0.8 | S32: =SUM(C2787:C2882) -> 1.2 | T32: 0 | U32: 0.6 | V32: 0.4 | W32: 0 | AB32: 1.72 | AC32: 2.17 | AD32: --- | AE32: --- | AF32: 61.4 | AG32: 6.59 | AH32: 8.53 | AI32: 82.6 | AJ32: 0.798 | AK32: 0.685 | AL32: 1.253 | AM32: 1.923 | AN32: 1.382 | AO32: 0.958
A33: 2021-04-01T07:30:00 | C33: 0 | D33: 0 | E33: 0 | F33: 0 | G33: 0 | H33: 16.642 | I33: 0.396 | K33: 1.321 | L33: 1.116 | M33: 1.211 | N33: 1.792 | P33: 2978 | R33: =SUM(B2883:B2978) -> 0 | S33: =SUM(C2883:C2978) -> 0 | T33: 0 | U33: 0 | V33: 0 | W33: 0 | AB33: 1.71 | AC33: 2.17 | AD33: --- | AE33: --- | AF33: 61.6 | AG33: 6.54 | AH33: 8.49 | AI33: 82.8 | AJ33: 0.795 | AK33: 0.684 | AL33: 1.252 | AM33: 1.927 | AN33: 1.379 | AO33: 0.959
A34: 2021-04-01T07:45:00 | C34: 0 | D34: 0 | E34: 0 | F34: 0 | G34: 0 | H34: 16.65 | I34: 0.395 | K34: 1.322 | L34: 1.111 | M34: 1.21 | N34: 1.791 | AB34: 1.69 | AC34: 2.17 | AD34: --- | AE34: --- | AF34: 61.2 | AG34: 6.59 | AH34: 8.46 | AI34: 82.6 | AJ34: 0.798 | AK34: 0.683 | AL34: 1.252 | AM34: 1.92 | AN34: 1.383 | AO34: 0.958
A35: 2021-04-01T08:00:00 | C35: 0 | D35: 0 | E35: 0 | F35: 0 | G35: 0 | H35: 16.647 | I35: 0.394 | K35: 1.321 | L35: 1.111 | M35: 1.202 | N35: 1.788 | AB35: 1.68 | AC35: 2.16 | AD35: --- | AE35: --- | AF35: 61.2 | AG35: 6.56 | AH35: 8.4 | AI35: 82.8 | AJ35: 0.796 | AK35: 0.681 | AL35: 1.249 | AM35: 1.92 | AN35: 1.377 | AO35: 0.959
A36: 2021-04-01T08:15:00 | C36: 0 | D36: 0 | E36: 0 | F36: 0 | G36: 0 | H36: 16.652 | I36: 0.392 | K36: 1.319 | L36: 1.105 | M36: 1.203 | N36: 1.785 | AB36: 1.65 | AC36: 2.15 | AD36: --- | AE36: --- | AF36: 61.2 | AG36: 6.52 | AH36: 8.37 | AI36: 82.4 | AJ36: 0.794 | AK36: 0.68 | AL36: 1.248 | AM36: 1.92 | AN36: 1.373 | AO36: 0.957
A37: 2021-04-01T08:30:00 | C37: 0 | D37: 0 | E37: 0 | F37: 0 | G37: 0 | H37: 16.636 | I37: 0.389 | K37: 1.321 | L37: 1.106 | M37: 1.2 | N37: 1.782 | AB37: 1.61 | AC37: 2.15 | AD37: --- | AE37: --- | AF37: 60.7 | AG37: 6.52 | AH37: 8.34 | AI37: 82 | AJ37: 0.794 | AK37: 0.679 | AL37: 1.245 | AM37: 1.913 | AN37: 1.377 | AO37: 0.955
A38: 2021-04-01T08:45:00 | C38: 0 | D38: 0 | E38: 0 | F38: 0 | G38: 0 | H38: 16.635 | I38: 0.389 | K38: 1.317 | L38: 1.1 | M38: 1.201 | N38: 1.778 | AB38: 1.61 | AC38: 2.13 | AD38: --- | AE38: --- | AF38: 60.6 | AG38: 6.48 | AH38: 8.31 | AI38: 81.2 | AJ38: 0.792 | AK38: 0.678 | AL38: 1.247 | AM38: 1.912 | AN38: 1.374 | AO38: 0.951
A39: 2021-04-01T09:00:00 | C39: 0 | D39: 0 | E39: 0 | F39: 0 | G39: 0 | H39: 16.637 | I39: 0.387 | K39: 1.317 | L39: 1.101 | M39: 1.196 | N39: 1.774 | AB39: 1.58 | AC39: 2.13 | AD39: --- | AE39: --- | AF39: 60.7 | AG39: 6.46 | AH39: 8.28 | AI39: 81.2 | AJ39: 0.791 | AK39: 0.677 | AL39: 1.246 | AM39: 1.913 | AN39: 1.372 | AO39: 0.951
A40: 2021-04-01T09:15:00 | C40: 0 | D40: 0 | E40: 0 | F40: 0 | G40: 0 | K40: 1.315 | M40: 1.195 | N40: 1.771 | AB40: 1.57 | AC40: 2.13 | AD40: --- | AE40: --- | AF40: 60.3 | AG40: 6.42 | AH40: 8.28 | AI40: 80.2 | AJ40: 0.789 | AK40: 0.677 | AL40: 1.243 | AM40: 1.907 | AN40: 1.37 | AO40: 0.946
A41: 2021-04-01T09:30:00 | C41: 0 | D41: 0 | E41: 0 | F41: 0 | G41: 0 | K41: 1.318 | M41: 1.193 | N41: 1.768 | AB41: 1.55 | AC41: 2.12 | AD41: --- | AE41: --- | AF41: 60.1 | AG41: 6.38 | AH41: 8.21 | AI41: 80.4 | AJ41: 0.787 | AK41: 0.675 | AL41: 1.243 | AM41: 1.904 | AN41: 1.359 | AO41: 0.947
A42: 2021-04-01T09:45:00 | C42: 0 | D42: 0 | E42: 0 | F42: 0 | G42: 0 | K42: 1.314 | M42: 1.188 | N42: 1.766 | AB42: 1.54 | AC42: 2.12 | AD42: --- | AE42: --- | AF42: 60.2 | AG42: 6.34 | AH42: 8.18 | AI42: 80.6 | AJ42: 0.785 | AK42: 0.674 | AL42: 1.242 | AM42: 1.905 | AN42: 1.366 | AO42: 0.948
A43: 2021-04-01T10:00:00 | C43: 0 | D43: 0 | E43: 0 | F43: 0 | G43: 0 | K43: 1.311 | M43: 1.187 | N43: 1.765 | AB43: 1.52 | AC43: 2.11 | AD43: --- | AE43: --- | AF43: 60.2 | AG43: 6.38 | AH43: 8.18 | AI43: 81.2 | AJ43: 0.787 | AK43: 0.674 | AL43: 1.241 | AM43: 1.906 | AN43: 1.363 | AO43: 0.951
A44: 2021-04-01T10:15:00 | C44: 0 | D44: 0 | E44: 0 | F44: 0 | G44: 0 | K44: 1.312 | M44: 1.183 | N44: 1.764 | AB44: 1.52 | AC44: 2.09 | AD44: --- | AE44: --- | AF44: 59.6 | AG44: 6.34 | AH44: 8.12 | AI44: 80.6 | AJ44: 0.785 | AK44: 0.672 | AL44: 1.24 | AM44: 1.896 | AN44: 1.353 | AO44: 0.948
A45: 2021-04-01T10:30:00 | C45: 0 | D45: 0 | E45: 0 | F45: 0 | G45: 0 | K45: 1.312 | M45: 1.184 | N45: 1.76 | AB45: 1.52 | AC45: 2.09 | AD45: --- | AE45: --- | AF45: 59.1 | AG45: 6.28 | AH45: 8.12 | AI45: 80 | AJ45: 0.782 | AK45: 0.672 | AL45: 1.239 | AM45: 1.888 | AN45: 1.375 | AO45: 0.945
A46: 2021-04-01T10:45:00 | C46: 0 | D46: 0 | E46: 0 | F46: 0 | G46: 0 | K46: 1.31 | M46: 1.18 | N46: 1.755 | AB46: 1.52 | AC46: 2.09 | AD46: --- | AE46: --- | AF46: 59.1 | AG46: 6.28 | AH46: 8.09 | AI46: 79.1 | AJ46: 0.782 | AK46: 0.671 | AL46: 1.238 | AM46: 1.888 | AN46: 1.351 | AO46: 0.941
A47: 2021-04-01T11:00:00 | C47: 0 | D47: 0 | E47: 0 | F47: 0 | G47: 0 | K47: 1.313 | M47: 1.176 | N47: 1.751 | AB47: 1.46 | AC47: 2.08 | AD47: --- | AE47: --- | AF47: 59.1 | AG47: 6.27 | AH47: 8.03 | AI47: 79.7 | AJ47: 0.781 | AK47: 0.669 | AL47: 1.237 | AM47: 1.889 | AN47: 1.358 | AO47: 0.944
A48: 2021-04-01T11:15:00 | C48: 0 | D48: 0 | E48: 0 | F48: 0 | G48: 0 | K48: 1.309 | M48: 1.175 | N48: 1.75 | AB48: 1.47 | AC48: 2.08 | AD48: --- | AE48: --- | AF48: 58.3 | AG48: 6.3 | AH48: 8.03 | AI48: 80 | AJ48: 0.783 | AK48: 0.669 | AL48: 1.237 | AM48: 1.876 | AN48: 1.355 | AO48: 0.945
A49: 2021-04-01T11:30:00 | C49: 0 | D49: 0 | E49: 0 | F49: 0 | G49: 0 | K49: 1.309 | M49: 1.17 | N49: 1.747 | AB49: 1.46 | AC49: 2.08 | AD49: --- | AE49: --- | AF49: 58.7 | AG49: 6.23 | AH49: 7.97 | AI49: 78.5 | AJ49: 0.779 | AK49: 0.667 | AL49: 1.235 | AM49: 1.883 | AN49: 1.352 | AO49: 0.938
A50: 2021-04-01T11:45:00 | C50: 0 | D50: 0 | E50: 0 | F50: 0 | G50: 0 | K50: 1.307 | M50: 1.17 | N50: 1.743 | AB50: 1.43 | AC50: 2.07 | AD50: --- | AE50: --- | AF50: 58.2 | AG50: 6.15 | AH50: 7.97 | AI50: 79.1 | AJ50: 0.775 | AK50: 0.667 | AL50: 1.233 | AM50: 1.874 | AN50: 1.348 | AO50: 0.941
A51: 2021-04-01T12:00:00 | C51: 0 | D51: 0 | E51: 0 | F51: 0 | G51: 0 | K51: 1.308 | M51: 1.17 | N51: 1.74 | AB51: 1.43 | AC51: 2.05 | AD51: --- | AE51: --- | AF51: 58.2 | AG51: 6.19 | AH51: 7.88 | AI51: 79.1 | AJ51: 0.777 | AK51: 0.664 | AL51: 1.233 | AM51: 1.874 | AN51: 1.349 | AO51: 0.941
A52: 2021-04-01T12:15:00 | C52: 0 | D52: 0 | E52: 0 | F52: 0 | G52: 0 | K52: 1.303 | M52: 1.165 | N52: 1.737 | AB52: 1.43 | AC52: 2.05 | AD52: --- | AE52: --- | AF52: 58.2 | AG52: 6.09 | AH52: 7.84 | AI52: 77.5 | AJ52: 0.772 | AK52: 0.663 | AL52: 1.232 | AM52: 1.874 | AN52: 1.345 | AO52: 0.933
A53: 2021-04-01T12:30:00 | C53: 0 | D53: 0 | E53: 0 | F53: 0 | G53: 0 | K53: 1.301 | M53: 1.163 | N53: 1.734 | AB53: 1.42 | AC53: 2.05 | AD53: --- | AE53: --- | AF53: 57.9 | AG53: 6.09 | AH53: 7.84 | AI53: 78.3 | AJ53: 0.772 | AK53: 0.663 | AL53: 1.229 | AM53: 1.87 | AN53: 1.338 | AO53: 0.937
A54: 2021-04-01T12:45:00 | C54: 0 | D54: 0 | E54: 0 | F54: 0 | G54: 0 | K54: 1.302 | M54: 1.157 | N54: 1.732 | AB54: 1.4 | AC54: 2.04 | AD54: --- | AE54: --- | AF54: 57.8 | AG54: 6.11 | AH54: 7.84 | AI54: 78.1 | AJ54: 0.773 | AK54: 0.663 | AL54: 1.228 | AM54: 1.869 | AN54: 1.343 | AO54: 0.936
A55: 2021-04-01T13:00:00 | C55: 0 | D55: 0 | E55: 0 | F55: 0 | G55: 0 | K55: 1.3 | M55: 1.16 | N55: 1.728 | AB55: 1.4 | AC55: 2.04 | AD55: --- | AE55: --- | AF55: 57.8 | AG55: 6.08 | AH55: 7.81 | AI55: 77.7 | AJ55: 0.771 | AK55: 0.662 | AL55: 1.23 | AM55: 1.868 | AN55: 1.337 | AO55: 0.934
A56: 2021-04-01T13:15:00 | C56: 0 | D56: 0 | E56: 0 | F56: 0 | G56: 0 | K56: 1.3 | M56: 1.158 | N56: 1.725 | AB56: 1.38 | AC56: 2.03 | AD56: --- | AE56: --- | AF56: 57.2 | AG56: 6.02 | AH56: 7.75 | AI56: 77.9 | AJ56: 0.768 | AK56: 0.66 | AL56: 1.225 | AM56: 1.858 | AN56: 1.338 | AO56: 0.935
A57: 2021-04-01T13:30:00 | C57: 0 | D57: 0 | E57: 0 | F57: 0 | G57: 0 | K57: 1.303 | M57: 1.155 | N57: 1.722 | AB57: 1.39 | AC57: 2.03 | AD57: --- | AE57: --- | AF57: 57.2 | AG57: 5.98 | AH57: 7.75 | AI57: 76.6 | AJ57: 0.766 | AK57: 0.66 | AL57: 1.224 | AM57: 1.858 | AN57: 1.328 | AO57: 0.929
A58: 2021-04-01T13:45:00 | C58: 0 | D58: 0 | E58: 0 | F58: 0 | G58: 0 | K58: 1.301 | M58: 1.153 | N58: 1.72 | AB58: 1.4 | AC58: 2.02 | AD58: --- | AE58: --- | AF58: 56.7 | AG58: 6 | AH58: 7.66 | AI58: 76.9 | AJ58: 0.767 | AK58: 0.657 | AL58: 1.224 | AM58: 1.85 | AN58: 1.325 | AO58: 0.93
A59: 2021-04-01T14:00:00 | C59: 0 | D59: 0 | E59: 0 | F59: 0 | G59: 0 | K59: 1.298 | M59: 1.151 | N59: 1.718 | AB59: 1.34 | AC59: 2.02 | AD59: --- | AE59: --- | AF59: 57 | AG59: 5.94 | AH59: 7.63 | AI59: 77.7 | AJ59: 0.764 | AK59: 0.656 | AL59: 1.223 | AM59: 1.856 | AN59: 1.333 | AO59: 0.934
A60: 2021-04-01T14:15:00 | C60: 0 | D60: 0 | E60: 0 | F60: 0 | G60: 0 | M60: 1.148 | N60: 1.715 | AB60: 1.34 | AC60: 2 | AD60: --- | AE60: --- | AF60: 56.4 | AG60: 5.94 | AH60: 7.63 | AI60: 76.4 | AJ60: 0.764 | AK60: 0.656 | AL60: 1.223 | AM60: 1.846 | AN60: 1.322 | AO60: 0.928
A61: 2021-04-01T14:30:00 | C61: 0 | D61: 0 | E61: 0 | F61: 0 | G61: 0 | AB61: 1.32 | AC61: 2 | AD61: --- | AE61: --- | AF61: 56.1 | AG61: 5.93 | AH61: 7.54 | AI61: 76.4 | AJ61: 0.763 | AK61: 0.653 | AL61: 1.22 | AM61: 1.84 | AN61: 1.328 | AO61: 0.928
A62: 2021-04-01T14:45:00 | C62: 0 | D62: 0 | E62: 0 | F62: 0 | G62: 0 | AB62: 1.29 | AC62: 2 | AD62: --- | AE62: --- | AF62: 56.5 | AG62: 5.93 | AH62: 7.54 | AI62: 75.6 | AJ62: 0.763 | AK62: 0.653 | AL62: 1.219 | AM62: 1.847 | AN62: 1.325 | AO62: 0.924
A63: 2021-04-01T15:00:00 | C63: 0 | D63: 0 | E63: 0 | F63: 0 | G63: 0 | AB63: 1.29 | AC63: 1.99 | AD63: --- | AE63: --- | AF63: 56.3 | AG63: 5.89 | AH63: 7.51 | AI63: 75.4 | AJ63: 0.761 | AK63: 0.652 | AL63: 1.218 | AM63: 1.844 | AN63: 1.324 | AO63: 0.923
A64: 2021-04-01T15:15:00 | C64: 0 | D64: 0 | E64: 0 | F64: 0 | G64: 0 | AB64: 1.26 | AC64: 1.99 | AD64: --- | AE64: --- | AF64: 55.9 | AG64: 5.87 | AH64: 7.48 | AI64: 75.4 | AJ64: 0.76 | AK64: 0.651 | AL64: 1.218 | AM64: 1.837 | AN64: 1.321 | AO64: 0.923
A65: 2021-04-01T15:30:00 | C65: 0 | D65: 0 | E65: 0 | F65: 0 | G65: 0 | AB65: 1.26 | AC65: 1.99 | AD65: --- | AE65: --- | AF65: 55.8 | AG65: 5.87 | AH65: 7.42 | AI65: 75.4 | AJ65: 0.76 | AK65: 0.649 | AL65: 1.215 | AM65: 1.834 | AN65: 1.315 | AO65: 0.923
A66: 2021-04-01T15:45:00 | C66: 0 | D66: 0 | E66: 0 | F66: 0 | G66: 0 | AB66: 1.24 | AC66: 1.96 | AD66: --- | AE66: --- | AF66: 55.5 | AG66: 5.87 | AH66: 7.42 | AI66: 75.8 | AJ66: 0.76 | AK66: 0.649 | AL66: 1.212 | AM66: 1.83 | AN66: 1.319 | AO66: 0.925
A67: 2021-04-01T16:00:00 | C67: 0 | D67: 0 | E67: 0 | F67: 0 | G67: 0 | AB67: 1.24 | AC67: 1.96 | AD67: --- | AE67: --- | AF67: 55.3 | AG67: 5.81 | AH67: 7.36 | AI67: 75.4 | AJ67: 0.757 | AK67: 0.647 | AL67: 1.213 | AM67: 1.827 | AN67: 1.315 | AO67: 0.923
A68: 2021-04-01T16:15:00 | C68: 0 | D68: 0 | E68: 0 | F68: 0 | G68: 0 | AB68: 1.24 | AC68: 1.96 | AD68: --- | AE68: --- | AF68: 55.4 | AG68: 5.81 | AH68: 7.36 | AI68: 75 | AJ68: 0.757 | AK68: 0.647 | AL68: 1.213 | AM68: 1.828 | AN68: 1.317 | AO68: 0.921
A69: 2021-04-01T16:30:00 | C69: 0 | D69: 0 | E69: 0 | F69: 0 | G69: 0 | AB69: 1.22 | AC69: 1.96 | AD69: --- | AE69: --- | AF69: 54.8 | AG69: 5.8 | AH69: 7.3 | AI69: 75 | AJ69: 0.756 | AK69: 0.645 | AL69: 1.213 | AM69: 1.818 | AN69: 1.303 | AO69: 0.921
A70: 2021-04-01T16:45:00 | C70: 0 | D70: 0 | E70: 0 | F70: 0 | G70: 0 | AB70: 1.2 | AC70: 1.95 | AD70: --- | AE70: --- | AF70: 54.8 | AG70: 5.76 | AH70: 7.3 | AI70: 74.2 | AJ70: 0.754 | AK70: 0.645 | AL70: 1.21 | AM70: 1.818 | AN70: 1.311 | AO70: 0.917
A71: 2021-04-01T17:00:00 | C71: 0 | D71: 0 | E71: 0 | F71: 0 | G71: 0 | AB71: 1.19 | AC71: 1.95 | AD71: --- | AE71: --- | AF71: 54.2 | AG71: 5.74 | AH71: 7.24 | AI71: 74.2 | AJ71: 0.753 | AK71: 0.643 | AL71: 1.209 | AM71: 1.807 | AN71: 1.306 | AO71: 0.917
A72: 2021-04-01T17:15:00 | C72: 0 | D72: 0 | E72: 0 | F72: 0 | G72: 0 | AB72: 1.16 | AC72: 1.94 | AD72: --- | AE72: --- | AF72: 54.5 | AG72: 5.7 | AH72: 7.24 | AI72: 74.8 | AJ72: 0.751 | AK72: 0.643 | AL72: 1.21 | AM72: 1.812 | AN72: 1.307 | AO72: 0.92
A73: 2021-04-01T17:30:00 | C73: 0 | D73: 0 | E73: 0 | F73: 0 | G73: 0 | AB73: 1.16 | AC73: 1.94 | AD73: --- | AE73: --- | AF73: 54.3 | AG73: 5.69 | AH73: 7.21 | AI73: 74.6 | AJ73: 0.75 | AK73: 0.642 | AL73: 1.208 | AM73: 1.809 | AN73: 1.301 | AO73: 0.919
A74: 2021-04-01T17:45:00 | C74: 0 | D74: 0 | E74: 0 | F74: 0 | G74: 0 | AB74: 1.15 | AC74: 1.91 | AD74: --- | AE74: --- | AF74: 54.3 | AG74: 5.69 | AH74: 7.21 | AI74: 73.3 | AJ74: 0.75 | AK74: 0.642 | AL74: 1.208 | AM74: 1.809 | AN74: 1.298 | AO74: 0.913
A75: 2021-04-01T18:00:00 | C75: 0 | D75: 0 | E75: 0 | F75: 0 | G75: 0 | AB75: 1.14 | AC75: 1.91 | AD75: --- | AE75: --- | AF75: 54.1 | AG75: 5.67 | AH75: 7.18 | AI75: 74.6 | AJ75: 0.749 | AK75: 0.641 | AL75: 1.208 | AM75: 1.805 | AN75: 1.3 | AO75: 0.919
A76: 2021-04-01T18:15:00 | C76: 0 | D76: 0 | E76: 0 | F76: 0 | G76: 0 | AB76: 1.12 | AC76: 1.91 | AD76: --- | AE76: --- | AF76: 53.3 | AG76: 5.69 | AH76: 7.12 | AI76: 73.1 | AJ76: 0.75 | AK76: 0.639 | AL76: 1.207 | AM76: 1.792 | AN76: 1.298 | AO76: 0.912
A77: 2021-04-01T18:30:00 | C77: 0 | D77: 0 | E77: 0 | F77: 0 | G77: 0 | AB77: 1.11 | AC77: 1.9 | AD77: --- | AE77: --- | AF77: 53.5 | AG77: 5.63 | AH77: 7.1 | AI77: 73.1 | AJ77: 0.747 | AK77: 0.638 | AL77: 1.207 | AM77: 1.795 | AN77: 1.293 | AO77: 0.912
A78: 2021-04-01T18:45:00 | C78: 0 | D78: 0 | E78: 0 | F78: 0 | G78: 0 | AB78: 1.09 | AC78: 1.9 | AD78: --- | AE78: --- | AF78: 53.5 | AG78: 5.63 | AH78: 7.07 | AI78: 72.7 | AJ78: 0.747 | AK78: 0.637 | AL78: 1.204 | AM78: 1.795 | AN78: 1.295 | AO78: 0.91
A79: 2021-04-01T19:00:00 | C79: 0 | D79: 0 | E79: 0 | F79: 0 | G79: 0 | AB79: 1.11 | AC79: 1.89 | AD79: --- | AE79: --- | AF79: 53.3 | AG79: 5.61 | AH79: 7.04 | AI79: 72.1 | AJ79: 0.746 | AK79: 0.636 | AL79: 1.204 | AM79: 1.792 | AN79: 1.284 | AO79: 0.907
A80: 2021-04-01T19:15:00 | C80: 0 | D80: 0 | E80: 0 | F80: 0 | G80: 0 | AB80: 1.08 | AC80: 1.89 | AD80: --- | AE80: --- | AF80: 53.1 | AG80: 5.6 | AH80: 7.01 | AI80: 71.9 | AJ80: 0.745 | AK80: 0.635 | AL80: 1.203 | AM80: 1.788 | AN80: 1.286 | AO80: 0.906
A81: 2021-04-01T19:30:00 | C81: 0 | D81: 0 | E81: 0 | F81: 0 | G81: 0 | AB81: 1.07 | AC81: 1.87 | AD81: --- | AE81: --- | AF81: 52.9 | AG81: 5.6 | AH81: 7.01 | AI81: 71.7 | AJ81: 0.745 | AK81: 0.635 | AL81: 1.202 | AM81: 1.784 | AN81: 1.287 | AO81: 0.905
A82: 2021-04-01T19:45:00 | C82: 0 | D82: 0 | E82: 0 | F82: 0 | G82: 0 | AB82: 1.07 | AC82: 1.87 | AD82: --- | AE82: --- | AF82: 52.9 | AG82: 5.58 | AH82: 6.98 | AI82: 71.5 | AJ82: 0.744 | AK82: 0.634 | AL82: 1.2 | AM82: 1.785 | AN82: 1.29 | AO82: 0.904
A83: 2021-04-01T20:00:00 | C83: 0 | D83: 0 | E83: 0 | F83: 0 | G83: 0 | AB83: 1.06 | AC83: 1.86 | AD83: --- | AE83: --- | AF83: 52.8 | AG83: 5.56 | AH83: 6.95 | AI83: 70.8 | AJ83: 0.743 | AK83: 0.633 | AL83: 1.202 | AM83: 1.782 | AN83: 1.282 | AO83: 0.901
A84: 2021-04-01T20:15:00 | C84: 0 | D84: 0 | E84: 0 | F84: 0 | G84: 0 | AB84: 1.04 | AC84: 1.86 | AD84: --- | AE84: --- | AF84: 52.3 | AG84: 5.52 | AH84: 6.95 | AI84: 70.4 | AJ84: 0.741 | AK84: 0.633 | AL84: 1.201 | AM84: 1.774 | AN84: 1.285 | AO84: 0.899
A85: 2021-04-01T20:30:00 | C85: 0 | D85: 0 | E85: 0 | F85: 0 | G85: 0 | AB85: 1.04 | AC85: 1.86 | AD85: --- | AE85: --- | AF85: 52.4 | AG85: 5.51 | AH85: 6.92 | AI85: 70.8 | AJ85: 0.74 | AK85: 0.632 | AL85: 1.2 | AM85: 1.776 | AN85: 1.276 | AO85: 0.901
A86: 2021-04-01T20:45:00 | C86: 0 | D86: 0 | E86: 0 | F86: 0 | G86: 0 | AB86: 1.03 | AC86: 1.85 | AD86: --- | AE86: --- | AF86: 51.9 | AG86: 5.49 | AH86: 6.92 | AI86: 70.2 | AJ86: 0.739 | AK86: 0.632 | AL86: 1.2 | AM86: 1.767 | AN86: 1.279 | AO86: 0.898
A87: 2021-04-01T21:00:00 | C87: 0 | D87: 0 | E87: 0 | F87: 0 | G87: 0 | AB87: 1.01 | AC87: 1.85 | AD87: --- | AE87: --- | AF87: 52.1 | AG87: 5.43 | AH87: 6.89 | AI87: 70.4 | AJ87: 0.736 | AK87: 0.631 | AL87: 1.201 | AM87: 1.77 | AN87: 1.269 | AO87: 0.899
A88: 2021-04-01T21:15:00 | C88: 0 | D88: 0 | E88: 0 | F88: 0 | G88: 0 | AB88: 0.998 | AC88: 1.84 | AD88: --- | AE88: --- | AF88: 51.7 | AG88: 5.43 | AH88: 6.86 | AI88: 70.4 | AJ88: 0.736 | AK88: 0.63 | AL88: 1.2 | AM88: 1.764 | AN88: 1.27 | AO88: 0.899
A89: 2021-04-01T21:30:00 | C89: 0 | D89: 0 | E89: 0 | F89: 0 | G89: 0 | AB89: 0.988 | AC89: 1.84 | AD89: --- | AE89: --- | AF89: 51.7 | AG89: 5.42 | AH89: 6.83 | AI89: 69.2 | AJ89: 0.735 | AK89: 0.629 | AL89: 1.198 | AM89: 1.763 | AN89: 1.281 | AO89: 0.893
A90: 2021-04-01T21:45:00 | C90: 0 | D90: 0 | E90: 0 | F90: 0 | G90: 0 | AB90: 0.967 | AC90: 1.84 | AD90: --- | AE90: --- | AF90: 51.7 | AG90: 5.42 | AH90: 6.8 | AI90: 69 | AJ90: 0.735 | AK90: 0.628 | AL90: 1.197 | AM90: 1.764 | AN90: 1.269 | AO90: 0.892
A91: 2021-04-01T22:00:00 | C91: 0 | D91: 0 | E91: 0 | F91: 0 | G91: 0 | AB91: 0.967 | AC91: 1.83 | AD91: --- | AE91: --- | AF91: 51.2 | AG91: 5.36 | AH91: 6.77 | AI91: 69.6 | AJ91: 0.732 | AK91: 0.627 | AL91: 1.198 | AM91: 1.754 | AN91: 1.27 | AO91: 0.895
A92: 2021-04-01T22:15:00 | C92: 0 | D92: 0 | E92: 0 | F92: 0 | G92: 0 | AB92: 0.957 | AC92: 1.83 | AD92: --- | AE92: --- | AF92: 51.4 | AG92: 5.36 | AH92: 6.74 | AI92: 69.8 | AJ92: 0.732 | AK92: 0.626 | AL92: 1.198 | AM92: 1.758 | AN92: 1.27 | AO92: 0.896
A93: 2021-04-01T22:30:00 | C93: 0 | D93: 0 | E93: 0 | F93: 0 | G93: 0 | AB93: 0.957 | AC93: 1.83 | AD93: --- | AE93: --- | AF93: 50.9 | AG93: 5.33 | AH93: 6.72 | AI93: 69 | AJ93: 0.73 | AK93: 0.625 | AL93: 1.194 | AM93: 1.749 | AN93: 1.265 | AO93: 0.892
A94: 2021-04-01T22:45:00 | C94: 0 | D94: 0 | E94: 0 | F94: 0 | G94: 0 | AB94: 0.938 | AC94: 1.81 | AD94: --- | AE94: --- | AF94: 50.7 | AG94: 5.31 | AH94: 6.69 | AI94: 68.3 | AJ94: 0.729 | AK94: 0.624 | AL94: 1.194 | AM94: 1.746 | AN94: 1.268 | AO94: 0.889
A95: 2021-04-01T23:00:00 | C95: 0 | D95: 0 | E95: 0 | F95: 0 | G95: 0 | AB95: 0.928 | AC95: 1.81 | AD95: --- | AE95: --- | AF95: 50.9 | AG95: 5.31 | AH95: 6.66 | AI95: 68.3 | AJ95: 0.729 | AK95: 0.623 | AL95: 1.194 | AM95: 1.749 | AN95: 1.268 | AO95: 0.889
A96: 2021-04-01T23:15:00 | C96: 0 | D96: 0 | E96: 0 | F96: 0 | G96: 0 | AB96: 0.928 | AC96: 1.81 | AD96: --- | AE96: --- | AF96: 50.6 | AG96: 5.31 | AH96: 6.63 | AI96: 67.9 | AJ96: 0.729 | AK96: 0.622 | AL96: 1.191 | AM96: 1.743 | AN96: 1.255 | AO96: 0.887
A97: 2021-04-01T23:30:00 | C97: 0 | D97: 0 | E97: 0 | F97: 0 | G97: 0 | AB97: 0.918 | AC97: 1.8 | AD97: --- | AE97: --- | AF97: 50.2 | AG97: 5.31 | AH97: 6.63 | AI97: 69 | AJ97: 0.729 | AK97: 0.622 | AL97: 1.192 | AM97: 1.736 | AN97: 1.26 | AO97: 0.892
A98: 2021-04-01T23:45:00 | C98: 0 | D98: 0 | E98: 0 | F98: 0 | G98: 0 | AB98: 0.909 | AC98: 1.79 | AD98: --- | AE98: --- | AF98: 50.6 | AG98: 5.26 | AH98: 6.63 | AI98: 68.3 | AJ98: 0.726 | AK98: 0.622 | AL98: 1.19 | AM98: 1.743 | AN98: 1.262 | AO98: 0.889
A99: 2021-04-02 | B99: 0 | C99: 0 | D99: 0 | E99: 0 | F99: 0 | G99: 0 | H99: 16.606 | I99: 0.33 | J99: 0.612 | K99: 1.265 | L99: 0.977 | M99: 1.073 | N99: 1.611 | AB99: 0.899 | AC99: 1.79 | AD99: --- | AE99: --- | AF99: 50.2 | AG99: 5.26 | AH99: 6.57 | AI99: 69.4 | AJ99: 0.726 | AK99: 0.62 | AL99: 1.19 | AM99: 1.736 | AN99: 1.259 | AO99: 0.894
A100: 2021-04-02T00:15:00 | B100: 0 | C100: 0 | D100: 0 | E100: 0 | F100: 0 | G100: 0 | H100: 16.604 | I100: 0.329 | J100: 0.612 | K100: 1.261 | L100: 0.977 | M100: 1.07 | N100: 1.608 | AB100: 0.89 | AC100: 1.79 | AD100: --- | AE100: --- | AF100: 50 | AG100: 5.24 | AH100: 6.54 | AI100: 67.5 | AJ100: 0.725 | AK100: 0.619 | AL100: 1.19 | AM100: 1.733 | AN100: 1.255 | AO100: 0.885
A101: 2021-04-02T00:30:00 | B101: 0 | C101: 0 | D101: 0 | E101: 0 | F101: 0 | G101: 0 | H101: 16.604 | I101: 0.327 | J101: 0.612 | K101: 1.263 | L101: 0.976 | M101: 1.069 | N101: 1.607 | AB101: 0.871 | AC101: 1.79 | AD101: --- | AE101: --- | AF101: 49.6 | AG101: 5.22 | AH101: 6.51 | AI101: 67.5 | AJ101: 0.724 | AK101: 0.618 | AL101: 1.189 | AM101: 1.725 | AN101: 1.252 | AO101: 0.885
A102: 2021-04-02T00:45:00 | B102: 0 | C102: 0 | D102: 0 | E102: 0 | F102: 0 | G102: 0 | H102: 16.604 | I102: 0.326 | J102: 0.611 | K102: 1.261 | L102: 0.971 | M102: 1.069 | N102: 1.604 | AB102: 0.862 | AC102: 1.78 | AD102: --- | AE102: --- | AF102: 49.8 | AG102: 5.19 | AH102: 6.49 | AI102: 67.5 | AJ102: 0.722 | AK102: 0.617 | AL102: 1.189 | AM102: 1.73 | AN102: 1.254 | AO102: 0.885
A103: 2021-04-02T01:00:00 | B103: 0 | C103: 0 | D103: 0 | E103: 0 | F103: 0 | G103: 0 | H103: 16.601 | I103: 0.325 | J103: 0.611 | K103: 1.263 | L103: 0.973 | M103: 1.069 | N103: 1.601 | AB103: 0.853 | AC103: 1.78 | AD103: --- | AE103: --- | AF103: 49.2 | AG103: 5.19 | AH103: 6.49 | AI103: 66.5 | AJ103: 0.722 | AK103: 0.617 | AL103: 1.185 | AM103: 1.719 | AN103: 1.255 | AO103: 0.88
A104: 2021-04-02T01:15:00 | B104: 0 | C104: 0 | D104: 0 | E104: 0 | F104: 0 | G104: 0 | H104: 16.596 | I104: 0.324 | J104: 0.611 | K104: 1.261 | L104: 0.972 | M104: 1.067 | N104: 1.598 | AB104: 0.844 | AC104: 1.78 | AD104: --- | AE104: --- | AF104: 49.6 | AG104: 5.13 | AH104: 6.49 | AI104: 66.7 | AJ104: 0.719 | AK104: 0.617 | AL104: 1.185 | AM104: 1.725 | AN104: 1.252 | AO104: 0.881
A105: 2021-04-02T01:30:00 | B105: 0 | C105: 0 | D105: 0 | E105: 0 | F105: 0 | G105: 0 | H105: 16.598 | I105: 0.323 | J105: 0.611 | K105: 1.258 | L105: 0.966 | M105: 1.06 | N105: 1.596 | AB105: 0.835 | AC105: 1.78 | AD105: --- | AE105: --- | AF105: 49 | AG105: 5.15 | AH105: 6.43 | AI105: 65.4 | AJ105: 0.72 | AK105: 0.615 | AL105: 1.183 | AM105: 1.715 | AN105: 1.249 | AO105: 0.875
A106: 2021-04-02T01:45:00 | B106: 0 | C106: 0 | D106: 0 | E106: 0 | F106: 0 | G106: 0 | H106: 16.6 | I106: 0.323 | J106: 0.611 | K106: 1.261 | L106: 0.967 | M106: 1.06 | N106: 1.594 | AB106: 0.835 | AC106: 1.78 | AD106: --- | AE106: --- | AF106: 49.2 | AG106: 5.13 | AH106: 6.43 | AI106: 66 | AJ106: 0.719 | AK106: 0.615 | AL106: 1.187 | AM106: 1.718 | AN106: 1.246 | AO106: 0.878
A107: 2021-04-02T02:00:00 | B107: 0 | C107: 0 | D107: 0 | E107: 0 | F107: 0 | G107: 0 | H107: 16.599 | I107: 0.322 | J107: 0.61 | K107: 1.258 | L107: 0.965 | M107: 1.059 | N107: 1.592 | AB107: 0.827 | AC107: 1.76 | AD107: --- | AE107: --- | AF107: 48.8 | AG107: 5.11 | AH107: 6.4 | AI107: 66 | AJ107: 0.718 | AK107: 0.614 | AL107: 1.184 | AM107: 1.712 | AN107: 1.24 | AO107: 0.878
A108: 2021-04-02T02:15:00 | B108: 0 | C108: 0 | D108: 0 | E108: 0 | F108: 0 | G108: 0 | H108: 16.595 | I108: 0.32 | J108: 0.61 | K108: 1.26 | L108: 0.966 | M108: 1.059 | N108: 1.588 | AB108: 0.809 | AC108: 1.76 | AD108: --- | AE108: --- | AF108: 48.9 | AG108: 5.05 | AH108: 6.37 | AI108: 66.3 | AJ108: 0.715 | AK108: 0.613 | AL108: 1.184 | AM108: 1.713 | AN108: 1.245 | AO108: 0.879
A109: 2021-04-02T02:30:00 | B109: 0 | C109: 0 | D109: 0 | E109: 0 | F109: 0 | G109: 0 | H109: 16.592 | I109: 0.319 | J109: 0.61 | K109: 1.258 | L109: 0.964 | M109: 1.059 | N109: 1.586 | AB109: 0.801 | AC109: 1.76 | AD109: --- | AE109: --- | AF109: 48.6 | AG109: 5.07 | AH109: 6.32 | AI109: 66.3 | AJ109: 0.716 | AK109: 0.611 | AL109: 1.186 | AM109: 1.707 | AN109: 1.246 | AO109: 0.879
A110: 2021-04-02T02:45:00 | B110: 0 | C110: 0 | D110: 0 | E110: 0 | F110: 0 | G110: 0 | H110: 16.589 | I110: 0.319 | J110: 0.609 | K110: 1.256 | L110: 0.962 | M110: 1.054 | N110: 1.584 | AB110: 0.801 | AC110: 1.75 | AD110: --- | AE110: --- | AF110: 48.2 | AG110: 5.05 | AH110: 6.32 | AI110: 64.6 | AJ110: 0.715 | AK110: 0.611 | AL110: 1.183 | AM110: 1.701 | AN110: 1.239 | AO110: 0.871
A111: 2021-04-02T03:00:00 | B111: 0 | C111: 0 | D111: 0 | E111: 0 | F111: 0 | G111: 0 | H111: 16.591 | I111: 0.318 | J111: 0.608 | K111: 1.256 | L111: 0.957 | M111: 1.051 | N111: 1.583 | AB111: 0.792 | AC111: 1.74 | AD111: --- | AE111: --- | AF111: 48.2 | AG111: 5.05 | AH111: 6.32 | AI111: 65 | AJ111: 0.715 | AK111: 0.611 | AL111: 1.183 | AM111: 1.701 | AN111: 1.24 | AO111: 0.873
A112: 2021-04-02T03:15:00 | B112: 0 | C112: 0 | D112: 0 | E112: 0 | F112: 0 | G112: 0 | H112: 16.59 | I112: 0.316 | J112: 0.608 | K112: 1.255 | L112: 0.956 | M112: 1.051 | N112: 1.58 | AB112: 0.776 | AC112: 1.74 | AD112: --- | AE112: --- | AF112: 48 | AG112: 4.98 | AH112: 6.26 | AI112: 65.2 | AJ112: 0.712 | AK112: 0.609 | AL112: 1.182 | AM112: 1.697 | AN112: 1.241 | AO112: 0.874
A113: 2021-04-02T03:30:00 | B113: 0 | C113: 0 | D113: 0 | E113: 0 | F113: 0 | G113: 0 | H113: 16.589 | I113: 0.316 | J113: 0.608 | K113: 1.255 | L113: 0.957 | M113: 1.051 | N113: 1.577 | AB113: 0.776 | AC113: 1.74 | AD113: --- | AE113: --- | AF113: 47.9 | AG113: 4.98 | AH113: 6.26 | AI113: 64.8 | AJ113: 0.712 | AK113: 0.609 | AL113: 1.183 | AM113: 1.696 | AN113: 1.233 | AO113: 0.872
A114: 2021-04-02T03:45:00 | B114: 0 | C114: 0 | D114: 0 | E114: 0 | F114: 0 | G114: 0 | H114: 16.589 | I114: 0.315 | J114: 0.607 | K114: 1.254 | L114: 0.954 | M114: 1.05 | N114: 1.574 | AB114: 0.767 | AC114: 1.73 | AD114: --- | AE114: --- | AF114: 47.7 | AG114: 4.98 | AH114: 6.23 | AI114: 63.3 | AJ114: 0.712 | AK114: 0.608 | AL114: 1.179 | AM114: 1.691 | AN114: 1.238 | AO114: 0.865
A115: 2021-04-02T04:00:00 | B115: 0 | C115: 0 | D115: 0 | E115: 0 | F115: 0 | G115: 0 | H115: 16.595 | I115: 0.313 | J115: 0.607 | K115: 1.254 | L115: 0.95 | M115: 1.048 | N115: 1.572 | AB115: 0.751 | AC115: 1.73 | AD115: --- | AE115: --- | AF115: 47.8 | AG115: 4.96 | AH115: 6.23 | AI115: 64.2 | AJ115: 0.711 | AK115: 0.608 | AL115: 1.18 | AM115: 1.694 | AN115: 1.229 | AO115: 0.869
A116: 2021-04-02T04:15:00 | B116: 0 | C116: 0 | D116: 0 | E116: 0 | F116: 0 | G116: 0 | H116: 16.594 | I116: 0.312 | J116: 0.607 | K116: 1.253 | L116: 0.95 | M116: 1.044 | N116: 1.57 | AB116: 0.743 | AC116: 1.73 | AD116: --- | AE116: --- | AF116: 47.4 | AG116: 4.92 | AH116: 6.2 | AI116: 63.7 | AJ116: 0.709 | AK116: 0.607 | AL116: 1.178 | AM116: 1.686 | AN116: 1.226 | AO116: 0.867
A117: 2021-04-02T04:30:00 | B117: 0 | C117: 0 | D117: 0 | E117: 0 | F117: 0 | G117: 0 | H117: 16.59 | I117: 0.312 | J117: 0.606 | K117: 1.252 | L117: 0.948 | M117: 1.044 | N117: 1.568 | AB117: 0.743 | AC117: 1.72 | AD117: --- | AE117: --- | AF117: 47.5 | AG117: 4.92 | AH117: 6.17 | AI117: 64.4 | AJ117: 0.709 | AK117: 0.606 | AL117: 1.178 | AM117: 1.688 | AN117: 1.23 | AO117: 0.87
A118: 2021-04-02T04:45:00 | B118: 0 | C118: 0 | D118: 0 | E118: 0 | F118: 0 | G118: 0 | H118: 16.591 | I118: 0.31 | J118: 0.606 | K118: 1.251 | L118: 0.947 | M118: 1.04 | N118: 1.566 | AB118: 0.727 | AC118: 1.72 | AD118: --- | AE118: --- | AF118: 47.2 | AG118: 4.9 | AH118: 6.15 | AI118: 63.3 | AJ118: 0.708 | AK118: 0.605 | AL118: 1.178 | AM118: 1.683 | AN118: 1.234 | AO118: 0.865
A119: 2021-04-02T05:00:00 | B119: 0 | C119: 0 | D119: 0 | E119: 0 | F119: 0 | G119: 0 | H119: 16.593 | I119: 0.309 | J119: 0.605 | K119: 1.252 | L119: 0.945 | M119: 1.04 | N119: 1.562 | AB119: 0.719 | AC119: 1.7 | AD119: --- | AE119: --- | AF119: 46.8 | AG119: 4.92 | AH119: 6.12 | AI119: 63.3 | AJ119: 0.709 | AK119: 0.604 | AL119: 1.178 | AM119: 1.676 | AN119: 1.229 | AO119: 0.865
A120: 2021-04-02T05:15:00 | B120: 0 | C120: 0 | D120: 0 | E120: 0 | F120: 0 | G120: 0 | H120: 16.595 | I120: 0.308 | J120: 0.605 | K120: 1.25 | L120: 0.943 | M120: 1.037 | N120: 1.56 | AB120: 0.712 | AC120: 1.7 | AD120: --- | AE120: --- | AF120: 47.1 | AG120: 4.86 | AH120: 6.12 | AI120: 62.7 | AJ120: 0.706 | AK120: 0.604 | AL120: 1.175 | AM120: 1.68 | AN120: 1.225 | AO120: 0.862
A121: 2021-04-02T05:30:00 | B121: 0 | C121: 0 | D121: 0 | E121: 0 | F121: 0 | G121: 0 | H121: 16.594 | I121: 0.307 | J121: 0.605 | K121: 1.249 | L121: 0.941 | M121: 1.037 | N121: 1.559 | AB121: 0.704 | AC121: 1.7 | AD121: --- | AE121: --- | AF121: 47 | AG121: 4.86 | AH121: 6.09 | AI121: 63.1 | AJ121: 0.706 | AK121: 0.603 | AL121: 1.175 | AM121: 1.678 | AN121: 1.229 | AO121: 0.864
A122: 2021-04-02T05:45:00 | B122: 0 | C122: 0 | D122: 0 | E122: 0 | F122: 0 | G122: 0 | H122: 16.593 | I122: 0.306 | J122: 0.605 | K122: 1.249 | L122: 0.939 | M122: 1.033 | N122: 1.556 | AB122: 0.696 | AC122: 1.7 | AD122: --- | AE122: --- | AF122: 46.9 | AG122: 4.84 | AH122: 6.09 | AI122: 62.9 | AJ122: 0.705 | AK122: 0.603 | AL122: 1.176 | AM122: 1.677 | AN122: 1.219 | AO122: 0.863
A123: 2021-04-02T06:00:00 | B123: 0 | C123: 0 | D123: 0 | E123: 0 | F123: 0 | G123: 0 | H123: 16.591 | I123: 0.304 | J123: 0.605 | K123: 1.249 | L123: 0.938 | M123: 1.032 | N123: 1.553 | AB123: 0.681 | AC123: 1.7 | AD123: --- | AE123: --- | AF123: 46.5 | AG123: 4.84 | AH123: 6.06 | AI123: 62.5 | AJ123: 0.705 | AK123: 0.602 | AL123: 1.174 | AM123: 1.67 | AN123: 1.22 | AO123: 0.861
A124: 2021-04-02T06:15:00 | B124: 0 | C124: 0 | D124: 0 | E124: 0 | F124: 0 | G124: 0 | H124: 16.593 | I124: 0.302 | J124: 0.604 | K124: 1.248 | L124: 0.936 | M124: 1.031 | N124: 1.551 | AB124: 0.667 | AC124: 1.69 | AD124: --- | AE124: --- | AF124: 46.3 | AG124: 4.84 | AH124: 6.03 | AI124: 63.5 | AJ124: 0.705 | AK124: 0.601 | AL124: 1.174 | AM124: 1.666 | AN124: 1.22 | AO124: 0.866
A125: 2021-04-02T06:30:00 | B125: 0 | C125: 0 | D125: 0 | E125: 0 | F125: 0 | G125: 0 | H125: 16.591 | I125: 0.301 | J125: 0.604 | K125: 1.249 | L125: 0.937 | M125: 1.029 | N125: 1.548 | AB125: 0.659 | AC125: 1.69 | AD125: --- | AE125: --- | AF125: 46.2 | AG125: 4.8 | AH125: 6.03 | AI125: 62.9 | AJ125: 0.703 | AK125: 0.601 | AL125: 1.173 | AM125: 1.664 | AN125: 1.217 | AO125: 0.863
A126: 2021-04-02T06:45:00 | B126: 0 | C126: 0 | D126: 0 | E126: 0 | F126: 0 | G126: 0 | H126: 16.592 | I126: 0.299 | J126: 0.604 | K126: 1.247 | L126: 0.932 | M126: 1.028 | N126: 1.546 | AB126: 0.645 | AC126: 1.69 | AD126: --- | AE126: --- | AF126: 45.9 | AG126: 4.8 | AH126: 6.01 | AI126: 62.5 | AJ126: 0.703 | AK126: 0.6 | AL126: 1.173 | AM126: 1.659 | AN126: 1.221 | AO126: 0.861
A127: 2021-04-02T07:00:00 | B127: 0 | C127: 0 | D127: 0.1 | E127: 0 | F127: 0 | G127: 0 | H127: 16.591 | I127: 0.296 | J127: 0.603 | K127: 1.246 | L127: 0.932 | M127: 1.025 | N127: 1.544 | AB127: 0.632 | AC127: 1.68 | AD127: --- | AE127: --- | AF127: 46.1 | AG127: 4.8 | AH127: 5.98 | AI127: 61.2 | AJ127: 0.703 | AK127: 0.599 | AL127: 1.173 | AM127: 1.662 | AN127: 1.212 | AO127: 0.855
A128: 2021-04-02T07:15:00 | B128: 0 | C128: 0 | D128: 0 | E128: 0 | F128: 0 | G128: 0 | H128: 16.59 | I128: 0.295 | J128: 0.602 | K128: 1.245 | L128: 0.929 | M128: 1.026 | N128: 1.543 | AB128: 0.629 | AC128: 1.67 | AD128: --- | AE128: --- | AF128: 45.6 | AG128: 4.76 | AH128: 5.95 | AI128: 61.9 | AJ128: 0.701 | AK128: 0.598 | AL128: 1.171 | AM128: 1.654 | AN128: 1.211 | AO128: 0.858
A129: 2021-04-02T07:30:00 | B129: 0 | C129: 0 | D129: 0 | E129: 0 | F129: 0 | G129: 0 | H129: 16.591 | I129: 0.292 | J129: 0.602 | K129: 1.245 | L129: 0.93 | M129: 1.024 | N129: 1.54 | AB129: 0.619 | AC129: 1.67 | AD129: --- | AE129: --- | AF129: 45.8 | AG129: 4.72 | AH129: 5.95 | AI129: 62.1 | AJ129: 0.699 | AK129: 0.598 | AL129: 1.172 | AM129: 1.657 | AN129: 1.214 | AO129: 0.859
A130: 2021-04-02T07:45:00 | B130: 0 | C130: 0 | D130: 0 | E130: 0 | F130: 0 | G130: 0 | H130: 16.583 | I130: 0.291 | J130: 0.602 | K130: 1.245 | L130: 0.926 | M130: 1.019 | N130: 1.538 | AB130: 0.616 | AC130: 1.67 | AD130: --- | AE130: --- | AF130: 45.6 | AG130: 4.72 | AH130: 5.92 | AI130: 61.9 | AJ130: 0.699 | AK130: 0.597 | AL130: 1.17 | AM130: 1.653 | AN130: 1.214 | AO130: 0.858
A131: 2021-04-02T08:00:00 | B131: 0 | C131: 0 | D131: 0 | E131: 0 | F131: 0 | G131: 0 | H131: 16.583 | I131: 0.288 | J131: 0.602 | K131: 1.244 | L131: 0.925 | M131: 1.019 | N131: 1.535 | AB131: 0.607 | AC131: 1.67 | AD131: --- | AE131: --- | AF131: 45.4 | AG131: 4.7 | AH131: 5.92 | AI131: 61.2 | AJ131: 0.698 | AK131: 0.597 | AL131: 1.17 | AM131: 1.65 | AN131: 1.211 | AO131: 0.855
A132: 2021-04-02T08:15:00 | B132: 0 | C132: 0 | D132: 0 | E132: 0 | F132: 0 | G132: 0 | H132: 16.586 | I132: 0.286 | J132: 0.601 | K132: 1.244 | L132: 0.926 | M132: 1.019 | N132: 1.531 | AB132: 0.6 | AC132: 1.66 | AD132: --- | AE132: --- | AF132: 45.3 | AG132: 4.7 | AH132: 5.92 | AI132: 61.2 | AJ132: 0.698 | AK132: 0.597 | AL132: 1.169 | AM132: 1.648 | AN132: 1.206 | AO132: 0.855
A133: 2021-04-02T08:30:00 | B133: 0 | C133: 0 | D133: 0 | E133: 0 | F133: 0 | G133: 0 | H133: 16.584 | I133: 0.285 | J133: 0.601 | K133: 1.241 | L133: 0.924 | M133: 1.015 | N133: 1.53 | AB133: 0.597 | AC133: 1.66 | AD133: --- | AE133: --- | AF133: 45.1 | AG133: 4.68 | AH133: 5.9 | AI133: 60.6 | AJ133: 0.697 | AK133: 0.596 | AL133: 1.168 | AM133: 1.644 | AN133: 1.206 | AO133: 0.852
A134: 2021-04-02T08:45:00 | B134: 0 | C134: 0 | D134: 0 | E134: 0 | F134: 0 | G134: 0 | H134: 16.584 | I134: 0.282 | J134: 0.601 | K134: 1.241 | L134: 0.923 | M134: 1.014 | N134: 1.528 | AB134: 0.588 | AC134: 1.66 | AD134: --- | AE134: --- | AF134: 45.2 | AG134: 4.66 | AH134: 5.84 | AI134: 60.8 | AJ134: 0.696 | AK134: 0.594 | AL134: 1.169 | AM134: 1.646 | AN134: 1.203 | AO134: 0.853
A135: 2021-04-02T09:00:00 | B135: 0 | C135: 0 | D135: 0 | E135: 0 | F135: 0 | G135: 0 | H135: 16.577 | I135: 0.281 | J135: 0.601 | K135: 1.241 | L135: 0.919 | M135: 1.015 | N135: 1.525 | AB135: 0.585 | AC135: 1.66 | AD135: --- | AE135: --- | AF135: 45 | AG135: 4.64 | AH135: 5.84 | AI135: 60.4 | AJ135: 0.695 | AK135: 0.594 | AL135: 1.167 | AM135: 1.642 | AN135: 1.207 | AO135: 0.851
A136: 2021-04-02T09:15:00 | B136: 0 | C136: 0 | D136: 0 | E136: 0 | F136: 0 | G136: 0 | H136: 16.581 | I136: 0.279 | J136: 0.601 | K136: 1.241 | L136: 0.918 | M136: 1.012 | N136: 1.521 | AB136: 0.578 | AC136: 1.66 | AD136: --- | AE136: --- | AF136: 44.8 | AG136: 4.66 | AH136: 5.84 | AI136: 60.6 | AJ136: 0.696 | AK136: 0.594 | AL136: 1.167 | AM136: 1.638 | AN136: 1.198 | AO136: 0.852
A137: 2021-04-02T09:30:00 | B137: 0 | C137: 0 | D137: 0 | E137: 0 | F137: 0 | G137: 0 | H137: 16.584 | I137: 0.275 | J137: 0.601 | K137: 1.241 | L137: 0.916 | M137: 1.01 | N137: 1.518 | AB137: 0.566 | AC137: 1.66 | AD137: --- | AE137: --- | AF137: 44.8 | AG137: 4.62 | AH137: 5.81 | AI137: 60.4 | AJ137: 0.694 | AK137: 0.593 | AL137: 1.164 | AM137: 1.638 | AN137: 1.205 | AO137: 0.851
A138: 2021-04-02T09:45:00 | B138: 0 | C138: 0 | D138: 0 | E138: 0 | F138: 0 | G138: 0 | H138: 16.583 | I138: 0.277 | J138: 0.6 | K138: 1.241 | L138: 0.913 | M138: 1.007 | N138: 1.517 | AB138: 0.572 | AC138: 1.65 | AD138: --- | AE138: --- | AF138: 44.5 | AG138: 4.6 | AH138: 5.81 | AI138: 59.5 | AJ138: 0.693 | AK138: 0.593 | AL138: 1.164 | AM138: 1.632 | AN138: 1.197 | AO138: 0.847
A139: 2021-04-02T10:00:00 | B139: 0 | C139: 0 | D139: 0 | E139: 0 | F139: 0 | G139: 0 | H139: 16.583 | I139: 0.271 | J139: 0.6 | K139: 1.239 | L139: 0.914 | M139: 1.008 | N139: 1.518 | AB139: 0.554 | AC139: 1.65 | AD139: --- | AE139: --- | AF139: 44.3 | AG139: 4.6 | AH139: 5.76 | AI139: 60.2 | AJ139: 0.693 | AK139: 0.591 | AL139: 1.164 | AM139: 1.629 | AN139: 1.195 | AO139: 0.85
A140: 2021-04-02T10:15:00 | B140: 0 | C140: 0 | D140: 0 | E140: 0 | F140: 0 | G140: 0 | H140: 16.576 | I140: 0.271 | J140: 0.599 | K140: 1.24 | L140: 0.911 | M140: 1.004 | N140: 1.517 | AB140: 0.554 | AC140: 1.63 | AD140: --- | AE140: --- | AF140: 44.1 | AG140: 4.62 | AH140: 5.76 | AI140: 59.5 | AJ140: 0.694 | AK140: 0.591 | AL140: 1.164 | AM140: 1.625 | AN140: 1.198 | AO140: 0.847
A141: 2021-04-02T10:30:00 | B141: 0 | C141: 0 | D141: 0 | E141: 0 | F141: 0 | G141: 0 | H141: 16.576 | I141: 0.267 | J141: 0.598 | K141: 1.238 | L141: 0.91 | M141: 1.003 | N141: 1.515 | AB141: 0.542 | AC141: 1.62 | AD141: --- | AE141: --- | AF141: 44.1 | AG141: 4.58 | AH141: 5.73 | AI141: 59.3 | AJ141: 0.692 | AK141: 0.59 | AL141: 1.161 | AM141: 1.625 | AN141: 1.191 | AO141: 0.846
A142: 2021-04-02T10:45:00 | B142: 0 | C142: 0 | D142: 0 | E142: 0 | F142: 0 | G142: 0 | H142: 16.579 | I142: 0.262 | J142: 0.598 | K142: 1.236 | L142: 0.908 | M142: 1.004 | N142: 1.511 | AB142: 0.526 | AC142: 1.62 | AD142: --- | AE142: --- | AF142: 43.8 | AG142: 4.58 | AH142: 5.73 | AI142: 58.9 | AJ142: 0.692 | AK142: 0.59 | AL142: 1.162 | AM142: 1.62 | AN142: 1.199 | AO142: 0.844
A143: 2021-04-02T11:00:00 | B143: 0 | C143: 0 | D143: 0 | E143: 0 | F143: 0 | G143: 0 | H143: 16.578 | I143: 0.258 | J143: 0.598 | K143: 1.237 | L143: 0.907 | M143: 1 | N143: 1.507 | AB143: 0.514 | AC143: 1.62 | AD143: --- | AE143: --- | AF143: 43.4 | AG143: 4.56 | AH143: 5.7 | AI143: 58.9 | AJ143: 0.691 | AK143: 0.589 | AL143: 1.161 | AM143: 1.612 | AN143: 1.19 | AO143: 0.844
A144: 2021-04-02T11:15:00 | B144: 0 | C144: 0 | D144: 0 | E144: 0 | F144: 0 | G144: 0 | H144: 16.582 | I144: 0.258 | J144: 0.598 | K144: 1.237 | L144: 0.903 | M144: 0.996 | N144: 1.507 | AB144: 0.514 | AC144: 1.62 | AD144: --- | AE144: --- | AF144: 43.8 | AG144: 4.56 | AH144: 5.7 | AI144: 58.9 | AJ144: 0.691 | AK144: 0.589 | AL144: 1.161 | AM144: 1.619 | AN144: 1.187 | AO144: 0.844
A145: 2021-04-02T11:30:00 | B145: 0 | C145: 0 | D145: 0 | E145: 0 | F145: 0 | G145: 0 | H145: 16.581 | I145: 0.253 | J145: 0.598 | K145: 1.233 | L145: 0.904 | M145: 0.997 | N145: 1.504 | AB145: 0.5 | AC145: 1.62 | AD145: --- | AE145: --- | AF145: 43.3 | AG145: 4.5 | AH145: 5.7 | AI145: 59.1 | AJ145: 0.688 | AK145: 0.589 | AL145: 1.157 | AM145: 1.611 | AN145: 1.183 | AO145: 0.845
A146: 2021-04-02T11:45:00 | B146: 0 | C146: 0 | D146: 0 | E146: 0 | F146: 0 | G146: 0 | H146: 16.583 | I146: 0.251 | J146: 0.598 | K146: 1.234 | L146: 0.902 | M146: 0.995 | N146: 1.503 | AB146: 0.494 | AC146: 1.62 | AD146: --- | AE146: --- | AF146: 42.9 | AG146: 4.5 | AH146: 5.7 | AI146: 57.9 | AJ146: 0.688 | AK146: 0.589 | AL146: 1.157 | AM146: 1.602 | AN146: 1.184 | AO146: 0.839
A147: 2021-04-02T12:00:00 | B147: 0 | C147: 0 | D147: 0 | E147: 0 | F147: 0 | G147: 0 | H147: 16.583 | I147: 0.248 | J147: 0.597 | K147: 1.232 | L147: 0.899 | M147: 0.991 | N147: 1.5 | AB147: 0.485 | AC147: 1.61 | AD147: --- | AE147: --- | AF147: 43 | AG147: 4.54 | AH147: 5.65 | AI147: 58.3 | AJ147: 0.69 | AK147: 0.587 | AL147: 1.158 | AM147: 1.604 | AN147: 1.182 | AO147: 0.841
A148: 2021-04-02T12:15:00 | B148: 0 | C148: 0 | D148: 0 | E148: 0 | F148: 0 | G148: 0 | H148: 16.582 | I148: 0.25 | J148: 0.597 | K148: 1.232 | L148: 0.898 | M148: 0.99 | N148: 1.497 | AB148: 0.491 | AC148: 1.61 | AD148: --- | AE148: --- | AF148: 43 | AG148: 4.46 | AH148: 5.65 | AI148: 57.9 | AJ148: 0.686 | AK148: 0.587 | AL148: 1.156 | AM148: 1.604 | AN148: 1.187 | AO148: 0.839
A149: 2021-04-02T12:30:00 | B149: 0 | C149: 0 | D149: 0 | E149: 0 | F149: 0 | G149: 0 | H149: 16.582 | I149: 0.247 | J149: 0.597 | K149: 1.229 | L149: 0.895 | M149: 0.988 | N149: 1.494 | AB149: 0.482 | AC149: 1.61 | AD149: --- | AE149: --- | AF149: 43 | AG149: 4.5 | AH149: 5.62 | AI149: 58.5 | AJ149: 0.688 | AK149: 0.586 | AL149: 1.156 | AM149: 1.604 | AN149: 1.182 | AO149: 0.842
A150: 2021-04-02T12:45:00 | B150: 0 | C150: 0 | D150: 0 | E150: 0 | F150: 0 | G150: 0 | H150: 16.582 | I150: 0.244 | J150: 0.597 | K150: 1.227 | L150: 0.892 | M150: 0.987 | N150: 1.492 | AB150: 0.473 | AC150: 1.61 | AD150: --- | AE150: --- | AF150: 42.6 | AG150: 4.5 | AH150: 5.62 | AI150: 57.9 | AJ150: 0.688 | AK150: 0.586 | AL150: 1.156 | AM150: 1.597 | AN150: 1.179 | AO150: 0.839
A151: 2021-04-02T13:00:00 | B151: 0 | C151: 0 | D151: 0 | E151: 0 | F151: 0 | G151: 0 | H151: 16.587 | I151: 0.239 | J151: 0.596 | K151: 1.228 | L151: 0.891 | M151: 0.983 | N151: 1.49 | AB151: 0.459 | AC151: 1.6 | AD151: --- | AE151: --- | AF151: 42.4 | AG151: 4.44 | AH151: 5.57 | AI151: 57.4 | AJ151: 0.685 | AK151: 0.584 | AL151: 1.154 | AM151: 1.593 | AN151: 1.182 | AO151: 0.837
A152: 2021-04-02T13:15:00 | B152: 0 | C152: 0 | D152: 0 | E152: 0 | F152: 0 | G152: 0 | H152: 16.585 | I152: 0.24 | J152: 0.596 | K152: 1.229 | L152: 0.89 | M152: 0.98 | N152: 1.488 | AB152: 0.462 | AC152: 1.6 | AD152: --- | AE152: --- | AF152: 42.6 | AG152: 4.42 | AH152: 5.54 | AI152: 56.6 | AJ152: 0.684 | AK152: 0.583 | AL152: 1.153 | AM152: 1.597 | AN152: 1.173 | AO152: 0.833
A153: 2021-04-02T13:30:00 | B153: 0 | C153: 0 | D153: 0 | E153: 0 | F153: 0 | G153: 0 | H153: 16.585 | I153: 0.238 | J153: 0.595 | K153: 1.227 | L153: 0.887 | M153: 0.981 | N153: 1.485 | AB153: 0.456 | AC153: 1.59 | AD153: --- | AE153: --- | AF153: 42.4 | AG153: 4.4 | AH153: 5.54 | AI153: 56.2 | AJ153: 0.683 | AK153: 0.583 | AL153: 1.153 | AM153: 1.594 | AN153: 1.178 | AO153: 0.831
A154: 2021-04-02T13:45:00 | B154: 0 | C154: 0 | D154: 0 | E154: 0 | F154: 0 | G154: 0 | H154: 16.587 | I154: 0.236 | J154: 0.595 | K154: 1.222 | L154: 0.885 | M154: 0.978 | N154: 1.483 | AB154: 0.45 | AC154: 1.59 | AD154: --- | AE154: --- | AF154: 42.1 | AG154: 4.36 | AH154: 5.54 | AI154: 57 | AJ154: 0.681 | AK154: 0.583 | AL154: 1.151 | AM154: 1.588 | AN154: 1.177 | AO154: 0.835
A155: 2021-04-02T14:00:00 | B155: 0 | C155: 0 | D155: 0 | E155: 0 | F155: 0 | G155: 0 | H155: 16.586 | I155: 0.233 | J155: 0.595 | K155: 1.225 | L155: 0.885 | M155: 0.975 | N155: 1.48 | AB155: 0.442 | AC155: 1.59 | AD155: --- | AE155: --- | AF155: 42.5 | AG155: 4.38 | AH155: 5.51 | AI155: 56.6 | AJ155: 0.682 | AK155: 0.582 | AL155: 1.15 | AM155: 1.595 | AN155: 1.173 | AO155: 0.833
A156: 2021-04-02T14:15:00 | B156: 0 | C156: 0 | D156: 0 | E156: 0 | F156: 0 | G156: 0 | H156: 16.583 | I156: 0.232 | J156: 0.594 | K156: 1.225 | L156: 0.883 | M156: 0.972 | N156: 1.478 | AB156: 0.439 | AC156: 1.58 | AD156: --- | AE156: --- | AF156: 41.6 | AG156: 4.34 | AH156: 5.49 | AI156: 55.7 | AJ156: 0.68 | AK156: 0.581 | AL156: 1.151 | AM156: 1.578 | AN156: 1.165 | AO156: 0.829
A157: 2021-04-02T14:30:00 | B157: 0 | C157: 0 | D157: 0 | E157: 0 | F157: 0 | G157: 0 | H157: 16.582 | I157: 0.229 | J157: 0.594 | K157: 1.222 | L157: 0.882 | M157: 0.973 | N157: 1.476 | AB157: 0.43 | AC157: 1.58 | AD157: --- | AE157: --- | AF157: 41.7 | AG157: 4.29 | AH157: 5.46 | AI157: 56.2 | AJ157: 0.677 | AK157: 0.58 | AL157: 1.149 | AM157: 1.58 | AN157: 1.174 | AO157: 0.831
